Workbook

Sheet TABS
D5: =Parameters!$M$3 -> Copyright © 2019 IMS Infrastructure Management Services. All Rights Reserved.
B6: =Parameters!C10 -> City of Friendswood, TX
B7: Description of Tabs in Analysis Spreadsheet - Not All Tabs May be Present, Or They May be Hidden
B10: Tab Name | C10: Description | D10: Editable Fields
B12: Definitions | C12: List of abbreviations and acronyms used throughout the spreadsheet. | D12: No editable fields - reporting only
B14: SUMMARY | C14: Provides a summary of the size, key attributes and overall condition of the network by functional class and pavement type. | D14: No editable fields - reporting only
B16: ZONE SUMMARY | C16: Provides a summary of the Zone size and condition complete with how each zone ranks against all named zones. Rank is based on network index. If Zones are turned off in the PARAMETERS Tab, zone priority is set to Null. | D16: No editable fields - reporting only
B18: COMPS | C18: Provides a comparison of the analysis results to three rule of thumb methodologies based on network deficiency, network valuation and currect average condition. | D18: No editable fields - reporting only
B20: $ Plot | C20: Provides an estimate of the total network value and total concruction cost per mile | D20: No editable fields - reporting only
B22: EQUITY REMOVAL | C22: For condition driven agencies where analysis is governed by the final PCI score (as opposed to backlog), the EQUITY Removal tab reports back the true cost of underfunding a network below the steady state value. | D22: No editable fields - reporting only
B24: SELECTIONS | C24: Provides a 5 year summary of the number of critical (need year) segments, non-critical and selected segments plus the selected length and cost by rehab activity. Reporting is for the current budget in the NETWORK ANALYSIS tab. SELECTIONS also provides an estimate of the total network deficiency and annual life cycle cost steady state budget estimate) | D24: No editable fields - reporting only
B26: NETWORK ANALYSIS (BLUE) | C26: Provides a block by block inventory and condition summary for the entire network complete with assembly of projects. Primary function is to complete the 5 year rehab analysis and budget development. This tab is live and recalculates after every cell entry, use Excel recalc options to speed up slow recalculations by using forced manual recalc. | D26: Multiple editable fields as highlighted in yellow
B28: PARAMETERS (RED) HIDDEN | C28: Sets the key operating parameters for the network attributes, condition reporting and analysis. Most fields are user definable and may be changed to meet the needs of the agency. Agency should consult with IMS before changing these fields. | D28: Multiple editable fields as highlighted in yellow
B30: REHAB ACTIVITIES | C30: Listing of all potential rehabs complete with unit rates. Rehabs are initially developed on the PARAMETERS tab and then forward to the REHAB ACTIVITIES TAB. The number of rehabs are fixed. Unit Rates are calculated for a base cost (typically a local road) and then escalated up for higher functional classes. | D30: Multiple editable fields as highlighted in yellow
B32: INVENTORY (Created by a Macro on the Network Analysis Tab) | C32: Macro created inventory of the full network complete with key attributes, geometrics and condition summary including Survey PCI, Overrides and Current PCI. Also includes distress details, peripheral concrete and project summary. | D32: No editable fields - reporting only
B34: REHAB BY SEGMENT (Created by a Macro on the Network Analysis Tab) | C34: Publishes the results of the current analysis and sorts the results by segment (REHAB BY SEGMENT or by rehab year and Project ID (REHAB BY YEAR). Macro also creates a CSV tab for mapping. | D34: No editable fields - reporting only
B36: REHAB BY Year (Created by a Macro on the Network Analysis Tab) | C36: Publishes the results of the current analysis and sorts the results by Year and Project ID. | D36: No editable fields - reporting only
B38: NEED YEAR REHAB (Created by a Macro on the Network Analysis Tab) | C38: Publishes the results of a the need year analysis where projects are only selected when optimal assuming an unlimited budget. Used to select alternate rehab candidates | D38: No editable fields - reporting only
B40: ANALYSIS RESULTS (GREEN) | C40: Stores the results from the NETWORKS ANALYSIS tab for plotting and reporting. The Tab is updated using the analysis Macros, or manually by cutting and pasting values fro the Network Analysis Tab. | D40: All fields are editable by copying and pasting except for those highlighted in green
B42: ANNUAL PCI | C42: Plots the average network PCI for the various budgets copied to the ANALYSIS RESULTS tab. | D42: No editable fields - reporting only
B44: POST REHAB PCI | C44: Plots the relationship between post rehabilitation network average PCI for various budget levels. Used to establish the Control PCI, Steady State and Target budgets. Plot data is obtained from the ANALYSIS RESULTS tab. | D44: Plot data is editable on the ANALYSIS RESULTS tab, Text boxes are editable.
B46: POST REHAB BACKLOG | C46: Plots the relationship between post rehabilitation backlog for various budget levels. Used to establish the Control Backlog, Maintain Existing and Target budgets. Plot data is obtained from the ANALYSIS RESULTS tab. | D46: Plot data is editable on the ANALYSIS RESULTS tab, Text boxes are editable.
B48: GFP POST REHAB | C48: Plots the post rehab PCI distribution for the current budget in the NETWORK ANALYSIS tab. | D48: No editable fields - reporting only
B50: POST REHAB BL$ | C50: Plots the relationship between remaining post rehabilitation backlog costs for various budget levels. Plot data is obtained from the ANALYSIS RESULTS tab. | D50: Plot data is editable on the ANALYSIS RESULTS tab, Text boxes are editable.
B52: SURVEY PCI SURVEY GFP | C52: Plots the PCI and GFP distribution of the network at he time of survey. GFP is an acronym for Good-Fair-Poor. | D52: No editable fields - reporting only
B54: CURRENT PCI CURRENT GFP CURRENT GFP BY FUNCL CURRENT GFP by PT | C54: Plots the aged PCI and GFP distribution of the network to the date specified on the NETWORK ANALYSIS tab for the entire network, by functional class and pavement type. | D54: No editable fields - reporting only
B56: SI vs PCI | C56: Scatter plot of the segment PCI versus strength index for the network - valid for agencies deflection testing. | D56: No editable fields - reporting only
B58: SI vs PCI REHAB ACP | C58: Scatter plot of the segment PCI versus strength index for the network complete with Asphalt rehabilitation strategies. | D58: No editable fields - reporting only
B60: RI vs PCI REHAB PCC | C60: Scatter plot of the segment PCI versus roughness index for the network complete with concrete rehabilitation strategies. | D60: No editable fields - reporting only
B62: FUNCL | C62: Pie chart showing functional class distribution. | D62: No editable fields - reporting only
B64: PAVETYPE | C64: Pie chart showing pavement type distribution. | D64: No editable fields - reporting only
B66: LADD | C66: Scatter plot of the segment PCI against sum of the load associated distress deducts (LADD) and non-load associated distress deducts (NLAD). Plot is used to quantify pavement strength for segments that do not have deflection testing. | D66: No editable fields - reporting only
B68: PERF CURVES | C68: Plot of the pavement performance curves used in projecting future condition scores. A curve is assigned to a specific segment based on functional class (representing traffic)l, pavement type and strength. The shape of the curves can be modified by the user on the PARAMETERS tab. | D68: No editable fields - reporting only

Sheet Definitions
C6: =Parameters!M3 -> Copyright © 2019 IMS Infrastructure Management Services. All Rights Reserved.
B8: =Parameters!C10 -> City of Friendswood, TX
B9: Abreviations, Acronyms and terms used in the Analysis
B11: Abbreviation or Acronym | C11: Definition
B13: 10X Profile | C13: A series of 10 unconstrained budget runs to establish the Post Rehab PCI curve
B14: $k | C14: Dollars in thousands ($,000)
B15: $M | C15: Dollars in millions
B16: %SP | C16: Percent Spreadability - component of deflection analysis
B17: AC | C17: Asphalt Concrete - asphalt streets, flexible pavements, also known as ACP
B18: ACP | C18: Asphalt Concrete Pavement - asphalt streets, flexible pavements, also known as AC
B19: ADA | C19: American s with Disability Act - refers to handicap or para - ramps
B20: APCI | C20: Aged PCI - PCI aged to the start of the analysis period
B21: ART | C21: Arterial roadway functional classification
B22: ASTM | C22: American Society of Testing Methods
B23: Avg | C23: Average
B24: BCI | C24: Base Curvature Index - component of deflection analysis
B25: BL or B/L | C25: Backlog - percentage of network by area falling below a minimum PCI value
B26: Brk | C26: Break
B27: C&G or CG | C27: Curb and Gutter
B28: CAL | C28: Coarse Aggregate Loss
B29: CDV | C29: Corrected Deduct Value - part of the ASTM D6433 PCI calculation
B30: COL | C30: Collector roadway functional classification
B31: Cndtn | C31: Condition
B32: Control | C32: A series of budgets used to establish minimum budget requirements based on PCI and Backlog
B33: Control PCI | C33: Minimum recommended PCI to maintain a manageable network
B34: Control Backlog | C34: Maximum recommended backlog to maintain a manageable network
B35: CPCI | C35: Current PCI - PCI aged from date of survey to a specified date
B36: Crk | C36: Crack
B37: DeflCON | C37: Deflection Condition - structural load analysis based on traffic loading and deflection
B38: DMD | C38: Dynamic Maximum Deflection - temperature corrected deflection
B39: Div Slab | C39: Divided Slab - concrete distress
B40: DynaCON | C40: Dynamic Condition - structural layer analysis
B41: EM or E/Mill | C41: Edge mill
B42: E/FWM | C42: Edge Mill or Full Width Mill
B43: ft or FT | C43: Foot
B44: ft2 or FT2 | C44: Square foot
B45: Fall Thru Yr X | C45: Year when a segment was in its Need Year but there was insufficient monies for its rehab
B46: FunCL | C46: Functional classification or simply classification
B47: FWD | C47: Falling weight deflectometer - device to measure pavement strength
B48: FWM | C48: Full Width Mill
B49: GCI | C49: Gravel Condition Index
B50: GFP | C50: Good - Fair - Poor
B51: GIS | C51: Geographic Information System
B52: GISID | C52: GIS segment identification number
B53: H&V | C53: Horizontal and Vertical
B54: IRI | C54: International Roughness Index, measure of pavement smoothness in mm/m or in/mi
B55: Jt or JNT | C55: Joint
B56: km or Km | C56: Kilometer
B57: L&T | C57: Longitudinal and Transverse - generally refers to cracking
B58: LAD or LADD | C58: Load associated distress deducts - pavement distress related to heavy loading and trucks
B59: LOC | C59: Local roadway functional classification - same as RES
B60: LOG | C60: Lip of Gutter
B61: m | C61: Metre or meter
B62: m2 | C62: Square metre or square meter
B63: MART | C63: Major arterial roadway functional classification
B64: Max | C64: Maximum
B65: MaxDV | C65: Maximum Deduct Value
B66: MCOL | C66: Major collector roadway functional classification
B67: mi or Mi | C67: Mile
B68: Min | C68: Minimum
B69: MnART | C69: Minor arterial roadway functional classification
B70: MnCOL | C70: Minor collector roadway functional classification
B71: MND | C71: Must Not Do - project is included in the reporting, but excluded from the analysis
B72: MOD | C72: Moderate
B73: NI | C73: Network Index - 0 to 100 scoring of the manageability of the network, NI = (PCI X (100 - B/L)/100
B74: NLAD | C74: Non-load associated distress deduct -materials related pavement distress
B75: Need Year | C75: Year when a pavement is optimally due for its next rehabilitation
B76: Network Index | C76: Aggregation of the Backlog and Condition score of a network. NI = (PCI x (100 - B/L))/100
B77: Non-Crtcl Yr X | C77: Year when a segment was selected even though it is not in its need year
B78: OCI | C78: Overall condition index, also known as PCI
B79: Olay | C79: Overlay
B80: OPCI | C80: Override PCI
B81: PART | C81: Primary arterial roadway functional classification
B82: Pavetype | C82: Pavement Type
B83: PCC | C83: Portland Cement Concrete - concrete streets
B84: PPCC | C84: Peripheral PCC - curb and gutter, sidewalks, ramps, etc.
B85: PCI | C85: Pavement Condition Index - generic term for OCI, PCN, PQI etc.
B86: P-CPCI | C86: Project Current PCI - project PCI aged to current date
B87: Profile Analysis | C87: Series of 10 budget runs used to develop post rehab PCI and Backlog curves
B88: PVT or Pvmnt | C88: Pavement
B89: R&R or RR | C89: Remove and replace, structural patching
B90: RART | C90: Rural arterial roadway functional classification
B91: PWF | C91: Priority Weighting Factor
B92: Recon | C92: Reconstruction
B93: Rehab | C93: Rehabilitation
B94: Rplcmnt | C94: Rplcmnt
B95: RES | C95: Local roadway functional classification - same as LOC
B96: RI or RCI | C96: Roughness Index
B97: Strng | C97: Strong
B98: SART | C98: Secondary arterial roadway functional classification
B99: SCI | C99: Surface Curvature Index - component of deflection analysis
B100: SDI | C100: Surface Distress Index - 0 to 100 measure of visible pavement condition
B101: Selected Yr 1 | C101: Year a segment was selected for rehabilitation
B102: SI | C102: Structural Index - 0 to 100 rating of pavement strength
B103: SP or Strctrl Ptch | C103: Structural Patching
B104: STA | C104: Station or chainage
B105: Surf | C105: Surface
B106: Surf Trtmt | C106: Surface Treatment
B107: SW or S/W | C107: Sidewalk
B108: TDV | C108: Total Deduct Value
B109: V | C109: Very
B110: W | C110: Weak
B111: Yd2 | C111: Square Yard
B112: Zone | C112: Any user defined subdivision, neighborhood or district.
B113: Zone Code | C113: Assigned numeric ID to textural zones
B114: Zone Rank | C114: Ranking of the Zone Network Index Value compared to all other Zones

Sheet Zone Summary (hidden)
K6: =Parameters!M3 -> Copyright © 2019 IMS Infrastructure Management Services. All Rights Reserved.
B8: =Parameters!C10 -> City of Friendswood, TX
B9: Neighboorhood / Zone Summary
B10: Zone | C10: Zone Code | D10: ="Zone Length ("&Parameters!K9&")" -> Zone Length (ft) | E10: ="Zone Length ("&Parameters!I11&")" -> Zone Length (mi) | F10: ="Zone Area ("&Parameters!K10&")" -> Zone Area (yd2) | G10: Zone PCI | H10: Zone Back Log | I10: Network Index | J10: Zone Rank | K10: Zone Priority Factor
B12: Zone 1 | C12: 10 | D12: =SUM(IF(C12='Network Analysis'!$AU$18:$AU$1756,'Network Analysis'!$Q$18:$Q$1756)) -> 380872.43 | E12: =D12/Parameters!$I$9 -> 72.13492992 | F12: =SUM(IF(C12='Network Analysis'!$AU$18:$AU$1756,'Network Analysis'!$S$18:$S$1756)) -> 1238377 | G12: =IF(F12=0,0,SUM(IF($C12='Network Analysis'!$AU$18:$AU$1756,('Network Analysis'!$S$18:$S$1756*NA_PCI)/'Zone Summary'!$F12))) -> 69.2453429 | H12: =SUM(IF(C12='Network Analysis'!$AU$18:$AU$1756,IF(NA_CPCI<Parameters!$H$63,'Network Analysis'!$S$18:$S$1756/'Zone Summary'!F12*100))) -> 0 | I12: =IF(F12=0,100,(G12*(100-H12)/100)) -> 69.2453429 | J12: =($C$38+1)-RANK(I12,$I$12:$I$36) -> 3 | K12: =IF(F12=0,0,(($C$38+1-J12)*Parameters!$H$65*Parameters!$H$64)) -> 0
B13: Zone 2 | C13: =C12+10 -> 20 | D13: =SUM(IF(C13='Network Analysis'!$AU$18:$AU$1756,'Network Analysis'!$Q$18:$Q$1756)) -> 526871.37 | E13: =D13/Parameters!$I$9 -> 99.78624432 | F13: =SUM(IF(C13='Network Analysis'!$AU$18:$AU$1756,'Network Analysis'!$S$18:$S$1756)) -> 1586001 | G13: =IF(F13=0,0,SUM(IF($C13='Network Analysis'!$AU$18:$AU$1756,('Network Analysis'!$S$18:$S$1756*NA_PCI)/'Zone Summary'!$F13))) -> 66.09080259 | H13: =SUM(IF(C13='Network Analysis'!$AU$18:$AU$1756,IF(NA_CPCI<Parameters!$H$63,'Network Analysis'!$S$18:$S$1756/'Zone Summary'!F13*100))) -> 5.941862584 | I13: =IF(F13=0,100,(G13*(100-H13)/100)) -> 62.16377792 | J13: 1 | K13: =IF(F13=0,0,(($C$38+1-J13)*Parameters!$H$65*Parameters!$H$64)) -> 0
B14: Zone 3 | C14: =C13+10 -> 30 | D14: =SUM(IF(C14='Network Analysis'!$AU$18:$AU$1756,'Network Analysis'!$Q$18:$Q$1756)) -> 16559.82 | E14: =D14/Parameters!$I$9 -> 3.136329545 | F14: =SUM(IF(C14='Network Analysis'!$AU$18:$AU$1756,'Network Analysis'!$S$18:$S$1756)) -> 58101 | G14: =IF(F14=0,0,SUM(IF($C14='Network Analysis'!$AU$18:$AU$1756,('Network Analysis'!$S$18:$S$1756*NA_PCI)/'Zone Summary'!$F14))) -> 69.01702208 | H14: =SUM(IF(C14='Network Analysis'!$AU$18:$AU$1756,IF(NA_CPCI<Parameters!$H$63,'Network Analysis'!$S$18:$S$1756/'Zone Summary'!F14*100))) -> 0 | I14: 69.01702208 | J14: 2 | K14: =IF(F14=0,0,(($C$38+1-J14)*Parameters!$H$65*Parameters!$H$64)) -> 0
B15: Zone 4 | C15: 40 | D15: =SUM(IF(C15='Network Analysis'!$AU$18:$AU$1756,'Network Analysis'!$Q$18:$Q$1756)) -> 0 | E15: =D15/Parameters!$I$9 -> 0 | F15: =SUM(IF(C15='Network Analysis'!$AU$18:$AU$1756,'Network Analysis'!$S$18:$S$1756)) -> 0 | G15: =IF(F15=0,0,SUM(IF($C15='Network Analysis'!$AU$18:$AU$1756,('Network Analysis'!$S$18:$S$1756*NA_PCI)/'Zone Summary'!$F15))) -> 0 | H15: =SUM(IF(C15='Network Analysis'!$AU$18:$AU$1756,IF(NA_CPCI<Parameters!$H$63,'Network Analysis'!$S$18:$S$1756/'Zone Summary'!F15*100))) -> 0 | I15: =IF(F15=0,0,(G15*(100-H15)/100)) -> 0 | J15: 0 | K15: =IF(F15=0,0,(($C$38+1-J15)*Parameters!$H$65*Parameters!$H$64)) -> 0
B16: Zone 5 | C16: 50 | D16: =SUM(IF(C16='Network Analysis'!$AU$18:$AU$1756,'Network Analysis'!$Q$18:$Q$1756)) -> 0 | E16: =D16/Parameters!$I$9 -> 0 | F16: =SUM(IF(C16='Network Analysis'!$AU$18:$AU$1756,'Network Analysis'!$S$18:$S$1756)) -> 0 | G16: =IF(F16=0,0,SUM(IF($C16='Network Analysis'!$AU$18:$AU$1756,('Network Analysis'!$S$18:$S$1756*NA_PCI)/'Zone Summary'!$F16))) -> 0 | H16: =SUM(IF(C16='Network Analysis'!$AU$18:$AU$1756,IF(NA_CPCI<Parameters!$H$63,'Network Analysis'!$S$18:$S$1756/'Zone Summary'!F16*100))) -> 0 | I16: =IF(F16=0,0,(G16*(100-H16)/100)) -> 0 | J16: 0 | K16: =IF(F16=0,0,(($C$38+1-J16)*Parameters!$H$65*Parameters!$H$64)) -> 0
B17: Zone 6 | C17: 60 | D17: =SUM(IF(C17='Network Analysis'!$AU$18:$AU$1756,'Network Analysis'!$Q$18:$Q$1756)) -> 0 | E17: =D17/Parameters!$I$9 -> 0 | F17: =SUM(IF(C17='Network Analysis'!$AU$18:$AU$1756,'Network Analysis'!$S$18:$S$1756)) -> 0 | G17: =IF(F17=0,0,SUM(IF($C17='Network Analysis'!$AU$18:$AU$1756,('Network Analysis'!$S$18:$S$1756*NA_PCI)/'Zone Summary'!$F17))) -> 0 | H17: =SUM(IF(C17='Network Analysis'!$AU$18:$AU$1756,IF(NA_CPCI<Parameters!$H$63,'Network Analysis'!$S$18:$S$1756/'Zone Summary'!F17*100))) -> 0 | I17: 0 | J17: 0 | K17: =IF(F17=0,0,(($C$38+1-J17)*Parameters!$H$65*Parameters!$H$64)) -> 0
B18: Zone 7 | C18: 70 | D18: =SUM(IF(C18='Network Analysis'!$AU$18:$AU$1756,'Network Analysis'!$Q$18:$Q$1756)) -> 0 | E18: =D18/Parameters!$I$9 -> 0 | F18: =SUM(IF(C18='Network Analysis'!$AU$18:$AU$1756,'Network Analysis'!$S$18:$S$1756)) -> 0 | G18: =IF(F18=0,0,SUM(IF($C18='Network Analysis'!$AU$18:$AU$1756,('Network Analysis'!$S$18:$S$1756*NA_PCI)/'Zone Summary'!$F18))) -> 0 | H18: =SUM(IF(C18='Network Analysis'!$AU$18:$AU$1756,IF(NA_CPCI<Parameters!$H$63,'Network Analysis'!$S$18:$S$1756/'Zone Summary'!F18*100))) -> 0 | I18: 0 | J18: 0 | K18: =IF(F18=0,0,(($C$38+1-J18)*Parameters!$H$65*Parameters!$H$64)) -> 0
B19: Zone 8 | C19: 80 | D19: =SUM(IF(C19='Network Analysis'!$AU$18:$AU$1756,'Network Analysis'!$Q$18:$Q$1756)) -> 0 | E19: =D19/Parameters!$I$9 -> 0 | F19: =SUM(IF(C19='Network Analysis'!$AU$18:$AU$1756,'Network Analysis'!$S$18:$S$1756)) -> 0 | G19: =IF(F19=0,0,SUM(IF($C19='Network Analysis'!$AU$18:$AU$1756,('Network Analysis'!$S$18:$S$1756*NA_PCI)/'Zone Summary'!$F19))) -> 0 | H19: =SUM(IF(C19='Network Analysis'!$AU$18:$AU$1756,IF(NA_CPCI<Parameters!$H$63,'Network Analysis'!$S$18:$S$1756/'Zone Summary'!F19*100))) -> 0 | I19: 0 | J19: 0 | K19: =IF(F19=0,0,(($C$38+1-J19)*Parameters!$H$65*Parameters!$H$64)) -> 0
B20: Zone 9 | C20: 90 | D20: =SUM(IF(C20='Network Analysis'!$AU$18:$AU$1756,'Network Analysis'!$Q$18:$Q$1756)) -> 0 | E20: =D20/Parameters!$I$9 -> 0 | F20: =SUM(IF(C20='Network Analysis'!$AU$18:$AU$1756,'Network Analysis'!$S$18:$S$1756)) -> 0 | G20: =IF(F20=0,0,SUM(IF($C20='Network Analysis'!$AU$18:$AU$1756,('Network Analysis'!$S$18:$S$1756*NA_PCI)/'Zone Summary'!$F20))) -> 0 | H20: =SUM(IF(C20='Network Analysis'!$AU$18:$AU$1756,IF(NA_CPCI<Parameters!$H$63,'Network Analysis'!$S$18:$S$1756/'Zone Summary'!F20*100))) -> 0 | I20: 0 | J20: 0 | K20: =IF(F20=0,0,(($C$38+1-J20)*Parameters!$H$65*Parameters!$H$64)) -> 0
B21: Zone 10 | C21: 100 | D21: =SUM(IF(C21='Network Analysis'!$AU$18:$AU$1756,'Network Analysis'!$Q$18:$Q$1756)) -> 0 | E21: =D21/Parameters!$I$9 -> 0 | F21: =SUM(IF(C21='Network Analysis'!$AU$18:$AU$1756,'Network Analysis'!$S$18:$S$1756)) -> 0 | G21: =IF(F21=0,0,SUM(IF($C21='Network Analysis'!$AU$18:$AU$1756,('Network Analysis'!$S$18:$S$1756*NA_PCI)/'Zone Summary'!$F21))) -> 0 | H21: =SUM(IF(C21='Network Analysis'!$AU$18:$AU$1756,IF(NA_CPCI<Parameters!$H$63,'Network Analysis'!$S$18:$S$1756/'Zone Summary'!F21*100))) -> 0 | I21: 0 | J21: 0 | K21: =IF(F21=0,0,(($C$38+1-J21)*Parameters!$H$65*Parameters!$H$64)) -> 0
B22: Zone 11 | C22: 110 | D22: =SUM(IF(C22='Network Analysis'!$AU$18:$AU$1756,'Network Analysis'!$Q$18:$Q$1756)) -> 0 | E22: =D22/Parameters!$I$9 -> 0 | F22: =SUM(IF(C22='Network Analysis'!$AU$18:$AU$1756,'Network Analysis'!$S$18:$S$1756)) -> 0 | G22: =IF(F22=0,0,SUM(IF($C22='Network Analysis'!$AU$18:$AU$1756,('Network Analysis'!$S$18:$S$1756*NA_PCI)/'Zone Summary'!$F22))) -> 0 | H22: =SUM(IF(C22='Network Analysis'!$AU$18:$AU$1756,IF(NA_CPCI<Parameters!$H$63,'Network Analysis'!$S$18:$S$1756/'Zone Summary'!F22*100))) -> 0 | I22: 0 | J22: 0 | K22: =IF(F22=0,0,(($C$38+1-J22)*Parameters!$H$65*Parameters!$H$64)) -> 0
B23: Zone 12 | C23: 120 | D23: =SUM(IF(C23='Network Analysis'!$AU$18:$AU$1756,'Network Analysis'!$Q$18:$Q$1756)) -> 0 | E23: =D23/Parameters!$I$9 -> 0 | F23: =SUM(IF(C23='Network Analysis'!$AU$18:$AU$1756,'Network Analysis'!$S$18:$S$1756)) -> 0 | G23: =IF(F23=0,0,SUM(IF($C23='Network Analysis'!$AU$18:$AU$1756,('Network Analysis'!$S$18:$S$1756*NA_PCI)/'Zone Summary'!$F23))) -> 0 | H23: =SUM(IF(C23='Network Analysis'!$AU$18:$AU$1756,IF(NA_CPCI<Parameters!$H$63,'Network Analysis'!$S$18:$S$1756/'Zone Summary'!F23*100))) -> 0 | I23: 0 | J23: 0 | K23: =IF(F23=0,0,(($C$38+1-J23)*Parameters!$H$65*Parameters!$H$64)) -> 0
B24: Zone 13 | C24: 130 | D24: =SUM(IF(C24='Network Analysis'!$AU$18:$AU$1756,'Network Analysis'!$Q$18:$Q$1756)) -> 0 | E24: =D24/Parameters!$I$9 -> 0 | F24: =SUM(IF(C24='Network Analysis'!$AU$18:$AU$1756,'Network Analysis'!$S$18:$S$1756)) -> 0 | G24: =IF(F24=0,0,SUM(IF($C24='Network Analysis'!$AU$18:$AU$1756,('Network Analysis'!$S$18:$S$1756*NA_PCI)/'Zone Summary'!$F24))) -> 0 | H24: =SUM(IF(C24='Network Analysis'!$AU$18:$AU$1756,IF(NA_CPCI<Parameters!$H$63,'Network Analysis'!$S$18:$S$1756/'Zone Summary'!F24*100))) -> 0 | I24: 0 | J24: 0 | K24: =IF(F24=0,0,(($C$38+1-J24)*Parameters!$H$65*Parameters!$H$64)) -> 0
B25: Zone 14 | C25: 140 | D25: =SUM(IF(C25='Network Analysis'!$AU$18:$AU$1756,'Network Analysis'!$Q$18:$Q$1756)) -> 0 | E25: =D25/Parameters!$I$9 -> 0 | F25: =SUM(IF(C25='Network Analysis'!$AU$18:$AU$1756,'Network Analysis'!$S$18:$S$1756)) -> 0 | G25: =IF(F25=0,0,SUM(IF($C25='Network Analysis'!$AU$18:$AU$1756,('Network Analysis'!$S$18:$S$1756*NA_PCI)/'Zone Summary'!$F25))) -> 0 | H25: =SUM(IF(C25='Network Analysis'!$AU$18:$AU$1756,IF(NA_CPCI<Parameters!$H$63,'Network Analysis'!$S$18:$S$1756/'Zone Summary'!F25*100))) -> 0 | I25: 0 | J25: 0 | K25: =IF(F25=0,0,(($C$38+1-J25)*Parameters!$H$65*Parameters!$H$64)) -> 0
B26: Zone 15 | C26: 150 | D26: =SUM(IF(C26='Network Analysis'!$AU$18:$AU$1756,'Network Analysis'!$Q$18:$Q$1756)) -> 0 | E26: =D26/Parameters!$I$9 -> 0 | F26: =SUM(IF(C26='Network Analysis'!$AU$18:$AU$1756,'Network Analysis'!$S$18:$S$1756)) -> 0 | G26: =IF(F26=0,0,SUM(IF($C26='Network Analysis'!$AU$18:$AU$1756,('Network Analysis'!$S$18:$S$1756*NA_PCI)/'Zone Summary'!$F26))) -> 0 | H26: =SUM(IF(C26='Network Analysis'!$AU$18:$AU$1756,IF(NA_CPCI<Parameters!$H$63,'Network Analysis'!$S$18:$S$1756/'Zone Summary'!F26*100))) -> 0 | I26: 0 | J26: 0 | K26: =IF(F26=0,0,(($C$38+1-J26)*Parameters!$H$65*Parameters!$H$64)) -> 0
B27: Zone 16 | C27: 160 | D27: =SUM(IF(C27='Network Analysis'!$AU$18:$AU$1756,'Network Analysis'!$Q$18:$Q$1756)) -> 0 | E27: =D27/Parameters!$I$9 -> 0 | F27: =SUM(IF(C27='Network Analysis'!$AU$18:$AU$1756,'Network Analysis'!$S$18:$S$1756)) -> 0 | G27: =IF(F27=0,0,SUM(IF($C27='Network Analysis'!$AU$18:$AU$1756,('Network Analysis'!$S$18:$S$1756*NA_PCI)/'Zone Summary'!$F27))) -> 0 | H27: =SUM(IF(C27='Network Analysis'!$AU$18:$AU$1756,IF(NA_CPCI<Parameters!$H$63,'Network Analysis'!$S$18:$S$1756/'Zone Summary'!F27*100))) -> 0 | I27: 0 | J27: 0 | K27: =IF(F27=0,0,(($C$38+1-J27)*Parameters!$H$65*Parameters!$H$64)) -> 0
B28: Zone 17 | C28: 170 | D28: =SUM(IF(C28='Network Analysis'!$AU$18:$AU$1756,'Network Analysis'!$Q$18:$Q$1756)) -> 0 | E28: =D28/Parameters!$I$9 -> 0 | F28: =SUM(IF(C28='Network Analysis'!$AU$18:$AU$1756,'Network Analysis'!$S$18:$S$1756)) -> 0 | G28: =IF(F28=0,0,SUM(IF($C28='Network Analysis'!$AU$18:$AU$1756,('Network Analysis'!$S$18:$S$1756*NA_PCI)/'Zone Summary'!$F28))) -> 0 | H28: =SUM(IF(C28='Network Analysis'!$AU$18:$AU$1756,IF(NA_CPCI<Parameters!$H$63,'Network Analysis'!$S$18:$S$1756/'Zone Summary'!F28*100))) -> 0 | I28: 0 | J28: 0 | K28: =IF(F28=0,0,(($C$38+1-J28)*Parameters!$H$65*Parameters!$H$64)) -> 0
B29: Zone 18 | C29: 180 | D29: =SUM(IF(C29='Network Analysis'!$AU$18:$AU$1756,'Network Analysis'!$Q$18:$Q$1756)) -> 0 | E29: =D29/Parameters!$I$9 -> 0 | F29: =SUM(IF(C29='Network Analysis'!$AU$18:$AU$1756,'Network Analysis'!$S$18:$S$1756)) -> 0 | G29: =IF(F29=0,0,SUM(IF($C29='Network Analysis'!$AU$18:$AU$1756,('Network Analysis'!$S$18:$S$1756*NA_PCI)/'Zone Summary'!$F29))) -> 0 | H29: =SUM(IF(C29='Network Analysis'!$AU$18:$AU$1756,IF(NA_CPCI<Parameters!$H$63,'Network Analysis'!$S$18:$S$1756/'Zone Summary'!F29*100))) -> 0 | I29: 0 | J29: 0 | K29: =IF(F29=0,0,(($C$38+1-J29)*Parameters!$H$65*Parameters!$H$64)) -> 0
B30: Zone 19 | C30: 190 | D30: =SUM(IF(C30='Network Analysis'!$AU$18:$AU$1756,'Network Analysis'!$Q$18:$Q$1756)) -> 0 | E30: =D30/Parameters!$I$9 -> 0 | F30: =SUM(IF(C30='Network Analysis'!$AU$18:$AU$1756,'Network Analysis'!$S$18:$S$1756)) -> 0 | G30: =IF(F30=0,0,SUM(IF($C30='Network Analysis'!$AU$18:$AU$1756,('Network Analysis'!$S$18:$S$1756*NA_PCI)/'Zone Summary'!$F30))) -> 0 | H30: =SUM(IF(C30='Network Analysis'!$AU$18:$AU$1756,IF(NA_CPCI<Parameters!$H$63,'Network Analysis'!$S$18:$S$1756/'Zone Summary'!F30*100))) -> 0 | I30: 0 | J30: 0 | K30: =IF(F30=0,0,(($C$38+1-J30)*Parameters!$H$65*Parameters!$H$64)) -> 0
B31: Zone 20 | C31: 200 | D31: =SUM(IF(C31='Network Analysis'!$AU$18:$AU$1756,'Network Analysis'!$Q$18:$Q$1756)) -> 0 | E31: =D31/Parameters!$I$9 -> 0 | F31: =SUM(IF(C31='Network Analysis'!$AU$18:$AU$1756,'Network Analysis'!$S$18:$S$1756)) -> 0 | G31: =IF(F31=0,0,SUM(IF($C31='Network Analysis'!$AU$18:$AU$1756,('Network Analysis'!$S$18:$S$1756*NA_PCI)/'Zone Summary'!$F31))) -> 0 | H31: =SUM(IF(C31='Network Analysis'!$AU$18:$AU$1756,IF(NA_CPCI<Parameters!$H$63,'Network Analysis'!$S$18:$S$1756/'Zone Summary'!F31*100))) -> 0 | I31: 0 | J31: 0 | K31: =IF(F31=0,0,(($C$38+1-J31)*Parameters!$H$65*Parameters!$H$64)) -> 0
B32: Zone 21 | C32: 210 | D32: =SUM(IF(C32='Network Analysis'!$AU$18:$AU$1756,'Network Analysis'!$Q$18:$Q$1756)) -> 0 | E32: =D32/Parameters!$I$9 -> 0 | F32: =SUM(IF(C32='Network Analysis'!$AU$18:$AU$1756,'Network Analysis'!$S$18:$S$1756)) -> 0 | G32: =IF(F32=0,0,SUM(IF($C32='Network Analysis'!$AU$18:$AU$1756,('Network Analysis'!$S$18:$S$1756*NA_PCI)/'Zone Summary'!$F32))) -> 0 | H32: =SUM(IF(C32='Network Analysis'!$AU$18:$AU$1756,IF(NA_CPCI<Parameters!$H$63,'Network Analysis'!$S$18:$S$1756/'Zone Summary'!F32*100))) -> 0 | I32: 0 | J32: 0 | K32: =IF(F32=0,0,(($C$38+1-J32)*Parameters!$H$65*Parameters!$H$64)) -> 0
B33: Zone 22 | C33: 220 | D33: =SUM(IF(C33='Network Analysis'!$AU$18:$AU$1756,'Network Analysis'!$Q$18:$Q$1756)) -> 0 | E33: =D33/Parameters!$I$9 -> 0 | F33: =SUM(IF(C33='Network Analysis'!$AU$18:$AU$1756,'Network Analysis'!$S$18:$S$1756)) -> 0 | G33: =IF(F33=0,0,SUM(IF($C33='Network Analysis'!$AU$18:$AU$1756,('Network Analysis'!$S$18:$S$1756*NA_PCI)/'Zone Summary'!$F33))) -> 0 | H33: =SUM(IF(C33='Network Analysis'!$AU$18:$AU$1756,IF(NA_CPCI<Parameters!$H$63,'Network Analysis'!$S$18:$S$1756/'Zone Summary'!F33*100))) -> 0 | I33: 0 | J33: 0 | K33: =IF(F33=0,0,(($C$38+1-J33)*Parameters!$H$65*Parameters!$H$64)) -> 0
B34: Zone 23 | C34: 230 | D34: =SUM(IF(C34='Network Analysis'!$AU$18:$AU$1756,'Network Analysis'!$Q$18:$Q$1756)) -> 0 | E34: =D34/Parameters!$I$9 -> 0 | F34: =SUM(IF(C34='Network Analysis'!$AU$18:$AU$1756,'Network Analysis'!$S$18:$S$1756)) -> 0 | G34: =IF(F34=0,0,SUM(IF($C34='Network Analysis'!$AU$18:$AU$1756,('Network Analysis'!$S$18:$S$1756*NA_PCI)/'Zone Summary'!$F34))) -> 0 | H34: =SUM(IF(C34='Network Analysis'!$AU$18:$AU$1756,IF(NA_CPCI<Parameters!$H$63,'Network Analysis'!$S$18:$S$1756/'Zone Summary'!F34*100))) -> 0 | I34: 0 | J34: 0 | K34: =IF(F34=0,0,(($C$38+1-J34)*Parameters!$H$65*Parameters!$H$64)) -> 0
B35: Zone 24 | C35: 240 | D35: =SUM(IF(C35='Network Analysis'!$AU$18:$AU$1756,'Network Analysis'!$Q$18:$Q$1756)) -> 0 | E35: =D35/Parameters!$I$9 -> 0 | F35: =SUM(IF(C35='Network Analysis'!$AU$18:$AU$1756,'Network Analysis'!$S$18:$S$1756)) -> 0 | G35: =IF(F35=0,0,SUM(IF($C35='Network Analysis'!$AU$18:$AU$1756,('Network Analysis'!$S$18:$S$1756*NA_PCI)/'Zone Summary'!$F35))) -> 0 | H35: =SUM(IF(C35='Network Analysis'!$AU$18:$AU$1756,IF(NA_CPCI<Parameters!$H$63,'Network Analysis'!$S$18:$S$1756/'Zone Summary'!F35*100))) -> 0 | I35: 0 | J35: 0 | K35: =IF(F35=0,0,(($C$38+1-J35)*Parameters!$H$65*Parameters!$H$64)) -> 0
B36: Zone 25 | C36: 250 | D36: =SUM(IF(C36='Network Analysis'!$AU$18:$AU$1756,'Network Analysis'!$Q$18:$Q$1756)) -> 0 | E36: =D36/Parameters!$I$9 -> 0 | F36: =SUM(IF(C36='Network Analysis'!$AU$18:$AU$1756,'Network Analysis'!$S$18:$S$1756)) -> 0 | G36: =IF(F36=0,0,SUM(IF($C36='Network Analysis'!$AU$18:$AU$1756,('Network Analysis'!$S$18:$S$1756*NA_PCI)/'Zone Summary'!$F36))) -> 0 | H36: =SUM(IF(C36='Network Analysis'!$AU$18:$AU$1756,IF(NA_CPCI<Parameters!$H$63,'Network Analysis'!$S$18:$S$1756/'Zone Summary'!F36*100))) -> 0 | I36: 0 | J36: 0 | K36: =IF(F36=0,0,(($C$38+1-J36)*Parameters!$H$65*Parameters!$H$64)) -> 0
B38: Totals: | C38: =COUNT(IF($D$12:$D$36>0,$D$12:$D$36)) -> 3 | D38: =SUM(D12:D36) -> 924303.62 | E38: =SUM(E12:E36) -> 175.0575038 | J38: =MAX(J12:J36) -> 3
B39: Max: | C39: =MAX(C12:C36) -> 250 | K39: =MAX(K12:K36) -> 0
B40: Zone Limit: | C40: 990 | D40: =IF(C39>C40,"Too Many Zones to Analyze", "Good to Go") -> Good to Go

Sheet Summary
B5: =Parameters!M3 -> Copyright © 2019 IMS Infrastructure Management Services. All Rights Reserved.
B7: =Parameters!C10 -> City of Friendswood, TX
B8: Network Summary by Functional Class
C10: Pavetype | D10: Network | E10: =Parameters!C38 -> Arterial | F10: =Parameters!C39 -> Collector | G10: =Parameters!C40 -> Local | H10: =Parameters!C41 -> FunCL 4 | I10: =Parameters!C42 -> FunCL 5 | J10: =Parameters!C43 -> FunCL 6
B12: Segment (Block) Count | C12: All Streets | D12: =SUM(D13:D15) -> 1738 | E12: =SUM(E13:E15) -> 30 | F12: 217 | G12: 1491 | H12: 0 | I12: 0 | J12: 0
C13: =Parameters!$C$19 -> Asphalt | D13: =SUM(E13:J13) -> 148 | E13: =COUNT(IF(Project_Filter=1,(IF('Network Analysis'!$M$18:$M$1756=Summary!E$10,IF('Network Analysis'!$O$18:$O$1756=Summary!$C13,'Network Analysis'!$Q$18:$Q$1756))))) -> 0 | F13: =COUNT(IF(Project_Filter=1,(IF('Network Analysis'!$M$18:$M$1756=Summary!F$10,IF('Network Analysis'!$O$18:$O$1756=Summary!$C13,'Network Analysis'!$Q$18:$Q$1756))))) -> 22 | G13: =COUNT(IF(Project_Filter=1,(IF('Network Analysis'!$M$18:$M$1756=Summary!G$10,IF('Network Analysis'!$O$18:$O$1756=Summary!$C13,'Network Analysis'!$Q$18:$Q$1756))))) -> 126 | H13: =COUNT(IF(Project_Filter=1,(IF('Network Analysis'!$M$18:$M$1756=Summary!H$10,IF('Network Analysis'!$O$18:$O$1756=Summary!$C13,'Network Analysis'!$Q$18:$Q$1756))))) -> 0 | I13: =COUNT(IF(Project_Filter=1,(IF('Network Analysis'!$M$18:$M$1756=Summary!I$10,IF('Network Analysis'!$O$18:$O$1756=Summary!$C13,'Network Analysis'!$Q$18:$Q$1756))))) -> 0 | J13: =COUNT(IF(Project_Filter=1,(IF('Network Analysis'!$M$18:$M$1756=Summary!J$10,IF('Network Analysis'!$O$18:$O$1756=Summary!$C13,'Network Analysis'!$Q$18:$Q$1756))))) -> 0
C14: =Parameters!$C$20 -> Concrete | D14: =SUM(E14:J14) -> 1590 | E14: =COUNT(IF(Project_Filter=1,(IF('Network Analysis'!$M$18:$M$1756=Summary!E$10,IF('Network Analysis'!$O$18:$O$1756=Summary!$C14,'Network Analysis'!$Q$18:$Q$1756))))) -> 30 | F14: =COUNT(IF(Project_Filter=1,(IF('Network Analysis'!$M$18:$M$1756=Summary!F$10,IF('Network Analysis'!$O$18:$O$1756=Summary!$C14,'Network Analysis'!$Q$18:$Q$1756))))) -> 195 | G14: =COUNT(IF(Project_Filter=1,(IF('Network Analysis'!$M$18:$M$1756=Summary!G$10,IF('Network Analysis'!$O$18:$O$1756=Summary!$C14,'Network Analysis'!$Q$18:$Q$1756))))) -> 1365 | H14: =COUNT(IF(Project_Filter=1,(IF('Network Analysis'!$M$18:$M$1756=Summary!H$10,IF('Network Analysis'!$O$18:$O$1756=Summary!$C14,'Network Analysis'!$Q$18:$Q$1756))))) -> 0 | I14: =COUNT(IF(Project_Filter=1,(IF('Network Analysis'!$M$18:$M$1756=Summary!I$10,IF('Network Analysis'!$O$18:$O$1756=Summary!$C14,'Network Analysis'!$Q$18:$Q$1756))))) -> 0 | J14: =COUNT(IF(Project_Filter=1,(IF('Network Analysis'!$M$18:$M$1756=Summary!J$10,IF('Network Analysis'!$O$18:$O$1756=Summary!$C14,'Network Analysis'!$Q$18:$Q$1756))))) -> 0
C15: =Parameters!$C$21 -> Composite | D15: =SUM(E15:J15) -> 0 | E15: =COUNT(IF(Project_Filter=1,(IF('Network Analysis'!$M$18:$M$1756=Summary!E$10,IF('Network Analysis'!$O$18:$O$1756=Summary!$C15,'Network Analysis'!$Q$18:$Q$1756))))) -> 0 | F15: =COUNT(IF(Project_Filter=1,(IF('Network Analysis'!$M$18:$M$1756=Summary!F$10,IF('Network Analysis'!$O$18:$O$1756=Summary!$C15,'Network Analysis'!$Q$18:$Q$1756))))) -> 0 | G15: =COUNT(IF(Project_Filter=1,(IF('Network Analysis'!$M$18:$M$1756=Summary!G$10,IF('Network Analysis'!$O$18:$O$1756=Summary!$C15,'Network Analysis'!$Q$18:$Q$1756))))) -> 0 | H15: =COUNT(IF(Project_Filter=1,(IF('Network Analysis'!$M$18:$M$1756=Summary!H$10,IF('Network Analysis'!$O$18:$O$1756=Summary!$C15,'Network Analysis'!$Q$18:$Q$1756))))) -> 0 | I15: =COUNT(IF(Project_Filter=1,(IF('Network Analysis'!$M$18:$M$1756=Summary!I$10,IF('Network Analysis'!$O$18:$O$1756=Summary!$C15,'Network Analysis'!$Q$18:$Q$1756))))) -> 0 | J15: =COUNT(IF(Project_Filter=1,(IF('Network Analysis'!$M$18:$M$1756=Summary!J$10,IF('Network Analysis'!$O$18:$O$1756=Summary!$C15,'Network Analysis'!$Q$18:$Q$1756))))) -> 0
B17: ="Network Length ("&Parameters!$K$9&"):" -> Network Length (ft): | C17: All Streets | D17: =SUM(D18:D20) -> 924303.62 | E17: 18521.17 | F17: 135297.51 | G17: 770484.94 | H17: 0 | I17: 0 | J17: 0
C18: =Parameters!$C$19 -> Asphalt | D18: =SUM(E18:J18) -> 140248.86 | E18: =SUM(IF('Network Analysis'!$M$18:$M$1756=Summary!E$10,IF('Network Analysis'!$O$18:$O$1756=Summary!$C18,'Network Analysis'!$CV$18:$CV$1756))) -> 0 | F18: =SUM(IF('Network Analysis'!$M$18:$M$1756=Summary!F$10,IF('Network Analysis'!$O$18:$O$1756=Summary!$C18,'Network Analysis'!$CV$18:$CV$1756))) -> 21047.81 | G18: =SUM(IF('Network Analysis'!$M$18:$M$1756=Summary!G$10,IF('Network Analysis'!$O$18:$O$1756=Summary!$C18,'Network Analysis'!$CV$18:$CV$1756))) -> 119201.05 | H18: =SUM(IF('Network Analysis'!$M$18:$M$1756=Summary!H$10,IF('Network Analysis'!$O$18:$O$1756=Summary!$C18,'Network Analysis'!$CV$18:$CV$1756))) -> 0 | I18: =SUM(IF('Network Analysis'!$M$18:$M$1756=Summary!I$10,IF('Network Analysis'!$O$18:$O$1756=Summary!$C18,'Network Analysis'!$CV$18:$CV$1756))) -> 0 | J18: =SUM(IF('Network Analysis'!$M$18:$M$1756=Summary!J$10,IF('Network Analysis'!$O$18:$O$1756=Summary!$C18,'Network Analysis'!$CV$18:$CV$1756))) -> 0
C19: =Parameters!$C$20 -> Concrete | D19: =SUM(E19:J19) -> 784054.76 | E19: =SUM(IF('Network Analysis'!$M$18:$M$1756=Summary!E$10,IF('Network Analysis'!$O$18:$O$1756=Summary!$C19,'Network Analysis'!$CV$18:$CV$1756))) -> 18521.17 | F19: =SUM(IF('Network Analysis'!$M$18:$M$1756=Summary!F$10,IF('Network Analysis'!$O$18:$O$1756=Summary!$C19,'Network Analysis'!$CV$18:$CV$1756))) -> 114249.7 | G19: =SUM(IF('Network Analysis'!$M$18:$M$1756=Summary!G$10,IF('Network Analysis'!$O$18:$O$1756=Summary!$C19,'Network Analysis'!$CV$18:$CV$1756))) -> 651283.89 | H19: =SUM(IF('Network Analysis'!$M$18:$M$1756=Summary!H$10,IF('Network Analysis'!$O$18:$O$1756=Summary!$C19,'Network Analysis'!$CV$18:$CV$1756))) -> 0 | I19: =SUM(IF('Network Analysis'!$M$18:$M$1756=Summary!I$10,IF('Network Analysis'!$O$18:$O$1756=Summary!$C19,'Network Analysis'!$CV$18:$CV$1756))) -> 0 | J19: =SUM(IF('Network Analysis'!$M$18:$M$1756=Summary!J$10,IF('Network Analysis'!$O$18:$O$1756=Summary!$C19,'Network Analysis'!$CV$18:$CV$1756))) -> 0
C20: =Parameters!$C$21 -> Composite | D20: =SUM(E20:J20) -> 0 | E20: =SUM(IF('Network Analysis'!$M$18:$M$1756=Summary!E$10,IF('Network Analysis'!$O$18:$O$1756=Summary!$C20,'Network Analysis'!$CV$18:$CV$1756))) -> 0 | F20: =SUM(IF('Network Analysis'!$M$18:$M$1756=Summary!F$10,IF('Network Analysis'!$O$18:$O$1756=Summary!$C20,'Network Analysis'!$CV$18:$CV$1756))) -> 0 | G20: =SUM(IF('Network Analysis'!$M$18:$M$1756=Summary!G$10,IF('Network Analysis'!$O$18:$O$1756=Summary!$C20,'Network Analysis'!$CV$18:$CV$1756))) -> 0 | H20: =SUM(IF('Network Analysis'!$M$18:$M$1756=Summary!H$10,IF('Network Analysis'!$O$18:$O$1756=Summary!$C20,'Network Analysis'!$CV$18:$CV$1756))) -> 0 | I20: =SUM(IF('Network Analysis'!$M$18:$M$1756=Summary!I$10,IF('Network Analysis'!$O$18:$O$1756=Summary!$C20,'Network Analysis'!$CV$18:$CV$1756))) -> 0 | J20: =SUM(IF('Network Analysis'!$M$18:$M$1756=Summary!J$10,IF('Network Analysis'!$O$18:$O$1756=Summary!$C20,'Network Analysis'!$CV$18:$CV$1756))) -> 0
B22: ="Network Length ("&Parameters!$I$11&"):" -> Network Length (mi): | C22: All Streets | D22: =D17/Parameters!$I$9 -> 175.0575038 | E22: =E17/Parameters!$I$9 -> 3.507797348 | F22: =F17/Parameters!$I$9 -> 25.62452841 | G22: =G17/Parameters!$I$9 -> 145.925178 | H22: =H17/Parameters!$I$9 -> 0 | I22: =I17/Parameters!$I$9 -> 0 | J22: =J17/Parameters!$I$9 -> 0
C23: =Parameters!$C$19 -> Asphalt | D23: =D18/Parameters!$I$9 -> 26.56228409 | E23: =E18/Parameters!$I$9 -> 0 | F23: =F18/Parameters!$I$9 -> 3.986327652 | G23: =G18/Parameters!$I$9 -> 22.57595644 | H23: =H18/Parameters!$I$9 -> 0 | I23: =I18/Parameters!$I$9 -> 0 | J23: =J18/Parameters!$I$9 -> 0
C24: =Parameters!$C$20 -> Concrete | D24: =D19/Parameters!$I$9 -> 148.4952197 | E24: =E19/Parameters!$I$9 -> 3.507797348 | F24: =F19/Parameters!$I$9 -> 21.63820076 | G24: =G19/Parameters!$I$9 -> 123.3492216 | H24: =H19/Parameters!$I$9 -> 0 | I24: =I19/Parameters!$I$9 -> 0 | J24: =J19/Parameters!$I$9 -> 0
C25: =Parameters!$C$21 -> Composite | D25: =D20/Parameters!$I$9 -> 0 | E25: =E20/Parameters!$I$9 -> 0 | F25: =F20/Parameters!$I$9 -> 0 | G25: =G20/Parameters!$I$9 -> 0 | H25: =H20/Parameters!$I$9 -> 0 | I25: =I20/Parameters!$I$9 -> 0 | J25: =J20/Parameters!$I$9 -> 0
B27: ="Average Width ("&Parameters!$K$9&"):" -> Average Width (ft): | C27: All Streets | D27: =IF(D32<1,0,(D32*Parameters!$I$8/D17)) -> 28.06687158 | E27: =IF(E32<1,0,(E32*Parameters!$I$8/E17)) -> 27.44292072 | F27: =IF(F32<1,0,(F32*Parameters!$I$8/F17)) -> 30.54495238 | G27: =IF(G32<1,0,(G32*Parameters!$I$8/G17)) -> 27.64671818 | H27: =IF(H32<1,0,(H32*Parameters!$I$8/H17)) -> 0 | I27: =IF(I32<1,0,(I32*Parameters!$I$8/I17)) -> 0 | J27: =IF(J32<1,0,(J32*Parameters!$I$8/J17)) -> 0
C28: =Parameters!$C$19 -> Asphalt | D28: =IF(D33<1,0,(D33*Parameters!$I$8/D18)) -> 23.4246396 | E28: =IF(E33<1,0,(E33*Parameters!$I$8/E18)) -> 0 | F28: =IF(F33<1,0,(F33*Parameters!$I$8/F18)) -> 24.32476348 | G28: =IF(G33<1,0,(G33*Parameters!$I$8/G18)) -> 23.2657011 | H28: =IF(H33<1,0,(H33*Parameters!$I$8/H18)) -> 0 | I28: =IF(I33<1,0,(I33*Parameters!$I$8/I18)) -> 0 | J28: =IF(J33<1,0,(J33*Parameters!$I$8/J18)) -> 0
C29: =Parameters!$C$20 -> Concrete | D29: =IF(D34<1,0,(D34*Parameters!$I$8/D19)) -> 28.89725713 | E29: =IF(E34<1,0,(E34*Parameters!$I$8/E19)) -> 27.44292072 | F29: =IF(F34<1,0,(F34*Parameters!$I$8/F19)) -> 31.69087534 | G29: =IF(G34<1,0,(G34*Parameters!$I$8/G19)) -> 28.4485526 | H29: =IF(H34<1,0,(H34*Parameters!$I$8/H19)) -> 0 | I29: =IF(I34<1,0,(I34*Parameters!$I$8/I19)) -> 0 | J29: =IF(J34<1,0,(J34*Parameters!$I$8/J19)) -> 0
C30: =Parameters!$C$21 -> Composite | D30: =IF(D35<1,0,(D35*Parameters!$I$8/D20)) -> 0 | E30: =IF(E35<1,0,(E35*Parameters!$I$8/E20)) -> 0 | F30: =IF(F35<1,0,(F35*Parameters!$I$8/F20)) -> 0 | G30: =IF(G35<1,0,(G35*Parameters!$I$8/G20)) -> 0 | H30: =IF(H35<1,0,(H35*Parameters!$I$8/H20)) -> 0 | I30: =IF(I35<1,0,(I35*Parameters!$I$8/I20)) -> 0 | J30: =IF(J35<1,0,(J35*Parameters!$I$8/J20)) -> 0
B32: ="Network Area ("&Parameters!$K$10&"):" -> Network Area (yd2): | C32: All Streets | D32: =SUM(D33:D35) -> 2882479 | E32: 56475 | F32: 459184 | G32: 2366820 | H32: 0 | I32: 0 | J32: 0
C33: =Parameters!$C$19 -> Asphalt | D33: =SUM(E33:J33) -> 365031 | E33: =SUM(IF('Network Analysis'!$M$18:$M$1756=Summary!E$10,IF('Network Analysis'!$O$18:$O$1756=Summary!$C33,'Network Analysis'!$S$18:$S$1756))) -> 0 | F33: =SUM(IF('Network Analysis'!$M$18:$M$1756=Summary!F$10,IF('Network Analysis'!$O$18:$O$1756=Summary!$C33,'Network Analysis'!$S$18:$S$1756))) -> 56887 | G33: =SUM(IF('Network Analysis'!$M$18:$M$1756=Summary!G$10,IF('Network Analysis'!$O$18:$O$1756=Summary!$C33,'Network Analysis'!$S$18:$S$1756))) -> 308144 | H33: =SUM(IF('Network Analysis'!$M$18:$M$1756=Summary!H$10,IF('Network Analysis'!$O$18:$O$1756=Summary!$C33,'Network Analysis'!$S$18:$S$1756))) -> 0 | I33: =SUM(IF('Network Analysis'!$M$18:$M$1756=Summary!I$10,IF('Network Analysis'!$O$18:$O$1756=Summary!$C33,'Network Analysis'!$S$18:$S$1756))) -> 0 | J33: =SUM(IF('Network Analysis'!$M$18:$M$1756=Summary!J$10,IF('Network Analysis'!$O$18:$O$1756=Summary!$C33,'Network Analysis'!$S$18:$S$1756))) -> 0
C34: =Parameters!$C$20 -> Concrete | D34: =SUM(E34:J34) -> 2517448 | E34: =SUM(IF('Network Analysis'!$M$18:$M$1756=Summary!E$10,IF('Network Analysis'!$O$18:$O$1756=Summary!$C34,'Network Analysis'!$S$18:$S$1756))) -> 56475 | F34: =SUM(IF('Network Analysis'!$M$18:$M$1756=Summary!F$10,IF('Network Analysis'!$O$18:$O$1756=Summary!$C34,'Network Analysis'!$S$18:$S$1756))) -> 402297 | G34: =SUM(IF('Network Analysis'!$M$18:$M$1756=Summary!G$10,IF('Network Analysis'!$O$18:$O$1756=Summary!$C34,'Network Analysis'!$S$18:$S$1756))) -> 2058676 | H34: =SUM(IF('Network Analysis'!$M$18:$M$1756=Summary!H$10,IF('Network Analysis'!$O$18:$O$1756=Summary!$C34,'Network Analysis'!$S$18:$S$1756))) -> 0 | I34: =SUM(IF('Network Analysis'!$M$18:$M$1756=Summary!I$10,IF('Network Analysis'!$O$18:$O$1756=Summary!$C34,'Network Analysis'!$S$18:$S$1756))) -> 0 | J34: =SUM(IF('Network Analysis'!$M$18:$M$1756=Summary!J$10,IF('Network Analysis'!$O$18:$O$1756=Summary!$C34,'Network Analysis'!$S$18:$S$1756))) -> 0
C35: =Parameters!$C$21 -> Composite | D35: =SUM(E35:J35) -> 0 | E35: =SUM(IF('Network Analysis'!$M$18:$M$1756=Summary!E$10,IF('Network Analysis'!$O$18:$O$1756=Summary!$C35,'Network Analysis'!$S$18:$S$1756))) -> 0 | F35: =SUM(IF('Network Analysis'!$M$18:$M$1756=Summary!F$10,IF('Network Analysis'!$O$18:$O$1756=Summary!$C35,'Network Analysis'!$S$18:$S$1756))) -> 0 | G35: =SUM(IF('Network Analysis'!$M$18:$M$1756=Summary!G$10,IF('Network Analysis'!$O$18:$O$1756=Summary!$C35,'Network Analysis'!$S$18:$S$1756))) -> 0 | H35: =SUM(IF('Network Analysis'!$M$18:$M$1756=Summary!H$10,IF('Network Analysis'!$O$18:$O$1756=Summary!$C35,'Network Analysis'!$S$18:$S$1756))) -> 0 | I35: =SUM(IF('Network Analysis'!$M$18:$M$1756=Summary!I$10,IF('Network Analysis'!$O$18:$O$1756=Summary!$C35,'Network Analysis'!$S$18:$S$1756))) -> 0 | J35: =SUM(IF('Network Analysis'!$M$18:$M$1756=Summary!J$10,IF('Network Analysis'!$O$18:$O$1756=Summary!$C35,'Network Analysis'!$S$18:$S$1756))) -> 0
B37: Sum CPCI x Area | C37: All Streets | D37: =SUM(D38:D40) -> 194360323 | E37: 4428470 | F37: 28503085 | G37: 161428768 | H37: 0 | I37: 0 | J37: 0
C38: =Parameters!$C$19 -> Asphalt | D38: =SUM(E38:J38) -> 17846102 | E38: =SUM(IF('Network Analysis'!$M$18:$M$1756=Summary!E$10,IF('Network Analysis'!$O$18:$O$1756=Summary!$C38,('Network Analysis'!$S$18:$S$1756*'Network Analysis'!$AQ$18:$AQ$1756)))) -> 0 | F38: =SUM(IF('Network Analysis'!$M$18:$M$1756=Summary!F$10,IF('Network Analysis'!$O$18:$O$1756=Summary!$C38,('Network Analysis'!$S$18:$S$1756*'Network Analysis'!$AQ$18:$AQ$1756)))) -> 2140327 | G38: =SUM(IF('Network Analysis'!$M$18:$M$1756=Summary!G$10,IF('Network Analysis'!$O$18:$O$1756=Summary!$C38,('Network Analysis'!$S$18:$S$1756*'Network Analysis'!$AQ$18:$AQ$1756)))) -> 15705775 | H38: =SUM(IF('Network Analysis'!$M$18:$M$1756=Summary!H$10,IF('Network Analysis'!$O$18:$O$1756=Summary!$C38,('Network Analysis'!$S$18:$S$1756*'Network Analysis'!$AQ$18:$AQ$1756)))) -> 0 | I38: =SUM(IF('Network Analysis'!$M$18:$M$1756=Summary!I$10,IF('Network Analysis'!$O$18:$O$1756=Summary!$C38,('Network Analysis'!$S$18:$S$1756*'Network Analysis'!$AQ$18:$AQ$1756)))) -> 0 | J38: =SUM(IF('Network Analysis'!$M$18:$M$1756=Summary!J$10,IF('Network Analysis'!$O$18:$O$1756=Summary!$C38,('Network Analysis'!$S$18:$S$1756*'Network Analysis'!$AQ$18:$AQ$1756)))) -> 0
C39: =Parameters!$C$20 -> Concrete | D39: =SUM(E39:J39) -> 176514221 | E39: =SUM(IF('Network Analysis'!$M$18:$M$1756=Summary!E$10,IF('Network Analysis'!$O$18:$O$1756=Summary!$C39,('Network Analysis'!$S$18:$S$1756*'Network Analysis'!$AQ$18:$AQ$1756)))) -> 4428470 | F39: =SUM(IF('Network Analysis'!$M$18:$M$1756=Summary!F$10,IF('Network Analysis'!$O$18:$O$1756=Summary!$C39,('Network Analysis'!$S$18:$S$1756*'Network Analysis'!$AQ$18:$AQ$1756)))) -> 26362758 | G39: =SUM(IF('Network Analysis'!$M$18:$M$1756=Summary!G$10,IF('Network Analysis'!$O$18:$O$1756=Summary!$C39,('Network Analysis'!$S$18:$S$1756*'Network Analysis'!$AQ$18:$AQ$1756)))) -> 145722993 | H39: =SUM(IF('Network Analysis'!$M$18:$M$1756=Summary!H$10,IF('Network Analysis'!$O$18:$O$1756=Summary!$C39,('Network Analysis'!$S$18:$S$1756*'Network Analysis'!$AQ$18:$AQ$1756)))) -> 0 | I39: =SUM(IF('Network Analysis'!$M$18:$M$1756=Summary!I$10,IF('Network Analysis'!$O$18:$O$1756=Summary!$C39,('Network Analysis'!$S$18:$S$1756*'Network Analysis'!$AQ$18:$AQ$1756)))) -> 0 | J39: =SUM(IF('Network Analysis'!$M$18:$M$1756=Summary!J$10,IF('Network Analysis'!$O$18:$O$1756=Summary!$C39,('Network Analysis'!$S$18:$S$1756*'Network Analysis'!$AQ$18:$AQ$1756)))) -> 0
C40: =Parameters!$C$21 -> Composite | D40: =SUM(E40:J40) -> 0 | E40: =SUM(IF('Network Analysis'!$M$18:$M$1756=Summary!E$10,IF('Network Analysis'!$O$18:$O$1756=Summary!$C40,('Network Analysis'!$S$18:$S$1756*'Network Analysis'!$AQ$18:$AQ$1756)))) -> 0 | F40: =SUM(IF('Network Analysis'!$M$18:$M$1756=Summary!F$10,IF('Network Analysis'!$O$18:$O$1756=Summary!$C40,('Network Analysis'!$S$18:$S$1756*'Network Analysis'!$AQ$18:$AQ$1756)))) -> 0 | G40: =SUM(IF('Network Analysis'!$M$18:$M$1756=Summary!G$10,IF('Network Analysis'!$O$18:$O$1756=Summary!$C40,('Network Analysis'!$S$18:$S$1756*'Network Analysis'!$AQ$18:$AQ$1756)))) -> 0 | H40: =SUM(IF('Network Analysis'!$M$18:$M$1756=Summary!H$10,IF('Network Analysis'!$O$18:$O$1756=Summary!$C40,('Network Analysis'!$S$18:$S$1756*'Network Analysis'!$AQ$18:$AQ$1756)))) -> 0 | I40: =SUM(IF('Network Analysis'!$M$18:$M$1756=Summary!I$10,IF('Network Analysis'!$O$18:$O$1756=Summary!$C40,('Network Analysis'!$S$18:$S$1756*'Network Analysis'!$AQ$18:$AQ$1756)))) -> 0 | J40: =SUM(IF('Network Analysis'!$M$18:$M$1756=Summary!J$10,IF('Network Analysis'!$O$18:$O$1756=Summary!$C40,('Network Analysis'!$S$18:$S$1756*'Network Analysis'!$AQ$18:$AQ$1756)))) -> 0
B42: Sum PCI x Area | C42: All Streets | D42: =SUM(D43:D45) -> 194581877 | E42: 4428470 | F42: 28586076 | G42: 161567331 | H42: 0 | I42: 0 | J42: 0
C43: =Parameters!$C$19 -> Asphalt | D43: =SUM(E43:J43) -> 17994898 | E43: =SUM(IF('Network Analysis'!$M$18:$M$1756=Summary!E$10,IF('Network Analysis'!$O$18:$O$1756=Summary!$C43,('Network Analysis'!$S$18:$S$1756*'Network Analysis'!$AH$18:$AH$1756)))) -> 0 | F43: =SUM(IF('Network Analysis'!$M$18:$M$1756=Summary!F$10,IF('Network Analysis'!$O$18:$O$1756=Summary!$C43,('Network Analysis'!$S$18:$S$1756*'Network Analysis'!$AH$18:$AH$1756)))) -> 2190915 | G43: =SUM(IF('Network Analysis'!$M$18:$M$1756=Summary!G$10,IF('Network Analysis'!$O$18:$O$1756=Summary!$C43,('Network Analysis'!$S$18:$S$1756*'Network Analysis'!$AH$18:$AH$1756)))) -> 15803983 | H43: =SUM(IF('Network Analysis'!$M$18:$M$1756=Summary!H$10,IF('Network Analysis'!$O$18:$O$1756=Summary!$C43,('Network Analysis'!$S$18:$S$1756*'Network Analysis'!$AH$18:$AH$1756)))) -> 0 | I43: =SUM(IF('Network Analysis'!$M$18:$M$1756=Summary!I$10,IF('Network Analysis'!$O$18:$O$1756=Summary!$C43,('Network Analysis'!$S$18:$S$1756*'Network Analysis'!$AH$18:$AH$1756)))) -> 0 | J43: =SUM(IF('Network Analysis'!$M$18:$M$1756=Summary!J$10,IF('Network Analysis'!$O$18:$O$1756=Summary!$C43,('Network Analysis'!$S$18:$S$1756*'Network Analysis'!$AH$18:$AH$1756)))) -> 0
C44: =Parameters!$C$20 -> Concrete | D44: =SUM(E44:J44) -> 176586979 | E44: =SUM(IF('Network Analysis'!$M$18:$M$1756=Summary!E$10,IF('Network Analysis'!$O$18:$O$1756=Summary!$C44,('Network Analysis'!$S$18:$S$1756*'Network Analysis'!$AH$18:$AH$1756)))) -> 4428470 | F44: =SUM(IF('Network Analysis'!$M$18:$M$1756=Summary!F$10,IF('Network Analysis'!$O$18:$O$1756=Summary!$C44,('Network Analysis'!$S$18:$S$1756*'Network Analysis'!$AH$18:$AH$1756)))) -> 26395161 | G44: =SUM(IF('Network Analysis'!$M$18:$M$1756=Summary!G$10,IF('Network Analysis'!$O$18:$O$1756=Summary!$C44,('Network Analysis'!$S$18:$S$1756*'Network Analysis'!$AH$18:$AH$1756)))) -> 145763348 | H44: =SUM(IF('Network Analysis'!$M$18:$M$1756=Summary!H$10,IF('Network Analysis'!$O$18:$O$1756=Summary!$C44,('Network Analysis'!$S$18:$S$1756*'Network Analysis'!$AH$18:$AH$1756)))) -> 0 | I44: =SUM(IF('Network Analysis'!$M$18:$M$1756=Summary!I$10,IF('Network Analysis'!$O$18:$O$1756=Summary!$C44,('Network Analysis'!$S$18:$S$1756*'Network Analysis'!$AH$18:$AH$1756)))) -> 0 | J44: =SUM(IF('Network Analysis'!$M$18:$M$1756=Summary!J$10,IF('Network Analysis'!$O$18:$O$1756=Summary!$C44,('Network Analysis'!$S$18:$S$1756*'Network Analysis'!$AH$18:$AH$1756)))) -> 0
C45: =Parameters!$C$21 -> Composite | D45: =SUM(E45:J45) -> 0 | E45: =SUM(IF('Network Analysis'!$M$18:$M$1756=Summary!E$10,IF('Network Analysis'!$O$18:$O$1756=Summary!$C45,('Network Analysis'!$S$18:$S$1756*'Network Analysis'!$AH$18:$AH$1756)))) -> 0 | F45: =SUM(IF('Network Analysis'!$M$18:$M$1756=Summary!F$10,IF('Network Analysis'!$O$18:$O$1756=Summary!$C45,('Network Analysis'!$S$18:$S$1756*'Network Analysis'!$AH$18:$AH$1756)))) -> 0 | G45: =SUM(IF('Network Analysis'!$M$18:$M$1756=Summary!G$10,IF('Network Analysis'!$O$18:$O$1756=Summary!$C45,('Network Analysis'!$S$18:$S$1756*'Network Analysis'!$AH$18:$AH$1756)))) -> 0 | H45: =SUM(IF('Network Analysis'!$M$18:$M$1756=Summary!H$10,IF('Network Analysis'!$O$18:$O$1756=Summary!$C45,('Network Analysis'!$S$18:$S$1756*'Network Analysis'!$AH$18:$AH$1756)))) -> 0 | I45: =SUM(IF('Network Analysis'!$M$18:$M$1756=Summary!I$10,IF('Network Analysis'!$O$18:$O$1756=Summary!$C45,('Network Analysis'!$S$18:$S$1756*'Network Analysis'!$AH$18:$AH$1756)))) -> 0 | J45: =SUM(IF('Network Analysis'!$M$18:$M$1756=Summary!J$10,IF('Network Analysis'!$O$18:$O$1756=Summary!$C45,('Network Analysis'!$S$18:$S$1756*'Network Analysis'!$AH$18:$AH$1756)))) -> 0
B47: Sum SDI x Area | C47: All Streets | D47: =SUM(D48:D50) -> 198249520 | E47: 4530938 | F47: 28350818 | G47: 165367764 | H47: 0 | I47: 0 | J47: 0
C48: =Parameters!$C$19 -> Asphalt | D48: =SUM(E48:J48) -> 15031936 | E48: =SUM(IF('Network Analysis'!$M$18:$M$1756=Summary!E$10,IF('Network Analysis'!$O$18:$O$1756=Summary!$C48,('Network Analysis'!$S$18:$S$1756*'Network Analysis'!$AE$18:$AE$1756)))) -> 0 | F48: =SUM(IF('Network Analysis'!$M$18:$M$1756=Summary!F$10,IF('Network Analysis'!$O$18:$O$1756=Summary!$C48,('Network Analysis'!$S$18:$S$1756*'Network Analysis'!$AE$18:$AE$1756)))) -> 1674874 | G48: =SUM(IF('Network Analysis'!$M$18:$M$1756=Summary!G$10,IF('Network Analysis'!$O$18:$O$1756=Summary!$C48,('Network Analysis'!$S$18:$S$1756*'Network Analysis'!$AE$18:$AE$1756)))) -> 13357062 | H48: =SUM(IF('Network Analysis'!$M$18:$M$1756=Summary!H$10,IF('Network Analysis'!$O$18:$O$1756=Summary!$C48,('Network Analysis'!$S$18:$S$1756*'Network Analysis'!$AE$18:$AE$1756)))) -> 0 | I48: =SUM(IF('Network Analysis'!$M$18:$M$1756=Summary!I$10,IF('Network Analysis'!$O$18:$O$1756=Summary!$C48,('Network Analysis'!$S$18:$S$1756*'Network Analysis'!$AE$18:$AE$1756)))) -> 0 | J48: =SUM(IF('Network Analysis'!$M$18:$M$1756=Summary!J$10,IF('Network Analysis'!$O$18:$O$1756=Summary!$C48,('Network Analysis'!$S$18:$S$1756*'Network Analysis'!$AE$18:$AE$1756)))) -> 0
C49: =Parameters!$C$20 -> Concrete | D49: =SUM(E49:J49) -> 183217584 | E49: =SUM(IF('Network Analysis'!$M$18:$M$1756=Summary!E$10,IF('Network Analysis'!$O$18:$O$1756=Summary!$C49,('Network Analysis'!$S$18:$S$1756*'Network Analysis'!$AE$18:$AE$1756)))) -> 4530938 | F49: =SUM(IF('Network Analysis'!$M$18:$M$1756=Summary!F$10,IF('Network Analysis'!$O$18:$O$1756=Summary!$C49,('Network Analysis'!$S$18:$S$1756*'Network Analysis'!$AE$18:$AE$1756)))) -> 26675944 | G49: =SUM(IF('Network Analysis'!$M$18:$M$1756=Summary!G$10,IF('Network Analysis'!$O$18:$O$1756=Summary!$C49,('Network Analysis'!$S$18:$S$1756*'Network Analysis'!$AE$18:$AE$1756)))) -> 152010702 | H49: =SUM(IF('Network Analysis'!$M$18:$M$1756=Summary!H$10,IF('Network Analysis'!$O$18:$O$1756=Summary!$C49,('Network Analysis'!$S$18:$S$1756*'Network Analysis'!$AE$18:$AE$1756)))) -> 0 | I49: =SUM(IF('Network Analysis'!$M$18:$M$1756=Summary!I$10,IF('Network Analysis'!$O$18:$O$1756=Summary!$C49,('Network Analysis'!$S$18:$S$1756*'Network Analysis'!$AE$18:$AE$1756)))) -> 0 | J49: =SUM(IF('Network Analysis'!$M$18:$M$1756=Summary!J$10,IF('Network Analysis'!$O$18:$O$1756=Summary!$C49,('Network Analysis'!$S$18:$S$1756*'Network Analysis'!$AE$18:$AE$1756)))) -> 0
C50: =Parameters!$C$21 -> Composite | D50: =SUM(E50:J50) -> 0 | E50: =SUM(IF('Network Analysis'!$M$18:$M$1756=Summary!E$10,IF('Network Analysis'!$O$18:$O$1756=Summary!$C50,('Network Analysis'!$S$18:$S$1756*'Network Analysis'!$AE$18:$AE$1756)))) -> 0 | F50: =SUM(IF('Network Analysis'!$M$18:$M$1756=Summary!F$10,IF('Network Analysis'!$O$18:$O$1756=Summary!$C50,('Network Analysis'!$S$18:$S$1756*'Network Analysis'!$AE$18:$AE$1756)))) -> 0 | G50: =SUM(IF('Network Analysis'!$M$18:$M$1756=Summary!G$10,IF('Network Analysis'!$O$18:$O$1756=Summary!$C50,('Network Analysis'!$S$18:$S$1756*'Network Analysis'!$AE$18:$AE$1756)))) -> 0 | H50: =SUM(IF('Network Analysis'!$M$18:$M$1756=Summary!H$10,IF('Network Analysis'!$O$18:$O$1756=Summary!$C50,('Network Analysis'!$S$18:$S$1756*'Network Analysis'!$AE$18:$AE$1756)))) -> 0 | I50: =SUM(IF('Network Analysis'!$M$18:$M$1756=Summary!I$10,IF('Network Analysis'!$O$18:$O$1756=Summary!$C50,('Network Analysis'!$S$18:$S$1756*'Network Analysis'!$AE$18:$AE$1756)))) -> 0 | J50: =SUM(IF('Network Analysis'!$M$18:$M$1756=Summary!J$10,IF('Network Analysis'!$O$18:$O$1756=Summary!$C50,('Network Analysis'!$S$18:$S$1756*'Network Analysis'!$AE$18:$AE$1756)))) -> 0
B52: Sum RI x Area | C52: All Streets | D52: =SUM(D53:D55) -> 190120232.8 | E52: 4290110.966 | F52: 32027042.02 | G52: 153803079.8 | H52: 0 | I52: 0 | J52: 0
C53: =Parameters!$C$19 -> Asphalt | D53: =SUM(E53:J53) -> 24366952 | E53: =SUM(IF('Network Analysis'!$M$18:$M$1756=Summary!E$10,IF('Network Analysis'!$O$18:$O$1756=Summary!$C53,('Network Analysis'!$S$18:$S$1756*'Network Analysis'!$AF$18:$AF$1756)))) -> 0 | F53: =SUM(IF('Network Analysis'!$M$18:$M$1756=Summary!F$10,IF('Network Analysis'!$O$18:$O$1756=Summary!$C53,('Network Analysis'!$S$18:$S$1756*'Network Analysis'!$AF$18:$AF$1756)))) -> 3692933.44 | G53: =SUM(IF('Network Analysis'!$M$18:$M$1756=Summary!G$10,IF('Network Analysis'!$O$18:$O$1756=Summary!$C53,('Network Analysis'!$S$18:$S$1756*'Network Analysis'!$AF$18:$AF$1756)))) -> 20674018.56 | H53: =SUM(IF('Network Analysis'!$M$18:$M$1756=Summary!H$10,IF('Network Analysis'!$O$18:$O$1756=Summary!$C53,('Network Analysis'!$S$18:$S$1756*'Network Analysis'!$AF$18:$AF$1756)))) -> 0 | I53: =SUM(IF('Network Analysis'!$M$18:$M$1756=Summary!I$10,IF('Network Analysis'!$O$18:$O$1756=Summary!$C53,('Network Analysis'!$S$18:$S$1756*'Network Analysis'!$AF$18:$AF$1756)))) -> 0 | J53: =SUM(IF('Network Analysis'!$M$18:$M$1756=Summary!J$10,IF('Network Analysis'!$O$18:$O$1756=Summary!$C53,('Network Analysis'!$S$18:$S$1756*'Network Analysis'!$AF$18:$AF$1756)))) -> 0
C54: =Parameters!$C$20 -> Concrete | D54: =SUM(E54:J54) -> 165753280.8 | E54: =SUM(IF('Network Analysis'!$M$18:$M$1756=Summary!E$10,IF('Network Analysis'!$O$18:$O$1756=Summary!$C54,('Network Analysis'!$S$18:$S$1756*'Network Analysis'!$AF$18:$AF$1756)))) -> 4290110.966 | F54: =SUM(IF('Network Analysis'!$M$18:$M$1756=Summary!F$10,IF('Network Analysis'!$O$18:$O$1756=Summary!$C54,('Network Analysis'!$S$18:$S$1756*'Network Analysis'!$AF$18:$AF$1756)))) -> 28334108.58 | G54: =SUM(IF('Network Analysis'!$M$18:$M$1756=Summary!G$10,IF('Network Analysis'!$O$18:$O$1756=Summary!$C54,('Network Analysis'!$S$18:$S$1756*'Network Analysis'!$AF$18:$AF$1756)))) -> 133129061.3 | H54: =SUM(IF('Network Analysis'!$M$18:$M$1756=Summary!H$10,IF('Network Analysis'!$O$18:$O$1756=Summary!$C54,('Network Analysis'!$S$18:$S$1756*'Network Analysis'!$AF$18:$AF$1756)))) -> 0 | I54: =SUM(IF('Network Analysis'!$M$18:$M$1756=Summary!I$10,IF('Network Analysis'!$O$18:$O$1756=Summary!$C54,('Network Analysis'!$S$18:$S$1756*'Network Analysis'!$AF$18:$AF$1756)))) -> 0 | J54: =SUM(IF('Network Analysis'!$M$18:$M$1756=Summary!J$10,IF('Network Analysis'!$O$18:$O$1756=Summary!$C54,('Network Analysis'!$S$18:$S$1756*'Network Analysis'!$AF$18:$AF$1756)))) -> 0
C55: =Parameters!$C$21 -> Composite | D55: =SUM(E55:J55) -> 0 | E55: =SUM(IF('Network Analysis'!$M$18:$M$1756=Summary!E$10,IF('Network Analysis'!$O$18:$O$1756=Summary!$C55,('Network Analysis'!$S$18:$S$1756*'Network Analysis'!$AF$18:$AF$1756)))) -> 0 | F55: =SUM(IF('Network Analysis'!$M$18:$M$1756=Summary!F$10,IF('Network Analysis'!$O$18:$O$1756=Summary!$C55,('Network Analysis'!$S$18:$S$1756*'Network Analysis'!$AF$18:$AF$1756)))) -> 0 | G55: =SUM(IF('Network Analysis'!$M$18:$M$1756=Summary!G$10,IF('Network Analysis'!$O$18:$O$1756=Summary!$C55,('Network Analysis'!$S$18:$S$1756*'Network Analysis'!$AF$18:$AF$1756)))) -> 0 | H55: =SUM(IF('Network Analysis'!$M$18:$M$1756=Summary!H$10,IF('Network Analysis'!$O$18:$O$1756=Summary!$C55,('Network Analysis'!$S$18:$S$1756*'Network Analysis'!$AF$18:$AF$1756)))) -> 0 | I55: =SUM(IF('Network Analysis'!$M$18:$M$1756=Summary!I$10,IF('Network Analysis'!$O$18:$O$1756=Summary!$C55,('Network Analysis'!$S$18:$S$1756*'Network Analysis'!$AF$18:$AF$1756)))) -> 0 | J55: =SUM(IF('Network Analysis'!$M$18:$M$1756=Summary!J$10,IF('Network Analysis'!$O$18:$O$1756=Summary!$C55,('Network Analysis'!$S$18:$S$1756*'Network Analysis'!$AF$18:$AF$1756)))) -> 0
B57: Sum SI x Area | C57: All Streets | D57: =SUM(D58:D60) -> 167274615 | E57: 4381113 | F57: 25567252 | G57: 137326250 | H57: 0 | I57: 0 | J57: 0
C58: =Parameters!$C$19 -> Asphalt | D58: =SUM(E58:J58) -> 15502543 | E58: =SUM(IF('Network Analysis'!$M$18:$M$1756=Summary!E$10,IF('Network Analysis'!$O$18:$O$1756=Summary!$C58,('Network Analysis'!$S$18:$S$1756*'Network Analysis'!$AG$18:$AG$1756)))) -> 0 | F58: =SUM(IF('Network Analysis'!$M$18:$M$1756=Summary!F$10,IF('Network Analysis'!$O$18:$O$1756=Summary!$C58,('Network Analysis'!$S$18:$S$1756*'Network Analysis'!$AG$18:$AG$1756)))) -> 1696853 | G58: =SUM(IF('Network Analysis'!$M$18:$M$1756=Summary!G$10,IF('Network Analysis'!$O$18:$O$1756=Summary!$C58,('Network Analysis'!$S$18:$S$1756*'Network Analysis'!$AG$18:$AG$1756)))) -> 13805690 | H58: =SUM(IF('Network Analysis'!$M$18:$M$1756=Summary!H$10,IF('Network Analysis'!$O$18:$O$1756=Summary!$C58,('Network Analysis'!$S$18:$S$1756*'Network Analysis'!$AG$18:$AG$1756)))) -> 0 | I58: =SUM(IF('Network Analysis'!$M$18:$M$1756=Summary!I$10,IF('Network Analysis'!$O$18:$O$1756=Summary!$C58,('Network Analysis'!$S$18:$S$1756*'Network Analysis'!$AG$18:$AG$1756)))) -> 0 | J58: =SUM(IF('Network Analysis'!$M$18:$M$1756=Summary!J$10,IF('Network Analysis'!$O$18:$O$1756=Summary!$C58,('Network Analysis'!$S$18:$S$1756*'Network Analysis'!$AG$18:$AG$1756)))) -> 0
C59: =Parameters!$C$20 -> Concrete | D59: =SUM(E59:J59) -> 151772072 | E59: =SUM(IF('Network Analysis'!$M$18:$M$1756=Summary!E$10,IF('Network Analysis'!$O$18:$O$1756=Summary!$C59,('Network Analysis'!$S$18:$S$1756*'Network Analysis'!$AG$18:$AG$1756)))) -> 4381113 | F59: =SUM(IF('Network Analysis'!$M$18:$M$1756=Summary!F$10,IF('Network Analysis'!$O$18:$O$1756=Summary!$C59,('Network Analysis'!$S$18:$S$1756*'Network Analysis'!$AG$18:$AG$1756)))) -> 23870399 | G59: =SUM(IF('Network Analysis'!$M$18:$M$1756=Summary!G$10,IF('Network Analysis'!$O$18:$O$1756=Summary!$C59,('Network Analysis'!$S$18:$S$1756*'Network Analysis'!$AG$18:$AG$1756)))) -> 123520560 | H59: =SUM(IF('Network Analysis'!$M$18:$M$1756=Summary!H$10,IF('Network Analysis'!$O$18:$O$1756=Summary!$C59,('Network Analysis'!$S$18:$S$1756*'Network Analysis'!$AG$18:$AG$1756)))) -> 0 | I59: =SUM(IF('Network Analysis'!$M$18:$M$1756=Summary!I$10,IF('Network Analysis'!$O$18:$O$1756=Summary!$C59,('Network Analysis'!$S$18:$S$1756*'Network Analysis'!$AG$18:$AG$1756)))) -> 0 | J59: =SUM(IF('Network Analysis'!$M$18:$M$1756=Summary!J$10,IF('Network Analysis'!$O$18:$O$1756=Summary!$C59,('Network Analysis'!$S$18:$S$1756*'Network Analysis'!$AG$18:$AG$1756)))) -> 0
C60: =Parameters!$C$21 -> Composite | D60: =SUM(E60:J60) -> 0 | E60: =SUM(IF('Network Analysis'!$M$18:$M$1756=Summary!E$10,IF('Network Analysis'!$O$18:$O$1756=Summary!$C60,('Network Analysis'!$S$18:$S$1756*'Network Analysis'!$AG$18:$AG$1756)))) -> 0 | F60: =SUM(IF('Network Analysis'!$M$18:$M$1756=Summary!F$10,IF('Network Analysis'!$O$18:$O$1756=Summary!$C60,('Network Analysis'!$S$18:$S$1756*'Network Analysis'!$AG$18:$AG$1756)))) -> 0 | G60: =SUM(IF('Network Analysis'!$M$18:$M$1756=Summary!G$10,IF('Network Analysis'!$O$18:$O$1756=Summary!$C60,('Network Analysis'!$S$18:$S$1756*'Network Analysis'!$AG$18:$AG$1756)))) -> 0 | H60: =SUM(IF('Network Analysis'!$M$18:$M$1756=Summary!H$10,IF('Network Analysis'!$O$18:$O$1756=Summary!$C60,('Network Analysis'!$S$18:$S$1756*'Network Analysis'!$AG$18:$AG$1756)))) -> 0 | I60: =SUM(IF('Network Analysis'!$M$18:$M$1756=Summary!I$10,IF('Network Analysis'!$O$18:$O$1756=Summary!$C60,('Network Analysis'!$S$18:$S$1756*'Network Analysis'!$AG$18:$AG$1756)))) -> 0 | J60: =SUM(IF('Network Analysis'!$M$18:$M$1756=Summary!J$10,IF('Network Analysis'!$O$18:$O$1756=Summary!$C60,('Network Analysis'!$S$18:$S$1756*'Network Analysis'!$AG$18:$AG$1756)))) -> 0
B62: Current Pavement Condition | C62: All Streets | D62: =IF(D32>0,(D37/D32),0) -> 67.42818352 | E62: 78.41469677 | F62: 62.07334097 | G62: 68.20491968 | H62: 0 | I62: 0 | J62: 0
B63: Index (CPCI) | C63: =Parameters!$C$19 -> Asphalt | D63: =IF(D33>0,(D38/D33),0) -> 48.8892779 | E63: 0 | F63: 37.62418479 | G63: 50.96894634 | H63: =IF(H33>0,(H38/H33),0) -> 0 | I63: 0 | J63: 0
B64: =NA_Current_PCI_Date -> 2018-05-15 | C64: =Parameters!$C$20 -> Concrete | D64: 70.11633249 | E64: 78.41469677 | F64: 65.53058561 | G64: 70.78481169 | H64: 0 | I64: 0 | J64: 0
C65: =Parameters!$C$21 -> Composite | D65: 0 | E65: 0 | F65: 0 | G65: 0 | H65: 0 | I65: 0 | J65: 0
B67: Pavement Condition Index | C67: All Streets | D67: =IF(D32>0,(D42/D32),0) -> 67.50504583 | E67: =IF(E32>0,(E42/E32),0) -> 78.41469677 | F67: 62.2540768 | G67: 68.26346363 | H67: 0 | I67: 0 | J67: 0
B68: (Surveyed PCI) | C68: =Parameters!$C$19 -> Asphalt | D68: =IF(D33>0,(D43/D33),0) -> 49.29690355 | E68: =IF(E33>0,(E43/E33),0) -> 0 | F68: 38.5134565 | G68: 51.28765447 | H68: 0 | I68: 0 | J68: 0
C69: =Parameters!$C$20 -> Concrete | D69: =IF(D34>0,(D44/D34),0) -> 70.14523398 | E69: 78.41469677 | F69: 65.61113058 | G69: 70.8044141 | H69: 0 | I69: 0 | J69: 0
C70: =Parameters!$C$21 -> Composite | D70: =IF(D35>0,(D45/D35),0) -> 0 | E70: 0 | F70: 0 | G70: 0 | H70: 0 | I70: 0 | J70: 0
B72: Backlog (%) | C72: All Streets | D72: ='Network Analysis'!IT7 -> 3.3 | E72: ="Percentage of Network with a PCI < "&Parameters!B62 -> Percentage of Network with a PCI < 40
B74: Network Index | C74: All Streets | D74: =(D67*(100-D72))/100 -> 65.27737932 | E74: =VLOOKUP(D74,Parameters!$B$193:$C$198,2) -> Managable Network Index
B76: Surface Distress Index (SDI) | C76: All Streets | D76: =IF(D32>0,(D47/D32),0) -> 68.77743775 | E76: =IF(E32>0,(E47/E32),0) -> 80.22909252 | F76: 61.74173752 | G76: 69.86917636 | H76: 0 | I76: 0 | J76: 0
C77: Asphalt | D77: =IF(D33>0,(D48/D33),0) -> 41.17988883 | E77: =IF(E33>0,(E48/E33),0) -> 0 | F77: 29.4421221 | G77: 43.34681837 | H77: 0 | I77: 0 | J77: 0
C78: Concrete | D78: =IF(D34>0,(D49/D34),0) -> 72.77909375 | E78: 80.22909252 | F78: 66.30908011 | G78: 73.83906064 | H78: 0 | I78: 0 | J78: 0
C79: =Parameters!$C$21 -> Composite | D79: =IF(D35>0,(D50/D35),0) -> 0 | E79: 0 | F79: 0 | G79: 0 | H79: 0 | I79: 0 | J79: 0
B81: Roughness Index (RI) | C81: All Streets | D81: =IF(D32>0,(D52/D32),0) -> 65.95719615 | E81: =IF(E32>0,(E52/E32),0) -> 75.96478027 | F81: 69.7477308 | G81: 64.98300666 | H81: 0 | I81: 0 | J81: 0
C82: Asphalt | D82: =IF(D33>0,(D53/D33),0) -> 66.75310316 | E82: =IF(E33>0,(E53/E33),0) -> 0 | F82: 64.91700107 | G82: 67.09206916 | H82: 0 | I82: 0 | J82: 0
C83: Concrete | D83: =IF(D34>0,(D54/D34),0) -> 65.84178931 | E83: 75.96478027 | F83: 70.43082245 | G83: 64.66732077 | H83: 0 | I83: 0 | J83: 0
C84: =Parameters!$C$21 -> Composite | D84: =IF(D35>0,(D55/D35),0) -> 0 | E84: 0 | F84: 0 | G84: 0 | H84: 0 | I84: 0 | J84: 0
B86: Structural Index (SI) | C86: All Streets | D86: =IF(D32>0,(D57/D32),0) -> 58.03151211 | E86: =IF(E32>0,(E57/E32),0) -> 77.57614874 | F86: 55.67975365 | G86: 58.02141692 | H86: 0 | I86: 0 | J86: 0
C87: Asphalt | D87: =IF(D33>0,(D58/D33),0) -> 42.46911358 | E87: =IF(E33>0,(E58/E33),0) -> 0 | F87: 29.82848454 | G87: 44.8027221 | H87: 0 | I87: 0 | J87: 0
C88: Concrete | D88: =IF(D34>0,(D59/D34),0) -> 60.28806633 | E88: 77.57614874 | F88: 59.33526474 | G88: 60 | H88: 0 | I88: 0 | J88: 0
C89: =Parameters!$C$21 -> Composite | D89: =IF(D35>0,(D60/D35),0) -> 0 | E89: 0 | F89: 0 | G89: 0 | H89: 0 | I89: 0 | J89: 0
B93: ="Network Summary by Functional Class and Condition Rating ("&Parameters!K11&")" -> Network Summary by Functional Class and Condition Rating (Miles)
B95: Condition Rating | C95: Max PCI | D95: =D10 -> Network | E95: =E10 -> Arterial | F95: Collector | G95: Local | H95: FunCL 4 | I95: FunCL 5 | J95: FunCL 6
B97: ='Plot Calcs'!K187 -> V Poor (0 to 25) | C97: ='Plot Calcs'!B187 -> 25 | D97: =SUM(E97:J97) -> 0.3113484848 | E97: =SUM(IF('Network Analysis'!$M$18:$M$1756=Summary!E$10,IF(NA_CPCI>=Summary!$C96,IF(NA_CPCI<Summary!$C97,'Network Analysis'!$CV$18:$CV$1756))))/5280 -> 0 | F97: =SUM(IF('Network Analysis'!$M$18:$M$1756=Summary!F$10,IF(NA_CPCI>=Summary!$C96,IF(NA_CPCI<Summary!$C97,'Network Analysis'!$CV$18:$CV$1756))))/5280 -> 0 | G97: =SUM(IF('Network Analysis'!$M$18:$M$1756=Summary!G$10,IF(NA_CPCI>=Summary!$C96,IF(NA_CPCI<Summary!$C97,'Network Analysis'!$CV$18:$CV$1756))))/5280 -> 0.3113484848 | H97: =SUM(IF('Network Analysis'!$M$18:$M$1756=Summary!H$10,IF(NA_CPCI>=Summary!$C96,IF(NA_CPCI<Summary!$C97,'Network Analysis'!$CV$18:$CV$1756))))/5280 -> 0 | I97: =SUM(IF('Network Analysis'!$M$18:$M$1756=Summary!I$10,IF(NA_CPCI>=Summary!$C96,IF(NA_CPCI<Summary!$C97,'Network Analysis'!$CV$18:$CV$1756))))/5280 -> 0 | J97: =SUM(IF('Network Analysis'!$M$18:$M$1756=Summary!J$10,IF(NA_CPCI>=Summary!$C96,IF(NA_CPCI<Summary!$C97,'Network Analysis'!$CV$18:$CV$1756))))/5280 -> 0
B98: ='Plot Calcs'!K188 -> Poor (25 to 40) | C98: ='Plot Calcs'!B188 -> 40 | D98: =SUM(E98:J98) -> 6.450005682 | E98: =SUM(IF('Network Analysis'!$M$18:$M$1756=Summary!E$10,IF(NA_CPCI>=Summary!$C97,IF(NA_CPCI<Summary!$C98,'Network Analysis'!$CV$18:$CV$1756))))/5280 -> 0 | F98: =SUM(IF('Network Analysis'!$M$18:$M$1756=Summary!F$10,IF(NA_CPCI>=Summary!$C97,IF(NA_CPCI<Summary!$C98,'Network Analysis'!$CV$18:$CV$1756))))/5280 -> 2.567462121 | G98: =SUM(IF('Network Analysis'!$M$18:$M$1756=Summary!G$10,IF(NA_CPCI>=Summary!$C97,IF(NA_CPCI<Summary!$C98,'Network Analysis'!$CV$18:$CV$1756))))/5280 -> 3.882543561 | H98: =SUM(IF('Network Analysis'!$M$18:$M$1756=Summary!H$10,IF(NA_CPCI>=Summary!$C97,IF(NA_CPCI<Summary!$C98,'Network Analysis'!$CV$18:$CV$1756))))/5280 -> 0 | I98: =SUM(IF('Network Analysis'!$M$18:$M$1756=Summary!I$10,IF(NA_CPCI>=Summary!$C97,IF(NA_CPCI<Summary!$C98,'Network Analysis'!$CV$18:$CV$1756))))/5280 -> 0 | J98: =SUM(IF('Network Analysis'!$M$18:$M$1756=Summary!J$10,IF(NA_CPCI>=Summary!$C97,IF(NA_CPCI<Summary!$C98,'Network Analysis'!$CV$18:$CV$1756))))/5280 -> 0
B99: ='Plot Calcs'!K189 -> Marginal (40 to 50) | C99: ='Plot Calcs'!B189 -> 50 | D99: 6.553513258 | E99: =SUM(IF('Network Analysis'!$M$18:$M$1756=Summary!E$10,IF(NA_CPCI>=Summary!$C98,IF(NA_CPCI<Summary!$C99,'Network Analysis'!$CV$18:$CV$1756))))/5280 -> 0 | F99: =SUM(IF('Network Analysis'!$M$18:$M$1756=Summary!F$10,IF(NA_CPCI>=Summary!$C98,IF(NA_CPCI<Summary!$C99,'Network Analysis'!$CV$18:$CV$1756))))/5280 -> 0.9330643939 | G99: =SUM(IF('Network Analysis'!$M$18:$M$1756=Summary!G$10,IF(NA_CPCI>=Summary!$C98,IF(NA_CPCI<Summary!$C99,'Network Analysis'!$CV$18:$CV$1756))))/5280 -> 5.620448864 | H99: =SUM(IF('Network Analysis'!$M$18:$M$1756=Summary!H$10,IF(NA_CPCI>=Summary!$C98,IF(NA_CPCI<Summary!$C99,'Network Analysis'!$CV$18:$CV$1756))))/5280 -> 0 | I99: =SUM(IF('Network Analysis'!$M$18:$M$1756=Summary!I$10,IF(NA_CPCI>=Summary!$C98,IF(NA_CPCI<Summary!$C99,'Network Analysis'!$CV$18:$CV$1756))))/5280 -> 0 | J99: =SUM(IF('Network Analysis'!$M$18:$M$1756=Summary!J$10,IF(NA_CPCI>=Summary!$C98,IF(NA_CPCI<Summary!$C99,'Network Analysis'!$CV$18:$CV$1756))))/5280 -> 0
B100: ='Plot Calcs'!K190 -> Fair (50 to 60) | C100: ='Plot Calcs'!B190 -> 60 | D100: 25.38686174 | E100: =SUM(IF('Network Analysis'!$M$18:$M$1756=Summary!E$10,IF(NA_CPCI>=Summary!$C99,IF(NA_CPCI<Summary!$C100,'Network Analysis'!$CV$18:$CV$1756))))/5280 -> 0 | F100: =SUM(IF('Network Analysis'!$M$18:$M$1756=Summary!F$10,IF(NA_CPCI>=Summary!$C99,IF(NA_CPCI<Summary!$C100,'Network Analysis'!$CV$18:$CV$1756))))/5280 -> 5.847626894 | G100: =SUM(IF('Network Analysis'!$M$18:$M$1756=Summary!G$10,IF(NA_CPCI>=Summary!$C99,IF(NA_CPCI<Summary!$C100,'Network Analysis'!$CV$18:$CV$1756))))/5280 -> 19.53923485 | H100: =SUM(IF('Network Analysis'!$M$18:$M$1756=Summary!H$10,IF(NA_CPCI>=Summary!$C99,IF(NA_CPCI<Summary!$C100,'Network Analysis'!$CV$18:$CV$1756))))/5280 -> 0 | I100: =SUM(IF('Network Analysis'!$M$18:$M$1756=Summary!I$10,IF(NA_CPCI>=Summary!$C99,IF(NA_CPCI<Summary!$C100,'Network Analysis'!$CV$18:$CV$1756))))/5280 -> 0 | J100: =SUM(IF('Network Analysis'!$M$18:$M$1756=Summary!J$10,IF(NA_CPCI>=Summary!$C99,IF(NA_CPCI<Summary!$C100,'Network Analysis'!$CV$18:$CV$1756))))/5280 -> 0
B101: ='Plot Calcs'!K191 -> Good (60 to 70) | C101: ='Plot Calcs'!B191 -> 70 | D101: 66.86380114 | E101: =SUM(IF('Network Analysis'!$M$18:$M$1756=Summary!E$10,IF(NA_CPCI>=Summary!$C100,IF(NA_CPCI<Summary!$C101,'Network Analysis'!$CV$18:$CV$1756))))/5280 -> 0.1436780303 | F101: =SUM(IF('Network Analysis'!$M$18:$M$1756=Summary!F$10,IF(NA_CPCI>=Summary!$C100,IF(NA_CPCI<Summary!$C101,'Network Analysis'!$CV$18:$CV$1756))))/5280 -> 9.36074053 | G101: =SUM(IF('Network Analysis'!$M$18:$M$1756=Summary!G$10,IF(NA_CPCI>=Summary!$C100,IF(NA_CPCI<Summary!$C101,'Network Analysis'!$CV$18:$CV$1756))))/5280 -> 57.35938258 | H101: =SUM(IF('Network Analysis'!$M$18:$M$1756=Summary!H$10,IF(NA_CPCI>=Summary!$C100,IF(NA_CPCI<Summary!$C101,'Network Analysis'!$CV$18:$CV$1756))))/5280 -> 0 | I101: =SUM(IF('Network Analysis'!$M$18:$M$1756=Summary!I$10,IF(NA_CPCI>=Summary!$C100,IF(NA_CPCI<Summary!$C101,'Network Analysis'!$CV$18:$CV$1756))))/5280 -> 0 | J101: =SUM(IF('Network Analysis'!$M$18:$M$1756=Summary!J$10,IF(NA_CPCI>=Summary!$C100,IF(NA_CPCI<Summary!$C101,'Network Analysis'!$CV$18:$CV$1756))))/5280 -> 0
B102: ='Plot Calcs'!K192 -> V Good (70 to 85) | C102: ='Plot Calcs'!B192 -> 85 | D102: 53.78732955 | E102: =SUM(IF('Network Analysis'!$M$18:$M$1756=Summary!E$10,IF(NA_CPCI>=Summary!$C101,IF(NA_CPCI<Summary!$C102,'Network Analysis'!$CV$18:$CV$1756))))/5280 -> 2.51863447 | F102: =SUM(IF('Network Analysis'!$M$18:$M$1756=Summary!F$10,IF(NA_CPCI>=Summary!$C101,IF(NA_CPCI<Summary!$C102,'Network Analysis'!$CV$18:$CV$1756))))/5280 -> 6.275535985 | G102: =SUM(IF('Network Analysis'!$M$18:$M$1756=Summary!G$10,IF(NA_CPCI>=Summary!$C101,IF(NA_CPCI<Summary!$C102,'Network Analysis'!$CV$18:$CV$1756))))/5280 -> 44.99315909 | H102: =SUM(IF('Network Analysis'!$M$18:$M$1756=Summary!H$10,IF(NA_CPCI>=Summary!$C101,IF(NA_CPCI<Summary!$C102,'Network Analysis'!$CV$18:$CV$1756))))/5280 -> 0 | I102: =SUM(IF('Network Analysis'!$M$18:$M$1756=Summary!I$10,IF(NA_CPCI>=Summary!$C101,IF(NA_CPCI<Summary!$C102,'Network Analysis'!$CV$18:$CV$1756))))/5280 -> 0 | J102: =SUM(IF('Network Analysis'!$M$18:$M$1756=Summary!J$10,IF(NA_CPCI>=Summary!$C101,IF(NA_CPCI<Summary!$C102,'Network Analysis'!$CV$18:$CV$1756))))/5280 -> 0
B103: ='Plot Calcs'!K193 -> Excellent (85 to 100) | C103: ='Plot Calcs'!B193 -> 100 | D103: 15.70464394 | E103: =SUM(IF('Network Analysis'!$M$18:$M$1756=Summary!E$10,IF(NA_CPCI>=Summary!$C102,IF(NA_CPCI<Summary!$C103,'Network Analysis'!$CV$18:$CV$1756))))/5280 -> 0.8454848485 | F103: =SUM(IF('Network Analysis'!$M$18:$M$1756=Summary!F$10,IF(NA_CPCI>=Summary!$C102,IF(NA_CPCI<Summary!$C103,'Network Analysis'!$CV$18:$CV$1756))))/5280 -> 0.6400984848 | G103: =SUM(IF('Network Analysis'!$M$18:$M$1756=Summary!G$10,IF(NA_CPCI>=Summary!$C102,IF(NA_CPCI<Summary!$C103,'Network Analysis'!$CV$18:$CV$1756))))/5280 -> 14.21906061 | H103: =SUM(IF('Network Analysis'!$M$18:$M$1756=Summary!H$10,IF(NA_CPCI>=Summary!$C102,IF(NA_CPCI<Summary!$C103,'Network Analysis'!$CV$18:$CV$1756))))/5280 -> 0 | I103: =SUM(IF('Network Analysis'!$M$18:$M$1756=Summary!I$10,IF(NA_CPCI>=Summary!$C102,IF(NA_CPCI<Summary!$C103,'Network Analysis'!$CV$18:$CV$1756))))/5280 -> 0 | J103: =SUM(IF('Network Analysis'!$M$18:$M$1756=Summary!J$10,IF(NA_CPCI>=Summary!$C102,IF(NA_CPCI<Summary!$C103,'Network Analysis'!$CV$18:$CV$1756))))/5280 -> 0
B105: ="Totals ("&Parameters!K11&")" -> Totals (Miles) | D105: =SUM(D97:D103) -> 175.0575038 | E105: 3.507797348 | F105: 25.62452841 | G105: 145.925178 | H105: 0 | I105: 0 | J105: 0

Sheet Comps
B5: =Parameters!M3 -> Copyright © 2019 IMS Infrastructure Management Services. All Rights Reserved.
B8: =Parameters!C10 -> City of Friendswood, TX
B10: Rehabilitation Estimate Based on Current Network Deficiency and Life Cycle Cost
E11: Funcl Code: | F11: 1 | G11: 2 | H11: 3 | I11: 4 | J11: 5 | K11: 6
B12: Rehab Code | C12: Rehab Activity | D12: Network Total ($) | E12: % of Total | F12: =Parameters!$C$38 -> Arterial | G12: =Parameters!$C$39 -> Collector | H12: =Parameters!$C$40 -> Local | I12: =Parameters!$C$41 -> FunCL 4 | J12: =Parameters!$C$42 -> FunCL 5 | K12: =Parameters!$C$43 -> FunCL 6 | L12: Life Cycle (Yrs) | M12: Life Cycle Cost ($/Yr)
C13: FunCL Rate Premium | F13: =Parameters!E38 -> 110 | G13: =Parameters!E39 -> 105 | H13: =Parameters!E40 -> 100 | I13: =Parameters!E41 -> 100 | J13: =Parameters!E42 -> 100 | K13: =Parameters!E43 -> 100
B15: 10 | C15: =VLOOKUP(B15,Parameters!$C$123:$D$138,2) -> Slurry Seal / Prvnttve Mntnnce | D15: =ROUND(SUM(F15:K15),-2) -> 0 | E15: =D15/$D$33*100 -> 0 | F15: =SUM(IF('Network Analysis'!$N$18:$N$1756<>2,IF('Network Analysis'!$L$18:$L$1756=Comps!F$11,IF('Network Analysis'!$DV$18:$DV$1756=Comps!$B15,'Network Analysis'!$EC$18:$EC$1756)))) -> 0 | G15: =SUM(IF('Network Analysis'!$N$18:$N$1756<>2,IF('Network Analysis'!$L$18:$L$1756=Comps!G$11,IF('Network Analysis'!$DV$18:$DV$1756=Comps!$B15,'Network Analysis'!$EC$18:$EC$1756)))) -> 0 | H15: =SUM(IF('Network Analysis'!$N$18:$N$1756<>2,IF('Network Analysis'!$L$18:$L$1756=Comps!H$11,IF('Network Analysis'!$DV$18:$DV$1756=Comps!$B15,'Network Analysis'!$EC$18:$EC$1756)))) -> 0 | I15: =SUM(IF('Network Analysis'!$N$18:$N$1756<>2,IF('Network Analysis'!$L$18:$L$1756=Comps!I$11,IF('Network Analysis'!$DV$18:$DV$1756=Comps!$B15,'Network Analysis'!$EC$18:$EC$1756)))) -> 0 | J15: =SUM(IF('Network Analysis'!$N$18:$N$1756<>2,IF('Network Analysis'!$L$18:$L$1756=Comps!J$11,IF('Network Analysis'!$DV$18:$DV$1756=Comps!$B15,'Network Analysis'!$EC$18:$EC$1756)))) -> 0 | K15: =SUM(IF('Network Analysis'!$N$18:$N$1756<>2,IF('Network Analysis'!$L$18:$L$1756=Comps!K$11,IF('Network Analysis'!$DV$18:$DV$1756=Comps!$B15,'Network Analysis'!$EC$18:$EC$1756)))) -> 0 | L15: 1 | M15: =ROUND(D15/L15,-2) -> 0
B16: 20 | C16: =VLOOKUP(B16,Parameters!$C$123:$D$138,2) -> Surface Trtmnt / Chip Seal | D16: =ROUND(SUM(F16:K16),-2) -> 136400 | E16: =D16/$D$33*100 -> 1.786228753 | F16: =SUM(IF('Network Analysis'!$N$18:$N$1756<>2,IF('Network Analysis'!$L$18:$L$1756=Comps!F$11,IF('Network Analysis'!$DV$18:$DV$1756=Comps!$B16,'Network Analysis'!$EC$18:$EC$1756)))) -> 0 | G16: =SUM(IF('Network Analysis'!$N$18:$N$1756<>2,IF('Network Analysis'!$L$18:$L$1756=Comps!G$11,IF('Network Analysis'!$DV$18:$DV$1756=Comps!$B16,'Network Analysis'!$EC$18:$EC$1756)))) -> 0 | H16: =SUM(IF('Network Analysis'!$N$18:$N$1756<>2,IF('Network Analysis'!$L$18:$L$1756=Comps!H$11,IF('Network Analysis'!$DV$18:$DV$1756=Comps!$B16,'Network Analysis'!$EC$18:$EC$1756)))) -> 136430 | I16: =SUM(IF('Network Analysis'!$N$18:$N$1756<>2,IF('Network Analysis'!$L$18:$L$1756=Comps!I$11,IF('Network Analysis'!$DV$18:$DV$1756=Comps!$B16,'Network Analysis'!$EC$18:$EC$1756)))) -> 0 | J16: =SUM(IF('Network Analysis'!$N$18:$N$1756<>2,IF('Network Analysis'!$L$18:$L$1756=Comps!J$11,IF('Network Analysis'!$DV$18:$DV$1756=Comps!$B16,'Network Analysis'!$EC$18:$EC$1756)))) -> 0 | K16: =SUM(IF('Network Analysis'!$N$18:$N$1756<>2,IF('Network Analysis'!$L$18:$L$1756=Comps!K$11,IF('Network Analysis'!$DV$18:$DV$1756=Comps!$B16,'Network Analysis'!$EC$18:$EC$1756)))) -> 0 | L16: =IF(VLOOKUP(B16,'Rehab Activities'!$C$12:$V$40,20)=0,VLOOKUP(B16,Parameters!$C$122:$M$138,11),VLOOKUP(B16,'Rehab Activities'!$C$12:$V$40,20)) -> 5 | M16: =ROUND(D16/L16,-2) -> 27300
B17: 23 | C17: =C$16&" + Strctrl Ptch" -> Surface Trtmnt / Chip Seal + Strctrl Ptch | D17: 0 | E17: 0 | F17: =SUM(IF('Network Analysis'!$N$18:$N$1756<>2,IF('Network Analysis'!$L$18:$L$1756=Comps!F$11,IF('Network Analysis'!$DV$18:$DV$1756=Comps!$B17,'Network Analysis'!$EC$18:$EC$1756)))) -> 0 | G17: =SUM(IF('Network Analysis'!$N$18:$N$1756<>2,IF('Network Analysis'!$L$18:$L$1756=Comps!G$11,IF('Network Analysis'!$DV$18:$DV$1756=Comps!$B17,'Network Analysis'!$EC$18:$EC$1756)))) -> 0 | H17: =SUM(IF('Network Analysis'!$N$18:$N$1756<>2,IF('Network Analysis'!$L$18:$L$1756=Comps!H$11,IF('Network Analysis'!$DV$18:$DV$1756=Comps!$B17,'Network Analysis'!$EC$18:$EC$1756)))) -> 0 | I17: =SUM(IF('Network Analysis'!$N$18:$N$1756<>2,IF('Network Analysis'!$L$18:$L$1756=Comps!I$11,IF('Network Analysis'!$DV$18:$DV$1756=Comps!$B17,'Network Analysis'!$EC$18:$EC$1756)))) -> 0 | J17: =SUM(IF('Network Analysis'!$N$18:$N$1756<>2,IF('Network Analysis'!$L$18:$L$1756=Comps!J$11,IF('Network Analysis'!$DV$18:$DV$1756=Comps!$B17,'Network Analysis'!$EC$18:$EC$1756)))) -> 0 | K17: =SUM(IF('Network Analysis'!$N$18:$N$1756<>2,IF('Network Analysis'!$L$18:$L$1756=Comps!K$11,IF('Network Analysis'!$DV$18:$DV$1756=Comps!$B17,'Network Analysis'!$EC$18:$EC$1756)))) -> 0 | L17: =IF(VLOOKUP(B17,'Rehab Activities'!$C$12:$V$40,20)=0,VLOOKUP(B17,Parameters!$C$122:$M$138,11),VLOOKUP(B17,'Rehab Activities'!$C$12:$V$40,20)) -> 5 | M17: 0
B18: 26 | C18: =C$16&" + Strctrl Ptch" -> Surface Trtmnt / Chip Seal + Strctrl Ptch | D18: 0 | E18: 0 | F18: =SUM(IF('Network Analysis'!$N$18:$N$1756<>2,IF('Network Analysis'!$L$18:$L$1756=Comps!F$11,IF('Network Analysis'!$DV$18:$DV$1756=Comps!$B18,'Network Analysis'!$EC$18:$EC$1756)))) -> 0 | G18: =SUM(IF('Network Analysis'!$N$18:$N$1756<>2,IF('Network Analysis'!$L$18:$L$1756=Comps!G$11,IF('Network Analysis'!$DV$18:$DV$1756=Comps!$B18,'Network Analysis'!$EC$18:$EC$1756)))) -> 0 | H18: =SUM(IF('Network Analysis'!$N$18:$N$1756<>2,IF('Network Analysis'!$L$18:$L$1756=Comps!H$11,IF('Network Analysis'!$DV$18:$DV$1756=Comps!$B18,'Network Analysis'!$EC$18:$EC$1756)))) -> 0 | I18: =SUM(IF('Network Analysis'!$N$18:$N$1756<>2,IF('Network Analysis'!$L$18:$L$1756=Comps!I$11,IF('Network Analysis'!$DV$18:$DV$1756=Comps!$B18,'Network Analysis'!$EC$18:$EC$1756)))) -> 0 | J18: =SUM(IF('Network Analysis'!$N$18:$N$1756<>2,IF('Network Analysis'!$L$18:$L$1756=Comps!J$11,IF('Network Analysis'!$DV$18:$DV$1756=Comps!$B18,'Network Analysis'!$EC$18:$EC$1756)))) -> 0 | K18: =SUM(IF('Network Analysis'!$N$18:$N$1756<>2,IF('Network Analysis'!$L$18:$L$1756=Comps!K$11,IF('Network Analysis'!$DV$18:$DV$1756=Comps!$B18,'Network Analysis'!$EC$18:$EC$1756)))) -> 0 | L18: =IF(VLOOKUP(B18,'Rehab Activities'!$C$12:$V$40,20)=0,VLOOKUP(B18,Parameters!$C$122:$M$138,11),VLOOKUP(B18,'Rehab Activities'!$C$12:$V$40,20)) -> 10 | M18: 0
B19: 30 | C19: =VLOOKUP(B19,Parameters!$C$123:$D$138,2) -> Edge Mill + Thin Overlay (1.5 - 2.0) | D19: 182800 | E19: 2.393860821 | F19: =SUM(IF('Network Analysis'!$N$18:$N$1756<>2,IF('Network Analysis'!$L$18:$L$1756=Comps!F$11,IF('Network Analysis'!$DV$18:$DV$1756=Comps!$B19,'Network Analysis'!$EC$18:$EC$1756)))) -> 0 | G19: =SUM(IF('Network Analysis'!$N$18:$N$1756<>2,IF('Network Analysis'!$L$18:$L$1756=Comps!G$11,IF('Network Analysis'!$DV$18:$DV$1756=Comps!$B19,'Network Analysis'!$EC$18:$EC$1756)))) -> 0 | H19: =SUM(IF('Network Analysis'!$N$18:$N$1756<>2,IF('Network Analysis'!$L$18:$L$1756=Comps!H$11,IF('Network Analysis'!$DV$18:$DV$1756=Comps!$B19,'Network Analysis'!$EC$18:$EC$1756)))) -> 182840 | I19: =SUM(IF('Network Analysis'!$N$18:$N$1756<>2,IF('Network Analysis'!$L$18:$L$1756=Comps!I$11,IF('Network Analysis'!$DV$18:$DV$1756=Comps!$B19,'Network Analysis'!$EC$18:$EC$1756)))) -> 0 | J19: =SUM(IF('Network Analysis'!$N$18:$N$1756<>2,IF('Network Analysis'!$L$18:$L$1756=Comps!J$11,IF('Network Analysis'!$DV$18:$DV$1756=Comps!$B19,'Network Analysis'!$EC$18:$EC$1756)))) -> 0 | K19: =SUM(IF('Network Analysis'!$N$18:$N$1756<>2,IF('Network Analysis'!$L$18:$L$1756=Comps!K$11,IF('Network Analysis'!$DV$18:$DV$1756=Comps!$B19,'Network Analysis'!$EC$18:$EC$1756)))) -> 0 | L19: =IF(VLOOKUP(B19,'Rehab Activities'!$C$12:$V$40,20)=0,VLOOKUP(B19,Parameters!$C$122:$M$138,11),VLOOKUP(B19,'Rehab Activities'!$C$12:$V$40,20)) -> 14 | M19: 13100
B20: 33 | C20: =C$19&" + Strctrl Ptch" -> Edge Mill + Thin Overlay (1.5 - 2.0) + Strctrl Ptch | D20: 468400 | E20: 6.133940965 | F20: =SUM(IF('Network Analysis'!$N$18:$N$1756<>2,IF('Network Analysis'!$L$18:$L$1756=Comps!F$11,IF('Network Analysis'!$DV$18:$DV$1756=Comps!$B20,'Network Analysis'!$EC$18:$EC$1756)))) -> 0 | G20: =SUM(IF('Network Analysis'!$N$18:$N$1756<>2,IF('Network Analysis'!$L$18:$L$1756=Comps!G$11,IF('Network Analysis'!$DV$18:$DV$1756=Comps!$B20,'Network Analysis'!$EC$18:$EC$1756)))) -> 0 | H20: =SUM(IF('Network Analysis'!$N$18:$N$1756<>2,IF('Network Analysis'!$L$18:$L$1756=Comps!H$11,IF('Network Analysis'!$DV$18:$DV$1756=Comps!$B20,'Network Analysis'!$EC$18:$EC$1756)))) -> 468440 | I20: =SUM(IF('Network Analysis'!$N$18:$N$1756<>2,IF('Network Analysis'!$L$18:$L$1756=Comps!I$11,IF('Network Analysis'!$DV$18:$DV$1756=Comps!$B20,'Network Analysis'!$EC$18:$EC$1756)))) -> 0 | J20: =SUM(IF('Network Analysis'!$N$18:$N$1756<>2,IF('Network Analysis'!$L$18:$L$1756=Comps!J$11,IF('Network Analysis'!$DV$18:$DV$1756=Comps!$B20,'Network Analysis'!$EC$18:$EC$1756)))) -> 0 | K20: =SUM(IF('Network Analysis'!$N$18:$N$1756<>2,IF('Network Analysis'!$L$18:$L$1756=Comps!K$11,IF('Network Analysis'!$DV$18:$DV$1756=Comps!$B20,'Network Analysis'!$EC$18:$EC$1756)))) -> 0 | L20: =IF(VLOOKUP(B20,'Rehab Activities'!$C$12:$V$40,20)=0,VLOOKUP(B20,Parameters!$C$122:$M$138,11),VLOOKUP(B20,'Rehab Activities'!$C$12:$V$40,20)) -> 14 | M20: 33500
B21: 36 | C21: =C$19&" + Strctrl Ptch" -> Edge Mill + Thin Overlay (1.5 - 2.0) + Strctrl Ptch | D21: 0 | E21: 0 | F21: =SUM(IF('Network Analysis'!$N$18:$N$1756<>2,IF('Network Analysis'!$L$18:$L$1756=Comps!F$11,IF('Network Analysis'!$DV$18:$DV$1756=Comps!$B21,'Network Analysis'!$EC$18:$EC$1756)))) -> 0 | G21: =SUM(IF('Network Analysis'!$N$18:$N$1756<>2,IF('Network Analysis'!$L$18:$L$1756=Comps!G$11,IF('Network Analysis'!$DV$18:$DV$1756=Comps!$B21,'Network Analysis'!$EC$18:$EC$1756)))) -> 0 | H21: =SUM(IF('Network Analysis'!$N$18:$N$1756<>2,IF('Network Analysis'!$L$18:$L$1756=Comps!H$11,IF('Network Analysis'!$DV$18:$DV$1756=Comps!$B21,'Network Analysis'!$EC$18:$EC$1756)))) -> 0 | I21: =SUM(IF('Network Analysis'!$N$18:$N$1756<>2,IF('Network Analysis'!$L$18:$L$1756=Comps!I$11,IF('Network Analysis'!$DV$18:$DV$1756=Comps!$B21,'Network Analysis'!$EC$18:$EC$1756)))) -> 0 | J21: =SUM(IF('Network Analysis'!$N$18:$N$1756<>2,IF('Network Analysis'!$L$18:$L$1756=Comps!J$11,IF('Network Analysis'!$DV$18:$DV$1756=Comps!$B21,'Network Analysis'!$EC$18:$EC$1756)))) -> 0 | K21: =SUM(IF('Network Analysis'!$N$18:$N$1756<>2,IF('Network Analysis'!$L$18:$L$1756=Comps!K$11,IF('Network Analysis'!$DV$18:$DV$1756=Comps!$B21,'Network Analysis'!$EC$18:$EC$1756)))) -> 0 | L21: =IF(VLOOKUP(B21,'Rehab Activities'!$C$12:$V$40,20)=0,VLOOKUP(B21,Parameters!$C$122:$M$138,11),VLOOKUP(B21,'Rehab Activities'!$C$12:$V$40,20)) -> 14 | M21: 0
B22: 40 | C22: =VLOOKUP(B22,Parameters!$C$123:$D$138,2) -> EM/FWM + Moderate Overlay (2.0 - 3.0) | D22: 617900 | E22: 8.091721013 | F22: =SUM(IF('Network Analysis'!$N$18:$N$1756<>2,IF('Network Analysis'!$L$18:$L$1756=Comps!F$11,IF('Network Analysis'!$DV$18:$DV$1756=Comps!$B22,'Network Analysis'!$EC$18:$EC$1756)))) -> 0 | G22: =SUM(IF('Network Analysis'!$N$18:$N$1756<>2,IF('Network Analysis'!$L$18:$L$1756=Comps!G$11,IF('Network Analysis'!$DV$18:$DV$1756=Comps!$B22,'Network Analysis'!$EC$18:$EC$1756)))) -> 7780 | H22: =SUM(IF('Network Analysis'!$N$18:$N$1756<>2,IF('Network Analysis'!$L$18:$L$1756=Comps!H$11,IF('Network Analysis'!$DV$18:$DV$1756=Comps!$B22,'Network Analysis'!$EC$18:$EC$1756)))) -> 610160 | I22: =SUM(IF('Network Analysis'!$N$18:$N$1756<>2,IF('Network Analysis'!$L$18:$L$1756=Comps!I$11,IF('Network Analysis'!$DV$18:$DV$1756=Comps!$B22,'Network Analysis'!$EC$18:$EC$1756)))) -> 0 | J22: =SUM(IF('Network Analysis'!$N$18:$N$1756<>2,IF('Network Analysis'!$L$18:$L$1756=Comps!J$11,IF('Network Analysis'!$DV$18:$DV$1756=Comps!$B22,'Network Analysis'!$EC$18:$EC$1756)))) -> 0 | K22: =SUM(IF('Network Analysis'!$N$18:$N$1756<>2,IF('Network Analysis'!$L$18:$L$1756=Comps!K$11,IF('Network Analysis'!$DV$18:$DV$1756=Comps!$B22,'Network Analysis'!$EC$18:$EC$1756)))) -> 0 | L22: =IF(VLOOKUP(B22,'Rehab Activities'!$C$12:$V$40,20)=0,VLOOKUP(B22,Parameters!$C$122:$M$138,11),VLOOKUP(B22,'Rehab Activities'!$C$12:$V$40,20)) -> 19 | M22: 32500
B23: 43 | C23: =C$22&" + Strctrl Ptch" -> EM/FWM + Moderate Overlay (2.0 - 3.0) + Strctrl Ptch | D23: 1086700 | E23: 14.23090019 | F23: =SUM(IF('Network Analysis'!$N$18:$N$1756<>2,IF('Network Analysis'!$L$18:$L$1756=Comps!F$11,IF('Network Analysis'!$DV$18:$DV$1756=Comps!$B23,'Network Analysis'!$EC$18:$EC$1756)))) -> 0 | G23: =SUM(IF('Network Analysis'!$N$18:$N$1756<>2,IF('Network Analysis'!$L$18:$L$1756=Comps!G$11,IF('Network Analysis'!$DV$18:$DV$1756=Comps!$B23,'Network Analysis'!$EC$18:$EC$1756)))) -> 143360 | H23: =SUM(IF('Network Analysis'!$N$18:$N$1756<>2,IF('Network Analysis'!$L$18:$L$1756=Comps!H$11,IF('Network Analysis'!$DV$18:$DV$1756=Comps!$B23,'Network Analysis'!$EC$18:$EC$1756)))) -> 943310 | I23: =SUM(IF('Network Analysis'!$N$18:$N$1756<>2,IF('Network Analysis'!$L$18:$L$1756=Comps!I$11,IF('Network Analysis'!$DV$18:$DV$1756=Comps!$B23,'Network Analysis'!$EC$18:$EC$1756)))) -> 0 | J23: =SUM(IF('Network Analysis'!$N$18:$N$1756<>2,IF('Network Analysis'!$L$18:$L$1756=Comps!J$11,IF('Network Analysis'!$DV$18:$DV$1756=Comps!$B23,'Network Analysis'!$EC$18:$EC$1756)))) -> 0 | K23: =SUM(IF('Network Analysis'!$N$18:$N$1756<>2,IF('Network Analysis'!$L$18:$L$1756=Comps!K$11,IF('Network Analysis'!$DV$18:$DV$1756=Comps!$B23,'Network Analysis'!$EC$18:$EC$1756)))) -> 0 | L23: =IF(VLOOKUP(B23,'Rehab Activities'!$C$12:$V$40,20)=0,VLOOKUP(B23,Parameters!$C$122:$M$138,11),VLOOKUP(B23,'Rehab Activities'!$C$12:$V$40,20)) -> 19 | M23: 57200
B24: 46 | C24: =C$22&" + Strctrl Ptch" -> EM/FWM + Moderate Overlay (2.0 - 3.0) + Strctrl Ptch | D24: 0 | E24: 0 | F24: =SUM(IF('Network Analysis'!$N$18:$N$1756<>2,IF('Network Analysis'!$L$18:$L$1756=Comps!F$11,IF('Network Analysis'!$DV$18:$DV$1756=Comps!$B24,'Network Analysis'!$EC$18:$EC$1756)))) -> 0 | G24: =SUM(IF('Network Analysis'!$N$18:$N$1756<>2,IF('Network Analysis'!$L$18:$L$1756=Comps!G$11,IF('Network Analysis'!$DV$18:$DV$1756=Comps!$B24,'Network Analysis'!$EC$18:$EC$1756)))) -> 0 | H24: =SUM(IF('Network Analysis'!$N$18:$N$1756<>2,IF('Network Analysis'!$L$18:$L$1756=Comps!H$11,IF('Network Analysis'!$DV$18:$DV$1756=Comps!$B24,'Network Analysis'!$EC$18:$EC$1756)))) -> 0 | I24: =SUM(IF('Network Analysis'!$N$18:$N$1756<>2,IF('Network Analysis'!$L$18:$L$1756=Comps!I$11,IF('Network Analysis'!$DV$18:$DV$1756=Comps!$B24,'Network Analysis'!$EC$18:$EC$1756)))) -> 0 | J24: =SUM(IF('Network Analysis'!$N$18:$N$1756<>2,IF('Network Analysis'!$L$18:$L$1756=Comps!J$11,IF('Network Analysis'!$DV$18:$DV$1756=Comps!$B24,'Network Analysis'!$EC$18:$EC$1756)))) -> 0 | K24: =SUM(IF('Network Analysis'!$N$18:$N$1756<>2,IF('Network Analysis'!$L$18:$L$1756=Comps!K$11,IF('Network Analysis'!$DV$18:$DV$1756=Comps!$B24,'Network Analysis'!$EC$18:$EC$1756)))) -> 0 | L24: =IF(VLOOKUP(B24,'Rehab Activities'!$C$12:$V$40,20)=0,VLOOKUP(B24,Parameters!$C$122:$M$138,11),VLOOKUP(B24,'Rehab Activities'!$C$12:$V$40,20)) -> 19 | M24: 0
B25: 50 | C25: =VLOOKUP(B25,Parameters!$C$123:$D$138,2) -> FWM + Thick Overlay (> 2.0 - 3.0) | D25: 847900 | E25: 11.10369032 | F25: =SUM(IF('Network Analysis'!$N$18:$N$1756<>2,IF('Network Analysis'!$L$18:$L$1756=Comps!F$11,IF('Network Analysis'!$DV$18:$DV$1756=Comps!$B25,'Network Analysis'!$EC$18:$EC$1756)))) -> 0 | G25: =SUM(IF('Network Analysis'!$N$18:$N$1756<>2,IF('Network Analysis'!$L$18:$L$1756=Comps!G$11,IF('Network Analysis'!$DV$18:$DV$1756=Comps!$B25,'Network Analysis'!$EC$18:$EC$1756)))) -> 16560 | H25: =SUM(IF('Network Analysis'!$N$18:$N$1756<>2,IF('Network Analysis'!$L$18:$L$1756=Comps!H$11,IF('Network Analysis'!$DV$18:$DV$1756=Comps!$B25,'Network Analysis'!$EC$18:$EC$1756)))) -> 831380 | I25: =SUM(IF('Network Analysis'!$N$18:$N$1756<>2,IF('Network Analysis'!$L$18:$L$1756=Comps!I$11,IF('Network Analysis'!$DV$18:$DV$1756=Comps!$B25,'Network Analysis'!$EC$18:$EC$1756)))) -> 0 | J25: =SUM(IF('Network Analysis'!$N$18:$N$1756<>2,IF('Network Analysis'!$L$18:$L$1756=Comps!J$11,IF('Network Analysis'!$DV$18:$DV$1756=Comps!$B25,'Network Analysis'!$EC$18:$EC$1756)))) -> 0 | K25: =SUM(IF('Network Analysis'!$N$18:$N$1756<>2,IF('Network Analysis'!$L$18:$L$1756=Comps!K$11,IF('Network Analysis'!$DV$18:$DV$1756=Comps!$B25,'Network Analysis'!$EC$18:$EC$1756)))) -> 0 | L25: =IF(VLOOKUP(B25,'Rehab Activities'!$C$12:$V$40,20)=0,VLOOKUP(B25,Parameters!$C$122:$M$138,11),VLOOKUP(B25,'Rehab Activities'!$C$12:$V$40,20)) -> 23 | M25: 36900
B26: 53 | C26: =C$25&" + Strctrl Ptch" -> FWM + Thick Overlay (> 2.0 - 3.0) + Strctrl Ptch | D26: 1450700 | E26: 18.997669 | F26: =SUM(IF('Network Analysis'!$N$18:$N$1756<>2,IF('Network Analysis'!$L$18:$L$1756=Comps!F$11,IF('Network Analysis'!$DV$18:$DV$1756=Comps!$B26,'Network Analysis'!$EC$18:$EC$1756)))) -> 0 | G26: =SUM(IF('Network Analysis'!$N$18:$N$1756<>2,IF('Network Analysis'!$L$18:$L$1756=Comps!G$11,IF('Network Analysis'!$DV$18:$DV$1756=Comps!$B26,'Network Analysis'!$EC$18:$EC$1756)))) -> 363900 | H26: =SUM(IF('Network Analysis'!$N$18:$N$1756<>2,IF('Network Analysis'!$L$18:$L$1756=Comps!H$11,IF('Network Analysis'!$DV$18:$DV$1756=Comps!$B26,'Network Analysis'!$EC$18:$EC$1756)))) -> 1086770 | I26: =SUM(IF('Network Analysis'!$N$18:$N$1756<>2,IF('Network Analysis'!$L$18:$L$1756=Comps!I$11,IF('Network Analysis'!$DV$18:$DV$1756=Comps!$B26,'Network Analysis'!$EC$18:$EC$1756)))) -> 0 | J26: =SUM(IF('Network Analysis'!$N$18:$N$1756<>2,IF('Network Analysis'!$L$18:$L$1756=Comps!J$11,IF('Network Analysis'!$DV$18:$DV$1756=Comps!$B26,'Network Analysis'!$EC$18:$EC$1756)))) -> 0 | K26: =SUM(IF('Network Analysis'!$N$18:$N$1756<>2,IF('Network Analysis'!$L$18:$L$1756=Comps!K$11,IF('Network Analysis'!$DV$18:$DV$1756=Comps!$B26,'Network Analysis'!$EC$18:$EC$1756)))) -> 0 | L26: =IF(VLOOKUP(B26,'Rehab Activities'!$C$12:$V$40,20)=0,VLOOKUP(B26,Parameters!$C$122:$M$138,11),VLOOKUP(B26,'Rehab Activities'!$C$12:$V$40,20)) -> 23 | M26: 63100
B27: 56 | C27: =C$25&" + Strctrl Ptch" -> FWM + Thick Overlay (> 2.0 - 3.0) + Strctrl Ptch | D27: 281500 | E27: 3.686388518 | F27: =SUM(IF('Network Analysis'!$N$18:$N$1756<>2,IF('Network Analysis'!$L$18:$L$1756=Comps!F$11,IF('Network Analysis'!$DV$18:$DV$1756=Comps!$B27,'Network Analysis'!$EC$18:$EC$1756)))) -> 0 | G27: =SUM(IF('Network Analysis'!$N$18:$N$1756<>2,IF('Network Analysis'!$L$18:$L$1756=Comps!G$11,IF('Network Analysis'!$DV$18:$DV$1756=Comps!$B27,'Network Analysis'!$EC$18:$EC$1756)))) -> 0 | H27: =SUM(IF('Network Analysis'!$N$18:$N$1756<>2,IF('Network Analysis'!$L$18:$L$1756=Comps!H$11,IF('Network Analysis'!$DV$18:$DV$1756=Comps!$B27,'Network Analysis'!$EC$18:$EC$1756)))) -> 281540 | I27: =SUM(IF('Network Analysis'!$N$18:$N$1756<>2,IF('Network Analysis'!$L$18:$L$1756=Comps!I$11,IF('Network Analysis'!$DV$18:$DV$1756=Comps!$B27,'Network Analysis'!$EC$18:$EC$1756)))) -> 0 | J27: =SUM(IF('Network Analysis'!$N$18:$N$1756<>2,IF('Network Analysis'!$L$18:$L$1756=Comps!J$11,IF('Network Analysis'!$DV$18:$DV$1756=Comps!$B27,'Network Analysis'!$EC$18:$EC$1756)))) -> 0 | K27: =SUM(IF('Network Analysis'!$N$18:$N$1756<>2,IF('Network Analysis'!$L$18:$L$1756=Comps!K$11,IF('Network Analysis'!$DV$18:$DV$1756=Comps!$B27,'Network Analysis'!$EC$18:$EC$1756)))) -> 0 | L27: =IF(VLOOKUP(B27,'Rehab Activities'!$C$12:$V$40,20)=0,VLOOKUP(B27,Parameters!$C$122:$M$138,11),VLOOKUP(B27,'Rehab Activities'!$C$12:$V$40,20)) -> 23 | M27: 12200
B28: 60 | C28: =VLOOKUP(B28,Parameters!$C$123:$D$138,2) -> Surf Recon + Base Rehab / FDM + Strctrl Ptch + Olay | D28: 2563900 | E28: 33.57560043 | F28: =SUM(IF('Network Analysis'!$N$18:$N$1756=1,IF('Network Analysis'!$L$18:$L$1756=Comps!F$11,IF('Network Analysis'!$DV$18:$DV$1756=Comps!$B28,'Network Analysis'!$EC$18:$EC$1756)))) -> 0 | G28: =SUM(IF('Network Analysis'!$N$18:$N$1756=1,IF('Network Analysis'!$L$18:$L$1756=Comps!G$11,IF('Network Analysis'!$DV$18:$DV$1756=Comps!$B28,'Network Analysis'!$EC$18:$EC$1756)))) -> 1358040 | H28: =SUM(IF('Network Analysis'!$N$18:$N$1756=1,IF('Network Analysis'!$L$18:$L$1756=Comps!H$11,IF('Network Analysis'!$DV$18:$DV$1756=Comps!$B28,'Network Analysis'!$EC$18:$EC$1756)))) -> 1205820 | I28: =SUM(IF('Network Analysis'!$N$18:$N$1756=1,IF('Network Analysis'!$L$18:$L$1756=Comps!I$11,IF('Network Analysis'!$DV$18:$DV$1756=Comps!$B28,'Network Analysis'!$EC$18:$EC$1756)))) -> 0 | J28: =SUM(IF('Network Analysis'!$N$18:$N$1756=1,IF('Network Analysis'!$L$18:$L$1756=Comps!J$11,IF('Network Analysis'!$DV$18:$DV$1756=Comps!$B28,'Network Analysis'!$EC$18:$EC$1756)))) -> 0 | K28: =SUM(IF('Network Analysis'!$N$18:$N$1756=1,IF('Network Analysis'!$L$18:$L$1756=Comps!K$11,IF('Network Analysis'!$DV$18:$DV$1756=Comps!$B28,'Network Analysis'!$EC$18:$EC$1756)))) -> 0 | L28: =IF(VLOOKUP(B28,'Rehab Activities'!$C$12:$V$40,20)=0,VLOOKUP(B28,Parameters!$C$122:$M$138,11),VLOOKUP(B28,'Rehab Activities'!$C$12:$V$40,20)) -> 29 | M28: 88400
B29: 65 | C29: =VLOOKUP(B29,Parameters!$C$123:$D$138,2) -> Surf Recon + PCC to Base/FWM + Strctrl Ptch + Olay | D29: 0 | E29: 0 | F29: =SUM(IF('Network Analysis'!$N$18:$N$1756=3,IF('Network Analysis'!$L$18:$L$1756=Comps!F$11,IF('Network Analysis'!$DV$18:$DV$1756=Comps!$B29,'Network Analysis'!$EC$18:$EC$1756)))) -> 0 | G29: =SUM(IF('Network Analysis'!$N$18:$N$1756=3,IF('Network Analysis'!$L$18:$L$1756=Comps!G$11,IF('Network Analysis'!$DV$18:$DV$1756=Comps!$B29,'Network Analysis'!$EC$18:$EC$1756)))) -> 0 | H29: =SUM(IF('Network Analysis'!$N$18:$N$1756=3,IF('Network Analysis'!$L$18:$L$1756=Comps!H$11,IF('Network Analysis'!$DV$18:$DV$1756=Comps!$B29,'Network Analysis'!$EC$18:$EC$1756)))) -> 0 | I29: =SUM(IF('Network Analysis'!$N$18:$N$1756=3,IF('Network Analysis'!$L$18:$L$1756=Comps!I$11,IF('Network Analysis'!$DV$18:$DV$1756=Comps!$B29,'Network Analysis'!$EC$18:$EC$1756)))) -> 0 | J29: =SUM(IF('Network Analysis'!$N$18:$N$1756=3,IF('Network Analysis'!$L$18:$L$1756=Comps!J$11,IF('Network Analysis'!$DV$18:$DV$1756=Comps!$B29,'Network Analysis'!$EC$18:$EC$1756)))) -> 0 | K29: =SUM(IF('Network Analysis'!$N$18:$N$1756=3,IF('Network Analysis'!$L$18:$L$1756=Comps!K$11,IF('Network Analysis'!$DV$18:$DV$1756=Comps!$B29,'Network Analysis'!$EC$18:$EC$1756)))) -> 0 | L29: =IF(VLOOKUP(B29,'Rehab Activities'!$C$12:$V$40,20)=0,VLOOKUP(B29,Parameters!$C$122:$M$138,11),VLOOKUP(B29,'Rehab Activities'!$C$12:$V$40,20)) -> 29 | M29: 0
B30: 70 | C30: =VLOOKUP(B30,Parameters!$C$123:$D$138,2) -> ACP Full Recon / FDM+2X Strctrl Ptch+Olay | D30: 0 | E30: 0 | F30: =SUM(IF('Network Analysis'!$N$18:$N$1756=1,IF('Network Analysis'!$L$18:$L$1756=Comps!F$11,IF('Network Analysis'!$DV$18:$DV$1756=Comps!$B30,'Network Analysis'!$EC$18:$EC$1756)))) -> 0 | G30: =SUM(IF('Network Analysis'!$N$18:$N$1756=1,IF('Network Analysis'!$L$18:$L$1756=Comps!G$11,IF('Network Analysis'!$DV$18:$DV$1756=Comps!$B30,'Network Analysis'!$EC$18:$EC$1756)))) -> 0 | H30: =SUM(IF('Network Analysis'!$N$18:$N$1756=1,IF('Network Analysis'!$L$18:$L$1756=Comps!H$11,IF('Network Analysis'!$DV$18:$DV$1756=Comps!$B30,'Network Analysis'!$EC$18:$EC$1756)))) -> 0 | I30: =SUM(IF('Network Analysis'!$N$18:$N$1756=1,IF('Network Analysis'!$L$18:$L$1756=Comps!I$11,IF('Network Analysis'!$DV$18:$DV$1756=Comps!$B30,'Network Analysis'!$EC$18:$EC$1756)))) -> 0 | J30: =SUM(IF('Network Analysis'!$N$18:$N$1756=1,IF('Network Analysis'!$L$18:$L$1756=Comps!J$11,IF('Network Analysis'!$DV$18:$DV$1756=Comps!$B30,'Network Analysis'!$EC$18:$EC$1756)))) -> 0 | K30: =SUM(IF('Network Analysis'!$N$18:$N$1756=1,IF('Network Analysis'!$L$18:$L$1756=Comps!K$11,IF('Network Analysis'!$DV$18:$DV$1756=Comps!$B30,'Network Analysis'!$EC$18:$EC$1756)))) -> 0 | L30: =IF(VLOOKUP(B30,'Rehab Activities'!$C$12:$V$40,20)=0,VLOOKUP(B30,Parameters!$C$122:$M$138,11),VLOOKUP(B30,'Rehab Activities'!$C$12:$V$40,20)) -> 37 | M30: 0
B31: 75 | C31: =VLOOKUP(B31,Parameters!$C$123:$D$138,2) -> Full Depth Recon + PCC to Base | D31: 0 | E31: 0 | F31: =SUM(IF('Network Analysis'!$N$18:$N$1756=3,IF('Network Analysis'!$L$18:$L$1756=Comps!F$11,IF('Network Analysis'!$DV$18:$DV$1756=Comps!$B31,'Network Analysis'!$EC$18:$EC$1756)))) -> 0 | G31: =SUM(IF('Network Analysis'!$N$18:$N$1756=3,IF('Network Analysis'!$L$18:$L$1756=Comps!G$11,IF('Network Analysis'!$DV$18:$DV$1756=Comps!$B31,'Network Analysis'!$EC$18:$EC$1756)))) -> 0 | H31: =SUM(IF('Network Analysis'!$N$18:$N$1756=3,IF('Network Analysis'!$L$18:$L$1756=Comps!H$11,IF('Network Analysis'!$DV$18:$DV$1756=Comps!$B31,'Network Analysis'!$EC$18:$EC$1756)))) -> 0 | I31: =SUM(IF('Network Analysis'!$N$18:$N$1756=3,IF('Network Analysis'!$L$18:$L$1756=Comps!I$11,IF('Network Analysis'!$DV$18:$DV$1756=Comps!$B31,'Network Analysis'!$EC$18:$EC$1756)))) -> 0 | J31: =SUM(IF('Network Analysis'!$N$18:$N$1756=3,IF('Network Analysis'!$L$18:$L$1756=Comps!J$11,IF('Network Analysis'!$DV$18:$DV$1756=Comps!$B31,'Network Analysis'!$EC$18:$EC$1756)))) -> 0 | K31: =SUM(IF('Network Analysis'!$N$18:$N$1756=3,IF('Network Analysis'!$L$18:$L$1756=Comps!K$11,IF('Network Analysis'!$DV$18:$DV$1756=Comps!$B31,'Network Analysis'!$EC$18:$EC$1756)))) -> 0 | L31: =IF(VLOOKUP(B31,'Rehab Activities'!$C$12:$V$40,20)=0,VLOOKUP(B31,Parameters!$C$122:$M$138,11),VLOOKUP(B31,'Rehab Activities'!$C$12:$V$40,20)) -> 37 | M31: 0
C33: Total Asphalt and Composite Network: | D33: =SUM(D15:D31) -> 7636200 | E33: =SUM(E15:E31) -> 100 | F33: =SUM(F15:F31) -> 0 | G33: 1889640 | H33: 5746690 | I33: 0 | J33: 0 | K33: 0 | M33: 364200
B35: 510 | C35: =VLOOKUP(B35,Parameters!$C$123:$D$138,2) -> PCC Jnt Rehab & Crk Seal | D35: =ROUND(SUM(F35:K35),-2) -> 298200 | E35: =D35/$D$47*100 -> 1.013148507 | F35: =SUM(IF('Network Analysis'!$N$18:$N$1756=2,IF('Network Analysis'!$L$18:$L$1756=Comps!F$11,IF('Network Analysis'!$DV$18:$DV$1756=Comps!$B35,'Network Analysis'!$EC$18:$EC$1756)))) -> 28590 | G35: =SUM(IF('Network Analysis'!$N$18:$N$1756=2,IF('Network Analysis'!$L$18:$L$1756=Comps!G$11,IF('Network Analysis'!$DV$18:$DV$1756=Comps!$B35,'Network Analysis'!$EC$18:$EC$1756)))) -> 3480 | H35: =SUM(IF('Network Analysis'!$N$18:$N$1756=2,IF('Network Analysis'!$L$18:$L$1756=Comps!H$11,IF('Network Analysis'!$DV$18:$DV$1756=Comps!$B35,'Network Analysis'!$EC$18:$EC$1756)))) -> 266100 | I35: =SUM(IF('Network Analysis'!$N$18:$N$1756=2,IF('Network Analysis'!$L$18:$L$1756=Comps!I$11,IF('Network Analysis'!$DV$18:$DV$1756=Comps!$B35,'Network Analysis'!$EC$18:$EC$1756)))) -> 0 | J35: =SUM(IF('Network Analysis'!$N$18:$N$1756=2,IF('Network Analysis'!$L$18:$L$1756=Comps!J$11,IF('Network Analysis'!$DV$18:$DV$1756=Comps!$B35,'Network Analysis'!$EC$18:$EC$1756)))) -> 0 | K35: =SUM(IF('Network Analysis'!$N$18:$N$1756=2,IF('Network Analysis'!$L$18:$L$1756=Comps!K$11,IF('Network Analysis'!$DV$18:$DV$1756=Comps!$B35,'Network Analysis'!$EC$18:$EC$1756)))) -> 0 | L35: 1 | M35: =ROUND(D35/L35,-2) -> 298200
B36: 520 | C36: =VLOOKUP(B36,Parameters!$C$123:$D$138,2) -> PCC Localized Rehab | D36: =ROUND(SUM(F36:K36),-2) -> 3610700 | E36: =D36/$D$47*100 -> 12.26752285 | F36: =SUM(IF('Network Analysis'!$N$18:$N$1756=2,IF('Network Analysis'!$L$18:$L$1756=Comps!F$11,IF('Network Analysis'!$DV$18:$DV$1756=Comps!$B36,'Network Analysis'!$EC$18:$EC$1756)))) -> 182910 | G36: =SUM(IF('Network Analysis'!$N$18:$N$1756=2,IF('Network Analysis'!$L$18:$L$1756=Comps!G$11,IF('Network Analysis'!$DV$18:$DV$1756=Comps!$B36,'Network Analysis'!$EC$18:$EC$1756)))) -> 648640 | H36: =SUM(IF('Network Analysis'!$N$18:$N$1756=2,IF('Network Analysis'!$L$18:$L$1756=Comps!H$11,IF('Network Analysis'!$DV$18:$DV$1756=Comps!$B36,'Network Analysis'!$EC$18:$EC$1756)))) -> 2779120 | I36: =SUM(IF('Network Analysis'!$N$18:$N$1756=2,IF('Network Analysis'!$L$18:$L$1756=Comps!I$11,IF('Network Analysis'!$DV$18:$DV$1756=Comps!$B36,'Network Analysis'!$EC$18:$EC$1756)))) -> 0 | J36: =SUM(IF('Network Analysis'!$N$18:$N$1756=2,IF('Network Analysis'!$L$18:$L$1756=Comps!J$11,IF('Network Analysis'!$DV$18:$DV$1756=Comps!$B36,'Network Analysis'!$EC$18:$EC$1756)))) -> 0 | K36: =SUM(IF('Network Analysis'!$N$18:$N$1756=2,IF('Network Analysis'!$L$18:$L$1756=Comps!K$11,IF('Network Analysis'!$DV$18:$DV$1756=Comps!$B36,'Network Analysis'!$EC$18:$EC$1756)))) -> 0 | L36: =IF(VLOOKUP(B36,'Rehab Activities'!$C$12:$V$40,20)=0,VLOOKUP(B36,Parameters!$C$122:$M$138,11),VLOOKUP(B36,'Rehab Activities'!$C$12:$V$40,20)) -> 10 | M36: 361100
B37: 523 | C37: =C36&" + Grind" -> PCC Localized Rehab + Grind | D37: 0 | E37: 0 | F37: =SUM(IF('Network Analysis'!$N$18:$N$1756=2,IF('Network Analysis'!$L$18:$L$1756=Comps!F$11,IF('Network Analysis'!$DV$18:$DV$1756=Comps!$B37,'Network Analysis'!$EC$18:$EC$1756)))) -> 0 | G37: =SUM(IF('Network Analysis'!$N$18:$N$1756=2,IF('Network Analysis'!$L$18:$L$1756=Comps!G$11,IF('Network Analysis'!$DV$18:$DV$1756=Comps!$B37,'Network Analysis'!$EC$18:$EC$1756)))) -> 0 | H37: =SUM(IF('Network Analysis'!$N$18:$N$1756=2,IF('Network Analysis'!$L$18:$L$1756=Comps!H$11,IF('Network Analysis'!$DV$18:$DV$1756=Comps!$B37,'Network Analysis'!$EC$18:$EC$1756)))) -> 0 | I37: =SUM(IF('Network Analysis'!$N$18:$N$1756=2,IF('Network Analysis'!$L$18:$L$1756=Comps!I$11,IF('Network Analysis'!$DV$18:$DV$1756=Comps!$B37,'Network Analysis'!$EC$18:$EC$1756)))) -> 0 | J37: =SUM(IF('Network Analysis'!$N$18:$N$1756=2,IF('Network Analysis'!$L$18:$L$1756=Comps!J$11,IF('Network Analysis'!$DV$18:$DV$1756=Comps!$B37,'Network Analysis'!$EC$18:$EC$1756)))) -> 0 | K37: =SUM(IF('Network Analysis'!$N$18:$N$1756=2,IF('Network Analysis'!$L$18:$L$1756=Comps!K$11,IF('Network Analysis'!$DV$18:$DV$1756=Comps!$B37,'Network Analysis'!$EC$18:$EC$1756)))) -> 0 | L37: =IF(VLOOKUP(B37,'Rehab Activities'!$C$12:$V$40,20)=0,VLOOKUP(B37,Parameters!$C$122:$M$138,11),VLOOKUP(B37,'Rehab Activities'!$C$12:$V$40,20)) -> 10 | M37: 0
B38: 530 | C38: =VLOOKUP(B38,Parameters!$C$123:$D$138,2) -> PCC Slight Pnl Rplcmnt (<10%) | D38: 17546000 | E38: 59.61335915 | F38: =SUM(IF('Network Analysis'!$N$18:$N$1756=2,IF('Network Analysis'!$L$18:$L$1756=Comps!F$11,IF('Network Analysis'!$DV$18:$DV$1756=Comps!$B38,'Network Analysis'!$EC$18:$EC$1756)))) -> 0 | G38: =SUM(IF('Network Analysis'!$N$18:$N$1756=2,IF('Network Analysis'!$L$18:$L$1756=Comps!G$11,IF('Network Analysis'!$DV$18:$DV$1756=Comps!$B38,'Network Analysis'!$EC$18:$EC$1756)))) -> 3258160 | H38: =SUM(IF('Network Analysis'!$N$18:$N$1756=2,IF('Network Analysis'!$L$18:$L$1756=Comps!H$11,IF('Network Analysis'!$DV$18:$DV$1756=Comps!$B38,'Network Analysis'!$EC$18:$EC$1756)))) -> 14287800 | I38: =SUM(IF('Network Analysis'!$N$18:$N$1756=2,IF('Network Analysis'!$L$18:$L$1756=Comps!I$11,IF('Network Analysis'!$DV$18:$DV$1756=Comps!$B38,'Network Analysis'!$EC$18:$EC$1756)))) -> 0 | J38: =SUM(IF('Network Analysis'!$N$18:$N$1756=2,IF('Network Analysis'!$L$18:$L$1756=Comps!J$11,IF('Network Analysis'!$DV$18:$DV$1756=Comps!$B38,'Network Analysis'!$EC$18:$EC$1756)))) -> 0 | K38: =SUM(IF('Network Analysis'!$N$18:$N$1756=2,IF('Network Analysis'!$L$18:$L$1756=Comps!K$11,IF('Network Analysis'!$DV$18:$DV$1756=Comps!$B38,'Network Analysis'!$EC$18:$EC$1756)))) -> 0 | L38: =IF(VLOOKUP(B38,'Rehab Activities'!$C$12:$V$40,20)=0,VLOOKUP(B38,Parameters!$C$122:$M$138,11),VLOOKUP(B38,'Rehab Activities'!$C$12:$V$40,20)) -> 23 | M38: 762900
B39: 533 | C39: =C38&" + Grind" -> PCC Slight Pnl Rplcmnt (<10%) + Grind | D39: 531800 | E39: 1.806815479 | F39: =SUM(IF('Network Analysis'!$N$18:$N$1756=2,IF('Network Analysis'!$L$18:$L$1756=Comps!F$11,IF('Network Analysis'!$DV$18:$DV$1756=Comps!$B39,'Network Analysis'!$EC$18:$EC$1756)))) -> 0 | G39: =SUM(IF('Network Analysis'!$N$18:$N$1756=2,IF('Network Analysis'!$L$18:$L$1756=Comps!G$11,IF('Network Analysis'!$DV$18:$DV$1756=Comps!$B39,'Network Analysis'!$EC$18:$EC$1756)))) -> 0 | H39: =SUM(IF('Network Analysis'!$N$18:$N$1756=2,IF('Network Analysis'!$L$18:$L$1756=Comps!H$11,IF('Network Analysis'!$DV$18:$DV$1756=Comps!$B39,'Network Analysis'!$EC$18:$EC$1756)))) -> 531830 | I39: =SUM(IF('Network Analysis'!$N$18:$N$1756=2,IF('Network Analysis'!$L$18:$L$1756=Comps!I$11,IF('Network Analysis'!$DV$18:$DV$1756=Comps!$B39,'Network Analysis'!$EC$18:$EC$1756)))) -> 0 | J39: =SUM(IF('Network Analysis'!$N$18:$N$1756=2,IF('Network Analysis'!$L$18:$L$1756=Comps!J$11,IF('Network Analysis'!$DV$18:$DV$1756=Comps!$B39,'Network Analysis'!$EC$18:$EC$1756)))) -> 0 | K39: =SUM(IF('Network Analysis'!$N$18:$N$1756=2,IF('Network Analysis'!$L$18:$L$1756=Comps!K$11,IF('Network Analysis'!$DV$18:$DV$1756=Comps!$B39,'Network Analysis'!$EC$18:$EC$1756)))) -> 0 | L39: =IF(VLOOKUP(B39,'Rehab Activities'!$C$12:$V$40,20)=0,VLOOKUP(B39,Parameters!$C$122:$M$138,11),VLOOKUP(B39,'Rehab Activities'!$C$12:$V$40,20)) -> 23 | M39: 23100
B40: 540 | C40: =VLOOKUP(B40,Parameters!$C$123:$D$138,2) -> PCC Moderate Pnl Rplcmnt (< 20%) | D40: 5342900 | E40: 18.15275371 | F40: =SUM(IF('Network Analysis'!$N$18:$N$1756=2,IF('Network Analysis'!$L$18:$L$1756=Comps!F$11,IF('Network Analysis'!$DV$18:$DV$1756=Comps!$B40,'Network Analysis'!$EC$18:$EC$1756)))) -> 0 | G40: =SUM(IF('Network Analysis'!$N$18:$N$1756=2,IF('Network Analysis'!$L$18:$L$1756=Comps!G$11,IF('Network Analysis'!$DV$18:$DV$1756=Comps!$B40,'Network Analysis'!$EC$18:$EC$1756)))) -> 2152200 | H40: =SUM(IF('Network Analysis'!$N$18:$N$1756=2,IF('Network Analysis'!$L$18:$L$1756=Comps!H$11,IF('Network Analysis'!$DV$18:$DV$1756=Comps!$B40,'Network Analysis'!$EC$18:$EC$1756)))) -> 3190690 | I40: =SUM(IF('Network Analysis'!$N$18:$N$1756=2,IF('Network Analysis'!$L$18:$L$1756=Comps!I$11,IF('Network Analysis'!$DV$18:$DV$1756=Comps!$B40,'Network Analysis'!$EC$18:$EC$1756)))) -> 0 | J40: =SUM(IF('Network Analysis'!$N$18:$N$1756=2,IF('Network Analysis'!$L$18:$L$1756=Comps!J$11,IF('Network Analysis'!$DV$18:$DV$1756=Comps!$B40,'Network Analysis'!$EC$18:$EC$1756)))) -> 0 | K40: =SUM(IF('Network Analysis'!$N$18:$N$1756=2,IF('Network Analysis'!$L$18:$L$1756=Comps!K$11,IF('Network Analysis'!$DV$18:$DV$1756=Comps!$B40,'Network Analysis'!$EC$18:$EC$1756)))) -> 0 | L40: =IF(VLOOKUP(B40,'Rehab Activities'!$C$12:$V$40,20)=0,VLOOKUP(B40,Parameters!$C$122:$M$138,11),VLOOKUP(B40,'Rehab Activities'!$C$12:$V$40,20)) -> 31 | M40: 172400
B41: 543 | C41: =C40&" + Grind" -> PCC Moderate Pnl Rplcmnt (< 20%) + Grind | D41: 1490900 | E41: 5.065402779 | F41: =SUM(IF('Network Analysis'!$N$18:$N$1756=2,IF('Network Analysis'!$L$18:$L$1756=Comps!F$11,IF('Network Analysis'!$DV$18:$DV$1756=Comps!$B41,'Network Analysis'!$EC$18:$EC$1756)))) -> 0 | G41: =SUM(IF('Network Analysis'!$N$18:$N$1756=2,IF('Network Analysis'!$L$18:$L$1756=Comps!G$11,IF('Network Analysis'!$DV$18:$DV$1756=Comps!$B41,'Network Analysis'!$EC$18:$EC$1756)))) -> 0 | H41: =SUM(IF('Network Analysis'!$N$18:$N$1756=2,IF('Network Analysis'!$L$18:$L$1756=Comps!H$11,IF('Network Analysis'!$DV$18:$DV$1756=Comps!$B41,'Network Analysis'!$EC$18:$EC$1756)))) -> 1490940 | I41: =SUM(IF('Network Analysis'!$N$18:$N$1756=2,IF('Network Analysis'!$L$18:$L$1756=Comps!I$11,IF('Network Analysis'!$DV$18:$DV$1756=Comps!$B41,'Network Analysis'!$EC$18:$EC$1756)))) -> 0 | J41: =SUM(IF('Network Analysis'!$N$18:$N$1756=2,IF('Network Analysis'!$L$18:$L$1756=Comps!J$11,IF('Network Analysis'!$DV$18:$DV$1756=Comps!$B41,'Network Analysis'!$EC$18:$EC$1756)))) -> 0 | K41: =SUM(IF('Network Analysis'!$N$18:$N$1756=2,IF('Network Analysis'!$L$18:$L$1756=Comps!K$11,IF('Network Analysis'!$DV$18:$DV$1756=Comps!$B41,'Network Analysis'!$EC$18:$EC$1756)))) -> 0 | L41: =IF(VLOOKUP(B41,'Rehab Activities'!$C$12:$V$40,20)=0,VLOOKUP(B41,Parameters!$C$122:$M$138,11),VLOOKUP(B41,'Rehab Activities'!$C$12:$V$40,20)) -> 31 | M41: 48100
B42: 550 | C42: =VLOOKUP(B42,Parameters!$C$123:$D$138,2) -> PCC Extensive Pnl Rplcmnt (<33%) | D42: 377300 | E42: 1.281894472 | F42: =SUM(IF('Network Analysis'!$N$18:$N$1756=2,IF('Network Analysis'!$L$18:$L$1756=Comps!F$11,IF('Network Analysis'!$DV$18:$DV$1756=Comps!$B42,'Network Analysis'!$EC$18:$EC$1756)))) -> 0 | G42: =SUM(IF('Network Analysis'!$N$18:$N$1756=2,IF('Network Analysis'!$L$18:$L$1756=Comps!G$11,IF('Network Analysis'!$DV$18:$DV$1756=Comps!$B42,'Network Analysis'!$EC$18:$EC$1756)))) -> 377280 | H42: =SUM(IF('Network Analysis'!$N$18:$N$1756=2,IF('Network Analysis'!$L$18:$L$1756=Comps!H$11,IF('Network Analysis'!$DV$18:$DV$1756=Comps!$B42,'Network Analysis'!$EC$18:$EC$1756)))) -> 0 | I42: =SUM(IF('Network Analysis'!$N$18:$N$1756=2,IF('Network Analysis'!$L$18:$L$1756=Comps!I$11,IF('Network Analysis'!$DV$18:$DV$1756=Comps!$B42,'Network Analysis'!$EC$18:$EC$1756)))) -> 0 | J42: =SUM(IF('Network Analysis'!$N$18:$N$1756=2,IF('Network Analysis'!$L$18:$L$1756=Comps!J$11,IF('Network Analysis'!$DV$18:$DV$1756=Comps!$B42,'Network Analysis'!$EC$18:$EC$1756)))) -> 0 | K42: =SUM(IF('Network Analysis'!$N$18:$N$1756=2,IF('Network Analysis'!$L$18:$L$1756=Comps!K$11,IF('Network Analysis'!$DV$18:$DV$1756=Comps!$B42,'Network Analysis'!$EC$18:$EC$1756)))) -> 0 | L42: =IF(VLOOKUP(B42,'Rehab Activities'!$C$12:$V$40,20)=0,VLOOKUP(B42,Parameters!$C$122:$M$138,11),VLOOKUP(B42,'Rehab Activities'!$C$12:$V$40,20)) -> 41 | M42: 9200
B43: 553 | C43: =C42&" + Grind" -> PCC Extensive Pnl Rplcmnt (<33%) + Grind | D43: 117700 | E43: 0.3998912785 | F43: =SUM(IF('Network Analysis'!$N$18:$N$1756=2,IF('Network Analysis'!$L$18:$L$1756=Comps!F$11,IF('Network Analysis'!$DV$18:$DV$1756=Comps!$B43,'Network Analysis'!$EC$18:$EC$1756)))) -> 0 | G43: =SUM(IF('Network Analysis'!$N$18:$N$1756=2,IF('Network Analysis'!$L$18:$L$1756=Comps!G$11,IF('Network Analysis'!$DV$18:$DV$1756=Comps!$B43,'Network Analysis'!$EC$18:$EC$1756)))) -> 0 | H43: =SUM(IF('Network Analysis'!$N$18:$N$1756=2,IF('Network Analysis'!$L$18:$L$1756=Comps!H$11,IF('Network Analysis'!$DV$18:$DV$1756=Comps!$B43,'Network Analysis'!$EC$18:$EC$1756)))) -> 117720 | I43: =SUM(IF('Network Analysis'!$N$18:$N$1756=2,IF('Network Analysis'!$L$18:$L$1756=Comps!I$11,IF('Network Analysis'!$DV$18:$DV$1756=Comps!$B43,'Network Analysis'!$EC$18:$EC$1756)))) -> 0 | J43: =SUM(IF('Network Analysis'!$N$18:$N$1756=2,IF('Network Analysis'!$L$18:$L$1756=Comps!J$11,IF('Network Analysis'!$DV$18:$DV$1756=Comps!$B43,'Network Analysis'!$EC$18:$EC$1756)))) -> 0 | K43: =SUM(IF('Network Analysis'!$N$18:$N$1756=2,IF('Network Analysis'!$L$18:$L$1756=Comps!K$11,IF('Network Analysis'!$DV$18:$DV$1756=Comps!$B43,'Network Analysis'!$EC$18:$EC$1756)))) -> 0 | L43: =IF(VLOOKUP(B43,'Rehab Activities'!$C$12:$V$40,20)=0,VLOOKUP(B43,Parameters!$C$122:$M$138,11),VLOOKUP(B43,'Rehab Activities'!$C$12:$V$40,20)) -> 41 | M43: 2900
B44: 560 | C44: =VLOOKUP(B44,Parameters!$C$123:$D$138,2) -> PCC Partial Reconstruction | D44: 117500 | E44: 0.3992117691 | F44: =SUM(IF('Network Analysis'!$N$18:$N$1756=2,IF('Network Analysis'!$L$18:$L$1756=Comps!F$11,IF('Network Analysis'!$DV$18:$DV$1756=Comps!$B44,'Network Analysis'!$EC$18:$EC$1756)))) -> 0 | G44: =SUM(IF('Network Analysis'!$N$18:$N$1756=2,IF('Network Analysis'!$L$18:$L$1756=Comps!G$11,IF('Network Analysis'!$DV$18:$DV$1756=Comps!$B44,'Network Analysis'!$EC$18:$EC$1756)))) -> 0 | H44: =SUM(IF('Network Analysis'!$N$18:$N$1756=2,IF('Network Analysis'!$L$18:$L$1756=Comps!H$11,IF('Network Analysis'!$DV$18:$DV$1756=Comps!$B44,'Network Analysis'!$EC$18:$EC$1756)))) -> 117510 | I44: =SUM(IF('Network Analysis'!$N$18:$N$1756=2,IF('Network Analysis'!$L$18:$L$1756=Comps!I$11,IF('Network Analysis'!$DV$18:$DV$1756=Comps!$B44,'Network Analysis'!$EC$18:$EC$1756)))) -> 0 | J44: =SUM(IF('Network Analysis'!$N$18:$N$1756=2,IF('Network Analysis'!$L$18:$L$1756=Comps!J$11,IF('Network Analysis'!$DV$18:$DV$1756=Comps!$B44,'Network Analysis'!$EC$18:$EC$1756)))) -> 0 | K44: =SUM(IF('Network Analysis'!$N$18:$N$1756=2,IF('Network Analysis'!$L$18:$L$1756=Comps!K$11,IF('Network Analysis'!$DV$18:$DV$1756=Comps!$B44,'Network Analysis'!$EC$18:$EC$1756)))) -> 0 | L44: =IF(VLOOKUP(B44,'Rehab Activities'!$C$12:$V$40,20)=0,VLOOKUP(B44,Parameters!$C$122:$M$138,11),VLOOKUP(B44,'Rehab Activities'!$C$12:$V$40,20)) -> 51 | M44: 2300
B45: 570 | C45: =VLOOKUP(B45,Parameters!$C$123:$D$138,2) -> PCC Full Depth Reconstruction | D45: 0 | E45: 0 | F45: =SUM(IF('Network Analysis'!$N$18:$N$1756=2,IF('Network Analysis'!$L$18:$L$1756=Comps!F$11,IF('Network Analysis'!$DV$18:$DV$1756=Comps!$B45,'Network Analysis'!$EC$18:$EC$1756)))) -> 0 | G45: =SUM(IF('Network Analysis'!$N$18:$N$1756=2,IF('Network Analysis'!$L$18:$L$1756=Comps!G$11,IF('Network Analysis'!$DV$18:$DV$1756=Comps!$B45,'Network Analysis'!$EC$18:$EC$1756)))) -> 0 | H45: =SUM(IF('Network Analysis'!$N$18:$N$1756=2,IF('Network Analysis'!$L$18:$L$1756=Comps!H$11,IF('Network Analysis'!$DV$18:$DV$1756=Comps!$B45,'Network Analysis'!$EC$18:$EC$1756)))) -> 0 | I45: =SUM(IF('Network Analysis'!$N$18:$N$1756=2,IF('Network Analysis'!$L$18:$L$1756=Comps!I$11,IF('Network Analysis'!$DV$18:$DV$1756=Comps!$B45,'Network Analysis'!$EC$18:$EC$1756)))) -> 0 | J45: =SUM(IF('Network Analysis'!$N$18:$N$1756=2,IF('Network Analysis'!$L$18:$L$1756=Comps!J$11,IF('Network Analysis'!$DV$18:$DV$1756=Comps!$B45,'Network Analysis'!$EC$18:$EC$1756)))) -> 0 | K45: =SUM(IF('Network Analysis'!$N$18:$N$1756=2,IF('Network Analysis'!$L$18:$L$1756=Comps!K$11,IF('Network Analysis'!$DV$18:$DV$1756=Comps!$B45,'Network Analysis'!$EC$18:$EC$1756)))) -> 0 | L45: =IF(VLOOKUP(B45,'Rehab Activities'!$C$12:$V$40,20)=0,VLOOKUP(B45,Parameters!$C$122:$M$138,11),VLOOKUP(B45,'Rehab Activities'!$C$12:$V$40,20)) -> 65 | M45: 0
C47: Total Concrete Network: | D47: =SUM(D35:D45) -> 29433000 | E47: 100 | F47: 211500 | G47: 6439760 | H47: 22781710 | I47: 0 | J47: 0 | M47: =SUM(M35:M45) -> 1680200
C49: =Parameters!C10&" Network Totals:" -> City of Friendswood, TX Network Totals: | D49: =D33+D47 -> 37069200 | F49: =F33+F47 -> 211500 | G49: 8329400 | H49: 28528400 | I49: 0 | J49: 0 | K49: 0 | M49: 2044400
O53: Rehabilitation Estimate Based on Network Valuation
O55: Pavement Type | P55: Network Valuation ($) | Q55: Ultimate Life Span (yrs) | R55: Life Cycle Cost ($/Yr)
O57: Asphalt Network | P57: ='Plot Calcs'!AN330 -> 21223000 | Q57: 75 | R57: =ROUND(P57/Q57,-3) -> 283000
O58: Concrete Network | P58: ='Plot Calcs'!AN331 -> 224932000 | Q58: 100 | R58: =ROUND(P58/Q58,-3) -> 2249000
O59: Composite Network | P59: ='Plot Calcs'!AN332 -> 0 | Q59: =IF(P59=0,0,Q57) -> 0 | R59: =IF(P59=0,0,ROUND(P59/Q59,-3)) -> 0
O61: =C49 -> City of Friendswood, TX Network Totals: | P61: =SUM(P57:P58) -> 246155000 | R61: =SUM(R57:R59) -> 2532000
T64: Rehabilitation Estimate Based on Network Average Condition
T66: Pavement Type | U66: Pavement Condition Index (PCI) | V66: Rehab Zone | W66: Rehab Code | X66: Rehab Activity | Y66: Average Rehab Life Cycle (Yrs) | Z66: Miles to do Each Year | AA66: Blended Unit Rate ($/yd2) | AB66: Average Cost/Mile | AC66: Life Cycle Cost ($/Yr)
T68: Asphalt Network | U68: =Summary!D63 -> 48.8892779 | V68: =VLOOKUP(U68,Parameters!$J$60:$K$68,2) -> 3 | W68: =INDEX(Parameters!$C$147:$J$149,2,V68) -> 50 | X68: =IF(U68>0,VLOOKUP(W68,Parameters!$C$122:$E$138,2)," ") -> FWM + Thick Overlay (> 2.0 - 3.0) | Y68: =IF(U68>0,VLOOKUP(W68,'Rehab Activities'!$C$12:$V$40,20)," ") -> 23 | Z68: =IF(U68>0,1/Y68*Summary!D23," ") -> 1.154881917 | AA68: =IF(U68>0,VLOOKUP(W68,'Rehab Activities'!$C$12:$AK$40,35)," ") -> 18.73376234 | AB68: =IF(U68>0,ROUND(5280*Summary!D28/9*AA68,-2)," ") -> 257400 | AC68: =IF(U68>0,AB68*Z68,0) -> 297266.6054
T69: Concrete Network | U69: =Summary!D64 -> 70.11633249 | V69: =VLOOKUP(U69,Parameters!$J$60:$K$68,2) -> 6 | W69: =INDEX(Parameters!$C$150:$J$151,2,V69) -> 523 | X69: =IF(U69>0,VLOOKUP(W69,Parameters!$C$122:$E$138,2)," ") -> PCC Localized Rehab | Y69: =IF(U69>0,VLOOKUP(W69,'Rehab Activities'!$C$12:$V$40,20)," ") -> 10 | Z69: =IF(U69>0,1/Y69*Summary!D24," ") -> 14.84952197 | AA69: =IF(U69>0,VLOOKUP(W69,'Rehab Activities'!$C$12:$AK$40,35)," ") -> 7.284111489 | AB69: =IF(U69>0,ROUND(5280*Summary!D29/9*AA69,-2)," ") -> 123500 | AC69: =IF(U69>0,AB69*Z69,0) -> 1833915.963
T70: Composite Network | U70: =IF(Summary!$D$65>0,Summary!D70," ") ->  | X70: =IF(Summary!$D$65>0,VLOOKUP(W70,Parameters!$C$122:$E$138,2)," ") ->  | Y70: =IF(Summary!$D$65>0,VLOOKUP(W70,'Rehab Activities'!$C$12:$V$40,20)," ") ->  | Z70: =IF(Summary!$D$65>0,1/Y70*Summary!D25," ") ->  | AA70: =IF(Summary!$D$65>0,VLOOKUP(W70,'Rehab Activities'!$C$12:$AK$40,35)," ") ->  | AB70: =IF(Summary!$D$65>0,ROUND(5280*Summary!D30/9*AA70,-2)," ") ->  | AC70: =IF(Summary!$D$65>0,AB70*Z70,0) -> 0
T72: =C49 -> City of Friendswood, TX Network Totals: | AC72: =SUM(AC68:AC70) -> 2131182.569

Sheet Equity Removal
N2: =Parameters!M3 -> Copyright © 2019 IMS Infrastructure Management Services. All Rights Reserved.
C5: =Parameters!C10 -> City of Friendswood, TX
C6: Equity Removal Summary
C8: Starting PCI: | D8: ='Analysis Results'!K15 -> 67.34579754
C9: Fix All PCI: | D9: ='Analysis Results'!K115 -> 83.03337874 | E9: 5 year post rehab PCI from Fix All budget
C10: PCI Increase: | D10: =D9-D8 -> 15.6875812 | E10: Fix All PCI less starting PCI
C11: Fix All Cost ($): | D11: =ROUND(SUM('Analysis Results'!G111:G115),-3) -> 38975000 | E11: 5 year fix all cost from Fix All budget
C12: Cost Per Point Increase ($/pt) | D12: =ROUND(D11/D10,-3) -> 2484000 | E12: Fix all cost / PCI increase
C14: Equity Removal Based On PCI Restoration | N14: For PCI Controlled Agencies
C16: Model: | D16: Do Nothing | E16: ='Analysis Results'!O16 -> $300k Annual | F16: ='Analysis Results'!O17 -> $600k Annual | G16: ='Analysis Results'!O18 -> $900k Annual | H16: ='Analysis Results'!O19 -> $1200k Annual | I16: ='Analysis Results'!O20 -> $1500k Annual | J16: ='Analysis Results'!O21 -> $1800k Annual | K16: ='Analysis Results'!O22 -> $2100k Annual | L16: ='Analysis Results'!O23 -> $2400k Annual | M16: ='Analysis Results'!O24 -> $2700k Annual | N16: Steady State
C17: Annual Budget ($k/Year): | D17: ='Analysis Results'!P15 -> 0 | E17: =IF('Analysis Results'!$P$16>=$N$17,0,'Analysis Results'!$P$16) -> 300 | F17: =IF('Analysis Results'!$P$17>=$N$17,0,'Analysis Results'!$P$17) -> 600 | G17: =IF('Analysis Results'!$P$18>=$N$17,0,'Analysis Results'!$P$18) -> 900 | H17: =IF('Analysis Results'!$P$19>=$N$17,0,'Analysis Results'!$P$19) -> 1200 | I17: =IF('Analysis Results'!$P$20>=$N$17,0,'Analysis Results'!$P$20) -> 1500 | J17: =IF('Analysis Results'!$P$21>=$N$17,0,'Analysis Results'!$P$21) -> 0 | K17: =IF('Analysis Results'!$P$22>=$N$17,0,'Analysis Results'!$P$22) -> 0 | L17: =IF('Analysis Results'!$P$23>=$N$17,0,'Analysis Results'!$P$23) -> 0 | M17: =IF('Analysis Results'!$P$24>=$N$17,0,'Analysis Results'!$P$24) -> 0 | N17: ='Analysis Results'!D150 -> 1800
C19: Starting PCI | D19: =D8 -> 67.34579754 | E19: =$D$19 -> 67.34579754 | F19: 67.34579754 | G19: 67.34579754 | H19: 67.34579754 | I19: 67.34579754 | J19: 67.34579754 | K19: 67.34579754 | L19: 67.34579754 | M19: 67.34579754 | N19: 67.34579754
C20: Final PCI | D20: ='Analysis Results'!Q15 -> 60.49406521 | E20: ='Analysis Results'!Q16 -> 61.83662586 | F20: ='Analysis Results'!Q17 -> 62.97427301 | G20: ='Analysis Results'!Q18 -> 64.2374333 | H20: ='Analysis Results'!Q19 -> 65.48879051 | I20: ='Analysis Results'!Q20 -> 66.58694108 | J20: ='Analysis Results'!Q21 -> 67.35809265 | K20: ='Analysis Results'!Q22 -> 68.10762804 | L20: ='Analysis Results'!Q23 -> 68.81513087 | M20: ='Analysis Results'!Q24 -> 69.58541358 | N20: =N19 -> 67.34579754
C21: PCI Drop: | D21: =IF(D19-D20<0,0,D19-D20) -> 6.85173233 | E21: =IF(E19-E20<0,0,E19-E20) -> 5.509171676 | F21: 4.371524523 | G21: 3.108364238 | H21: 1.857007026 | I21: 0.7588564534 | J21: 0 | K21: 0 | L21: 0 | M21: 0 | N21: 0
C23: Cost to Replace Equity ($): | D23: =ROUND(D21*$D$12,-3) -> 17020000 | E23: =IF(E17>0,ROUND(E21*$D$12,-3),0) -> 13685000 | F23: =IF(F17>0,ROUND(F21*$D$12,-3),0) -> 10859000 | G23: 7721000 | H23: 4613000 | I23: 1885000 | J23: 0 | K23: 0 | L23: 0 | M23: 0 | N23: =ROUND(N21*$D$12,-3) -> 0
C24: 5 Year Budget Expenditure ($): | D24: =5*D17*1000 -> 0 | E24: =IF(E17>0,(5*E17*1000),0) -> 1500000 | F24: =IF(F17>0,(5*F17*1000),0) -> 3000000 | G24: 4500000 | H24: 6000000 | I24: 7500000 | J24: 0 | K24: 0 | L24: 0 | M24: 0 | N24: =5*N17*1000 -> 9000000
C26: Total 5 Year Cost ($): | D26: =D23+D24 -> 17020000 | E26: =E23+E24 -> 15185000 | F26: 13859000 | G26: 12221000 | H26: 10613000 | I26: 9385000 | J26: 0 | K26: 0 | L26: 0 | M26: 0 | N26: 9000000
C27: Cost Over Steady State Budget ($): | D27: =IF(D23>0,D26-$N$26,0) -> 8020000 | E27: 6185000 | F27: 4859000 | G27: 3221000 | H27: 1613000 | I27: 385000 | J27: 0 | K27: 0 | L27: 0 | M27: 0 | N27: 0
C29: Additional Annual Cost Over Steady State ($/year): | D29: =ROUND(D27/5,-2) -> 1604000 | E29: =ROUND(E27/5,-2) -> 1237000 | F29: 971800 | G29: 644200 | H29: 322600 | I29: 77000 | J29: 0 | K29: 0 | L29: 0 | M29: 0 | N29: 0

Sheet Selections
AH2: =Parameters!M3 -> Copyright © 2019 IMS Infrastructure Management Services. All Rights Reserved.
B4: =Parameters!C10 -> City of Friendswood, TX | J4: Rehabilitation Analysis Selection Summary For Budget Listed in NETWORK ANALYSIS
B6: Budget = | C6: ='Network Analysis'!IK7 -> 1800000 | D6: $/Year
B7: % Surface Treatment = | D7: ='Network Analysis'!IU3 -> 0
E8: Fix All & Life Cycle Estimate | J8: Year 1 | K8: ='Network Analysis'!IM8 -> 2018 | O8: Year 2 | P8: ='Network Analysis'!IM9 -> 2019 | T8: Year 3 | U8: ='Network Analysis'!IM10 -> 2020 | Y8: Year 4 | Z8: ='Network Analysis'!IM11 -> 2021 | AD8: Year 5 | AE8: ='Network Analysis'!IM12 -> 2022
B9: Pavetype | C9: Rehab | D9: Rehab Activity | E9: Segment Count | F9: ="Length ("&Parameters!$I$11&")" -> Length (mi) | G9: Fix All Deficiency Cost ($) | H9: Steady State Life Cycle (Yrs) | I9: Annual Life Cycle Cost Estimate ($/yr) | J9: Critical Segments (In Need Year) | K9: Non-Critical Segments (Can be Deferred) | L9: Selected Segments | M9: ="Length ("&Parameters!$I$11&")" -> Length (mi) | N9: Cost ($) | O9: Critical Segments (In Need Year) | P9: Non-Critical Segments (Can be Deferred) | Q9: Selected Segments | R9: ="Length ("&Parameters!$I$11&")" -> Length (mi) | S9: Cost ($) | T9: Critical Segments (In Need Year) | U9: Non-Critical Segments (Can be Deferred) | V9: Selected Segments | W9: ="Length ("&Parameters!$I$11&")" -> Length (mi) | X9: Cost ($) | Y9: Critical Segments (In Need Year) | Z9: Non-Critical Segments (Can be Deferred) | AA9: Selected Segments | AB9: ="Length ("&Parameters!$I$11&")" -> Length (mi) | AC9: Cost ($) | AD9: Critical Segments (In Need Year) | AE9: Non-Critical Segments (Can be Deferred) | AF9: Selected Segments | AG9: ="Length ("&Parameters!$I$11&")" -> Length (mi) | AH9: Cost ($)
B11: Asphalt | C11: ='Rehab Activities'!C12 -> 5 | D11: =VLOOKUP(C11,'Rehab Activities'!$C$12:$D$40,2) -> Routine Maintenance | E11: =COUNT(IF(Project_Filter=1,IF('Network Analysis'!$DV$18:$DV$1756='Selections '!$C11,'Network Analysis'!$Q$18:$Q$1756))) -> 149 | F11: =SUM(IF('Network Analysis'!$DV$18:$DV$1756='Selections '!$C11,'Network Analysis'!$CV$18:$CV$1756))/Parameters!$I$9 -> 11.37723674 | G11: =SUM(IF('Network Analysis'!$DV$18:$DV$1756='Selections '!C11,'Network Analysis'!$EC$18:$EC$1756)) -> 2180 | H11: =IF(VLOOKUP(C11,'Rehab Activities'!$C$12:$V$40,20)=0,VLOOKUP(C11,'Rehab Activities'!$C$12:$V$40,11),VLOOKUP(C11,'Rehab Activities'!$C$12:$V$40,20)) -> 1 | I11: =ROUND(G11/H11,-2) -> 2200 | J11: =COUNT(IF(Project_Filter=1,(IF('Network Analysis'!EQ$18:EQ$1756<>2,IF('Network Analysis'!EO$18:EO$1756=$C11,'Network Analysis'!$Q$18:$Q$1756))))) -> 0 | K11: =COUNT(IF(Project_Filter=1,(IF('Network Analysis'!EQ$18:EQ$1756=2,IF('Network Analysis'!EO$18:EO$1756=$C11,'Network Analysis'!$Q$18:$Q$1756))))) -> 145 | L11: =SUM(IF('Network Analysis'!$EO$18:$EO$1756='Selections '!$C11,'Network Analysis'!$EY$18:$EY$1756)) -> 0 | M11: =SUM(IF('Network Analysis'!$EY$18:$EY$1756=1,IF('Network Analysis'!$EO$18:$EO$1756=$C11,'Network Analysis'!$CV$18:$CV$1756)))/Parameters!$I$9 -> 0 | N11: =SUM(IF('Network Analysis'!$EO$18:$EO$1756='Selections '!C11,'Network Analysis'!$EZ$18:$EZ$1756)) -> 0 | O11: =COUNT(IF(Project_Filter=1,(IF('Network Analysis'!FJ$18:FJ$1756<>2,IF('Network Analysis'!FH$18:FH$1756=$C11,'Network Analysis'!$CV$18:$CV$1756))))) -> 0 | P11: =COUNT(IF(Project_Filter=1,(IF('Network Analysis'!FJ$18:FJ$1756=2,IF('Network Analysis'!FH$18:FH$1756=$C11,'Network Analysis'!$CV$18:$CV$1756))))) -> 123 | Q11: =SUM(IF('Network Analysis'!$FH$18:$FH$1756='Selections '!$C11,'Network Analysis'!$FR$18:$FR$1756)) -> 0 | R11: =SUM(IF('Network Analysis'!$FR$18:$FR$1756=1,IF('Network Analysis'!$FH$18:$FH$1756=$C11,'Network Analysis'!$CV$18:$CV$1756)))/Parameters!$I$9 -> 0 | S11: =SUM(IF('Network Analysis'!FR$18:FR$1756=1,IF('Network Analysis'!FH$18:FH$1756=$C11,'Network Analysis'!FP$18:FP$1756))) -> 0 | T11: =COUNT(IF(Project_Filter=1,(IF('Network Analysis'!GC$18:GC$1756<>2,IF('Network Analysis'!GA$18:GA$1756=$C11,'Network Analysis'!$CV$18:$CV$1756))))) -> 0 | U11: =COUNT(IF(Project_Filter=1,(IF('Network Analysis'!GC$18:GC$1756=2,IF('Network Analysis'!GA$18:GA$1756=$C11,'Network Analysis'!$CV$18:$CV$1756))))) -> 117 | V11: =COUNT(IF('Network Analysis'!GK$18:GK$1756=1,IF('Network Analysis'!GA$18:GA$1756=$C11,'Network Analysis'!$CV$18:$CV$1756))) -> 0 | W11: =SUM(IF('Network Analysis'!$GK$18:$GK$1756=1,IF('Network Analysis'!$GA$18:$GA$1756=$C11,'Network Analysis'!$CV$18:$CV$1756)))/Parameters!$I$9 -> 0 | X11: =SUM(IF('Network Analysis'!GK$18:GK$1756=1,IF('Network Analysis'!GA$18:GA$1756=$C11,'Network Analysis'!GI$18:GI$1756))) -> 0 | Y11: =COUNT(IF(Project_Filter=1,(IF('Network Analysis'!GV$18:GV$1756<>2,IF('Network Analysis'!GT$18:GT$1756=$C11,'Network Analysis'!$CV$18:$CV$1756))))) -> 0 | Z11: =COUNT(IF(Project_Filter=1,(IF('Network Analysis'!GV$18:GV$1756=2,IF('Network Analysis'!GT$18:GT$1756=$C11,'Network Analysis'!$CV$18:$CV$1756))))) -> 152 | AA11: =COUNT(IF('Network Analysis'!HD$18:HD$1756=1,IF('Network Analysis'!GT$18:GT$1756=$C11,'Network Analysis'!$CV$18:$CV$1756))) -> 0 | AB11: =SUM(IF('Network Analysis'!$HD$18:$HD$1756=1,IF('Network Analysis'!$GT$18:$GT$1756=$C11,'Network Analysis'!$CV$18:$CV$1756)))/Parameters!$I$9 -> 0 | AC11: =SUM(IF('Network Analysis'!HD$18:HD$1756=1,IF('Network Analysis'!GT$18:GT$1756=$C11,'Network Analysis'!HB$18:HB$1756))) -> 0 | AD11: =COUNT(IF(Project_Filter=1,(IF('Network Analysis'!HO$18:HO$1756<>2,IF('Network Analysis'!HM$18:HM$1756=$C11,'Network Analysis'!$CV$18:$CV$1756))))) -> 2 | AE11: =COUNT(IF(Project_Filter=1,(IF('Network Analysis'!HO$18:HO$1756=2,IF('Network Analysis'!HM$18:HM$1756=$C11,'Network Analysis'!$CV$18:$CV$1756))))) -> 182 | AF11: =COUNT(IF('Network Analysis'!HW$18:HW$1756=1,IF('Network Analysis'!HM$18:HM$1756=$C11,'Network Analysis'!$CV$18:$CV$1756))) -> 0 | AG11: =SUM(IF('Network Analysis'!$HW$18:$HW$1756=1,IF('Network Analysis'!$HM$18:$HM$1756=$C11,'Network Analysis'!$CV$18:$CV$1756)))/Parameters!$I$9 -> 0 | AH11: =SUM(IF('Network Analysis'!HW$18:HW$1756=1,IF('Network Analysis'!HM$18:HM$1756=$C11,'Network Analysis'!HU$18:HU$1756))) -> 0
B12: Asphalt | C12: ='Rehab Activities'!C13 -> 10 | D12: =VLOOKUP(C12,'Rehab Activities'!$C$12:$D$40,2) -> Slurry Seal / Prvnttve Mntnnce | E12: =COUNT(IF(Project_Filter=1,IF('Network Analysis'!$DV$18:$DV$1756='Selections '!$C12,'Network Analysis'!$Q$18:$Q$1756))) -> 0 | F12: =SUM(IF('Network Analysis'!$DV$18:$DV$1756='Selections '!$C12,'Network Analysis'!$CV$18:$CV$1756))/Parameters!$I$9 -> 0 | G12: =SUM(IF('Network Analysis'!$DV$18:$DV$1756='Selections '!C12,'Network Analysis'!$EC$18:$EC$1756)) -> 0 | H12: =IF(VLOOKUP(C12,'Rehab Activities'!$C$12:$V$40,20)=0,VLOOKUP(C12,'Rehab Activities'!$C$12:$V$40,11),VLOOKUP(C12,'Rehab Activities'!$C$12:$V$40,20)) -> 3 | I12: =ROUND(G12/H12,-2) -> 0 | J12: =COUNT(IF(Project_Filter=1,(IF('Network Analysis'!EQ$18:EQ$1756<>2,IF('Network Analysis'!EO$18:EO$1756=$C12,'Network Analysis'!$Q$18:$Q$1756))))) -> 0 | K12: =COUNT(IF(Project_Filter=1,(IF('Network Analysis'!EQ$18:EQ$1756=2,IF('Network Analysis'!EO$18:EO$1756=$C12,'Network Analysis'!$Q$18:$Q$1756))))) -> 0 | L12: =SUM(IF('Network Analysis'!$EO$18:$EO$1756='Selections '!$C12,'Network Analysis'!$EY$18:$EY$1756)) -> 0 | M12: =SUM(IF('Network Analysis'!$EY$18:$EY$1756=1,IF('Network Analysis'!$EO$18:$EO$1756=$C12,'Network Analysis'!$CV$18:$CV$1756)))/Parameters!$I$9 -> 0 | N12: =SUM(IF('Network Analysis'!$EO$18:$EO$1756='Selections '!C12,'Network Analysis'!$EZ$18:$EZ$1756)) -> 0 | O12: =COUNT(IF(Project_Filter=1,(IF('Network Analysis'!FJ$18:FJ$1756<>2,IF('Network Analysis'!FH$18:FH$1756=$C12,'Network Analysis'!$CV$18:$CV$1756))))) -> 0 | P12: =COUNT(IF(Project_Filter=1,(IF('Network Analysis'!FJ$18:FJ$1756=2,IF('Network Analysis'!FH$18:FH$1756=$C12,'Network Analysis'!$CV$18:$CV$1756))))) -> 0 | Q12: =SUM(IF('Network Analysis'!$FH$18:$FH$1756='Selections '!$C12,'Network Analysis'!$FR$18:$FR$1756)) -> 0 | R12: =SUM(IF('Network Analysis'!$FR$18:$FR$1756=1,IF('Network Analysis'!$FH$18:$FH$1756=$C12,'Network Analysis'!$CV$18:$CV$1756)))/Parameters!$I$9 -> 0 | S12: =SUM(IF('Network Analysis'!FR$18:FR$1756=1,IF('Network Analysis'!FH$18:FH$1756=$C12,'Network Analysis'!FP$18:FP$1756))) -> 0 | T12: =COUNT(IF(Project_Filter=1,(IF('Network Analysis'!GC$18:GC$1756<>2,IF('Network Analysis'!GA$18:GA$1756=$C12,'Network Analysis'!$CV$18:$CV$1756))))) -> 0 | U12: =COUNT(IF(Project_Filter=1,(IF('Network Analysis'!GC$18:GC$1756=2,IF('Network Analysis'!GA$18:GA$1756=$C12,'Network Analysis'!$CV$18:$CV$1756))))) -> 0 | V12: =COUNT(IF('Network Analysis'!GK$18:GK$1756=1,IF('Network Analysis'!GA$18:GA$1756=$C12,'Network Analysis'!$CV$18:$CV$1756))) -> 0 | W12: =SUM(IF('Network Analysis'!$GK$18:$GK$1756=1,IF('Network Analysis'!$GA$18:$GA$1756=$C12,'Network Analysis'!$CV$18:$CV$1756)))/Parameters!$I$9 -> 0 | X12: =SUM(IF('Network Analysis'!GK$18:GK$1756=1,IF('Network Analysis'!GA$18:GA$1756=$C12,'Network Analysis'!GI$18:GI$1756))) -> 0 | Y12: =COUNT(IF(Project_Filter=1,(IF('Network Analysis'!GV$18:GV$1756<>2,IF('Network Analysis'!GT$18:GT$1756=$C12,'Network Analysis'!$CV$18:$CV$1756))))) -> 0 | Z12: =COUNT(IF(Project_Filter=1,(IF('Network Analysis'!GV$18:GV$1756=2,IF('Network Analysis'!GT$18:GT$1756=$C12,'Network Analysis'!$CV$18:$CV$1756))))) -> 0 | AA12: =COUNT(IF('Network Analysis'!HD$18:HD$1756=1,IF('Network Analysis'!GT$18:GT$1756=$C12,'Network Analysis'!$CV$18:$CV$1756))) -> 0 | AB12: =SUM(IF('Network Analysis'!$HD$18:$HD$1756=1,IF('Network Analysis'!$GT$18:$GT$1756=$C12,'Network Analysis'!$CV$18:$CV$1756)))/Parameters!$I$9 -> 0 | AC12: =SUM(IF('Network Analysis'!HD$18:HD$1756=1,IF('Network Analysis'!GT$18:GT$1756=$C12,'Network Analysis'!HB$18:HB$1756))) -> 0 | AD12: =COUNT(IF(Project_Filter=1,(IF('Network Analysis'!HO$18:HO$1756<>2,IF('Network Analysis'!HM$18:HM$1756=$C12,'Network Analysis'!$CV$18:$CV$1756))))) -> 0 | AE12: =COUNT(IF(Project_Filter=1,(IF('Network Analysis'!HO$18:HO$1756=2,IF('Network Analysis'!HM$18:HM$1756=$C12,'Network Analysis'!$CV$18:$CV$1756))))) -> 0 | AF12: =COUNT(IF('Network Analysis'!HW$18:HW$1756=1,IF('Network Analysis'!HM$18:HM$1756=$C12,'Network Analysis'!$CV$18:$CV$1756))) -> 0 | AG12: =SUM(IF('Network Analysis'!$HW$18:$HW$1756=1,IF('Network Analysis'!$HM$18:$HM$1756=$C12,'Network Analysis'!$CV$18:$CV$1756)))/Parameters!$I$9 -> 0 | AH12: =SUM(IF('Network Analysis'!HW$18:HW$1756=1,IF('Network Analysis'!HM$18:HM$1756=$C12,'Network Analysis'!HU$18:HU$1756))) -> 0
B13: Asphalt | C13: ='Rehab Activities'!C14 -> 20 | D13: =VLOOKUP(C13,'Rehab Activities'!$C$12:$D$40,2) -> Surface Trtmnt / Chip Seal | E13: =COUNT(IF(Project_Filter=1,IF('Network Analysis'!$DV$18:$DV$1756='Selections '!$C13,'Network Analysis'!$Q$18:$Q$1756))) -> 7 | F13: =SUM(IF('Network Analysis'!$DV$18:$DV$1756='Selections '!$C13,'Network Analysis'!$CV$18:$CV$1756))/Parameters!$I$9 -> 1.833532197 | G13: =SUM(IF('Network Analysis'!$DV$18:$DV$1756='Selections '!C13,'Network Analysis'!$EC$18:$EC$1756)) -> 136430 | H13: =IF(VLOOKUP(C13,'Rehab Activities'!$C$12:$V$40,20)=0,VLOOKUP(C13,'Rehab Activities'!$C$12:$V$40,11),VLOOKUP(C13,'Rehab Activities'!$C$12:$V$40,20)) -> 5 | I13: 27300 | J13: =COUNT(IF(Project_Filter=1,(IF('Network Analysis'!EQ$18:EQ$1756<>2,IF('Network Analysis'!EO$18:EO$1756=$C13,'Network Analysis'!$Q$18:$Q$1756))))) -> 5 | K13: =COUNT(IF(Project_Filter=1,(IF('Network Analysis'!EQ$18:EQ$1756=2,IF('Network Analysis'!EO$18:EO$1756=$C13,'Network Analysis'!$Q$18:$Q$1756))))) -> 2 | L13: =SUM(IF('Network Analysis'!$EO$18:$EO$1756='Selections '!$C13,'Network Analysis'!$EY$18:$EY$1756)) -> 2 | M13: =SUM(IF('Network Analysis'!$EY$18:$EY$1756=1,IF('Network Analysis'!$EO$18:$EO$1756=$C13,'Network Analysis'!$CV$18:$CV$1756)))/Parameters!$I$9 -> 0.5514810606 | N13: =SUM(IF('Network Analysis'!$EO$18:$EO$1756='Selections '!C13,'Network Analysis'!$EZ$18:$EZ$1756)) -> 44782 | O13: =COUNT(IF(Project_Filter=1,(IF('Network Analysis'!FJ$18:FJ$1756<>2,IF('Network Analysis'!FH$18:FH$1756=$C13,'Network Analysis'!$CV$18:$CV$1756))))) -> 3 | P13: =COUNT(IF(Project_Filter=1,(IF('Network Analysis'!FJ$18:FJ$1756=2,IF('Network Analysis'!FH$18:FH$1756=$C13,'Network Analysis'!$CV$18:$CV$1756))))) -> 2 | Q13: =SUM(IF('Network Analysis'!$FH$18:$FH$1756='Selections '!$C13,'Network Analysis'!$FR$18:$FR$1756)) -> 3 | R13: =SUM(IF('Network Analysis'!$FR$18:$FR$1756=1,IF('Network Analysis'!$FH$18:$FH$1756=$C13,'Network Analysis'!$CV$18:$CV$1756)))/Parameters!$I$9 -> 0.8824659091 | S13: =SUM(IF('Network Analysis'!FR$18:FR$1756=1,IF('Network Analysis'!FH$18:FH$1756=$C13,'Network Analysis'!FP$18:FP$1756))) -> 61146 | T13: =COUNT(IF(Project_Filter=1,(IF('Network Analysis'!GC$18:GC$1756<>2,IF('Network Analysis'!GA$18:GA$1756=$C13,'Network Analysis'!$CV$18:$CV$1756))))) -> 1 | U13: =COUNT(IF(Project_Filter=1,(IF('Network Analysis'!GC$18:GC$1756=2,IF('Network Analysis'!GA$18:GA$1756=$C13,'Network Analysis'!$CV$18:$CV$1756))))) -> 1 | V13: =COUNT(IF('Network Analysis'!GK$18:GK$1756=1,IF('Network Analysis'!GA$18:GA$1756=$C13,'Network Analysis'!$CV$18:$CV$1756))) -> 1 | W13: =SUM(IF('Network Analysis'!$GK$18:$GK$1756=1,IF('Network Analysis'!$GA$18:$GA$1756=$C13,'Network Analysis'!$CV$18:$CV$1756)))/Parameters!$I$9 -> 0.1877518939 | X13: =SUM(IF('Network Analysis'!GK$18:GK$1756=1,IF('Network Analysis'!GA$18:GA$1756=$C13,'Network Analysis'!GI$18:GI$1756))) -> 14989 | Y13: =COUNT(IF(Project_Filter=1,(IF('Network Analysis'!GV$18:GV$1756<>2,IF('Network Analysis'!GT$18:GT$1756=$C13,'Network Analysis'!$CV$18:$CV$1756))))) -> 0 | Z13: =COUNT(IF(Project_Filter=1,(IF('Network Analysis'!GV$18:GV$1756=2,IF('Network Analysis'!GT$18:GT$1756=$C13,'Network Analysis'!$CV$18:$CV$1756))))) -> 1 | AA13: =COUNT(IF('Network Analysis'!HD$18:HD$1756=1,IF('Network Analysis'!GT$18:GT$1756=$C13,'Network Analysis'!$CV$18:$CV$1756))) -> 0 | AB13: =SUM(IF('Network Analysis'!$HD$18:$HD$1756=1,IF('Network Analysis'!$GT$18:$GT$1756=$C13,'Network Analysis'!$CV$18:$CV$1756)))/Parameters!$I$9 -> 0 | AC13: =SUM(IF('Network Analysis'!HD$18:HD$1756=1,IF('Network Analysis'!GT$18:GT$1756=$C13,'Network Analysis'!HB$18:HB$1756))) -> 0 | AD13: =COUNT(IF(Project_Filter=1,(IF('Network Analysis'!HO$18:HO$1756<>2,IF('Network Analysis'!HM$18:HM$1756=$C13,'Network Analysis'!$CV$18:$CV$1756))))) -> 0 | AE13: =COUNT(IF(Project_Filter=1,(IF('Network Analysis'!HO$18:HO$1756=2,IF('Network Analysis'!HM$18:HM$1756=$C13,'Network Analysis'!$CV$18:$CV$1756))))) -> 1 | AF13: =COUNT(IF('Network Analysis'!HW$18:HW$1756=1,IF('Network Analysis'!HM$18:HM$1756=$C13,'Network Analysis'!$CV$18:$CV$1756))) -> 1 | AG13: =SUM(IF('Network Analysis'!$HW$18:$HW$1756=1,IF('Network Analysis'!$HM$18:$HM$1756=$C13,'Network Analysis'!$CV$18:$CV$1756)))/Parameters!$I$9 -> 0.2118333333 | AH13: =SUM(IF('Network Analysis'!HW$18:HW$1756=1,IF('Network Analysis'!HM$18:HM$1756=$C13,'Network Analysis'!HU$18:HU$1756))) -> 15503
B14: Asphalt | C14: ='Rehab Activities'!C15 -> 23 | D14: =VLOOKUP(C14,'Rehab Activities'!$C$12:$D$40,2) -> Surface Trtmnt / Chip Seal + Strctrl Ptch | E14: =COUNT(IF(Project_Filter=1,IF('Network Analysis'!$DV$18:$DV$1756='Selections '!$C14,'Network Analysis'!$Q$18:$Q$1756))) -> 0 | F14: =SUM(IF('Network Analysis'!$DV$18:$DV$1756='Selections '!$C14,'Network Analysis'!$CV$18:$CV$1756))/Parameters!$I$9 -> 0 | G14: =SUM(IF('Network Analysis'!$DV$18:$DV$1756='Selections '!C14,'Network Analysis'!$EC$18:$EC$1756)) -> 0 | H14: =IF(VLOOKUP(C14,'Rehab Activities'!$C$12:$V$40,20)=0,VLOOKUP(C14,'Rehab Activities'!$C$12:$V$40,11),VLOOKUP(C14,'Rehab Activities'!$C$12:$V$40,20)) -> 5 | I14: 0 | J14: =COUNT(IF(Project_Filter=1,(IF('Network Analysis'!EQ$18:EQ$1756<>2,IF('Network Analysis'!EO$18:EO$1756=$C14,'Network Analysis'!$Q$18:$Q$1756))))) -> 0 | K14: =COUNT(IF(Project_Filter=1,(IF('Network Analysis'!EQ$18:EQ$1756=2,IF('Network Analysis'!EO$18:EO$1756=$C14,'Network Analysis'!$Q$18:$Q$1756))))) -> 0 | L14: =SUM(IF('Network Analysis'!$EO$18:$EO$1756='Selections '!$C14,'Network Analysis'!$EY$18:$EY$1756)) -> 0 | M14: =SUM(IF('Network Analysis'!$EY$18:$EY$1756=1,IF('Network Analysis'!$EO$18:$EO$1756=$C14,'Network Analysis'!$CV$18:$CV$1756)))/Parameters!$I$9 -> 0 | N14: =SUM(IF('Network Analysis'!$EO$18:$EO$1756='Selections '!C14,'Network Analysis'!$EZ$18:$EZ$1756)) -> 0 | O14: =COUNT(IF(Project_Filter=1,(IF('Network Analysis'!FJ$18:FJ$1756<>2,IF('Network Analysis'!FH$18:FH$1756=$C14,'Network Analysis'!$CV$18:$CV$1756))))) -> 0 | P14: =COUNT(IF(Project_Filter=1,(IF('Network Analysis'!FJ$18:FJ$1756=2,IF('Network Analysis'!FH$18:FH$1756=$C14,'Network Analysis'!$CV$18:$CV$1756))))) -> 0 | Q14: =SUM(IF('Network Analysis'!$FH$18:$FH$1756='Selections '!$C14,'Network Analysis'!$FR$18:$FR$1756)) -> 0 | R14: =SUM(IF('Network Analysis'!$FR$18:$FR$1756=1,IF('Network Analysis'!$FH$18:$FH$1756=$C14,'Network Analysis'!$CV$18:$CV$1756)))/Parameters!$I$9 -> 0 | S14: =SUM(IF('Network Analysis'!FR$18:FR$1756=1,IF('Network Analysis'!FH$18:FH$1756=$C14,'Network Analysis'!FP$18:FP$1756))) -> 0 | T14: =COUNT(IF(Project_Filter=1,(IF('Network Analysis'!GC$18:GC$1756<>2,IF('Network Analysis'!GA$18:GA$1756=$C14,'Network Analysis'!$CV$18:$CV$1756))))) -> 0 | U14: =COUNT(IF(Project_Filter=1,(IF('Network Analysis'!GC$18:GC$1756=2,IF('Network Analysis'!GA$18:GA$1756=$C14,'Network Analysis'!$CV$18:$CV$1756))))) -> 0 | V14: =COUNT(IF('Network Analysis'!GK$18:GK$1756=1,IF('Network Analysis'!GA$18:GA$1756=$C14,'Network Analysis'!$CV$18:$CV$1756))) -> 0 | W14: =SUM(IF('Network Analysis'!$GK$18:$GK$1756=1,IF('Network Analysis'!$GA$18:$GA$1756=$C14,'Network Analysis'!$CV$18:$CV$1756)))/Parameters!$I$9 -> 0 | X14: =SUM(IF('Network Analysis'!GK$18:GK$1756=1,IF('Network Analysis'!GA$18:GA$1756=$C14,'Network Analysis'!GI$18:GI$1756))) -> 0 | Y14: =COUNT(IF(Project_Filter=1,(IF('Network Analysis'!GV$18:GV$1756<>2,IF('Network Analysis'!GT$18:GT$1756=$C14,'Network Analysis'!$CV$18:$CV$1756))))) -> 0 | Z14: =COUNT(IF(Project_Filter=1,(IF('Network Analysis'!GV$18:GV$1756=2,IF('Network Analysis'!GT$18:GT$1756=$C14,'Network Analysis'!$CV$18:$CV$1756))))) -> 0 | AA14: =COUNT(IF('Network Analysis'!HD$18:HD$1756=1,IF('Network Analysis'!GT$18:GT$1756=$C14,'Network Analysis'!$CV$18:$CV$1756))) -> 0 | AB14: =SUM(IF('Network Analysis'!$HD$18:$HD$1756=1,IF('Network Analysis'!$GT$18:$GT$1756=$C14,'Network Analysis'!$CV$18:$CV$1756)))/Parameters!$I$9 -> 0 | AC14: =SUM(IF('Network Analysis'!HD$18:HD$1756=1,IF('Network Analysis'!GT$18:GT$1756=$C14,'Network Analysis'!HB$18:HB$1756))) -> 0 | AD14: =COUNT(IF(Project_Filter=1,(IF('Network Analysis'!HO$18:HO$1756<>2,IF('Network Analysis'!HM$18:HM$1756=$C14,'Network Analysis'!$CV$18:$CV$1756))))) -> 0 | AE14: =COUNT(IF(Project_Filter=1,(IF('Network Analysis'!HO$18:HO$1756=2,IF('Network Analysis'!HM$18:HM$1756=$C14,'Network Analysis'!$CV$18:$CV$1756))))) -> 0 | AF14: =COUNT(IF('Network Analysis'!HW$18:HW$1756=1,IF('Network Analysis'!HM$18:HM$1756=$C14,'Network Analysis'!$CV$18:$CV$1756))) -> 0 | AG14: =SUM(IF('Network Analysis'!$HW$18:$HW$1756=1,IF('Network Analysis'!$HM$18:$HM$1756=$C14,'Network Analysis'!$CV$18:$CV$1756)))/Parameters!$I$9 -> 0 | AH14: =SUM(IF('Network Analysis'!HW$18:HW$1756=1,IF('Network Analysis'!HM$18:HM$1756=$C14,'Network Analysis'!HU$18:HU$1756))) -> 0
B15: Asphalt | C15: ='Rehab Activities'!C16 -> 26 | D15: =VLOOKUP(C15,'Rehab Activities'!$C$12:$D$40,2) -> Surface Trtmnt / Chip Seal + Strctrl Ptch | E15: =COUNT(IF(Project_Filter=1,IF('Network Analysis'!$DV$18:$DV$1756='Selections '!$C15,'Network Analysis'!$Q$18:$Q$1756))) -> 0 | F15: =SUM(IF('Network Analysis'!$DV$18:$DV$1756='Selections '!$C15,'Network Analysis'!$CV$18:$CV$1756))/Parameters!$I$9 -> 0 | G15: =SUM(IF('Network Analysis'!$DV$18:$DV$1756='Selections '!C15,'Network Analysis'!$EC$18:$EC$1756)) -> 0 | H15: =IF(VLOOKUP(C15,'Rehab Activities'!$C$12:$V$40,20)=0,VLOOKUP(C15,'Rehab Activities'!$C$12:$V$40,11),VLOOKUP(C15,'Rehab Activities'!$C$12:$V$40,20)) -> 10 | I15: 0 | J15: =COUNT(IF(Project_Filter=1,(IF('Network Analysis'!EQ$18:EQ$1756<>2,IF('Network Analysis'!EO$18:EO$1756=$C15,'Network Analysis'!$Q$18:$Q$1756))))) -> 0 | K15: =COUNT(IF(Project_Filter=1,(IF('Network Analysis'!EQ$18:EQ$1756=2,IF('Network Analysis'!EO$18:EO$1756=$C15,'Network Analysis'!$Q$18:$Q$1756))))) -> 0 | L15: =SUM(IF('Network Analysis'!$EO$18:$EO$1756='Selections '!$C15,'Network Analysis'!$EY$18:$EY$1756)) -> 0 | M15: =SUM(IF('Network Analysis'!$EY$18:$EY$1756=1,IF('Network Analysis'!$EO$18:$EO$1756=$C15,'Network Analysis'!$CV$18:$CV$1756)))/Parameters!$I$9 -> 0 | N15: =SUM(IF('Network Analysis'!$EO$18:$EO$1756='Selections '!C15,'Network Analysis'!$EZ$18:$EZ$1756)) -> 0 | O15: =COUNT(IF(Project_Filter=1,(IF('Network Analysis'!FJ$18:FJ$1756<>2,IF('Network Analysis'!FH$18:FH$1756=$C15,'Network Analysis'!$CV$18:$CV$1756))))) -> 0 | P15: =COUNT(IF(Project_Filter=1,(IF('Network Analysis'!FJ$18:FJ$1756=2,IF('Network Analysis'!FH$18:FH$1756=$C15,'Network Analysis'!$CV$18:$CV$1756))))) -> 0 | Q15: =SUM(IF('Network Analysis'!$FH$18:$FH$1756='Selections '!$C15,'Network Analysis'!$FR$18:$FR$1756)) -> 0 | R15: =SUM(IF('Network Analysis'!$FR$18:$FR$1756=1,IF('Network Analysis'!$FH$18:$FH$1756=$C15,'Network Analysis'!$CV$18:$CV$1756)))/Parameters!$I$9 -> 0 | S15: =SUM(IF('Network Analysis'!FR$18:FR$1756=1,IF('Network Analysis'!FH$18:FH$1756=$C15,'Network Analysis'!FP$18:FP$1756))) -> 0 | T15: =COUNT(IF(Project_Filter=1,(IF('Network Analysis'!GC$18:GC$1756<>2,IF('Network Analysis'!GA$18:GA$1756=$C15,'Network Analysis'!$CV$18:$CV$1756))))) -> 0 | U15: =COUNT(IF(Project_Filter=1,(IF('Network Analysis'!GC$18:GC$1756=2,IF('Network Analysis'!GA$18:GA$1756=$C15,'Network Analysis'!$CV$18:$CV$1756))))) -> 0 | V15: =COUNT(IF('Network Analysis'!GK$18:GK$1756=1,IF('Network Analysis'!GA$18:GA$1756=$C15,'Network Analysis'!$CV$18:$CV$1756))) -> 0 | W15: =SUM(IF('Network Analysis'!$GK$18:$GK$1756=1,IF('Network Analysis'!$GA$18:$GA$1756=$C15,'Network Analysis'!$CV$18:$CV$1756)))/Parameters!$I$9 -> 0 | X15: =SUM(IF('Network Analysis'!GK$18:GK$1756=1,IF('Network Analysis'!GA$18:GA$1756=$C15,'Network Analysis'!GI$18:GI$1756))) -> 0 | Y15: =COUNT(IF(Project_Filter=1,(IF('Network Analysis'!GV$18:GV$1756<>2,IF('Network Analysis'!GT$18:GT$1756=$C15,'Network Analysis'!$CV$18:$CV$1756))))) -> 0 | Z15: =COUNT(IF(Project_Filter=1,(IF('Network Analysis'!GV$18:GV$1756=2,IF('Network Analysis'!GT$18:GT$1756=$C15,'Network Analysis'!$CV$18:$CV$1756))))) -> 0 | AA15: =COUNT(IF('Network Analysis'!HD$18:HD$1756=1,IF('Network Analysis'!GT$18:GT$1756=$C15,'Network Analysis'!$CV$18:$CV$1756))) -> 0 | AB15: =SUM(IF('Network Analysis'!$HD$18:$HD$1756=1,IF('Network Analysis'!$GT$18:$GT$1756=$C15,'Network Analysis'!$CV$18:$CV$1756)))/Parameters!$I$9 -> 0 | AC15: =SUM(IF('Network Analysis'!HD$18:HD$1756=1,IF('Network Analysis'!GT$18:GT$1756=$C15,'Network Analysis'!HB$18:HB$1756))) -> 0 | AD15: =COUNT(IF(Project_Filter=1,(IF('Network Analysis'!HO$18:HO$1756<>2,IF('Network Analysis'!HM$18:HM$1756=$C15,'Network Analysis'!$CV$18:$CV$1756))))) -> 0 | AE15: =COUNT(IF(Project_Filter=1,(IF('Network Analysis'!HO$18:HO$1756=2,IF('Network Analysis'!HM$18:HM$1756=$C15,'Network Analysis'!$CV$18:$CV$1756))))) -> 0 | AF15: =COUNT(IF('Network Analysis'!HW$18:HW$1756=1,IF('Network Analysis'!HM$18:HM$1756=$C15,'Network Analysis'!$CV$18:$CV$1756))) -> 0 | AG15: =SUM(IF('Network Analysis'!$HW$18:$HW$1756=1,IF('Network Analysis'!$HM$18:$HM$1756=$C15,'Network Analysis'!$CV$18:$CV$1756)))/Parameters!$I$9 -> 0 | AH15: =SUM(IF('Network Analysis'!HW$18:HW$1756=1,IF('Network Analysis'!HM$18:HM$1756=$C15,'Network Analysis'!HU$18:HU$1756))) -> 0
B16: Asphalt | C16: ='Rehab Activities'!C17 -> 30 | D16: =VLOOKUP(C16,'Rehab Activities'!$C$12:$D$40,2) -> Edge Mill + Thin Overlay (1.5 - 2.0) | E16: =COUNT(IF(Project_Filter=1,IF('Network Analysis'!$DV$18:$DV$1756='Selections '!$C16,'Network Analysis'!$Q$18:$Q$1756))) -> 5 | F16: =SUM(IF('Network Analysis'!$DV$18:$DV$1756='Selections '!$C16,'Network Analysis'!$CV$18:$CV$1756))/Parameters!$I$9 -> 0.8090757576 | G16: =SUM(IF('Network Analysis'!$DV$18:$DV$1756='Selections '!C16,'Network Analysis'!$EC$18:$EC$1756)) -> 182840 | H16: =IF(VLOOKUP(C16,'Rehab Activities'!$C$12:$V$40,20)=0,VLOOKUP(C16,'Rehab Activities'!$C$12:$V$40,11),VLOOKUP(C16,'Rehab Activities'!$C$12:$V$40,20)) -> 14 | I16: 13100 | J16: =COUNT(IF(Project_Filter=1,(IF('Network Analysis'!EQ$18:EQ$1756<>2,IF('Network Analysis'!EO$18:EO$1756=$C16,'Network Analysis'!$Q$18:$Q$1756))))) -> 1 | K16: =COUNT(IF(Project_Filter=1,(IF('Network Analysis'!EQ$18:EQ$1756=2,IF('Network Analysis'!EO$18:EO$1756=$C16,'Network Analysis'!$Q$18:$Q$1756))))) -> 4 | L16: =SUM(IF('Network Analysis'!$EO$18:$EO$1756='Selections '!$C16,'Network Analysis'!$EY$18:$EY$1756)) -> 0 | M16: =SUM(IF('Network Analysis'!$EY$18:$EY$1756=1,IF('Network Analysis'!$EO$18:$EO$1756=$C16,'Network Analysis'!$CV$18:$CV$1756)))/Parameters!$I$9 -> 0 | N16: =SUM(IF('Network Analysis'!$EO$18:$EO$1756='Selections '!C16,'Network Analysis'!$EZ$18:$EZ$1756)) -> 0 | O16: =COUNT(IF(Project_Filter=1,(IF('Network Analysis'!FJ$18:FJ$1756<>2,IF('Network Analysis'!FH$18:FH$1756=$C16,'Network Analysis'!$CV$18:$CV$1756))))) -> 0 | P16: =COUNT(IF(Project_Filter=1,(IF('Network Analysis'!FJ$18:FJ$1756=2,IF('Network Analysis'!FH$18:FH$1756=$C16,'Network Analysis'!$CV$18:$CV$1756))))) -> 4 | Q16: =SUM(IF('Network Analysis'!$FH$18:$FH$1756='Selections '!$C16,'Network Analysis'!$FR$18:$FR$1756)) -> 0 | R16: =SUM(IF('Network Analysis'!$FR$18:$FR$1756=1,IF('Network Analysis'!$FH$18:$FH$1756=$C16,'Network Analysis'!$CV$18:$CV$1756)))/Parameters!$I$9 -> 0 | S16: =SUM(IF('Network Analysis'!FR$18:FR$1756=1,IF('Network Analysis'!FH$18:FH$1756=$C16,'Network Analysis'!FP$18:FP$1756))) -> 0 | T16: =COUNT(IF(Project_Filter=1,(IF('Network Analysis'!GC$18:GC$1756<>2,IF('Network Analysis'!GA$18:GA$1756=$C16,'Network Analysis'!$CV$18:$CV$1756))))) -> 0 | U16: =COUNT(IF(Project_Filter=1,(IF('Network Analysis'!GC$18:GC$1756=2,IF('Network Analysis'!GA$18:GA$1756=$C16,'Network Analysis'!$CV$18:$CV$1756))))) -> 4 | V16: =COUNT(IF('Network Analysis'!GK$18:GK$1756=1,IF('Network Analysis'!GA$18:GA$1756=$C16,'Network Analysis'!$CV$18:$CV$1756))) -> 0 | W16: =SUM(IF('Network Analysis'!$GK$18:$GK$1756=1,IF('Network Analysis'!$GA$18:$GA$1756=$C16,'Network Analysis'!$CV$18:$CV$1756)))/Parameters!$I$9 -> 0 | X16: =SUM(IF('Network Analysis'!GK$18:GK$1756=1,IF('Network Analysis'!GA$18:GA$1756=$C16,'Network Analysis'!GI$18:GI$1756))) -> 0 | Y16: =COUNT(IF(Project_Filter=1,(IF('Network Analysis'!GV$18:GV$1756<>2,IF('Network Analysis'!GT$18:GT$1756=$C16,'Network Analysis'!$CV$18:$CV$1756))))) -> 0 | Z16: =COUNT(IF(Project_Filter=1,(IF('Network Analysis'!GV$18:GV$1756=2,IF('Network Analysis'!GT$18:GT$1756=$C16,'Network Analysis'!$CV$18:$CV$1756))))) -> 4 | AA16: =COUNT(IF('Network Analysis'!HD$18:HD$1756=1,IF('Network Analysis'!GT$18:GT$1756=$C16,'Network Analysis'!$CV$18:$CV$1756))) -> 0 | AB16: =SUM(IF('Network Analysis'!$HD$18:$HD$1756=1,IF('Network Analysis'!$GT$18:$GT$1756=$C16,'Network Analysis'!$CV$18:$CV$1756)))/Parameters!$I$9 -> 0 | AC16: =SUM(IF('Network Analysis'!HD$18:HD$1756=1,IF('Network Analysis'!GT$18:GT$1756=$C16,'Network Analysis'!HB$18:HB$1756))) -> 0 | AD16: =COUNT(IF(Project_Filter=1,(IF('Network Analysis'!HO$18:HO$1756<>2,IF('Network Analysis'!HM$18:HM$1756=$C16,'Network Analysis'!$CV$18:$CV$1756))))) -> 4 | AE16: =COUNT(IF(Project_Filter=1,(IF('Network Analysis'!HO$18:HO$1756=2,IF('Network Analysis'!HM$18:HM$1756=$C16,'Network Analysis'!$CV$18:$CV$1756))))) -> 0 | AF16: =COUNT(IF('Network Analysis'!HW$18:HW$1756=1,IF('Network Analysis'!HM$18:HM$1756=$C16,'Network Analysis'!$CV$18:$CV$1756))) -> 4 | AG16: =SUM(IF('Network Analysis'!$HW$18:$HW$1756=1,IF('Network Analysis'!$HM$18:$HM$1756=$C16,'Network Analysis'!$CV$18:$CV$1756)))/Parameters!$I$9 -> 0.4697140152 | AH16: =SUM(IF('Network Analysis'!HW$18:HW$1756=1,IF('Network Analysis'!HM$18:HM$1756=$C16,'Network Analysis'!HU$18:HU$1756))) -> 90020
B17: Asphalt | C17: ='Rehab Activities'!C18 -> 33 | D17: =VLOOKUP(C17,'Rehab Activities'!$C$12:$D$40,2) -> Edge Mill + Thin Overlay (1.5 - 2.0) + Strctrl Ptch | E17: =COUNT(IF(Project_Filter=1,IF('Network Analysis'!$DV$18:$DV$1756='Selections '!$C17,'Network Analysis'!$Q$18:$Q$1756))) -> 7 | F17: =SUM(IF('Network Analysis'!$DV$18:$DV$1756='Selections '!$C17,'Network Analysis'!$CV$18:$CV$1756))/Parameters!$I$9 -> 2.515289773 | G17: =SUM(IF('Network Analysis'!$DV$18:$DV$1756='Selections '!C17,'Network Analysis'!$EC$18:$EC$1756)) -> 468440 | H17: =IF(VLOOKUP(C17,'Rehab Activities'!$C$12:$V$40,20)=0,VLOOKUP(C17,'Rehab Activities'!$C$12:$V$40,11),VLOOKUP(C17,'Rehab Activities'!$C$12:$V$40,20)) -> 14 | I17: 33500 | J17: =COUNT(IF(Project_Filter=1,(IF('Network Analysis'!EQ$18:EQ$1756<>2,IF('Network Analysis'!EO$18:EO$1756=$C17,'Network Analysis'!$Q$18:$Q$1756))))) -> 0 | K17: =COUNT(IF(Project_Filter=1,(IF('Network Analysis'!EQ$18:EQ$1756=2,IF('Network Analysis'!EO$18:EO$1756=$C17,'Network Analysis'!$Q$18:$Q$1756))))) -> 7 | L17: =SUM(IF('Network Analysis'!$EO$18:$EO$1756='Selections '!$C17,'Network Analysis'!$EY$18:$EY$1756)) -> 0 | M17: =SUM(IF('Network Analysis'!$EY$18:$EY$1756=1,IF('Network Analysis'!$EO$18:$EO$1756=$C17,'Network Analysis'!$CV$18:$CV$1756)))/Parameters!$I$9 -> 0 | N17: =SUM(IF('Network Analysis'!$EO$18:$EO$1756='Selections '!C17,'Network Analysis'!$EZ$18:$EZ$1756)) -> 0 | O17: =COUNT(IF(Project_Filter=1,(IF('Network Analysis'!FJ$18:FJ$1756<>2,IF('Network Analysis'!FH$18:FH$1756=$C17,'Network Analysis'!$CV$18:$CV$1756))))) -> 0 | P17: =COUNT(IF(Project_Filter=1,(IF('Network Analysis'!FJ$18:FJ$1756=2,IF('Network Analysis'!FH$18:FH$1756=$C17,'Network Analysis'!$CV$18:$CV$1756))))) -> 7 | Q17: =SUM(IF('Network Analysis'!$FH$18:$FH$1756='Selections '!$C17,'Network Analysis'!$FR$18:$FR$1756)) -> 0 | R17: =SUM(IF('Network Analysis'!$FR$18:$FR$1756=1,IF('Network Analysis'!$FH$18:$FH$1756=$C17,'Network Analysis'!$CV$18:$CV$1756)))/Parameters!$I$9 -> 0 | S17: =SUM(IF('Network Analysis'!FR$18:FR$1756=1,IF('Network Analysis'!FH$18:FH$1756=$C17,'Network Analysis'!FP$18:FP$1756))) -> 0 | T17: =COUNT(IF(Project_Filter=1,(IF('Network Analysis'!GC$18:GC$1756<>2,IF('Network Analysis'!GA$18:GA$1756=$C17,'Network Analysis'!$CV$18:$CV$1756))))) -> 7 | U17: =COUNT(IF(Project_Filter=1,(IF('Network Analysis'!GC$18:GC$1756=2,IF('Network Analysis'!GA$18:GA$1756=$C17,'Network Analysis'!$CV$18:$CV$1756))))) -> 0 | V17: =COUNT(IF('Network Analysis'!GK$18:GK$1756=1,IF('Network Analysis'!GA$18:GA$1756=$C17,'Network Analysis'!$CV$18:$CV$1756))) -> 0 | W17: =SUM(IF('Network Analysis'!$GK$18:$GK$1756=1,IF('Network Analysis'!$GA$18:$GA$1756=$C17,'Network Analysis'!$CV$18:$CV$1756)))/Parameters!$I$9 -> 0 | X17: =SUM(IF('Network Analysis'!GK$18:GK$1756=1,IF('Network Analysis'!GA$18:GA$1756=$C17,'Network Analysis'!GI$18:GI$1756))) -> 0 | Y17: =COUNT(IF(Project_Filter=1,(IF('Network Analysis'!GV$18:GV$1756<>2,IF('Network Analysis'!GT$18:GT$1756=$C17,'Network Analysis'!$CV$18:$CV$1756))))) -> 7 | Z17: =COUNT(IF(Project_Filter=1,(IF('Network Analysis'!GV$18:GV$1756=2,IF('Network Analysis'!GT$18:GT$1756=$C17,'Network Analysis'!$CV$18:$CV$1756))))) -> 0 | AA17: =COUNT(IF('Network Analysis'!HD$18:HD$1756=1,IF('Network Analysis'!GT$18:GT$1756=$C17,'Network Analysis'!$CV$18:$CV$1756))) -> 1 | AB17: =SUM(IF('Network Analysis'!$HD$18:$HD$1756=1,IF('Network Analysis'!$GT$18:$GT$1756=$C17,'Network Analysis'!$CV$18:$CV$1756)))/Parameters!$I$9 -> 0.2498465909 | AC17: =SUM(IF('Network Analysis'!HD$18:HD$1756=1,IF('Network Analysis'!GT$18:GT$1756=$C17,'Network Analysis'!HB$18:HB$1756))) -> 45705 | AD17: =COUNT(IF(Project_Filter=1,(IF('Network Analysis'!HO$18:HO$1756<>2,IF('Network Analysis'!HM$18:HM$1756=$C17,'Network Analysis'!$CV$18:$CV$1756))))) -> 0 | AE17: =COUNT(IF(Project_Filter=1,(IF('Network Analysis'!HO$18:HO$1756=2,IF('Network Analysis'!HM$18:HM$1756=$C17,'Network Analysis'!$CV$18:$CV$1756))))) -> 0 | AF17: =COUNT(IF('Network Analysis'!HW$18:HW$1756=1,IF('Network Analysis'!HM$18:HM$1756=$C17,'Network Analysis'!$CV$18:$CV$1756))) -> 0 | AG17: =SUM(IF('Network Analysis'!$HW$18:$HW$1756=1,IF('Network Analysis'!$HM$18:$HM$1756=$C17,'Network Analysis'!$CV$18:$CV$1756)))/Parameters!$I$9 -> 0 | AH17: =SUM(IF('Network Analysis'!HW$18:HW$1756=1,IF('Network Analysis'!HM$18:HM$1756=$C17,'Network Analysis'!HU$18:HU$1756))) -> 0
B18: Asphalt | C18: ='Rehab Activities'!C19 -> 36 | D18: =VLOOKUP(C18,'Rehab Activities'!$C$12:$D$40,2) -> Edge Mill + Thin Overlay (1.5 - 2.0) + Strctrl Ptch | E18: =COUNT(IF(Project_Filter=1,IF('Network Analysis'!$DV$18:$DV$1756='Selections '!$C18,'Network Analysis'!$Q$18:$Q$1756))) -> 0 | F18: =SUM(IF('Network Analysis'!$DV$18:$DV$1756='Selections '!$C18,'Network Analysis'!$CV$18:$CV$1756))/Parameters!$I$9 -> 0 | G18: =SUM(IF('Network Analysis'!$DV$18:$DV$1756='Selections '!C18,'Network Analysis'!$EC$18:$EC$1756)) -> 0 | H18: =IF(VLOOKUP(C18,'Rehab Activities'!$C$12:$V$40,20)=0,VLOOKUP(C18,'Rehab Activities'!$C$12:$V$40,11),VLOOKUP(C18,'Rehab Activities'!$C$12:$V$40,20)) -> 14 | I18: 0 | J18: =COUNT(IF(Project_Filter=1,(IF('Network Analysis'!EQ$18:EQ$1756<>2,IF('Network Analysis'!EO$18:EO$1756=$C18,'Network Analysis'!$Q$18:$Q$1756))))) -> 0 | K18: =COUNT(IF(Project_Filter=1,(IF('Network Analysis'!EQ$18:EQ$1756=2,IF('Network Analysis'!EO$18:EO$1756=$C18,'Network Analysis'!$Q$18:$Q$1756))))) -> 0 | L18: =SUM(IF('Network Analysis'!$EO$18:$EO$1756='Selections '!$C18,'Network Analysis'!$EY$18:$EY$1756)) -> 0 | M18: =SUM(IF('Network Analysis'!$EY$18:$EY$1756=1,IF('Network Analysis'!$EO$18:$EO$1756=$C18,'Network Analysis'!$CV$18:$CV$1756)))/Parameters!$I$9 -> 0 | N18: =SUM(IF('Network Analysis'!$EO$18:$EO$1756='Selections '!C18,'Network Analysis'!$EZ$18:$EZ$1756)) -> 0 | O18: =COUNT(IF(Project_Filter=1,(IF('Network Analysis'!FJ$18:FJ$1756<>2,IF('Network Analysis'!FH$18:FH$1756=$C18,'Network Analysis'!$CV$18:$CV$1756))))) -> 0 | P18: =COUNT(IF(Project_Filter=1,(IF('Network Analysis'!FJ$18:FJ$1756=2,IF('Network Analysis'!FH$18:FH$1756=$C18,'Network Analysis'!$CV$18:$CV$1756))))) -> 0 | Q18: =SUM(IF('Network Analysis'!$FH$18:$FH$1756='Selections '!$C18,'Network Analysis'!$FR$18:$FR$1756)) -> 0 | R18: =SUM(IF('Network Analysis'!$FR$18:$FR$1756=1,IF('Network Analysis'!$FH$18:$FH$1756=$C18,'Network Analysis'!$CV$18:$CV$1756)))/Parameters!$I$9 -> 0 | S18: =SUM(IF('Network Analysis'!FR$18:FR$1756=1,IF('Network Analysis'!FH$18:FH$1756=$C18,'Network Analysis'!FP$18:FP$1756))) -> 0 | T18: =COUNT(IF(Project_Filter=1,(IF('Network Analysis'!GC$18:GC$1756<>2,IF('Network Analysis'!GA$18:GA$1756=$C18,'Network Analysis'!$CV$18:$CV$1756))))) -> 0 | U18: =COUNT(IF(Project_Filter=1,(IF('Network Analysis'!GC$18:GC$1756=2,IF('Network Analysis'!GA$18:GA$1756=$C18,'Network Analysis'!$CV$18:$CV$1756))))) -> 0 | V18: =COUNT(IF('Network Analysis'!GK$18:GK$1756=1,IF('Network Analysis'!GA$18:GA$1756=$C18,'Network Analysis'!$CV$18:$CV$1756))) -> 0 | W18: =SUM(IF('Network Analysis'!$GK$18:$GK$1756=1,IF('Network Analysis'!$GA$18:$GA$1756=$C18,'Network Analysis'!$CV$18:$CV$1756)))/Parameters!$I$9 -> 0 | X18: =SUM(IF('Network Analysis'!GK$18:GK$1756=1,IF('Network Analysis'!GA$18:GA$1756=$C18,'Network Analysis'!GI$18:GI$1756))) -> 0 | Y18: =COUNT(IF(Project_Filter=1,(IF('Network Analysis'!GV$18:GV$1756<>2,IF('Network Analysis'!GT$18:GT$1756=$C18,'Network Analysis'!$CV$18:$CV$1756))))) -> 0 | Z18: =COUNT(IF(Project_Filter=1,(IF('Network Analysis'!GV$18:GV$1756=2,IF('Network Analysis'!GT$18:GT$1756=$C18,'Network Analysis'!$CV$18:$CV$1756))))) -> 0 | AA18: =COUNT(IF('Network Analysis'!HD$18:HD$1756=1,IF('Network Analysis'!GT$18:GT$1756=$C18,'Network Analysis'!$CV$18:$CV$1756))) -> 0 | AB18: =SUM(IF('Network Analysis'!$HD$18:$HD$1756=1,IF('Network Analysis'!$GT$18:$GT$1756=$C18,'Network Analysis'!$CV$18:$CV$1756)))/Parameters!$I$9 -> 0 | AC18: =SUM(IF('Network Analysis'!HD$18:HD$1756=1,IF('Network Analysis'!GT$18:GT$1756=$C18,'Network Analysis'!HB$18:HB$1756))) -> 0 | AD18: =COUNT(IF(Project_Filter=1,(IF('Network Analysis'!HO$18:HO$1756<>2,IF('Network Analysis'!HM$18:HM$1756=$C18,'Network Analysis'!$CV$18:$CV$1756))))) -> 0 | AE18: =COUNT(IF(Project_Filter=1,(IF('Network Analysis'!HO$18:HO$1756=2,IF('Network Analysis'!HM$18:HM$1756=$C18,'Network Analysis'!$CV$18:$CV$1756))))) -> 0 | AF18: =COUNT(IF('Network Analysis'!HW$18:HW$1756=1,IF('Network Analysis'!HM$18:HM$1756=$C18,'Network Analysis'!$CV$18:$CV$1756))) -> 0 | AG18: =SUM(IF('Network Analysis'!$HW$18:$HW$1756=1,IF('Network Analysis'!$HM$18:$HM$1756=$C18,'Network Analysis'!$CV$18:$CV$1756)))/Parameters!$I$9 -> 0 | AH18: =SUM(IF('Network Analysis'!HW$18:HW$1756=1,IF('Network Analysis'!HM$18:HM$1756=$C18,'Network Analysis'!HU$18:HU$1756))) -> 0
B19: Asphalt | C19: ='Rehab Activities'!C20 -> 40 | D19: =VLOOKUP(C19,'Rehab Activities'!$C$12:$D$40,2) -> EM/FWM + Moderate Overlay (2.0 - 3.0) | E19: =COUNT(IF(Project_Filter=1,IF('Network Analysis'!$DV$18:$DV$1756='Selections '!$C19,'Network Analysis'!$Q$18:$Q$1756))) -> 13 | F19: =SUM(IF('Network Analysis'!$DV$18:$DV$1756='Selections '!$C19,'Network Analysis'!$CV$18:$CV$1756))/Parameters!$I$9 -> 2.668479167 | G19: =SUM(IF('Network Analysis'!$DV$18:$DV$1756='Selections '!C19,'Network Analysis'!$EC$18:$EC$1756)) -> 617940 | H19: =IF(VLOOKUP(C19,'Rehab Activities'!$C$12:$V$40,20)=0,VLOOKUP(C19,'Rehab Activities'!$C$12:$V$40,11),VLOOKUP(C19,'Rehab Activities'!$C$12:$V$40,20)) -> 19 | I19: 32500 | J19: =COUNT(IF(Project_Filter=1,(IF('Network Analysis'!EQ$18:EQ$1756<>2,IF('Network Analysis'!EO$18:EO$1756=$C19,'Network Analysis'!$Q$18:$Q$1756))))) -> 6 | K19: =COUNT(IF(Project_Filter=1,(IF('Network Analysis'!EQ$18:EQ$1756=2,IF('Network Analysis'!EO$18:EO$1756=$C19,'Network Analysis'!$Q$18:$Q$1756))))) -> 6 | L19: =SUM(IF('Network Analysis'!$EO$18:$EO$1756='Selections '!$C19,'Network Analysis'!$EY$18:$EY$1756)) -> 1 | M19: =SUM(IF('Network Analysis'!$EY$18:$EY$1756=1,IF('Network Analysis'!$EO$18:$EO$1756=$C19,'Network Analysis'!$CV$18:$CV$1756)))/Parameters!$I$9 -> 0.02804924242 | N19: =SUM(IF('Network Analysis'!$EO$18:$EO$1756='Selections '!C19,'Network Analysis'!$EZ$18:$EZ$1756)) -> 7788 | O19: =COUNT(IF(Project_Filter=1,(IF('Network Analysis'!FJ$18:FJ$1756<>2,IF('Network Analysis'!FH$18:FH$1756=$C19,'Network Analysis'!$CV$18:$CV$1756))))) -> 10 | P19: =COUNT(IF(Project_Filter=1,(IF('Network Analysis'!FJ$18:FJ$1756=2,IF('Network Analysis'!FH$18:FH$1756=$C19,'Network Analysis'!$CV$18:$CV$1756))))) -> 1 | Q19: =SUM(IF('Network Analysis'!$FH$18:$FH$1756='Selections '!$C19,'Network Analysis'!$FR$18:$FR$1756)) -> 0 | R19: =SUM(IF('Network Analysis'!$FR$18:$FR$1756=1,IF('Network Analysis'!$FH$18:$FH$1756=$C19,'Network Analysis'!$CV$18:$CV$1756)))/Parameters!$I$9 -> 0 | S19: =SUM(IF('Network Analysis'!FR$18:FR$1756=1,IF('Network Analysis'!FH$18:FH$1756=$C19,'Network Analysis'!FP$18:FP$1756))) -> 0 | T19: =COUNT(IF(Project_Filter=1,(IF('Network Analysis'!GC$18:GC$1756<>2,IF('Network Analysis'!GA$18:GA$1756=$C19,'Network Analysis'!$CV$18:$CV$1756))))) -> 3 | U19: =COUNT(IF(Project_Filter=1,(IF('Network Analysis'!GC$18:GC$1756=2,IF('Network Analysis'!GA$18:GA$1756=$C19,'Network Analysis'!$CV$18:$CV$1756))))) -> 1 | V19: =COUNT(IF('Network Analysis'!GK$18:GK$1756=1,IF('Network Analysis'!GA$18:GA$1756=$C19,'Network Analysis'!$CV$18:$CV$1756))) -> 0 | W19: =SUM(IF('Network Analysis'!$GK$18:$GK$1756=1,IF('Network Analysis'!$GA$18:$GA$1756=$C19,'Network Analysis'!$CV$18:$CV$1756)))/Parameters!$I$9 -> 0 | X19: =SUM(IF('Network Analysis'!GK$18:GK$1756=1,IF('Network Analysis'!GA$18:GA$1756=$C19,'Network Analysis'!GI$18:GI$1756))) -> 0 | Y19: =COUNT(IF(Project_Filter=1,(IF('Network Analysis'!GV$18:GV$1756<>2,IF('Network Analysis'!GT$18:GT$1756=$C19,'Network Analysis'!$CV$18:$CV$1756))))) -> 0 | Z19: =COUNT(IF(Project_Filter=1,(IF('Network Analysis'!GV$18:GV$1756=2,IF('Network Analysis'!GT$18:GT$1756=$C19,'Network Analysis'!$CV$18:$CV$1756))))) -> 1 | AA19: =COUNT(IF('Network Analysis'!HD$18:HD$1756=1,IF('Network Analysis'!GT$18:GT$1756=$C19,'Network Analysis'!$CV$18:$CV$1756))) -> 0 | AB19: =SUM(IF('Network Analysis'!$HD$18:$HD$1756=1,IF('Network Analysis'!$GT$18:$GT$1756=$C19,'Network Analysis'!$CV$18:$CV$1756)))/Parameters!$I$9 -> 0 | AC19: =SUM(IF('Network Analysis'!HD$18:HD$1756=1,IF('Network Analysis'!GT$18:GT$1756=$C19,'Network Analysis'!HB$18:HB$1756))) -> 0 | AD19: =COUNT(IF(Project_Filter=1,(IF('Network Analysis'!HO$18:HO$1756<>2,IF('Network Analysis'!HM$18:HM$1756=$C19,'Network Analysis'!$CV$18:$CV$1756))))) -> 1 | AE19: =COUNT(IF(Project_Filter=1,(IF('Network Analysis'!HO$18:HO$1756=2,IF('Network Analysis'!HM$18:HM$1756=$C19,'Network Analysis'!$CV$18:$CV$1756))))) -> 0 | AF19: =COUNT(IF('Network Analysis'!HW$18:HW$1756=1,IF('Network Analysis'!HM$18:HM$1756=$C19,'Network Analysis'!$CV$18:$CV$1756))) -> 1 | AG19: =SUM(IF('Network Analysis'!$HW$18:$HW$1756=1,IF('Network Analysis'!$HM$18:$HM$1756=$C19,'Network Analysis'!$CV$18:$CV$1756)))/Parameters!$I$9 -> 0.3393617424 | AH19: =SUM(IF('Network Analysis'!HW$18:HW$1756=1,IF('Network Analysis'!HM$18:HM$1756=$C19,'Network Analysis'!HU$18:HU$1756))) -> 123886
B20: Asphalt | C20: ='Rehab Activities'!C21 -> 43 | D20: =VLOOKUP(C20,'Rehab Activities'!$C$12:$D$40,2) -> EM/FWM + Moderate Overlay (2.0 - 3.0) + Strctrl Ptch | E20: =COUNT(IF(Project_Filter=1,IF('Network Analysis'!$DV$18:$DV$1756='Selections '!$C20,'Network Analysis'!$Q$18:$Q$1756))) -> 24 | F20: =SUM(IF('Network Analysis'!$DV$18:$DV$1756='Selections '!$C20,'Network Analysis'!$CV$18:$CV$1756))/Parameters!$I$9 -> 4.602409091 | G20: =SUM(IF('Network Analysis'!$DV$18:$DV$1756='Selections '!C20,'Network Analysis'!$EC$18:$EC$1756)) -> 1086670 | H20: =IF(VLOOKUP(C20,'Rehab Activities'!$C$12:$V$40,20)=0,VLOOKUP(C20,'Rehab Activities'!$C$12:$V$40,11),VLOOKUP(C20,'Rehab Activities'!$C$12:$V$40,20)) -> 19 | I20: 57200 | J20: =COUNT(IF(Project_Filter=1,(IF('Network Analysis'!EQ$18:EQ$1756<>2,IF('Network Analysis'!EO$18:EO$1756=$C20,'Network Analysis'!$Q$18:$Q$1756))))) -> 24 | K20: =COUNT(IF(Project_Filter=1,(IF('Network Analysis'!EQ$18:EQ$1756=2,IF('Network Analysis'!EO$18:EO$1756=$C20,'Network Analysis'!$Q$18:$Q$1756))))) -> 0 | L20: =SUM(IF('Network Analysis'!$EO$18:$EO$1756='Selections '!$C20,'Network Analysis'!$EY$18:$EY$1756)) -> 0 | M20: =SUM(IF('Network Analysis'!$EY$18:$EY$1756=1,IF('Network Analysis'!$EO$18:$EO$1756=$C20,'Network Analysis'!$CV$18:$CV$1756)))/Parameters!$I$9 -> 0 | N20: =SUM(IF('Network Analysis'!$EO$18:$EO$1756='Selections '!C20,'Network Analysis'!$EZ$18:$EZ$1756)) -> 0 | O20: =COUNT(IF(Project_Filter=1,(IF('Network Analysis'!FJ$18:FJ$1756<>2,IF('Network Analysis'!FH$18:FH$1756=$C20,'Network Analysis'!$CV$18:$CV$1756))))) -> 19 | P20: =COUNT(IF(Project_Filter=1,(IF('Network Analysis'!FJ$18:FJ$1756=2,IF('Network Analysis'!FH$18:FH$1756=$C20,'Network Analysis'!$CV$18:$CV$1756))))) -> 0 | Q20: =SUM(IF('Network Analysis'!$FH$18:$FH$1756='Selections '!$C20,'Network Analysis'!$FR$18:$FR$1756)) -> 4 | R20: =SUM(IF('Network Analysis'!$FR$18:$FR$1756=1,IF('Network Analysis'!$FH$18:$FH$1756=$C20,'Network Analysis'!$CV$18:$CV$1756)))/Parameters!$I$9 -> 0.6694488636 | S20: =SUM(IF('Network Analysis'!FR$18:FR$1756=1,IF('Network Analysis'!FH$18:FH$1756=$C20,'Network Analysis'!FP$18:FP$1756))) -> 201294 | T20: =COUNT(IF(Project_Filter=1,(IF('Network Analysis'!GC$18:GC$1756<>2,IF('Network Analysis'!GA$18:GA$1756=$C20,'Network Analysis'!$CV$18:$CV$1756))))) -> 0 | U20: =COUNT(IF(Project_Filter=1,(IF('Network Analysis'!GC$18:GC$1756=2,IF('Network Analysis'!GA$18:GA$1756=$C20,'Network Analysis'!$CV$18:$CV$1756))))) -> 0 | V20: =COUNT(IF('Network Analysis'!GK$18:GK$1756=1,IF('Network Analysis'!GA$18:GA$1756=$C20,'Network Analysis'!$CV$18:$CV$1756))) -> 0 | W20: =SUM(IF('Network Analysis'!$GK$18:$GK$1756=1,IF('Network Analysis'!$GA$18:$GA$1756=$C20,'Network Analysis'!$CV$18:$CV$1756)))/Parameters!$I$9 -> 0 | X20: =SUM(IF('Network Analysis'!GK$18:GK$1756=1,IF('Network Analysis'!GA$18:GA$1756=$C20,'Network Analysis'!GI$18:GI$1756))) -> 0 | Y20: =COUNT(IF(Project_Filter=1,(IF('Network Analysis'!GV$18:GV$1756<>2,IF('Network Analysis'!GT$18:GT$1756=$C20,'Network Analysis'!$CV$18:$CV$1756))))) -> 0 | Z20: =COUNT(IF(Project_Filter=1,(IF('Network Analysis'!GV$18:GV$1756=2,IF('Network Analysis'!GT$18:GT$1756=$C20,'Network Analysis'!$CV$18:$CV$1756))))) -> 0 | AA20: =COUNT(IF('Network Analysis'!HD$18:HD$1756=1,IF('Network Analysis'!GT$18:GT$1756=$C20,'Network Analysis'!$CV$18:$CV$1756))) -> 0 | AB20: =SUM(IF('Network Analysis'!$HD$18:$HD$1756=1,IF('Network Analysis'!$GT$18:$GT$1756=$C20,'Network Analysis'!$CV$18:$CV$1756)))/Parameters!$I$9 -> 0 | AC20: =SUM(IF('Network Analysis'!HD$18:HD$1756=1,IF('Network Analysis'!GT$18:GT$1756=$C20,'Network Analysis'!HB$18:HB$1756))) -> 0 | AD20: =COUNT(IF(Project_Filter=1,(IF('Network Analysis'!HO$18:HO$1756<>2,IF('Network Analysis'!HM$18:HM$1756=$C20,'Network Analysis'!$CV$18:$CV$1756))))) -> 0 | AE20: =COUNT(IF(Project_Filter=1,(IF('Network Analysis'!HO$18:HO$1756=2,IF('Network Analysis'!HM$18:HM$1756=$C20,'Network Analysis'!$CV$18:$CV$1756))))) -> 6 | AF20: =COUNT(IF('Network Analysis'!HW$18:HW$1756=1,IF('Network Analysis'!HM$18:HM$1756=$C20,'Network Analysis'!$CV$18:$CV$1756))) -> 0 | AG20: =SUM(IF('Network Analysis'!$HW$18:$HW$1756=1,IF('Network Analysis'!$HM$18:$HM$1756=$C20,'Network Analysis'!$CV$18:$CV$1756)))/Parameters!$I$9 -> 0 | AH20: =SUM(IF('Network Analysis'!HW$18:HW$1756=1,IF('Network Analysis'!HM$18:HM$1756=$C20,'Network Analysis'!HU$18:HU$1756))) -> 0
B21: Asphalt | C21: ='Rehab Activities'!C22 -> 46 | D21: =VLOOKUP(C21,'Rehab Activities'!$C$12:$D$40,2) -> EM/FWM + Moderate Overlay (2.0 - 3.0) + Strctrl Ptch | E21: =COUNT(IF(Project_Filter=1,IF('Network Analysis'!$DV$18:$DV$1756='Selections '!$C21,'Network Analysis'!$Q$18:$Q$1756))) -> 0 | F21: =SUM(IF('Network Analysis'!$DV$18:$DV$1756='Selections '!$C21,'Network Analysis'!$CV$18:$CV$1756))/Parameters!$I$9 -> 0 | G21: =SUM(IF('Network Analysis'!$DV$18:$DV$1756='Selections '!C21,'Network Analysis'!$EC$18:$EC$1756)) -> 0 | H21: =IF(VLOOKUP(C21,'Rehab Activities'!$C$12:$V$40,20)=0,VLOOKUP(C21,'Rehab Activities'!$C$12:$V$40,11),VLOOKUP(C21,'Rehab Activities'!$C$12:$V$40,20)) -> 19 | I21: 0 | J21: =COUNT(IF(Project_Filter=1,(IF('Network Analysis'!EQ$18:EQ$1756<>2,IF('Network Analysis'!EO$18:EO$1756=$C21,'Network Analysis'!$Q$18:$Q$1756))))) -> 0 | K21: =COUNT(IF(Project_Filter=1,(IF('Network Analysis'!EQ$18:EQ$1756=2,IF('Network Analysis'!EO$18:EO$1756=$C21,'Network Analysis'!$Q$18:$Q$1756))))) -> 0 | L21: =SUM(IF('Network Analysis'!$EO$18:$EO$1756='Selections '!$C21,'Network Analysis'!$EY$18:$EY$1756)) -> 0 | M21: =SUM(IF('Network Analysis'!$EY$18:$EY$1756=1,IF('Network Analysis'!$EO$18:$EO$1756=$C21,'Network Analysis'!$CV$18:$CV$1756)))/Parameters!$I$9 -> 0 | N21: =SUM(IF('Network Analysis'!$EO$18:$EO$1756='Selections '!C21,'Network Analysis'!$EZ$18:$EZ$1756)) -> 0 | O21: =COUNT(IF(Project_Filter=1,(IF('Network Analysis'!FJ$18:FJ$1756<>2,IF('Network Analysis'!FH$18:FH$1756=$C21,'Network Analysis'!$CV$18:$CV$1756))))) -> 0 | P21: =COUNT(IF(Project_Filter=1,(IF('Network Analysis'!FJ$18:FJ$1756=2,IF('Network Analysis'!FH$18:FH$1756=$C21,'Network Analysis'!$CV$18:$CV$1756))))) -> 0 | Q21: =SUM(IF('Network Analysis'!$FH$18:$FH$1756='Selections '!$C21,'Network Analysis'!$FR$18:$FR$1756)) -> 0 | R21: =SUM(IF('Network Analysis'!$FR$18:$FR$1756=1,IF('Network Analysis'!$FH$18:$FH$1756=$C21,'Network Analysis'!$CV$18:$CV$1756)))/Parameters!$I$9 -> 0 | S21: =SUM(IF('Network Analysis'!FR$18:FR$1756=1,IF('Network Analysis'!FH$18:FH$1756=$C21,'Network Analysis'!FP$18:FP$1756))) -> 0 | T21: =COUNT(IF(Project_Filter=1,(IF('Network Analysis'!GC$18:GC$1756<>2,IF('Network Analysis'!GA$18:GA$1756=$C21,'Network Analysis'!$CV$18:$CV$1756))))) -> 0 | U21: =COUNT(IF(Project_Filter=1,(IF('Network Analysis'!GC$18:GC$1756=2,IF('Network Analysis'!GA$18:GA$1756=$C21,'Network Analysis'!$CV$18:$CV$1756))))) -> 0 | V21: =COUNT(IF('Network Analysis'!GK$18:GK$1756=1,IF('Network Analysis'!GA$18:GA$1756=$C21,'Network Analysis'!$CV$18:$CV$1756))) -> 0 | W21: =SUM(IF('Network Analysis'!$GK$18:$GK$1756=1,IF('Network Analysis'!$GA$18:$GA$1756=$C21,'Network Analysis'!$CV$18:$CV$1756)))/Parameters!$I$9 -> 0 | X21: =SUM(IF('Network Analysis'!GK$18:GK$1756=1,IF('Network Analysis'!GA$18:GA$1756=$C21,'Network Analysis'!GI$18:GI$1756))) -> 0 | Y21: =COUNT(IF(Project_Filter=1,(IF('Network Analysis'!GV$18:GV$1756<>2,IF('Network Analysis'!GT$18:GT$1756=$C21,'Network Analysis'!$CV$18:$CV$1756))))) -> 0 | Z21: =COUNT(IF(Project_Filter=1,(IF('Network Analysis'!GV$18:GV$1756=2,IF('Network Analysis'!GT$18:GT$1756=$C21,'Network Analysis'!$CV$18:$CV$1756))))) -> 0 | AA21: =COUNT(IF('Network Analysis'!HD$18:HD$1756=1,IF('Network Analysis'!GT$18:GT$1756=$C21,'Network Analysis'!$CV$18:$CV$1756))) -> 0 | AB21: =SUM(IF('Network Analysis'!$HD$18:$HD$1756=1,IF('Network Analysis'!$GT$18:$GT$1756=$C21,'Network Analysis'!$CV$18:$CV$1756)))/Parameters!$I$9 -> 0 | AC21: =SUM(IF('Network Analysis'!HD$18:HD$1756=1,IF('Network Analysis'!GT$18:GT$1756=$C21,'Network Analysis'!HB$18:HB$1756))) -> 0 | AD21: =COUNT(IF(Project_Filter=1,(IF('Network Analysis'!HO$18:HO$1756<>2,IF('Network Analysis'!HM$18:HM$1756=$C21,'Network Analysis'!$CV$18:$CV$1756))))) -> 0 | AE21: =COUNT(IF(Project_Filter=1,(IF('Network Analysis'!HO$18:HO$1756=2,IF('Network Analysis'!HM$18:HM$1756=$C21,'Network Analysis'!$CV$18:$CV$1756))))) -> 0 | AF21: =COUNT(IF('Network Analysis'!HW$18:HW$1756=1,IF('Network Analysis'!HM$18:HM$1756=$C21,'Network Analysis'!$CV$18:$CV$1756))) -> 0 | AG21: =SUM(IF('Network Analysis'!$HW$18:$HW$1756=1,IF('Network Analysis'!$HM$18:$HM$1756=$C21,'Network Analysis'!$CV$18:$CV$1756)))/Parameters!$I$9 -> 0 | AH21: =SUM(IF('Network Analysis'!HW$18:HW$1756=1,IF('Network Analysis'!HM$18:HM$1756=$C21,'Network Analysis'!HU$18:HU$1756))) -> 0
B22: Asphalt | C22: ='Rehab Activities'!C23 -> 50 | D22: =VLOOKUP(C22,'Rehab Activities'!$C$12:$D$40,2) -> FWM + Thick Overlay (> 2.0 - 3.0) | E22: =COUNT(IF(Project_Filter=1,IF('Network Analysis'!$DV$18:$DV$1756='Selections '!$C22,'Network Analysis'!$Q$18:$Q$1756))) -> 26 | F22: =SUM(IF('Network Analysis'!$DV$18:$DV$1756='Selections '!$C22,'Network Analysis'!$CV$18:$CV$1756))/Parameters!$I$9 -> 3.212801136 | G22: =SUM(IF('Network Analysis'!$DV$18:$DV$1756='Selections '!C22,'Network Analysis'!$EC$18:$EC$1756)) -> 847940 | H22: =IF(VLOOKUP(C22,'Rehab Activities'!$C$12:$V$40,20)=0,VLOOKUP(C22,'Rehab Activities'!$C$12:$V$40,11),VLOOKUP(C22,'Rehab Activities'!$C$12:$V$40,20)) -> 23 | I22: 36900 | J22: =COUNT(IF(Project_Filter=1,(IF('Network Analysis'!EQ$18:EQ$1756<>2,IF('Network Analysis'!EO$18:EO$1756=$C22,'Network Analysis'!$Q$18:$Q$1756))))) -> 5 | K22: =COUNT(IF(Project_Filter=1,(IF('Network Analysis'!EQ$18:EQ$1756=2,IF('Network Analysis'!EO$18:EO$1756=$C22,'Network Analysis'!$Q$18:$Q$1756))))) -> 22 | L22: =SUM(IF('Network Analysis'!$EO$18:$EO$1756='Selections '!$C22,'Network Analysis'!$EY$18:$EY$1756)) -> 6 | M22: =SUM(IF('Network Analysis'!$EY$18:$EY$1756=1,IF('Network Analysis'!$EO$18:$EO$1756=$C22,'Network Analysis'!$CV$18:$CV$1756)))/Parameters!$I$9 -> 0.4372253788 | N22: =SUM(IF('Network Analysis'!$EO$18:$EO$1756='Selections '!C22,'Network Analysis'!$EZ$18:$EZ$1756)) -> 129839 | O22: =COUNT(IF(Project_Filter=1,(IF('Network Analysis'!FJ$18:FJ$1756<>2,IF('Network Analysis'!FH$18:FH$1756=$C22,'Network Analysis'!$CV$18:$CV$1756))))) -> 0 | P22: =COUNT(IF(Project_Filter=1,(IF('Network Analysis'!FJ$18:FJ$1756=2,IF('Network Analysis'!FH$18:FH$1756=$C22,'Network Analysis'!$CV$18:$CV$1756))))) -> 22 | Q22: =SUM(IF('Network Analysis'!$FH$18:$FH$1756='Selections '!$C22,'Network Analysis'!$FR$18:$FR$1756)) -> 4 | R22: =SUM(IF('Network Analysis'!$FR$18:$FR$1756=1,IF('Network Analysis'!$FH$18:$FH$1756=$C22,'Network Analysis'!$CV$18:$CV$1756)))/Parameters!$I$9 -> 0.4397367424 | S22: =SUM(IF('Network Analysis'!FR$18:FR$1756=1,IF('Network Analysis'!FH$18:FH$1756=$C22,'Network Analysis'!FP$18:FP$1756))) -> 117715 | T22: =COUNT(IF(Project_Filter=1,(IF('Network Analysis'!GC$18:GC$1756<>2,IF('Network Analysis'!GA$18:GA$1756=$C22,'Network Analysis'!$CV$18:$CV$1756))))) -> 8 | U22: =COUNT(IF(Project_Filter=1,(IF('Network Analysis'!GC$18:GC$1756=2,IF('Network Analysis'!GA$18:GA$1756=$C22,'Network Analysis'!$CV$18:$CV$1756))))) -> 17 | V22: =COUNT(IF('Network Analysis'!GK$18:GK$1756=1,IF('Network Analysis'!GA$18:GA$1756=$C22,'Network Analysis'!$CV$18:$CV$1756))) -> 21 | W22: =SUM(IF('Network Analysis'!$GK$18:$GK$1756=1,IF('Network Analysis'!$GA$18:$GA$1756=$C22,'Network Analysis'!$CV$18:$CV$1756)))/Parameters!$I$9 -> 3.208931818 | X22: =SUM(IF('Network Analysis'!GK$18:GK$1756=1,IF('Network Analysis'!GA$18:GA$1756=$C22,'Network Analysis'!GI$18:GI$1756))) -> 811469 | Y22: =COUNT(IF(Project_Filter=1,(IF('Network Analysis'!GV$18:GV$1756<>2,IF('Network Analysis'!GT$18:GT$1756=$C22,'Network Analysis'!$CV$18:$CV$1756))))) -> 0 | Z22: =COUNT(IF(Project_Filter=1,(IF('Network Analysis'!GV$18:GV$1756=2,IF('Network Analysis'!GT$18:GT$1756=$C22,'Network Analysis'!$CV$18:$CV$1756))))) -> 7 | AA22: =COUNT(IF('Network Analysis'!HD$18:HD$1756=1,IF('Network Analysis'!GT$18:GT$1756=$C22,'Network Analysis'!$CV$18:$CV$1756))) -> 7 | AB22: =SUM(IF('Network Analysis'!$HD$18:$HD$1756=1,IF('Network Analysis'!$GT$18:$GT$1756=$C22,'Network Analysis'!$CV$18:$CV$1756)))/Parameters!$I$9 -> 1.767337121 | AC22: =SUM(IF('Network Analysis'!HD$18:HD$1756=1,IF('Network Analysis'!GT$18:GT$1756=$C22,'Network Analysis'!HB$18:HB$1756))) -> 495511 | AD22: =COUNT(IF(Project_Filter=1,(IF('Network Analysis'!HO$18:HO$1756<>2,IF('Network Analysis'!HM$18:HM$1756=$C22,'Network Analysis'!$CV$18:$CV$1756))))) -> 0 | AE22: =COUNT(IF(Project_Filter=1,(IF('Network Analysis'!HO$18:HO$1756=2,IF('Network Analysis'!HM$18:HM$1756=$C22,'Network Analysis'!$CV$18:$CV$1756))))) -> 0 | AF22: =COUNT(IF('Network Analysis'!HW$18:HW$1756=1,IF('Network Analysis'!HM$18:HM$1756=$C22,'Network Analysis'!$CV$18:$CV$1756))) -> 0 | AG22: =SUM(IF('Network Analysis'!$HW$18:$HW$1756=1,IF('Network Analysis'!$HM$18:$HM$1756=$C22,'Network Analysis'!$CV$18:$CV$1756)))/Parameters!$I$9 -> 0 | AH22: =SUM(IF('Network Analysis'!HW$18:HW$1756=1,IF('Network Analysis'!HM$18:HM$1756=$C22,'Network Analysis'!HU$18:HU$1756))) -> 0
B23: Asphalt | C23: ='Rehab Activities'!C24 -> 53 | D23: =VLOOKUP(C23,'Rehab Activities'!$C$12:$D$40,2) -> FWM + Thick Overlay (> 2.0 - 3.0) + Strctrl Ptch | E23: =COUNT(IF(Project_Filter=1,IF('Network Analysis'!$DV$18:$DV$1756='Selections '!$C23,'Network Analysis'!$Q$18:$Q$1756))) -> 36 | F23: =SUM(IF('Network Analysis'!$DV$18:$DV$1756='Selections '!$C23,'Network Analysis'!$CV$18:$CV$1756))/Parameters!$I$9 -> 4.74657197 | G23: =SUM(IF('Network Analysis'!$DV$18:$DV$1756='Selections '!C23,'Network Analysis'!$EC$18:$EC$1756)) -> 1450670 | H23: =IF(VLOOKUP(C23,'Rehab Activities'!$C$12:$V$40,20)=0,VLOOKUP(C23,'Rehab Activities'!$C$12:$V$40,11),VLOOKUP(C23,'Rehab Activities'!$C$12:$V$40,20)) -> 23 | I23: 63100 | J23: =COUNT(IF(Project_Filter=1,(IF('Network Analysis'!EQ$18:EQ$1756<>2,IF('Network Analysis'!EO$18:EO$1756=$C23,'Network Analysis'!$Q$18:$Q$1756))))) -> 10 | K23: =COUNT(IF(Project_Filter=1,(IF('Network Analysis'!EQ$18:EQ$1756=2,IF('Network Analysis'!EO$18:EO$1756=$C23,'Network Analysis'!$Q$18:$Q$1756))))) -> 20 | L23: =SUM(IF('Network Analysis'!$EO$18:$EO$1756='Selections '!$C23,'Network Analysis'!$EY$18:$EY$1756)) -> 13 | M23: =SUM(IF('Network Analysis'!$EY$18:$EY$1756=1,IF('Network Analysis'!$EO$18:$EO$1756=$C23,'Network Analysis'!$CV$18:$CV$1756)))/Parameters!$I$9 -> 1.698284091 | N23: =SUM(IF('Network Analysis'!$EO$18:$EO$1756='Selections '!C23,'Network Analysis'!$EZ$18:$EZ$1756)) -> 528954 | O23: =COUNT(IF(Project_Filter=1,(IF('Network Analysis'!FJ$18:FJ$1756<>2,IF('Network Analysis'!FH$18:FH$1756=$C23,'Network Analysis'!$CV$18:$CV$1756))))) -> 5 | P23: =COUNT(IF(Project_Filter=1,(IF('Network Analysis'!FJ$18:FJ$1756=2,IF('Network Analysis'!FH$18:FH$1756=$C23,'Network Analysis'!$CV$18:$CV$1756))))) -> 17 | Q23: =SUM(IF('Network Analysis'!$FH$18:$FH$1756='Selections '!$C23,'Network Analysis'!$FR$18:$FR$1756)) -> 5 | R23: =SUM(IF('Network Analysis'!$FR$18:$FR$1756=1,IF('Network Analysis'!$FH$18:$FH$1756=$C23,'Network Analysis'!$CV$18:$CV$1756)))/Parameters!$I$9 -> 0.4283882576 | S23: =SUM(IF('Network Analysis'!FR$18:FR$1756=1,IF('Network Analysis'!FH$18:FH$1756=$C23,'Network Analysis'!FP$18:FP$1756))) -> 136995 | T23: =COUNT(IF(Project_Filter=1,(IF('Network Analysis'!GC$18:GC$1756<>2,IF('Network Analysis'!GA$18:GA$1756=$C23,'Network Analysis'!$CV$18:$CV$1756))))) -> 7 | U23: =COUNT(IF(Project_Filter=1,(IF('Network Analysis'!GC$18:GC$1756=2,IF('Network Analysis'!GA$18:GA$1756=$C23,'Network Analysis'!$CV$18:$CV$1756))))) -> 25 | V23: =COUNT(IF('Network Analysis'!GK$18:GK$1756=1,IF('Network Analysis'!GA$18:GA$1756=$C23,'Network Analysis'!$CV$18:$CV$1756))) -> 18 | W23: =SUM(IF('Network Analysis'!$GK$18:$GK$1756=1,IF('Network Analysis'!$GA$18:$GA$1756=$C23,'Network Analysis'!$CV$18:$CV$1756)))/Parameters!$I$9 -> 2.733392045 | X23: =SUM(IF('Network Analysis'!GK$18:GK$1756=1,IF('Network Analysis'!GA$18:GA$1756=$C23,'Network Analysis'!GI$18:GI$1756))) -> 784539 | Y23: =COUNT(IF(Project_Filter=1,(IF('Network Analysis'!GV$18:GV$1756<>2,IF('Network Analysis'!GT$18:GT$1756=$C23,'Network Analysis'!$CV$18:$CV$1756))))) -> 0 | Z23: =COUNT(IF(Project_Filter=1,(IF('Network Analysis'!GV$18:GV$1756=2,IF('Network Analysis'!GT$18:GT$1756=$C23,'Network Analysis'!$CV$18:$CV$1756))))) -> 14 | AA23: =COUNT(IF('Network Analysis'!HD$18:HD$1756=1,IF('Network Analysis'!GT$18:GT$1756=$C23,'Network Analysis'!$CV$18:$CV$1756))) -> 14 | AB23: =SUM(IF('Network Analysis'!$HD$18:$HD$1756=1,IF('Network Analysis'!$GT$18:$GT$1756=$C23,'Network Analysis'!$CV$18:$CV$1756)))/Parameters!$I$9 -> 2.705945076 | AC23: =SUM(IF('Network Analysis'!HD$18:HD$1756=1,IF('Network Analysis'!GT$18:GT$1756=$C23,'Network Analysis'!HB$18:HB$1756))) -> 692832 | AD23: =COUNT(IF(Project_Filter=1,(IF('Network Analysis'!HO$18:HO$1756<>2,IF('Network Analysis'!HM$18:HM$1756=$C23,'Network Analysis'!$CV$18:$CV$1756))))) -> 0 | AE23: =COUNT(IF(Project_Filter=1,(IF('Network Analysis'!HO$18:HO$1756=2,IF('Network Analysis'!HM$18:HM$1756=$C23,'Network Analysis'!$CV$18:$CV$1756))))) -> 0 | AF23: =COUNT(IF('Network Analysis'!HW$18:HW$1756=1,IF('Network Analysis'!HM$18:HM$1756=$C23,'Network Analysis'!$CV$18:$CV$1756))) -> 0 | AG23: =SUM(IF('Network Analysis'!$HW$18:$HW$1756=1,IF('Network Analysis'!$HM$18:$HM$1756=$C23,'Network Analysis'!$CV$18:$CV$1756)))/Parameters!$I$9 -> 0 | AH23: =SUM(IF('Network Analysis'!HW$18:HW$1756=1,IF('Network Analysis'!HM$18:HM$1756=$C23,'Network Analysis'!HU$18:HU$1756))) -> 0
B24: Asphalt | C24: ='Rehab Activities'!C25 -> 56 | D24: =VLOOKUP(C24,'Rehab Activities'!$C$12:$D$40,2) -> FWM + Thick Overlay (> 2.0 - 3.0) + Strctrl Ptch | E24: =COUNT(IF(Project_Filter=1,IF('Network Analysis'!$DV$18:$DV$1756='Selections '!$C24,'Network Analysis'!$Q$18:$Q$1756))) -> 3 | F24: =SUM(IF('Network Analysis'!$DV$18:$DV$1756='Selections '!$C24,'Network Analysis'!$CV$18:$CV$1756))/Parameters!$I$9 -> 0.6019943182 | G24: =SUM(IF('Network Analysis'!$DV$18:$DV$1756='Selections '!C24,'Network Analysis'!$EC$18:$EC$1756)) -> 281540 | H24: =IF(VLOOKUP(C24,'Rehab Activities'!$C$12:$V$40,20)=0,VLOOKUP(C24,'Rehab Activities'!$C$12:$V$40,11),VLOOKUP(C24,'Rehab Activities'!$C$12:$V$40,20)) -> 23 | I24: 12200 | J24: =COUNT(IF(Project_Filter=1,(IF('Network Analysis'!EQ$18:EQ$1756<>2,IF('Network Analysis'!EO$18:EO$1756=$C24,'Network Analysis'!$Q$18:$Q$1756))))) -> 2 | K24: =COUNT(IF(Project_Filter=1,(IF('Network Analysis'!EQ$18:EQ$1756=2,IF('Network Analysis'!EO$18:EO$1756=$C24,'Network Analysis'!$Q$18:$Q$1756))))) -> 1 | L24: =SUM(IF('Network Analysis'!$EO$18:$EO$1756='Selections '!$C24,'Network Analysis'!$EY$18:$EY$1756)) -> 3 | M24: =SUM(IF('Network Analysis'!$EY$18:$EY$1756=1,IF('Network Analysis'!$EO$18:$EO$1756=$C24,'Network Analysis'!$CV$18:$CV$1756)))/Parameters!$I$9 -> 0.6019943182 | N24: =SUM(IF('Network Analysis'!$EO$18:$EO$1756='Selections '!C24,'Network Analysis'!$EZ$18:$EZ$1756)) -> 281537 | O24: =COUNT(IF(Project_Filter=1,(IF('Network Analysis'!FJ$18:FJ$1756<>2,IF('Network Analysis'!FH$18:FH$1756=$C24,'Network Analysis'!$CV$18:$CV$1756))))) -> 0 | P24: =COUNT(IF(Project_Filter=1,(IF('Network Analysis'!FJ$18:FJ$1756=2,IF('Network Analysis'!FH$18:FH$1756=$C24,'Network Analysis'!$CV$18:$CV$1756))))) -> 0 | Q24: =SUM(IF('Network Analysis'!$FH$18:$FH$1756='Selections '!$C24,'Network Analysis'!$FR$18:$FR$1756)) -> 0 | R24: =SUM(IF('Network Analysis'!$FR$18:$FR$1756=1,IF('Network Analysis'!$FH$18:$FH$1756=$C24,'Network Analysis'!$CV$18:$CV$1756)))/Parameters!$I$9 -> 0 | S24: =SUM(IF('Network Analysis'!FR$18:FR$1756=1,IF('Network Analysis'!FH$18:FH$1756=$C24,'Network Analysis'!FP$18:FP$1756))) -> 0 | T24: =COUNT(IF(Project_Filter=1,(IF('Network Analysis'!GC$18:GC$1756<>2,IF('Network Analysis'!GA$18:GA$1756=$C24,'Network Analysis'!$CV$18:$CV$1756))))) -> 0 | U24: =COUNT(IF(Project_Filter=1,(IF('Network Analysis'!GC$18:GC$1756=2,IF('Network Analysis'!GA$18:GA$1756=$C24,'Network Analysis'!$CV$18:$CV$1756))))) -> 0 | V24: =COUNT(IF('Network Analysis'!GK$18:GK$1756=1,IF('Network Analysis'!GA$18:GA$1756=$C24,'Network Analysis'!$CV$18:$CV$1756))) -> 0 | W24: =SUM(IF('Network Analysis'!$GK$18:$GK$1756=1,IF('Network Analysis'!$GA$18:$GA$1756=$C24,'Network Analysis'!$CV$18:$CV$1756)))/Parameters!$I$9 -> 0 | X24: =SUM(IF('Network Analysis'!GK$18:GK$1756=1,IF('Network Analysis'!GA$18:GA$1756=$C24,'Network Analysis'!GI$18:GI$1756))) -> 0 | Y24: =COUNT(IF(Project_Filter=1,(IF('Network Analysis'!GV$18:GV$1756<>2,IF('Network Analysis'!GT$18:GT$1756=$C24,'Network Analysis'!$CV$18:$CV$1756))))) -> 0 | Z24: =COUNT(IF(Project_Filter=1,(IF('Network Analysis'!GV$18:GV$1756=2,IF('Network Analysis'!GT$18:GT$1756=$C24,'Network Analysis'!$CV$18:$CV$1756))))) -> 0 | AA24: =COUNT(IF('Network Analysis'!HD$18:HD$1756=1,IF('Network Analysis'!GT$18:GT$1756=$C24,'Network Analysis'!$CV$18:$CV$1756))) -> 0 | AB24: =SUM(IF('Network Analysis'!$HD$18:$HD$1756=1,IF('Network Analysis'!$GT$18:$GT$1756=$C24,'Network Analysis'!$CV$18:$CV$1756)))/Parameters!$I$9 -> 0 | AC24: =SUM(IF('Network Analysis'!HD$18:HD$1756=1,IF('Network Analysis'!GT$18:GT$1756=$C24,'Network Analysis'!HB$18:HB$1756))) -> 0 | AD24: =COUNT(IF(Project_Filter=1,(IF('Network Analysis'!HO$18:HO$1756<>2,IF('Network Analysis'!HM$18:HM$1756=$C24,'Network Analysis'!$CV$18:$CV$1756))))) -> 0 | AE24: =COUNT(IF(Project_Filter=1,(IF('Network Analysis'!HO$18:HO$1756=2,IF('Network Analysis'!HM$18:HM$1756=$C24,'Network Analysis'!$CV$18:$CV$1756))))) -> 0 | AF24: =COUNT(IF('Network Analysis'!HW$18:HW$1756=1,IF('Network Analysis'!HM$18:HM$1756=$C24,'Network Analysis'!$CV$18:$CV$1756))) -> 0 | AG24: =SUM(IF('Network Analysis'!$HW$18:$HW$1756=1,IF('Network Analysis'!$HM$18:$HM$1756=$C24,'Network Analysis'!$CV$18:$CV$1756)))/Parameters!$I$9 -> 0 | AH24: =SUM(IF('Network Analysis'!HW$18:HW$1756=1,IF('Network Analysis'!HM$18:HM$1756=$C24,'Network Analysis'!HU$18:HU$1756))) -> 0
B25: Asphalt | C25: ='Rehab Activities'!C26 -> 60 | D25: =VLOOKUP(C25,'Rehab Activities'!$C$12:$D$40,2) -> Surf Recon + Base Rehab / FDM + Strctrl Ptch + Olay | E25: =COUNT(IF(Project_Filter=1,IF('Network Analysis'!$DV$18:$DV$1756='Selections '!$C25,'Network Analysis'!$Q$18:$Q$1756))) -> 27 | F25: =SUM(IF('Network Analysis'!$DV$18:$DV$1756='Selections '!$C25,'Network Analysis'!$CV$18:$CV$1756))/Parameters!$I$9 -> 5.572130682 | G25: =SUM(IF('Network Analysis'!$DV$18:$DV$1756='Selections '!C25,'Network Analysis'!$EC$18:$EC$1756)) -> 2563860 | H25: =IF(VLOOKUP(C25,'Rehab Activities'!$C$12:$V$40,20)=0,VLOOKUP(C25,'Rehab Activities'!$C$12:$V$40,11),VLOOKUP(C25,'Rehab Activities'!$C$12:$V$40,20)) -> 29 | I25: 88400 | J25: =COUNT(IF(Project_Filter=1,(IF('Network Analysis'!EQ$18:EQ$1756<>2,IF('Network Analysis'!EO$18:EO$1756=$C25,'Network Analysis'!$Q$18:$Q$1756))))) -> 7 | K25: =COUNT(IF(Project_Filter=1,(IF('Network Analysis'!EQ$18:EQ$1756=2,IF('Network Analysis'!EO$18:EO$1756=$C25,'Network Analysis'!$Q$18:$Q$1756))))) -> 23 | L25: =SUM(IF('Network Analysis'!$EO$18:$EO$1756='Selections '!$C25,'Network Analysis'!$EY$18:$EY$1756)) -> 5 | M25: =SUM(IF('Network Analysis'!$EY$18:$EY$1756=1,IF('Network Analysis'!$EO$18:$EO$1756=$C25,'Network Analysis'!$CV$18:$CV$1756)))/Parameters!$I$9 -> 1.432160985 | N25: =SUM(IF('Network Analysis'!$EO$18:$EO$1756='Selections '!C25,'Network Analysis'!$EZ$18:$EZ$1756)) -> 804931 | O25: =COUNT(IF(Project_Filter=1,(IF('Network Analysis'!FJ$18:FJ$1756<>2,IF('Network Analysis'!FH$18:FH$1756=$C25,'Network Analysis'!$CV$18:$CV$1756))))) -> 4 | P25: =COUNT(IF(Project_Filter=1,(IF('Network Analysis'!FJ$18:FJ$1756=2,IF('Network Analysis'!FH$18:FH$1756=$C25,'Network Analysis'!$CV$18:$CV$1756))))) -> 21 | Q25: =SUM(IF('Network Analysis'!$FH$18:$FH$1756='Selections '!$C25,'Network Analysis'!$FR$18:$FR$1756)) -> 13 | R25: =SUM(IF('Network Analysis'!$FR$18:$FR$1756=1,IF('Network Analysis'!$FH$18:$FH$1756=$C25,'Network Analysis'!$CV$18:$CV$1756)))/Parameters!$I$9 -> 2.88530303 | S25: =SUM(IF('Network Analysis'!FR$18:FR$1756=1,IF('Network Analysis'!FH$18:FH$1756=$C25,'Network Analysis'!FP$18:FP$1756))) -> 1281533 | T25: =COUNT(IF(Project_Filter=1,(IF('Network Analysis'!GC$18:GC$1756<>2,IF('Network Analysis'!GA$18:GA$1756=$C25,'Network Analysis'!$CV$18:$CV$1756))))) -> 2 | U25: =COUNT(IF(Project_Filter=1,(IF('Network Analysis'!GC$18:GC$1756=2,IF('Network Analysis'!GA$18:GA$1756=$C25,'Network Analysis'!$CV$18:$CV$1756))))) -> 10 | V25: =COUNT(IF('Network Analysis'!GK$18:GK$1756=1,IF('Network Analysis'!GA$18:GA$1756=$C25,'Network Analysis'!$CV$18:$CV$1756))) -> 3 | W25: =SUM(IF('Network Analysis'!$GK$18:$GK$1756=1,IF('Network Analysis'!$GA$18:$GA$1756=$C25,'Network Analysis'!$CV$18:$CV$1756)))/Parameters!$I$9 -> 0.3707121212 | X25: =SUM(IF('Network Analysis'!GK$18:GK$1756=1,IF('Network Analysis'!GA$18:GA$1756=$C25,'Network Analysis'!GI$18:GI$1756))) -> 180985 | Y25: =COUNT(IF(Project_Filter=1,(IF('Network Analysis'!GV$18:GV$1756<>2,IF('Network Analysis'!GT$18:GT$1756=$C25,'Network Analysis'!$CV$18:$CV$1756))))) -> 0 | Z25: =COUNT(IF(Project_Filter=1,(IF('Network Analysis'!GV$18:GV$1756=2,IF('Network Analysis'!GT$18:GT$1756=$C25,'Network Analysis'!$CV$18:$CV$1756))))) -> 9 | AA25: =COUNT(IF('Network Analysis'!HD$18:HD$1756=1,IF('Network Analysis'!GT$18:GT$1756=$C25,'Network Analysis'!$CV$18:$CV$1756))) -> 0 | AB25: =SUM(IF('Network Analysis'!$HD$18:$HD$1756=1,IF('Network Analysis'!$GT$18:$GT$1756=$C25,'Network Analysis'!$CV$18:$CV$1756)))/Parameters!$I$9 -> 0 | AC25: =SUM(IF('Network Analysis'!HD$18:HD$1756=1,IF('Network Analysis'!GT$18:GT$1756=$C25,'Network Analysis'!HB$18:HB$1756))) -> 0 | AD25: =COUNT(IF(Project_Filter=1,(IF('Network Analysis'!HO$18:HO$1756<>2,IF('Network Analysis'!HM$18:HM$1756=$C25,'Network Analysis'!$CV$18:$CV$1756))))) -> 4 | AE25: =COUNT(IF(Project_Filter=1,(IF('Network Analysis'!HO$18:HO$1756=2,IF('Network Analysis'!HM$18:HM$1756=$C25,'Network Analysis'!$CV$18:$CV$1756))))) -> 5 | AF25: =COUNT(IF('Network Analysis'!HW$18:HW$1756=1,IF('Network Analysis'!HM$18:HM$1756=$C25,'Network Analysis'!$CV$18:$CV$1756))) -> 9 | AG25: =SUM(IF('Network Analysis'!$HW$18:$HW$1756=1,IF('Network Analysis'!$HM$18:$HM$1756=$C25,'Network Analysis'!$CV$18:$CV$1756)))/Parameters!$I$9 -> 1.537606061 | AH25: =SUM(IF('Network Analysis'!HW$18:HW$1756=1,IF('Network Analysis'!HM$18:HM$1756=$C25,'Network Analysis'!HU$18:HU$1756))) -> 581826
B26: Composite | C26: ='Rehab Activities'!C27 -> 65 | D26: =VLOOKUP(C26,'Rehab Activities'!$C$12:$D$40,2) -> Surf Recon + PCC to Base/FWM + Strctrl Ptch + Olay | E26: =COUNT(IF(Project_Filter=1,IF('Network Analysis'!$DV$18:$DV$1756='Selections '!$C26,'Network Analysis'!$Q$18:$Q$1756))) -> 0 | F26: =SUM(IF('Network Analysis'!$DV$18:$DV$1756='Selections '!$C26,'Network Analysis'!$CV$18:$CV$1756))/Parameters!$I$9 -> 0 | G26: =SUM(IF('Network Analysis'!$DV$18:$DV$1756='Selections '!C26,'Network Analysis'!$EC$18:$EC$1756)) -> 0 | H26: =IF(VLOOKUP(C26,'Rehab Activities'!$C$12:$V$40,20)=0,VLOOKUP(C26,'Rehab Activities'!$C$12:$V$40,11),VLOOKUP(C26,'Rehab Activities'!$C$12:$V$40,20)) -> 29 | I26: 0 | J26: =COUNT(IF(Project_Filter=1,(IF('Network Analysis'!EQ$18:EQ$1756<>2,IF('Network Analysis'!EO$18:EO$1756=$C26,'Network Analysis'!$Q$18:$Q$1756))))) -> 0 | K26: =COUNT(IF(Project_Filter=1,(IF('Network Analysis'!EQ$18:EQ$1756=2,IF('Network Analysis'!EO$18:EO$1756=$C26,'Network Analysis'!$Q$18:$Q$1756))))) -> 0 | L26: =SUM(IF('Network Analysis'!$EO$18:$EO$1756='Selections '!$C26,'Network Analysis'!$EY$18:$EY$1756)) -> 0 | M26: =SUM(IF('Network Analysis'!$EY$18:$EY$1756=1,IF('Network Analysis'!$EO$18:$EO$1756=$C26,'Network Analysis'!$CV$18:$CV$1756)))/Parameters!$I$9 -> 0 | N26: =SUM(IF('Network Analysis'!$EO$18:$EO$1756='Selections '!C26,'Network Analysis'!$EZ$18:$EZ$1756)) -> 0 | O26: =COUNT(IF(Project_Filter=1,(IF('Network Analysis'!FJ$18:FJ$1756<>2,IF('Network Analysis'!FH$18:FH$1756=$C26,'Network Analysis'!$CV$18:$CV$1756))))) -> 0 | P26: =COUNT(IF(Project_Filter=1,(IF('Network Analysis'!FJ$18:FJ$1756=2,IF('Network Analysis'!FH$18:FH$1756=$C26,'Network Analysis'!$CV$18:$CV$1756))))) -> 0 | Q26: =SUM(IF('Network Analysis'!$FH$18:$FH$1756='Selections '!$C26,'Network Analysis'!$FR$18:$FR$1756)) -> 0 | R26: =SUM(IF('Network Analysis'!$FR$18:$FR$1756=1,IF('Network Analysis'!$FH$18:$FH$1756=$C26,'Network Analysis'!$CV$18:$CV$1756)))/Parameters!$I$9 -> 0 | S26: =SUM(IF('Network Analysis'!FR$18:FR$1756=1,IF('Network Analysis'!FH$18:FH$1756=$C26,'Network Analysis'!FP$18:FP$1756))) -> 0 | T26: =COUNT(IF(Project_Filter=1,(IF('Network Analysis'!GC$18:GC$1756<>2,IF('Network Analysis'!GA$18:GA$1756=$C26,'Network Analysis'!$CV$18:$CV$1756))))) -> 0 | U26: =COUNT(IF(Project_Filter=1,(IF('Network Analysis'!GC$18:GC$1756=2,IF('Network Analysis'!GA$18:GA$1756=$C26,'Network Analysis'!$CV$18:$CV$1756))))) -> 0 | V26: =COUNT(IF('Network Analysis'!GK$18:GK$1756=1,IF('Network Analysis'!GA$18:GA$1756=$C26,'Network Analysis'!$CV$18:$CV$1756))) -> 0 | W26: =SUM(IF('Network Analysis'!$GK$18:$GK$1756=1,IF('Network Analysis'!$GA$18:$GA$1756=$C26,'Network Analysis'!$CV$18:$CV$1756)))/Parameters!$I$9 -> 0 | X26: =SUM(IF('Network Analysis'!GK$18:GK$1756=1,IF('Network Analysis'!GA$18:GA$1756=$C26,'Network Analysis'!GI$18:GI$1756))) -> 0 | Y26: =COUNT(IF(Project_Filter=1,(IF('Network Analysis'!GV$18:GV$1756<>2,IF('Network Analysis'!GT$18:GT$1756=$C26,'Network Analysis'!$CV$18:$CV$1756))))) -> 0 | Z26: =COUNT(IF(Project_Filter=1,(IF('Network Analysis'!GV$18:GV$1756=2,IF('Network Analysis'!GT$18:GT$1756=$C26,'Network Analysis'!$CV$18:$CV$1756))))) -> 0 | AA26: =COUNT(IF('Network Analysis'!HD$18:HD$1756=1,IF('Network Analysis'!GT$18:GT$1756=$C26,'Network Analysis'!$CV$18:$CV$1756))) -> 0 | AB26: =SUM(IF('Network Analysis'!$HD$18:$HD$1756=1,IF('Network Analysis'!$GT$18:$GT$1756=$C26,'Network Analysis'!$CV$18:$CV$1756)))/Parameters!$I$9 -> 0 | AC26: =SUM(IF('Network Analysis'!HD$18:HD$1756=1,IF('Network Analysis'!GT$18:GT$1756=$C26,'Network Analysis'!HB$18:HB$1756))) -> 0 | AD26: =COUNT(IF(Project_Filter=1,(IF('Network Analysis'!HO$18:HO$1756<>2,IF('Network Analysis'!HM$18:HM$1756=$C26,'Network Analysis'!$CV$18:$CV$1756))))) -> 0 | AE26: =COUNT(IF(Project_Filter=1,(IF('Network Analysis'!HO$18:HO$1756=2,IF('Network Analysis'!HM$18:HM$1756=$C26,'Network Analysis'!$CV$18:$CV$1756))))) -> 0 | AF26: =COUNT(IF('Network Analysis'!HW$18:HW$1756=1,IF('Network Analysis'!HM$18:HM$1756=$C26,'Network Analysis'!$CV$18:$CV$1756))) -> 0 | AG26: =SUM(IF('Network Analysis'!$HW$18:$HW$1756=1,IF('Network Analysis'!$HM$18:$HM$1756=$C26,'Network Analysis'!$CV$18:$CV$1756)))/Parameters!$I$9 -> 0 | AH26: =SUM(IF('Network Analysis'!HW$18:HW$1756=1,IF('Network Analysis'!HM$18:HM$1756=$C26,'Network Analysis'!HU$18:HU$1756))) -> 0
B27: Asphalt | C27: ='Rehab Activities'!C28 -> 70 | D27: =VLOOKUP(C27,'Rehab Activities'!$C$12:$D$40,2) -> ACP Full Recon / FDM+2X Strctrl Ptch+Olay | E27: =COUNT(IF(Project_Filter=1,IF('Network Analysis'!$DV$18:$DV$1756='Selections '!$C27,'Network Analysis'!$Q$18:$Q$1756))) -> 0 | F27: =SUM(IF('Network Analysis'!$DV$18:$DV$1756='Selections '!$C27,'Network Analysis'!$CV$18:$CV$1756))/Parameters!$I$9 -> 0 | G27: =SUM(IF('Network Analysis'!$DV$18:$DV$1756='Selections '!C27,'Network Analysis'!$EC$18:$EC$1756)) -> 0 | H27: =IF(VLOOKUP(C27,'Rehab Activities'!$C$12:$V$40,20)=0,VLOOKUP(C27,'Rehab Activities'!$C$12:$V$40,11),VLOOKUP(C27,'Rehab Activities'!$C$12:$V$40,20)) -> 37 | I27: 0 | J27: =COUNT(IF(Project_Filter=1,(IF('Network Analysis'!EQ$18:EQ$1756<>2,IF('Network Analysis'!EO$18:EO$1756=$C27,'Network Analysis'!$Q$18:$Q$1756))))) -> 0 | K27: =COUNT(IF(Project_Filter=1,(IF('Network Analysis'!EQ$18:EQ$1756=2,IF('Network Analysis'!EO$18:EO$1756=$C27,'Network Analysis'!$Q$18:$Q$1756))))) -> 3 | L27: =SUM(IF('Network Analysis'!$EO$18:$EO$1756='Selections '!$C27,'Network Analysis'!$EY$18:$EY$1756)) -> 0 | M27: =SUM(IF('Network Analysis'!$EY$18:$EY$1756=1,IF('Network Analysis'!$EO$18:$EO$1756=$C27,'Network Analysis'!$CV$18:$CV$1756)))/Parameters!$I$9 -> 0 | N27: =SUM(IF('Network Analysis'!$EO$18:$EO$1756='Selections '!C27,'Network Analysis'!$EZ$18:$EZ$1756)) -> 0 | O27: =COUNT(IF(Project_Filter=1,(IF('Network Analysis'!FJ$18:FJ$1756<>2,IF('Network Analysis'!FH$18:FH$1756=$C27,'Network Analysis'!$CV$18:$CV$1756))))) -> 0 | P27: =COUNT(IF(Project_Filter=1,(IF('Network Analysis'!FJ$18:FJ$1756=2,IF('Network Analysis'!FH$18:FH$1756=$C27,'Network Analysis'!$CV$18:$CV$1756))))) -> 3 | Q27: =SUM(IF('Network Analysis'!$FH$18:$FH$1756='Selections '!$C27,'Network Analysis'!$FR$18:$FR$1756)) -> 0 | R27: =SUM(IF('Network Analysis'!$FR$18:$FR$1756=1,IF('Network Analysis'!$FH$18:$FH$1756=$C27,'Network Analysis'!$CV$18:$CV$1756)))/Parameters!$I$9 -> 0 | S27: =SUM(IF('Network Analysis'!FR$18:FR$1756=1,IF('Network Analysis'!FH$18:FH$1756=$C27,'Network Analysis'!FP$18:FP$1756))) -> 0 | T27: =COUNT(IF(Project_Filter=1,(IF('Network Analysis'!GC$18:GC$1756<>2,IF('Network Analysis'!GA$18:GA$1756=$C27,'Network Analysis'!$CV$18:$CV$1756))))) -> 0 | U27: =COUNT(IF(Project_Filter=1,(IF('Network Analysis'!GC$18:GC$1756=2,IF('Network Analysis'!GA$18:GA$1756=$C27,'Network Analysis'!$CV$18:$CV$1756))))) -> 3 | V27: =COUNT(IF('Network Analysis'!GK$18:GK$1756=1,IF('Network Analysis'!GA$18:GA$1756=$C27,'Network Analysis'!$CV$18:$CV$1756))) -> 0 | W27: =SUM(IF('Network Analysis'!$GK$18:$GK$1756=1,IF('Network Analysis'!$GA$18:$GA$1756=$C27,'Network Analysis'!$CV$18:$CV$1756)))/Parameters!$I$9 -> 0 | X27: =SUM(IF('Network Analysis'!GK$18:GK$1756=1,IF('Network Analysis'!GA$18:GA$1756=$C27,'Network Analysis'!GI$18:GI$1756))) -> 0 | Y27: =COUNT(IF(Project_Filter=1,(IF('Network Analysis'!GV$18:GV$1756<>2,IF('Network Analysis'!GT$18:GT$1756=$C27,'Network Analysis'!$CV$18:$CV$1756))))) -> 0 | Z27: =COUNT(IF(Project_Filter=1,(IF('Network Analysis'!GV$18:GV$1756=2,IF('Network Analysis'!GT$18:GT$1756=$C27,'Network Analysis'!$CV$18:$CV$1756))))) -> 3 | AA27: =COUNT(IF('Network Analysis'!HD$18:HD$1756=1,IF('Network Analysis'!GT$18:GT$1756=$C27,'Network Analysis'!$CV$18:$CV$1756))) -> 1 | AB27: =SUM(IF('Network Analysis'!$HD$18:$HD$1756=1,IF('Network Analysis'!$GT$18:$GT$1756=$C27,'Network Analysis'!$CV$18:$CV$1756)))/Parameters!$I$9 -> 0.1248806818 | AC27: =SUM(IF('Network Analysis'!HD$18:HD$1756=1,IF('Network Analysis'!GT$18:GT$1756=$C27,'Network Analysis'!HB$18:HB$1756))) -> 62676 | AD27: =COUNT(IF(Project_Filter=1,(IF('Network Analysis'!HO$18:HO$1756<>2,IF('Network Analysis'!HM$18:HM$1756=$C27,'Network Analysis'!$CV$18:$CV$1756))))) -> 0 | AE27: =COUNT(IF(Project_Filter=1,(IF('Network Analysis'!HO$18:HO$1756=2,IF('Network Analysis'!HM$18:HM$1756=$C27,'Network Analysis'!$CV$18:$CV$1756))))) -> 2 | AF27: =COUNT(IF('Network Analysis'!HW$18:HW$1756=1,IF('Network Analysis'!HM$18:HM$1756=$C27,'Network Analysis'!$CV$18:$CV$1756))) -> 2 | AG27: =SUM(IF('Network Analysis'!$HW$18:$HW$1756=1,IF('Network Analysis'!$HM$18:$HM$1756=$C27,'Network Analysis'!$CV$18:$CV$1756)))/Parameters!$I$9 -> 0.3349905303 | AH27: =SUM(IF('Network Analysis'!HW$18:HW$1756=1,IF('Network Analysis'!HM$18:HM$1756=$C27,'Network Analysis'!HU$18:HU$1756))) -> 158220
B28: Composite | C28: ='Rehab Activities'!C29 -> 75 | D28: =VLOOKUP(C28,'Rehab Activities'!$C$12:$D$40,2) -> Full Depth Recon + PCC to Base | E28: =COUNT(IF(Project_Filter=1,IF('Network Analysis'!$DV$18:$DV$1756='Selections '!$C28,'Network Analysis'!$Q$18:$Q$1756))) -> 0 | F28: =SUM(IF('Network Analysis'!$DV$18:$DV$1756='Selections '!$C28,'Network Analysis'!$CV$18:$CV$1756))/Parameters!$I$9 -> 0 | G28: =SUM(IF('Network Analysis'!$DV$18:$DV$1756='Selections '!C28,'Network Analysis'!$EC$18:$EC$1756)) -> 0 | H28: =IF(VLOOKUP(C28,'Rehab Activities'!$C$12:$V$40,20)=0,VLOOKUP(C28,'Rehab Activities'!$C$12:$V$40,11),VLOOKUP(C28,'Rehab Activities'!$C$12:$V$40,20)) -> 37 | I28: 0 | J28: =COUNT(IF(Project_Filter=1,(IF('Network Analysis'!EQ$18:EQ$1756<>2,IF('Network Analysis'!EO$18:EO$1756=$C28,'Network Analysis'!$Q$18:$Q$1756))))) -> 0 | K28: =COUNT(IF(Project_Filter=1,(IF('Network Analysis'!EQ$18:EQ$1756=2,IF('Network Analysis'!EO$18:EO$1756=$C28,'Network Analysis'!$Q$18:$Q$1756))))) -> 0 | L28: =SUM(IF('Network Analysis'!$EO$18:$EO$1756='Selections '!$C28,'Network Analysis'!$EY$18:$EY$1756)) -> 0 | M28: =SUM(IF('Network Analysis'!$EY$18:$EY$1756=1,IF('Network Analysis'!$EO$18:$EO$1756=$C28,'Network Analysis'!$CV$18:$CV$1756)))/Parameters!$I$9 -> 0 | N28: =SUM(IF('Network Analysis'!$EO$18:$EO$1756='Selections '!C28,'Network Analysis'!$EZ$18:$EZ$1756)) -> 0 | O28: =COUNT(IF(Project_Filter=1,(IF('Network Analysis'!FJ$18:FJ$1756<>2,IF('Network Analysis'!FH$18:FH$1756=$C28,'Network Analysis'!$CV$18:$CV$1756))))) -> 0 | P28: =COUNT(IF(Project_Filter=1,(IF('Network Analysis'!FJ$18:FJ$1756=2,IF('Network Analysis'!FH$18:FH$1756=$C28,'Network Analysis'!$CV$18:$CV$1756))))) -> 0 | Q28: =SUM(IF('Network Analysis'!$FH$18:$FH$1756='Selections '!$C28,'Network Analysis'!$FR$18:$FR$1756)) -> 0 | R28: =SUM(IF('Network Analysis'!$FR$18:$FR$1756=1,IF('Network Analysis'!$FH$18:$FH$1756=$C28,'Network Analysis'!$CV$18:$CV$1756)))/Parameters!$I$9 -> 0 | S28: =SUM(IF('Network Analysis'!FR$18:FR$1756=1,IF('Network Analysis'!FH$18:FH$1756=$C28,'Network Analysis'!FP$18:FP$1756))) -> 0 | T28: =COUNT(IF(Project_Filter=1,(IF('Network Analysis'!GC$18:GC$1756<>2,IF('Network Analysis'!GA$18:GA$1756=$C28,'Network Analysis'!$CV$18:$CV$1756))))) -> 0 | U28: =COUNT(IF(Project_Filter=1,(IF('Network Analysis'!GC$18:GC$1756=2,IF('Network Analysis'!GA$18:GA$1756=$C28,'Network Analysis'!$CV$18:$CV$1756))))) -> 0 | V28: =COUNT(IF('Network Analysis'!GK$18:GK$1756=1,IF('Network Analysis'!GA$18:GA$1756=$C28,'Network Analysis'!$CV$18:$CV$1756))) -> 0 | W28: =SUM(IF('Network Analysis'!$GK$18:$GK$1756=1,IF('Network Analysis'!$GA$18:$GA$1756=$C28,'Network Analysis'!$CV$18:$CV$1756)))/Parameters!$I$9 -> 0 | X28: =SUM(IF('Network Analysis'!GK$18:GK$1756=1,IF('Network Analysis'!GA$18:GA$1756=$C28,'Network Analysis'!GI$18:GI$1756))) -> 0 | Y28: =COUNT(IF(Project_Filter=1,(IF('Network Analysis'!GV$18:GV$1756<>2,IF('Network Analysis'!GT$18:GT$1756=$C28,'Network Analysis'!$CV$18:$CV$1756))))) -> 0 | Z28: =COUNT(IF(Project_Filter=1,(IF('Network Analysis'!GV$18:GV$1756=2,IF('Network Analysis'!GT$18:GT$1756=$C28,'Network Analysis'!$CV$18:$CV$1756))))) -> 0 | AA28: =COUNT(IF('Network Analysis'!HD$18:HD$1756=1,IF('Network Analysis'!GT$18:GT$1756=$C28,'Network Analysis'!$CV$18:$CV$1756))) -> 0 | AB28: =SUM(IF('Network Analysis'!$HD$18:$HD$1756=1,IF('Network Analysis'!$GT$18:$GT$1756=$C28,'Network Analysis'!$CV$18:$CV$1756)))/Parameters!$I$9 -> 0 | AC28: =SUM(IF('Network Analysis'!HD$18:HD$1756=1,IF('Network Analysis'!GT$18:GT$1756=$C28,'Network Analysis'!HB$18:HB$1756))) -> 0 | AD28: =COUNT(IF(Project_Filter=1,(IF('Network Analysis'!HO$18:HO$1756<>2,IF('Network Analysis'!HM$18:HM$1756=$C28,'Network Analysis'!$CV$18:$CV$1756))))) -> 0 | AE28: =COUNT(IF(Project_Filter=1,(IF('Network Analysis'!HO$18:HO$1756=2,IF('Network Analysis'!HM$18:HM$1756=$C28,'Network Analysis'!$CV$18:$CV$1756))))) -> 0 | AF28: =COUNT(IF('Network Analysis'!HW$18:HW$1756=1,IF('Network Analysis'!HM$18:HM$1756=$C28,'Network Analysis'!$CV$18:$CV$1756))) -> 0 | AG28: =SUM(IF('Network Analysis'!$HW$18:$HW$1756=1,IF('Network Analysis'!$HM$18:$HM$1756=$C28,'Network Analysis'!$CV$18:$CV$1756)))/Parameters!$I$9 -> 0 | AH28: =SUM(IF('Network Analysis'!HW$18:HW$1756=1,IF('Network Analysis'!HM$18:HM$1756=$C28,'Network Analysis'!HU$18:HU$1756))) -> 0
B29: Concrete | C29: ='Rehab Activities'!C30 -> 510 | D29: =VLOOKUP(C29,'Rehab Activities'!$C$12:$D$40,2) -> PCC Jnt Rehab & Crk Seal | E29: =COUNT(IF(Project_Filter=1,IF('Network Analysis'!$DV$18:$DV$1756='Selections '!$C29,'Network Analysis'!$Q$18:$Q$1756))) -> 161 | F29: =SUM(IF('Network Analysis'!$DV$18:$DV$1756='Selections '!$C29,'Network Analysis'!$CV$18:$CV$1756))/Parameters!$I$9 -> 14.68987121 | G29: =SUM(IF('Network Analysis'!$DV$18:$DV$1756='Selections '!C29,'Network Analysis'!$EC$18:$EC$1756)) -> 298170 | H29: =IF(VLOOKUP(C29,'Rehab Activities'!$C$12:$V$40,20)=0,VLOOKUP(C29,'Rehab Activities'!$C$12:$V$40,11),VLOOKUP(C29,'Rehab Activities'!$C$12:$V$40,20)) -> 2 | I29: 149100 | J29: =COUNT(IF(Project_Filter=1,(IF('Network Analysis'!EQ$18:EQ$1756<>2,IF('Network Analysis'!EO$18:EO$1756=$C29,'Network Analysis'!$Q$18:$Q$1756))))) -> 31 | K29: =COUNT(IF(Project_Filter=1,(IF('Network Analysis'!EQ$18:EQ$1756=2,IF('Network Analysis'!EO$18:EO$1756=$C29,'Network Analysis'!$Q$18:$Q$1756))))) -> 125 | L29: =SUM(IF('Network Analysis'!$EO$18:$EO$1756='Selections '!$C29,'Network Analysis'!$EY$18:$EY$1756)) -> 0 | M29: =SUM(IF('Network Analysis'!$EY$18:$EY$1756=1,IF('Network Analysis'!$EO$18:$EO$1756=$C29,'Network Analysis'!$CV$18:$CV$1756)))/Parameters!$I$9 -> 0 | N29: =SUM(IF('Network Analysis'!$EO$18:$EO$1756='Selections '!C29,'Network Analysis'!$EZ$18:$EZ$1756)) -> 0 | O29: =COUNT(IF(Project_Filter=1,(IF('Network Analysis'!FJ$18:FJ$1756<>2,IF('Network Analysis'!FH$18:FH$1756=$C29,'Network Analysis'!$CV$18:$CV$1756))))) -> 51 | P29: =COUNT(IF(Project_Filter=1,(IF('Network Analysis'!FJ$18:FJ$1756=2,IF('Network Analysis'!FH$18:FH$1756=$C29,'Network Analysis'!$CV$18:$CV$1756))))) -> 131 | Q29: =SUM(IF('Network Analysis'!$FH$18:$FH$1756='Selections '!$C29,'Network Analysis'!$FR$18:$FR$1756)) -> 0 | R29: =SUM(IF('Network Analysis'!$FR$18:$FR$1756=1,IF('Network Analysis'!$FH$18:$FH$1756=$C29,'Network Analysis'!$CV$18:$CV$1756)))/Parameters!$I$9 -> 0 | S29: =SUM(IF('Network Analysis'!FR$18:FR$1756=1,IF('Network Analysis'!FH$18:FH$1756=$C29,'Network Analysis'!FP$18:FP$1756))) -> 0 | T29: =COUNT(IF(Project_Filter=1,(IF('Network Analysis'!GC$18:GC$1756<>2,IF('Network Analysis'!GA$18:GA$1756=$C29,'Network Analysis'!$CV$18:$CV$1756))))) -> 65 | U29: =COUNT(IF(Project_Filter=1,(IF('Network Analysis'!GC$18:GC$1756=2,IF('Network Analysis'!GA$18:GA$1756=$C29,'Network Analysis'!$CV$18:$CV$1756))))) -> 136 | V29: =COUNT(IF('Network Analysis'!GK$18:GK$1756=1,IF('Network Analysis'!GA$18:GA$1756=$C29,'Network Analysis'!$CV$18:$CV$1756))) -> 5 | W29: =SUM(IF('Network Analysis'!$GK$18:$GK$1756=1,IF('Network Analysis'!$GA$18:$GA$1756=$C29,'Network Analysis'!$CV$18:$CV$1756)))/Parameters!$I$9 -> 0.2821950758 | X29: =SUM(IF('Network Analysis'!GK$18:GK$1756=1,IF('Network Analysis'!GA$18:GA$1756=$C29,'Network Analysis'!GI$18:GI$1756))) -> 5236 | Y29: =COUNT(IF(Project_Filter=1,(IF('Network Analysis'!GV$18:GV$1756<>2,IF('Network Analysis'!GT$18:GT$1756=$C29,'Network Analysis'!$CV$18:$CV$1756))))) -> 79 | Z29: =COUNT(IF(Project_Filter=1,(IF('Network Analysis'!GV$18:GV$1756=2,IF('Network Analysis'!GT$18:GT$1756=$C29,'Network Analysis'!$CV$18:$CV$1756))))) -> 121 | AA29: =COUNT(IF('Network Analysis'!HD$18:HD$1756=1,IF('Network Analysis'!GT$18:GT$1756=$C29,'Network Analysis'!$CV$18:$CV$1756))) -> 3 | AB29: =SUM(IF('Network Analysis'!$HD$18:$HD$1756=1,IF('Network Analysis'!$GT$18:$GT$1756=$C29,'Network Analysis'!$CV$18:$CV$1756)))/Parameters!$I$9 -> 0.5141685606 | AC29: =SUM(IF('Network Analysis'!HD$18:HD$1756=1,IF('Network Analysis'!GT$18:GT$1756=$C29,'Network Analysis'!HB$18:HB$1756))) -> 8138 | AD29: =COUNT(IF(Project_Filter=1,(IF('Network Analysis'!HO$18:HO$1756<>2,IF('Network Analysis'!HM$18:HM$1756=$C29,'Network Analysis'!$CV$18:$CV$1756))))) -> 72 | AE29: =COUNT(IF(Project_Filter=1,(IF('Network Analysis'!HO$18:HO$1756=2,IF('Network Analysis'!HM$18:HM$1756=$C29,'Network Analysis'!$CV$18:$CV$1756))))) -> 81 | AF29: =COUNT(IF('Network Analysis'!HW$18:HW$1756=1,IF('Network Analysis'!HM$18:HM$1756=$C29,'Network Analysis'!$CV$18:$CV$1756))) -> 20 | AG29: =SUM(IF('Network Analysis'!$HW$18:$HW$1756=1,IF('Network Analysis'!$HM$18:$HM$1756=$C29,'Network Analysis'!$CV$18:$CV$1756)))/Parameters!$I$9 -> 1.058068182 | AH29: =SUM(IF('Network Analysis'!HW$18:HW$1756=1,IF('Network Analysis'!HM$18:HM$1756=$C29,'Network Analysis'!HU$18:HU$1756))) -> 22257
B30: Concrete | C30: ='Rehab Activities'!C31 -> 520 | D30: =VLOOKUP(C30,'Rehab Activities'!$C$12:$D$40,2) -> PCC Localized Rehab | E30: =COUNT(IF(Project_Filter=1,IF('Network Analysis'!$DV$18:$DV$1756='Selections '!$C30,'Network Analysis'!$Q$18:$Q$1756))) -> 422 | F30: =SUM(IF('Network Analysis'!$DV$18:$DV$1756='Selections '!$C30,'Network Analysis'!$CV$18:$CV$1756))/Parameters!$I$9 -> 41.60405114 | G30: =SUM(IF('Network Analysis'!$DV$18:$DV$1756='Selections '!C30,'Network Analysis'!$EC$18:$EC$1756)) -> 3610670 | H30: =IF(VLOOKUP(C30,'Rehab Activities'!$C$12:$V$40,20)=0,VLOOKUP(C30,'Rehab Activities'!$C$12:$V$40,11),VLOOKUP(C30,'Rehab Activities'!$C$12:$V$40,20)) -> 10 | I30: 361100 | J30: =COUNT(IF(Project_Filter=1,(IF('Network Analysis'!EQ$18:EQ$1756<>2,IF('Network Analysis'!EO$18:EO$1756=$C30,'Network Analysis'!$Q$18:$Q$1756))))) -> 210 | K30: =COUNT(IF(Project_Filter=1,(IF('Network Analysis'!EQ$18:EQ$1756=2,IF('Network Analysis'!EO$18:EO$1756=$C30,'Network Analysis'!$Q$18:$Q$1756))))) -> 187 | L30: =SUM(IF('Network Analysis'!$EO$18:$EO$1756='Selections '!$C30,'Network Analysis'!$EY$18:$EY$1756)) -> 0 | M30: =SUM(IF('Network Analysis'!$EY$18:$EY$1756=1,IF('Network Analysis'!$EO$18:$EO$1756=$C30,'Network Analysis'!$CV$18:$CV$1756)))/Parameters!$I$9 -> 0 | N30: =SUM(IF('Network Analysis'!$EO$18:$EO$1756='Selections '!C30,'Network Analysis'!$EZ$18:$EZ$1756)) -> 0 | O30: =COUNT(IF(Project_Filter=1,(IF('Network Analysis'!FJ$18:FJ$1756<>2,IF('Network Analysis'!FH$18:FH$1756=$C30,'Network Analysis'!$CV$18:$CV$1756))))) -> 163 | P30: =COUNT(IF(Project_Filter=1,(IF('Network Analysis'!FJ$18:FJ$1756=2,IF('Network Analysis'!FH$18:FH$1756=$C30,'Network Analysis'!$CV$18:$CV$1756))))) -> 168 | Q30: =SUM(IF('Network Analysis'!$FH$18:$FH$1756='Selections '!$C30,'Network Analysis'!$FR$18:$FR$1756)) -> 0 | R30: =SUM(IF('Network Analysis'!$FR$18:$FR$1756=1,IF('Network Analysis'!$FH$18:$FH$1756=$C30,'Network Analysis'!$CV$18:$CV$1756)))/Parameters!$I$9 -> 0 | S30: =SUM(IF('Network Analysis'!FR$18:FR$1756=1,IF('Network Analysis'!FH$18:FH$1756=$C30,'Network Analysis'!FP$18:FP$1756))) -> 0 | T30: =COUNT(IF(Project_Filter=1,(IF('Network Analysis'!GC$18:GC$1756<>2,IF('Network Analysis'!GA$18:GA$1756=$C30,'Network Analysis'!$CV$18:$CV$1756))))) -> 124 | U30: =COUNT(IF(Project_Filter=1,(IF('Network Analysis'!GC$18:GC$1756=2,IF('Network Analysis'!GA$18:GA$1756=$C30,'Network Analysis'!$CV$18:$CV$1756))))) -> 173 | V30: =COUNT(IF('Network Analysis'!GK$18:GK$1756=1,IF('Network Analysis'!GA$18:GA$1756=$C30,'Network Analysis'!$CV$18:$CV$1756))) -> 0 | W30: =SUM(IF('Network Analysis'!$GK$18:$GK$1756=1,IF('Network Analysis'!$GA$18:$GA$1756=$C30,'Network Analysis'!$CV$18:$CV$1756)))/Parameters!$I$9 -> 0 | X30: =SUM(IF('Network Analysis'!GK$18:GK$1756=1,IF('Network Analysis'!GA$18:GA$1756=$C30,'Network Analysis'!GI$18:GI$1756))) -> 0 | Y30: =COUNT(IF(Project_Filter=1,(IF('Network Analysis'!GV$18:GV$1756<>2,IF('Network Analysis'!GT$18:GT$1756=$C30,'Network Analysis'!$CV$18:$CV$1756))))) -> 91 | Z30: =COUNT(IF(Project_Filter=1,(IF('Network Analysis'!GV$18:GV$1756=2,IF('Network Analysis'!GT$18:GT$1756=$C30,'Network Analysis'!$CV$18:$CV$1756))))) -> 144 | AA30: =COUNT(IF('Network Analysis'!HD$18:HD$1756=1,IF('Network Analysis'!GT$18:GT$1756=$C30,'Network Analysis'!$CV$18:$CV$1756))) -> 0 | AB30: =SUM(IF('Network Analysis'!$HD$18:$HD$1756=1,IF('Network Analysis'!$GT$18:$GT$1756=$C30,'Network Analysis'!$CV$18:$CV$1756)))/Parameters!$I$9 -> 0 | AC30: =SUM(IF('Network Analysis'!HD$18:HD$1756=1,IF('Network Analysis'!GT$18:GT$1756=$C30,'Network Analysis'!HB$18:HB$1756))) -> 0 | AD30: =COUNT(IF(Project_Filter=1,(IF('Network Analysis'!HO$18:HO$1756<>2,IF('Network Analysis'!HM$18:HM$1756=$C30,'Network Analysis'!$CV$18:$CV$1756))))) -> 58 | AE30: =COUNT(IF(Project_Filter=1,(IF('Network Analysis'!HO$18:HO$1756=2,IF('Network Analysis'!HM$18:HM$1756=$C30,'Network Analysis'!$CV$18:$CV$1756))))) -> 179 | AF30: =COUNT(IF('Network Analysis'!HW$18:HW$1756=1,IF('Network Analysis'!HM$18:HM$1756=$C30,'Network Analysis'!$CV$18:$CV$1756))) -> 4 | AG30: =SUM(IF('Network Analysis'!$HW$18:$HW$1756=1,IF('Network Analysis'!$HM$18:$HM$1756=$C30,'Network Analysis'!$CV$18:$CV$1756)))/Parameters!$I$9 -> 0.8136079545 | AH30: =SUM(IF('Network Analysis'!HW$18:HW$1756=1,IF('Network Analysis'!HM$18:HM$1756=$C30,'Network Analysis'!HU$18:HU$1756))) -> 70882
B31: Concrete | C31: ='Rehab Activities'!C32 -> 523 | D31: =VLOOKUP(C31,'Rehab Activities'!$C$12:$D$40,2) -> PCC Localized Rehab + Grind | E31: =COUNT(IF(Project_Filter=1,IF('Network Analysis'!$DV$18:$DV$1756='Selections '!$C31,'Network Analysis'!$Q$18:$Q$1756))) -> 0 | F31: =SUM(IF('Network Analysis'!$DV$18:$DV$1756='Selections '!$C31,'Network Analysis'!$CV$18:$CV$1756))/Parameters!$I$9 -> 0 | G31: =SUM(IF('Network Analysis'!$DV$18:$DV$1756='Selections '!C31,'Network Analysis'!$EC$18:$EC$1756)) -> 0 | H31: =IF(VLOOKUP(C31,'Rehab Activities'!$C$12:$V$40,20)=0,VLOOKUP(C31,'Rehab Activities'!$C$12:$V$40,11),VLOOKUP(C31,'Rehab Activities'!$C$12:$V$40,20)) -> 10 | I31: 0 | J31: =COUNT(IF(Project_Filter=1,(IF('Network Analysis'!EQ$18:EQ$1756<>2,IF('Network Analysis'!EO$18:EO$1756=$C31,'Network Analysis'!$Q$18:$Q$1756))))) -> 0 | K31: =COUNT(IF(Project_Filter=1,(IF('Network Analysis'!EQ$18:EQ$1756=2,IF('Network Analysis'!EO$18:EO$1756=$C31,'Network Analysis'!$Q$18:$Q$1756))))) -> 0 | L31: =SUM(IF('Network Analysis'!$EO$18:$EO$1756='Selections '!$C31,'Network Analysis'!$EY$18:$EY$1756)) -> 0 | M31: =SUM(IF('Network Analysis'!$EY$18:$EY$1756=1,IF('Network Analysis'!$EO$18:$EO$1756=$C31,'Network Analysis'!$CV$18:$CV$1756)))/Parameters!$I$9 -> 0 | N31: =SUM(IF('Network Analysis'!$EO$18:$EO$1756='Selections '!C31,'Network Analysis'!$EZ$18:$EZ$1756)) -> 0 | O31: =COUNT(IF(Project_Filter=1,(IF('Network Analysis'!FJ$18:FJ$1756<>2,IF('Network Analysis'!FH$18:FH$1756=$C31,'Network Analysis'!$CV$18:$CV$1756))))) -> 0 | P31: =COUNT(IF(Project_Filter=1,(IF('Network Analysis'!FJ$18:FJ$1756=2,IF('Network Analysis'!FH$18:FH$1756=$C31,'Network Analysis'!$CV$18:$CV$1756))))) -> 0 | Q31: =SUM(IF('Network Analysis'!$FH$18:$FH$1756='Selections '!$C31,'Network Analysis'!$FR$18:$FR$1756)) -> 0 | R31: =SUM(IF('Network Analysis'!$FR$18:$FR$1756=1,IF('Network Analysis'!$FH$18:$FH$1756=$C31,'Network Analysis'!$CV$18:$CV$1756)))/Parameters!$I$9 -> 0 | S31: =SUM(IF('Network Analysis'!FR$18:FR$1756=1,IF('Network Analysis'!FH$18:FH$1756=$C31,'Network Analysis'!FP$18:FP$1756))) -> 0 | T31: =COUNT(IF(Project_Filter=1,(IF('Network Analysis'!GC$18:GC$1756<>2,IF('Network Analysis'!GA$18:GA$1756=$C31,'Network Analysis'!$CV$18:$CV$1756))))) -> 0 | U31: =COUNT(IF(Project_Filter=1,(IF('Network Analysis'!GC$18:GC$1756=2,IF('Network Analysis'!GA$18:GA$1756=$C31,'Network Analysis'!$CV$18:$CV$1756))))) -> 0 | V31: =COUNT(IF('Network Analysis'!GK$18:GK$1756=1,IF('Network Analysis'!GA$18:GA$1756=$C31,'Network Analysis'!$CV$18:$CV$1756))) -> 0 | W31: =SUM(IF('Network Analysis'!$GK$18:$GK$1756=1,IF('Network Analysis'!$GA$18:$GA$1756=$C31,'Network Analysis'!$CV$18:$CV$1756)))/Parameters!$I$9 -> 0 | X31: =SUM(IF('Network Analysis'!GK$18:GK$1756=1,IF('Network Analysis'!GA$18:GA$1756=$C31,'Network Analysis'!GI$18:GI$1756))) -> 0 | Y31: =COUNT(IF(Project_Filter=1,(IF('Network Analysis'!GV$18:GV$1756<>2,IF('Network Analysis'!GT$18:GT$1756=$C31,'Network Analysis'!$CV$18:$CV$1756))))) -> 0 | Z31: =COUNT(IF(Project_Filter=1,(IF('Network Analysis'!GV$18:GV$1756=2,IF('Network Analysis'!GT$18:GT$1756=$C31,'Network Analysis'!$CV$18:$CV$1756))))) -> 0 | AA31: =COUNT(IF('Network Analysis'!HD$18:HD$1756=1,IF('Network Analysis'!GT$18:GT$1756=$C31,'Network Analysis'!$CV$18:$CV$1756))) -> 0 | AB31: =SUM(IF('Network Analysis'!$HD$18:$HD$1756=1,IF('Network Analysis'!$GT$18:$GT$1756=$C31,'Network Analysis'!$CV$18:$CV$1756)))/Parameters!$I$9 -> 0 | AC31: =SUM(IF('Network Analysis'!HD$18:HD$1756=1,IF('Network Analysis'!GT$18:GT$1756=$C31,'Network Analysis'!HB$18:HB$1756))) -> 0 | AD31: =COUNT(IF(Project_Filter=1,(IF('Network Analysis'!HO$18:HO$1756<>2,IF('Network Analysis'!HM$18:HM$1756=$C31,'Network Analysis'!$CV$18:$CV$1756))))) -> 0 | AE31: =COUNT(IF(Project_Filter=1,(IF('Network Analysis'!HO$18:HO$1756=2,IF('Network Analysis'!HM$18:HM$1756=$C31,'Network Analysis'!$CV$18:$CV$1756))))) -> 0 | AF31: =COUNT(IF('Network Analysis'!HW$18:HW$1756=1,IF('Network Analysis'!HM$18:HM$1756=$C31,'Network Analysis'!$CV$18:$CV$1756))) -> 0 | AG31: =SUM(IF('Network Analysis'!$HW$18:$HW$1756=1,IF('Network Analysis'!$HM$18:$HM$1756=$C31,'Network Analysis'!$CV$18:$CV$1756)))/Parameters!$I$9 -> 0 | AH31: =SUM(IF('Network Analysis'!HW$18:HW$1756=1,IF('Network Analysis'!HM$18:HM$1756=$C31,'Network Analysis'!HU$18:HU$1756))) -> 0
B32: Concrete | C32: ='Rehab Activities'!C33 -> 530 | D32: =VLOOKUP(C32,'Rehab Activities'!$C$12:$D$40,2) -> PCC Slight Pnl Rplcmnt (<10%) | E32: =COUNT(IF(Project_Filter=1,IF('Network Analysis'!$DV$18:$DV$1756='Selections '!$C32,'Network Analysis'!$Q$18:$Q$1756))) -> 705 | F32: =SUM(IF('Network Analysis'!$DV$18:$DV$1756='Selections '!$C32,'Network Analysis'!$CV$18:$CV$1756))/Parameters!$I$9 -> 65.94222538 | G32: =SUM(IF('Network Analysis'!$DV$18:$DV$1756='Selections '!C32,'Network Analysis'!$EC$18:$EC$1756)) -> 17545960 | H32: =IF(VLOOKUP(C32,'Rehab Activities'!$C$12:$V$40,20)=0,VLOOKUP(C32,'Rehab Activities'!$C$12:$V$40,11),VLOOKUP(C32,'Rehab Activities'!$C$12:$V$40,20)) -> 23 | I32: 762900 | J32: =COUNT(IF(Project_Filter=1,(IF('Network Analysis'!EQ$18:EQ$1756<>2,IF('Network Analysis'!EO$18:EO$1756=$C32,'Network Analysis'!$Q$18:$Q$1756))))) -> 193 | K32: =COUNT(IF(Project_Filter=1,(IF('Network Analysis'!EQ$18:EQ$1756=2,IF('Network Analysis'!EO$18:EO$1756=$C32,'Network Analysis'!$Q$18:$Q$1756))))) -> 532 | L32: =SUM(IF('Network Analysis'!$EO$18:$EO$1756='Selections '!$C32,'Network Analysis'!$EY$18:$EY$1756)) -> 0 | M32: =SUM(IF('Network Analysis'!$EY$18:$EY$1756=1,IF('Network Analysis'!$EO$18:$EO$1756=$C32,'Network Analysis'!$CV$18:$CV$1756)))/Parameters!$I$9 -> 0 | N32: =SUM(IF('Network Analysis'!$EO$18:$EO$1756='Selections '!C32,'Network Analysis'!$EZ$18:$EZ$1756)) -> 0 | O32: =COUNT(IF(Project_Filter=1,(IF('Network Analysis'!FJ$18:FJ$1756<>2,IF('Network Analysis'!FH$18:FH$1756=$C32,'Network Analysis'!$CV$18:$CV$1756))))) -> 221 | P32: =COUNT(IF(Project_Filter=1,(IF('Network Analysis'!FJ$18:FJ$1756=2,IF('Network Analysis'!FH$18:FH$1756=$C32,'Network Analysis'!$CV$18:$CV$1756))))) -> 535 | Q32: =SUM(IF('Network Analysis'!$FH$18:$FH$1756='Selections '!$C32,'Network Analysis'!$FR$18:$FR$1756)) -> 0 | R32: =SUM(IF('Network Analysis'!$FR$18:$FR$1756=1,IF('Network Analysis'!$FH$18:$FH$1756=$C32,'Network Analysis'!$CV$18:$CV$1756)))/Parameters!$I$9 -> 0 | S32: =SUM(IF('Network Analysis'!FR$18:FR$1756=1,IF('Network Analysis'!FH$18:FH$1756=$C32,'Network Analysis'!FP$18:FP$1756))) -> 0 | T32: =COUNT(IF(Project_Filter=1,(IF('Network Analysis'!GC$18:GC$1756<>2,IF('Network Analysis'!GA$18:GA$1756=$C32,'Network Analysis'!$CV$18:$CV$1756))))) -> 255 | U32: =COUNT(IF(Project_Filter=1,(IF('Network Analysis'!GC$18:GC$1756=2,IF('Network Analysis'!GA$18:GA$1756=$C32,'Network Analysis'!$CV$18:$CV$1756))))) -> 450 | V32: =COUNT(IF('Network Analysis'!GK$18:GK$1756=1,IF('Network Analysis'!GA$18:GA$1756=$C32,'Network Analysis'!$CV$18:$CV$1756))) -> 0 | W32: =SUM(IF('Network Analysis'!$GK$18:$GK$1756=1,IF('Network Analysis'!$GA$18:$GA$1756=$C32,'Network Analysis'!$CV$18:$CV$1756)))/Parameters!$I$9 -> 0 | X32: =SUM(IF('Network Analysis'!GK$18:GK$1756=1,IF('Network Analysis'!GA$18:GA$1756=$C32,'Network Analysis'!GI$18:GI$1756))) -> 0 | Y32: =COUNT(IF(Project_Filter=1,(IF('Network Analysis'!GV$18:GV$1756<>2,IF('Network Analysis'!GT$18:GT$1756=$C32,'Network Analysis'!$CV$18:$CV$1756))))) -> 197 | Z32: =COUNT(IF(Project_Filter=1,(IF('Network Analysis'!GV$18:GV$1756=2,IF('Network Analysis'!GT$18:GT$1756=$C32,'Network Analysis'!$CV$18:$CV$1756))))) -> 479 | AA32: =COUNT(IF('Network Analysis'!HD$18:HD$1756=1,IF('Network Analysis'!GT$18:GT$1756=$C32,'Network Analysis'!$CV$18:$CV$1756))) -> 0 | AB32: =SUM(IF('Network Analysis'!$HD$18:$HD$1756=1,IF('Network Analysis'!$GT$18:$GT$1756=$C32,'Network Analysis'!$CV$18:$CV$1756)))/Parameters!$I$9 -> 0 | AC32: =SUM(IF('Network Analysis'!HD$18:HD$1756=1,IF('Network Analysis'!GT$18:GT$1756=$C32,'Network Analysis'!HB$18:HB$1756))) -> 0 | AD32: =COUNT(IF(Project_Filter=1,(IF('Network Analysis'!HO$18:HO$1756<>2,IF('Network Analysis'!HM$18:HM$1756=$C32,'Network Analysis'!$CV$18:$CV$1756))))) -> 182 | AE32: =COUNT(IF(Project_Filter=1,(IF('Network Analysis'!HO$18:HO$1756=2,IF('Network Analysis'!HM$18:HM$1756=$C32,'Network Analysis'!$CV$18:$CV$1756))))) -> 425 | AF32: =COUNT(IF('Network Analysis'!HW$18:HW$1756=1,IF('Network Analysis'!HM$18:HM$1756=$C32,'Network Analysis'!$CV$18:$CV$1756))) -> 0 | AG32: =SUM(IF('Network Analysis'!$HW$18:$HW$1756=1,IF('Network Analysis'!$HM$18:$HM$1756=$C32,'Network Analysis'!$CV$18:$CV$1756)))/Parameters!$I$9 -> 0 | AH32: =SUM(IF('Network Analysis'!HW$18:HW$1756=1,IF('Network Analysis'!HM$18:HM$1756=$C32,'Network Analysis'!HU$18:HU$1756))) -> 0
B33: Concrete | C33: ='Rehab Activities'!C34 -> 533 | D33: =VLOOKUP(C33,'Rehab Activities'!$C$12:$D$40,2) -> PCC Slight Pnl Rplcmnt (<10%) + Grind | E33: =COUNT(IF(Project_Filter=1,IF('Network Analysis'!$DV$18:$DV$1756='Selections '!$C33,'Network Analysis'!$Q$18:$Q$1756))) -> 18 | F33: =SUM(IF('Network Analysis'!$DV$18:$DV$1756='Selections '!$C33,'Network Analysis'!$CV$18:$CV$1756))/Parameters!$I$9 -> 1.501893939 | G33: =SUM(IF('Network Analysis'!$DV$18:$DV$1756='Selections '!C33,'Network Analysis'!$EC$18:$EC$1756)) -> 531830 | H33: =IF(VLOOKUP(C33,'Rehab Activities'!$C$12:$V$40,20)=0,VLOOKUP(C33,'Rehab Activities'!$C$12:$V$40,11),VLOOKUP(C33,'Rehab Activities'!$C$12:$V$40,20)) -> 23 | I33: 23100 | J33: =COUNT(IF(Project_Filter=1,(IF('Network Analysis'!EQ$18:EQ$1756<>2,IF('Network Analysis'!EO$18:EO$1756=$C33,'Network Analysis'!$Q$18:$Q$1756))))) -> 17 | K33: =COUNT(IF(Project_Filter=1,(IF('Network Analysis'!EQ$18:EQ$1756=2,IF('Network Analysis'!EO$18:EO$1756=$C33,'Network Analysis'!$Q$18:$Q$1756))))) -> 1 | L33: =SUM(IF('Network Analysis'!$EO$18:$EO$1756='Selections '!$C33,'Network Analysis'!$EY$18:$EY$1756)) -> 0 | M33: =SUM(IF('Network Analysis'!$EY$18:$EY$1756=1,IF('Network Analysis'!$EO$18:$EO$1756=$C33,'Network Analysis'!$CV$18:$CV$1756)))/Parameters!$I$9 -> 0 | N33: =SUM(IF('Network Analysis'!$EO$18:$EO$1756='Selections '!C33,'Network Analysis'!$EZ$18:$EZ$1756)) -> 0 | O33: =COUNT(IF(Project_Filter=1,(IF('Network Analysis'!FJ$18:FJ$1756<>2,IF('Network Analysis'!FH$18:FH$1756=$C33,'Network Analysis'!$CV$18:$CV$1756))))) -> 5 | P33: =COUNT(IF(Project_Filter=1,(IF('Network Analysis'!FJ$18:FJ$1756=2,IF('Network Analysis'!FH$18:FH$1756=$C33,'Network Analysis'!$CV$18:$CV$1756))))) -> 0 | Q33: =SUM(IF('Network Analysis'!$FH$18:$FH$1756='Selections '!$C33,'Network Analysis'!$FR$18:$FR$1756)) -> 0 | R33: =SUM(IF('Network Analysis'!$FR$18:$FR$1756=1,IF('Network Analysis'!$FH$18:$FH$1756=$C33,'Network Analysis'!$CV$18:$CV$1756)))/Parameters!$I$9 -> 0 | S33: =SUM(IF('Network Analysis'!FR$18:FR$1756=1,IF('Network Analysis'!FH$18:FH$1756=$C33,'Network Analysis'!FP$18:FP$1756))) -> 0 | T33: =COUNT(IF(Project_Filter=1,(IF('Network Analysis'!GC$18:GC$1756<>2,IF('Network Analysis'!GA$18:GA$1756=$C33,'Network Analysis'!$CV$18:$CV$1756))))) -> 1 | U33: =COUNT(IF(Project_Filter=1,(IF('Network Analysis'!GC$18:GC$1756=2,IF('Network Analysis'!GA$18:GA$1756=$C33,'Network Analysis'!$CV$18:$CV$1756))))) -> 0 | V33: =COUNT(IF('Network Analysis'!GK$18:GK$1756=1,IF('Network Analysis'!GA$18:GA$1756=$C33,'Network Analysis'!$CV$18:$CV$1756))) -> 0 | W33: =SUM(IF('Network Analysis'!$GK$18:$GK$1756=1,IF('Network Analysis'!$GA$18:$GA$1756=$C33,'Network Analysis'!$CV$18:$CV$1756)))/Parameters!$I$9 -> 0 | X33: =SUM(IF('Network Analysis'!GK$18:GK$1756=1,IF('Network Analysis'!GA$18:GA$1756=$C33,'Network Analysis'!GI$18:GI$1756))) -> 0 | Y33: =COUNT(IF(Project_Filter=1,(IF('Network Analysis'!GV$18:GV$1756<>2,IF('Network Analysis'!GT$18:GT$1756=$C33,'Network Analysis'!$CV$18:$CV$1756))))) -> 0 | Z33: =COUNT(IF(Project_Filter=1,(IF('Network Analysis'!GV$18:GV$1756=2,IF('Network Analysis'!GT$18:GT$1756=$C33,'Network Analysis'!$CV$18:$CV$1756))))) -> 0 | AA33: =COUNT(IF('Network Analysis'!HD$18:HD$1756=1,IF('Network Analysis'!GT$18:GT$1756=$C33,'Network Analysis'!$CV$18:$CV$1756))) -> 0 | AB33: =SUM(IF('Network Analysis'!$HD$18:$HD$1756=1,IF('Network Analysis'!$GT$18:$GT$1756=$C33,'Network Analysis'!$CV$18:$CV$1756)))/Parameters!$I$9 -> 0 | AC33: =SUM(IF('Network Analysis'!HD$18:HD$1756=1,IF('Network Analysis'!GT$18:GT$1756=$C33,'Network Analysis'!HB$18:HB$1756))) -> 0 | AD33: =COUNT(IF(Project_Filter=1,(IF('Network Analysis'!HO$18:HO$1756<>2,IF('Network Analysis'!HM$18:HM$1756=$C33,'Network Analysis'!$CV$18:$CV$1756))))) -> 0 | AE33: =COUNT(IF(Project_Filter=1,(IF('Network Analysis'!HO$18:HO$1756=2,IF('Network Analysis'!HM$18:HM$1756=$C33,'Network Analysis'!$CV$18:$CV$1756))))) -> 0 | AF33: =COUNT(IF('Network Analysis'!HW$18:HW$1756=1,IF('Network Analysis'!HM$18:HM$1756=$C33,'Network Analysis'!$CV$18:$CV$1756))) -> 0 | AG33: =SUM(IF('Network Analysis'!$HW$18:$HW$1756=1,IF('Network Analysis'!$HM$18:$HM$1756=$C33,'Network Analysis'!$CV$18:$CV$1756)))/Parameters!$I$9 -> 0 | AH33: =SUM(IF('Network Analysis'!HW$18:HW$1756=1,IF('Network Analysis'!HM$18:HM$1756=$C33,'Network Analysis'!HU$18:HU$1756))) -> 0
B34: Concrete | C34: ='Rehab Activities'!C35 -> 540 | D34: =VLOOKUP(C34,'Rehab Activities'!$C$12:$D$40,2) -> PCC Moderate Pnl Rplcmnt (< 20%) | E34: =COUNT(IF(Project_Filter=1,IF('Network Analysis'!$DV$18:$DV$1756='Selections '!$C34,'Network Analysis'!$Q$18:$Q$1756))) -> 98 | F34: =SUM(IF('Network Analysis'!$DV$18:$DV$1756='Selections '!$C34,'Network Analysis'!$CV$18:$CV$1756))/Parameters!$I$9 -> 10.18601326 | G34: =SUM(IF('Network Analysis'!$DV$18:$DV$1756='Selections '!C34,'Network Analysis'!$EC$18:$EC$1756)) -> 5342890 | H34: =IF(VLOOKUP(C34,'Rehab Activities'!$C$12:$V$40,20)=0,VLOOKUP(C34,'Rehab Activities'!$C$12:$V$40,11),VLOOKUP(C34,'Rehab Activities'!$C$12:$V$40,20)) -> 31 | I34: 172400 | J34: =COUNT(IF(Project_Filter=1,(IF('Network Analysis'!EQ$18:EQ$1756<>2,IF('Network Analysis'!EO$18:EO$1756=$C34,'Network Analysis'!$Q$18:$Q$1756))))) -> 8 | K34: =COUNT(IF(Project_Filter=1,(IF('Network Analysis'!EQ$18:EQ$1756=2,IF('Network Analysis'!EO$18:EO$1756=$C34,'Network Analysis'!$Q$18:$Q$1756))))) -> 104 | L34: =SUM(IF('Network Analysis'!$EO$18:$EO$1756='Selections '!$C34,'Network Analysis'!$EY$18:$EY$1756)) -> 0 | M34: =SUM(IF('Network Analysis'!$EY$18:$EY$1756=1,IF('Network Analysis'!$EO$18:$EO$1756=$C34,'Network Analysis'!$CV$18:$CV$1756)))/Parameters!$I$9 -> 0 | N34: =SUM(IF('Network Analysis'!$EO$18:$EO$1756='Selections '!C34,'Network Analysis'!$EZ$18:$EZ$1756)) -> 0 | O34: =COUNT(IF(Project_Filter=1,(IF('Network Analysis'!FJ$18:FJ$1756<>2,IF('Network Analysis'!FH$18:FH$1756=$C34,'Network Analysis'!$CV$18:$CV$1756))))) -> 17 | P34: =COUNT(IF(Project_Filter=1,(IF('Network Analysis'!FJ$18:FJ$1756=2,IF('Network Analysis'!FH$18:FH$1756=$C34,'Network Analysis'!$CV$18:$CV$1756))))) -> 152 | Q34: =SUM(IF('Network Analysis'!$FH$18:$FH$1756='Selections '!$C34,'Network Analysis'!$FR$18:$FR$1756)) -> 0 | R34: =SUM(IF('Network Analysis'!$FR$18:$FR$1756=1,IF('Network Analysis'!$FH$18:$FH$1756=$C34,'Network Analysis'!$CV$18:$CV$1756)))/Parameters!$I$9 -> 0 | S34: =SUM(IF('Network Analysis'!FR$18:FR$1756=1,IF('Network Analysis'!FH$18:FH$1756=$C34,'Network Analysis'!FP$18:FP$1756))) -> 0 | T34: =COUNT(IF(Project_Filter=1,(IF('Network Analysis'!GC$18:GC$1756<>2,IF('Network Analysis'!GA$18:GA$1756=$C34,'Network Analysis'!$CV$18:$CV$1756))))) -> 24 | U34: =COUNT(IF(Project_Filter=1,(IF('Network Analysis'!GC$18:GC$1756=2,IF('Network Analysis'!GA$18:GA$1756=$C34,'Network Analysis'!$CV$18:$CV$1756))))) -> 242 | V34: =COUNT(IF('Network Analysis'!GK$18:GK$1756=1,IF('Network Analysis'!GA$18:GA$1756=$C34,'Network Analysis'!$CV$18:$CV$1756))) -> 0 | W34: =SUM(IF('Network Analysis'!$GK$18:$GK$1756=1,IF('Network Analysis'!$GA$18:$GA$1756=$C34,'Network Analysis'!$CV$18:$CV$1756)))/Parameters!$I$9 -> 0 | X34: =SUM(IF('Network Analysis'!GK$18:GK$1756=1,IF('Network Analysis'!GA$18:GA$1756=$C34,'Network Analysis'!GI$18:GI$1756))) -> 0 | Y34: =COUNT(IF(Project_Filter=1,(IF('Network Analysis'!GV$18:GV$1756<>2,IF('Network Analysis'!GT$18:GT$1756=$C34,'Network Analysis'!$CV$18:$CV$1756))))) -> 47 | Z34: =COUNT(IF(Project_Filter=1,(IF('Network Analysis'!GV$18:GV$1756=2,IF('Network Analysis'!GT$18:GT$1756=$C34,'Network Analysis'!$CV$18:$CV$1756))))) -> 316 | AA34: =COUNT(IF('Network Analysis'!HD$18:HD$1756=1,IF('Network Analysis'!GT$18:GT$1756=$C34,'Network Analysis'!$CV$18:$CV$1756))) -> 0 | AB34: =SUM(IF('Network Analysis'!$HD$18:$HD$1756=1,IF('Network Analysis'!$GT$18:$GT$1756=$C34,'Network Analysis'!$CV$18:$CV$1756)))/Parameters!$I$9 -> 0 | AC34: =SUM(IF('Network Analysis'!HD$18:HD$1756=1,IF('Network Analysis'!GT$18:GT$1756=$C34,'Network Analysis'!HB$18:HB$1756))) -> 0 | AD34: =COUNT(IF(Project_Filter=1,(IF('Network Analysis'!HO$18:HO$1756<>2,IF('Network Analysis'!HM$18:HM$1756=$C34,'Network Analysis'!$CV$18:$CV$1756))))) -> 74 | AE34: =COUNT(IF(Project_Filter=1,(IF('Network Analysis'!HO$18:HO$1756=2,IF('Network Analysis'!HM$18:HM$1756=$C34,'Network Analysis'!$CV$18:$CV$1756))))) -> 391 | AF34: =COUNT(IF('Network Analysis'!HW$18:HW$1756=1,IF('Network Analysis'!HM$18:HM$1756=$C34,'Network Analysis'!$CV$18:$CV$1756))) -> 12 | AG34: =SUM(IF('Network Analysis'!$HW$18:$HW$1756=1,IF('Network Analysis'!$HM$18:$HM$1756=$C34,'Network Analysis'!$CV$18:$CV$1756)))/Parameters!$I$9 -> 1.17219697 | AH34: =SUM(IF('Network Analysis'!HW$18:HW$1756=1,IF('Network Analysis'!HM$18:HM$1756=$C34,'Network Analysis'!HU$18:HU$1756))) -> 616873
B35: Concrete | C35: ='Rehab Activities'!C36 -> 543 | D35: =VLOOKUP(C35,'Rehab Activities'!$C$12:$D$40,2) -> PCC Moderate Pnl Rplcmnt (< 20%) + Grind | E35: =COUNT(IF(Project_Filter=1,IF('Network Analysis'!$DV$18:$DV$1756='Selections '!$C35,'Network Analysis'!$Q$18:$Q$1756))) -> 26 | F35: =SUM(IF('Network Analysis'!$DV$18:$DV$1756='Selections '!$C35,'Network Analysis'!$CV$18:$CV$1756))/Parameters!$I$9 -> 2.496799242 | G35: =SUM(IF('Network Analysis'!$DV$18:$DV$1756='Selections '!C35,'Network Analysis'!$EC$18:$EC$1756)) -> 1490940 | H35: =IF(VLOOKUP(C35,'Rehab Activities'!$C$12:$V$40,20)=0,VLOOKUP(C35,'Rehab Activities'!$C$12:$V$40,11),VLOOKUP(C35,'Rehab Activities'!$C$12:$V$40,20)) -> 31 | I35: 48100 | J35: =COUNT(IF(Project_Filter=1,(IF('Network Analysis'!EQ$18:EQ$1756<>2,IF('Network Analysis'!EO$18:EO$1756=$C35,'Network Analysis'!$Q$18:$Q$1756))))) -> 5 | K35: =COUNT(IF(Project_Filter=1,(IF('Network Analysis'!EQ$18:EQ$1756=2,IF('Network Analysis'!EO$18:EO$1756=$C35,'Network Analysis'!$Q$18:$Q$1756))))) -> 21 | L35: =SUM(IF('Network Analysis'!$EO$18:$EO$1756='Selections '!$C35,'Network Analysis'!$EY$18:$EY$1756)) -> 0 | M35: =SUM(IF('Network Analysis'!$EY$18:$EY$1756=1,IF('Network Analysis'!$EO$18:$EO$1756=$C35,'Network Analysis'!$CV$18:$CV$1756)))/Parameters!$I$9 -> 0 | N35: =SUM(IF('Network Analysis'!$EO$18:$EO$1756='Selections '!C35,'Network Analysis'!$EZ$18:$EZ$1756)) -> 0 | O35: =COUNT(IF(Project_Filter=1,(IF('Network Analysis'!FJ$18:FJ$1756<>2,IF('Network Analysis'!FH$18:FH$1756=$C35,'Network Analysis'!$CV$18:$CV$1756))))) -> 9 | P35: =COUNT(IF(Project_Filter=1,(IF('Network Analysis'!FJ$18:FJ$1756=2,IF('Network Analysis'!FH$18:FH$1756=$C35,'Network Analysis'!$CV$18:$CV$1756))))) -> 30 | Q35: =SUM(IF('Network Analysis'!$FH$18:$FH$1756='Selections '!$C35,'Network Analysis'!$FR$18:$FR$1756)) -> 0 | R35: =SUM(IF('Network Analysis'!$FR$18:$FR$1756=1,IF('Network Analysis'!$FH$18:$FH$1756=$C35,'Network Analysis'!$CV$18:$CV$1756)))/Parameters!$I$9 -> 0 | S35: =SUM(IF('Network Analysis'!FR$18:FR$1756=1,IF('Network Analysis'!FH$18:FH$1756=$C35,'Network Analysis'!FP$18:FP$1756))) -> 0 | T35: =COUNT(IF(Project_Filter=1,(IF('Network Analysis'!GC$18:GC$1756<>2,IF('Network Analysis'!GA$18:GA$1756=$C35,'Network Analysis'!$CV$18:$CV$1756))))) -> 16 | U35: =COUNT(IF(Project_Filter=1,(IF('Network Analysis'!GC$18:GC$1756=2,IF('Network Analysis'!GA$18:GA$1756=$C35,'Network Analysis'!$CV$18:$CV$1756))))) -> 27 | V35: =COUNT(IF('Network Analysis'!GK$18:GK$1756=1,IF('Network Analysis'!GA$18:GA$1756=$C35,'Network Analysis'!$CV$18:$CV$1756))) -> 0 | W35: =SUM(IF('Network Analysis'!$GK$18:$GK$1756=1,IF('Network Analysis'!$GA$18:$GA$1756=$C35,'Network Analysis'!$CV$18:$CV$1756)))/Parameters!$I$9 -> 0 | X35: =SUM(IF('Network Analysis'!GK$18:GK$1756=1,IF('Network Analysis'!GA$18:GA$1756=$C35,'Network Analysis'!GI$18:GI$1756))) -> 0 | Y35: =COUNT(IF(Project_Filter=1,(IF('Network Analysis'!GV$18:GV$1756<>2,IF('Network Analysis'!GT$18:GT$1756=$C35,'Network Analysis'!$CV$18:$CV$1756))))) -> 14 | Z35: =COUNT(IF(Project_Filter=1,(IF('Network Analysis'!GV$18:GV$1756=2,IF('Network Analysis'!GT$18:GT$1756=$C35,'Network Analysis'!$CV$18:$CV$1756))))) -> 25 | AA35: =COUNT(IF('Network Analysis'!HD$18:HD$1756=1,IF('Network Analysis'!GT$18:GT$1756=$C35,'Network Analysis'!$CV$18:$CV$1756))) -> 0 | AB35: =SUM(IF('Network Analysis'!$HD$18:$HD$1756=1,IF('Network Analysis'!$GT$18:$GT$1756=$C35,'Network Analysis'!$CV$18:$CV$1756)))/Parameters!$I$9 -> 0 | AC35: =SUM(IF('Network Analysis'!HD$18:HD$1756=1,IF('Network Analysis'!GT$18:GT$1756=$C35,'Network Analysis'!HB$18:HB$1756))) -> 0 | AD35: =COUNT(IF(Project_Filter=1,(IF('Network Analysis'!HO$18:HO$1756<>2,IF('Network Analysis'!HM$18:HM$1756=$C35,'Network Analysis'!$CV$18:$CV$1756))))) -> 10 | AE35: =COUNT(IF(Project_Filter=1,(IF('Network Analysis'!HO$18:HO$1756=2,IF('Network Analysis'!HM$18:HM$1756=$C35,'Network Analysis'!$CV$18:$CV$1756))))) -> 18 | AF35: =COUNT(IF('Network Analysis'!HW$18:HW$1756=1,IF('Network Analysis'!HM$18:HM$1756=$C35,'Network Analysis'!$CV$18:$CV$1756))) -> 0 | AG35: =SUM(IF('Network Analysis'!$HW$18:$HW$1756=1,IF('Network Analysis'!$HM$18:$HM$1756=$C35,'Network Analysis'!$CV$18:$CV$1756)))/Parameters!$I$9 -> 0 | AH35: =SUM(IF('Network Analysis'!HW$18:HW$1756=1,IF('Network Analysis'!HM$18:HM$1756=$C35,'Network Analysis'!HU$18:HU$1756))) -> 0
B36: Concrete | C36: ='Rehab Activities'!C37 -> 550 | D36: =VLOOKUP(C36,'Rehab Activities'!$C$12:$D$40,2) -> PCC Extensive Pnl Rplcmnt (<33%) | E36: =COUNT(IF(Project_Filter=1,IF('Network Analysis'!$DV$18:$DV$1756='Selections '!$C36,'Network Analysis'!$Q$18:$Q$1756))) -> 6 | F36: =SUM(IF('Network Analysis'!$DV$18:$DV$1756='Selections '!$C36,'Network Analysis'!$CV$18:$CV$1756))/Parameters!$I$9 -> 0.4431628788 | G36: =SUM(IF('Network Analysis'!$DV$18:$DV$1756='Selections '!C36,'Network Analysis'!$EC$18:$EC$1756)) -> 377280 | H36: =IF(VLOOKUP(C36,'Rehab Activities'!$C$12:$V$40,20)=0,VLOOKUP(C36,'Rehab Activities'!$C$12:$V$40,11),VLOOKUP(C36,'Rehab Activities'!$C$12:$V$40,20)) -> 41 | I36: 9200 | J36: =COUNT(IF(Project_Filter=1,(IF('Network Analysis'!EQ$18:EQ$1756<>2,IF('Network Analysis'!EO$18:EO$1756=$C36,'Network Analysis'!$Q$18:$Q$1756))))) -> 0 | K36: =COUNT(IF(Project_Filter=1,(IF('Network Analysis'!EQ$18:EQ$1756=2,IF('Network Analysis'!EO$18:EO$1756=$C36,'Network Analysis'!$Q$18:$Q$1756))))) -> 6 | L36: =SUM(IF('Network Analysis'!$EO$18:$EO$1756='Selections '!$C36,'Network Analysis'!$EY$18:$EY$1756)) -> 0 | M36: =SUM(IF('Network Analysis'!$EY$18:$EY$1756=1,IF('Network Analysis'!$EO$18:$EO$1756=$C36,'Network Analysis'!$CV$18:$CV$1756)))/Parameters!$I$9 -> 0 | N36: =SUM(IF('Network Analysis'!$EO$18:$EO$1756='Selections '!C36,'Network Analysis'!$EZ$18:$EZ$1756)) -> 0 | O36: =COUNT(IF(Project_Filter=1,(IF('Network Analysis'!FJ$18:FJ$1756<>2,IF('Network Analysis'!FH$18:FH$1756=$C36,'Network Analysis'!$CV$18:$CV$1756))))) -> 0 | P36: =COUNT(IF(Project_Filter=1,(IF('Network Analysis'!FJ$18:FJ$1756=2,IF('Network Analysis'!FH$18:FH$1756=$C36,'Network Analysis'!$CV$18:$CV$1756))))) -> 10 | Q36: =SUM(IF('Network Analysis'!$FH$18:$FH$1756='Selections '!$C36,'Network Analysis'!$FR$18:$FR$1756)) -> 0 | R36: =SUM(IF('Network Analysis'!$FR$18:$FR$1756=1,IF('Network Analysis'!$FH$18:$FH$1756=$C36,'Network Analysis'!$CV$18:$CV$1756)))/Parameters!$I$9 -> 0 | S36: =SUM(IF('Network Analysis'!FR$18:FR$1756=1,IF('Network Analysis'!FH$18:FH$1756=$C36,'Network Analysis'!FP$18:FP$1756))) -> 0 | T36: =COUNT(IF(Project_Filter=1,(IF('Network Analysis'!GC$18:GC$1756<>2,IF('Network Analysis'!GA$18:GA$1756=$C36,'Network Analysis'!$CV$18:$CV$1756))))) -> 0 | U36: =COUNT(IF(Project_Filter=1,(IF('Network Analysis'!GC$18:GC$1756=2,IF('Network Analysis'!GA$18:GA$1756=$C36,'Network Analysis'!$CV$18:$CV$1756))))) -> 14 | V36: =COUNT(IF('Network Analysis'!GK$18:GK$1756=1,IF('Network Analysis'!GA$18:GA$1756=$C36,'Network Analysis'!$CV$18:$CV$1756))) -> 0 | W36: =SUM(IF('Network Analysis'!$GK$18:$GK$1756=1,IF('Network Analysis'!$GA$18:$GA$1756=$C36,'Network Analysis'!$CV$18:$CV$1756)))/Parameters!$I$9 -> 0 | X36: =SUM(IF('Network Analysis'!GK$18:GK$1756=1,IF('Network Analysis'!GA$18:GA$1756=$C36,'Network Analysis'!GI$18:GI$1756))) -> 0 | Y36: =COUNT(IF(Project_Filter=1,(IF('Network Analysis'!GV$18:GV$1756<>2,IF('Network Analysis'!GT$18:GT$1756=$C36,'Network Analysis'!$CV$18:$CV$1756))))) -> 6 | Z36: =COUNT(IF(Project_Filter=1,(IF('Network Analysis'!GV$18:GV$1756=2,IF('Network Analysis'!GT$18:GT$1756=$C36,'Network Analysis'!$CV$18:$CV$1756))))) -> 11 | AA36: =COUNT(IF('Network Analysis'!HD$18:HD$1756=1,IF('Network Analysis'!GT$18:GT$1756=$C36,'Network Analysis'!$CV$18:$CV$1756))) -> 6 | AB36: =SUM(IF('Network Analysis'!$HD$18:$HD$1756=1,IF('Network Analysis'!$GT$18:$GT$1756=$C36,'Network Analysis'!$CV$18:$CV$1756)))/Parameters!$I$9 -> 0.4431628788 | AC36: =SUM(IF('Network Analysis'!HD$18:HD$1756=1,IF('Network Analysis'!GT$18:GT$1756=$C36,'Network Analysis'!HB$18:HB$1756))) -> 377277 | AD36: =COUNT(IF(Project_Filter=1,(IF('Network Analysis'!HO$18:HO$1756<>2,IF('Network Analysis'!HM$18:HM$1756=$C36,'Network Analysis'!$CV$18:$CV$1756))))) -> 0 | AE36: =COUNT(IF(Project_Filter=1,(IF('Network Analysis'!HO$18:HO$1756=2,IF('Network Analysis'!HM$18:HM$1756=$C36,'Network Analysis'!$CV$18:$CV$1756))))) -> 21 | AF36: =COUNT(IF('Network Analysis'!HW$18:HW$1756=1,IF('Network Analysis'!HM$18:HM$1756=$C36,'Network Analysis'!$CV$18:$CV$1756))) -> 0 | AG36: =SUM(IF('Network Analysis'!$HW$18:$HW$1756=1,IF('Network Analysis'!$HM$18:$HM$1756=$C36,'Network Analysis'!$CV$18:$CV$1756)))/Parameters!$I$9 -> 0 | AH36: =SUM(IF('Network Analysis'!HW$18:HW$1756=1,IF('Network Analysis'!HM$18:HM$1756=$C36,'Network Analysis'!HU$18:HU$1756))) -> 0
B37: Concrete | C37: ='Rehab Activities'!C38 -> 553 | D37: =VLOOKUP(C37,'Rehab Activities'!$C$12:$D$40,2) -> PCC Extensive Pnl Rplcmnt (<33%) + Grind | E37: =COUNT(IF(Project_Filter=1,IF('Network Analysis'!$DV$18:$DV$1756='Selections '!$C37,'Network Analysis'!$Q$18:$Q$1756))) -> 4 | F37: =SUM(IF('Network Analysis'!$DV$18:$DV$1756='Selections '!$C37,'Network Analysis'!$CV$18:$CV$1756))/Parameters!$I$9 -> 0.1837689394 | G37: =SUM(IF('Network Analysis'!$DV$18:$DV$1756='Selections '!C37,'Network Analysis'!$EC$18:$EC$1756)) -> 117720 | H37: =IF(VLOOKUP(C37,'Rehab Activities'!$C$12:$V$40,20)=0,VLOOKUP(C37,'Rehab Activities'!$C$12:$V$40,11),VLOOKUP(C37,'Rehab Activities'!$C$12:$V$40,20)) -> 41 | I37: 2900 | J37: =COUNT(IF(Project_Filter=1,(IF('Network Analysis'!EQ$18:EQ$1756<>2,IF('Network Analysis'!EO$18:EO$1756=$C37,'Network Analysis'!$Q$18:$Q$1756))))) -> 0 | K37: =COUNT(IF(Project_Filter=1,(IF('Network Analysis'!EQ$18:EQ$1756=2,IF('Network Analysis'!EO$18:EO$1756=$C37,'Network Analysis'!$Q$18:$Q$1756))))) -> 4 | L37: =SUM(IF('Network Analysis'!$EO$18:$EO$1756='Selections '!$C37,'Network Analysis'!$EY$18:$EY$1756)) -> 0 | M37: =SUM(IF('Network Analysis'!$EY$18:$EY$1756=1,IF('Network Analysis'!$EO$18:$EO$1756=$C37,'Network Analysis'!$CV$18:$CV$1756)))/Parameters!$I$9 -> 0 | N37: =SUM(IF('Network Analysis'!$EO$18:$EO$1756='Selections '!C37,'Network Analysis'!$EZ$18:$EZ$1756)) -> 0 | O37: =COUNT(IF(Project_Filter=1,(IF('Network Analysis'!FJ$18:FJ$1756<>2,IF('Network Analysis'!FH$18:FH$1756=$C37,'Network Analysis'!$CV$18:$CV$1756))))) -> 0 | P37: =COUNT(IF(Project_Filter=1,(IF('Network Analysis'!FJ$18:FJ$1756=2,IF('Network Analysis'!FH$18:FH$1756=$C37,'Network Analysis'!$CV$18:$CV$1756))))) -> 4 | Q37: =SUM(IF('Network Analysis'!$FH$18:$FH$1756='Selections '!$C37,'Network Analysis'!$FR$18:$FR$1756)) -> 0 | R37: =SUM(IF('Network Analysis'!$FR$18:$FR$1756=1,IF('Network Analysis'!$FH$18:$FH$1756=$C37,'Network Analysis'!$CV$18:$CV$1756)))/Parameters!$I$9 -> 0 | S37: =SUM(IF('Network Analysis'!FR$18:FR$1756=1,IF('Network Analysis'!FH$18:FH$1756=$C37,'Network Analysis'!FP$18:FP$1756))) -> 0 | T37: =COUNT(IF(Project_Filter=1,(IF('Network Analysis'!GC$18:GC$1756<>2,IF('Network Analysis'!GA$18:GA$1756=$C37,'Network Analysis'!$CV$18:$CV$1756))))) -> 0 | U37: =COUNT(IF(Project_Filter=1,(IF('Network Analysis'!GC$18:GC$1756=2,IF('Network Analysis'!GA$18:GA$1756=$C37,'Network Analysis'!$CV$18:$CV$1756))))) -> 4 | V37: =COUNT(IF('Network Analysis'!GK$18:GK$1756=1,IF('Network Analysis'!GA$18:GA$1756=$C37,'Network Analysis'!$CV$18:$CV$1756))) -> 0 | W37: =SUM(IF('Network Analysis'!$GK$18:$GK$1756=1,IF('Network Analysis'!$GA$18:$GA$1756=$C37,'Network Analysis'!$CV$18:$CV$1756)))/Parameters!$I$9 -> 0 | X37: =SUM(IF('Network Analysis'!GK$18:GK$1756=1,IF('Network Analysis'!GA$18:GA$1756=$C37,'Network Analysis'!GI$18:GI$1756))) -> 0 | Y37: =COUNT(IF(Project_Filter=1,(IF('Network Analysis'!GV$18:GV$1756<>2,IF('Network Analysis'!GT$18:GT$1756=$C37,'Network Analysis'!$CV$18:$CV$1756))))) -> 0 | Z37: =COUNT(IF(Project_Filter=1,(IF('Network Analysis'!GV$18:GV$1756=2,IF('Network Analysis'!GT$18:GT$1756=$C37,'Network Analysis'!$CV$18:$CV$1756))))) -> 9 | AA37: =COUNT(IF('Network Analysis'!HD$18:HD$1756=1,IF('Network Analysis'!GT$18:GT$1756=$C37,'Network Analysis'!$CV$18:$CV$1756))) -> 0 | AB37: =SUM(IF('Network Analysis'!$HD$18:$HD$1756=1,IF('Network Analysis'!$GT$18:$GT$1756=$C37,'Network Analysis'!$CV$18:$CV$1756)))/Parameters!$I$9 -> 0 | AC37: =SUM(IF('Network Analysis'!HD$18:HD$1756=1,IF('Network Analysis'!GT$18:GT$1756=$C37,'Network Analysis'!HB$18:HB$1756))) -> 0 | AD37: =COUNT(IF(Project_Filter=1,(IF('Network Analysis'!HO$18:HO$1756<>2,IF('Network Analysis'!HM$18:HM$1756=$C37,'Network Analysis'!$CV$18:$CV$1756))))) -> 4 | AE37: =COUNT(IF(Project_Filter=1,(IF('Network Analysis'!HO$18:HO$1756=2,IF('Network Analysis'!HM$18:HM$1756=$C37,'Network Analysis'!$CV$18:$CV$1756))))) -> 16 | AF37: =COUNT(IF('Network Analysis'!HW$18:HW$1756=1,IF('Network Analysis'!HM$18:HM$1756=$C37,'Network Analysis'!$CV$18:$CV$1756))) -> 4 | AG37: =SUM(IF('Network Analysis'!$HW$18:$HW$1756=1,IF('Network Analysis'!$HM$18:$HM$1756=$C37,'Network Analysis'!$CV$18:$CV$1756)))/Parameters!$I$9 -> 0.1837689394 | AH37: =SUM(IF('Network Analysis'!HW$18:HW$1756=1,IF('Network Analysis'!HM$18:HM$1756=$C37,'Network Analysis'!HU$18:HU$1756))) -> 117705
B38: Concrete | C38: ='Rehab Activities'!C39 -> 560 | D38: =VLOOKUP(C38,'Rehab Activities'!$C$12:$D$40,2) -> PCC Partial Reconstruction | E38: =COUNT(IF(Project_Filter=1,IF('Network Analysis'!$DV$18:$DV$1756='Selections '!$C38,'Network Analysis'!$Q$18:$Q$1756))) -> 1 | F38: =SUM(IF('Network Analysis'!$DV$18:$DV$1756='Selections '!$C38,'Network Analysis'!$CV$18:$CV$1756))/Parameters!$I$9 -> 0.0701969697 | G38: =SUM(IF('Network Analysis'!$DV$18:$DV$1756='Selections '!C38,'Network Analysis'!$EC$18:$EC$1756)) -> 117510 | H38: =IF(VLOOKUP(C38,'Rehab Activities'!$C$12:$V$40,20)=0,VLOOKUP(C38,'Rehab Activities'!$C$12:$V$40,11),VLOOKUP(C38,'Rehab Activities'!$C$12:$V$40,20)) -> 51 | I38: 2300 | J38: =COUNT(IF(Project_Filter=1,(IF('Network Analysis'!EQ$18:EQ$1756<>2,IF('Network Analysis'!EO$18:EO$1756=$C38,'Network Analysis'!$Q$18:$Q$1756))))) -> 0 | K38: =COUNT(IF(Project_Filter=1,(IF('Network Analysis'!EQ$18:EQ$1756=2,IF('Network Analysis'!EO$18:EO$1756=$C38,'Network Analysis'!$Q$18:$Q$1756))))) -> 1 | L38: =SUM(IF('Network Analysis'!$EO$18:$EO$1756='Selections '!$C38,'Network Analysis'!$EY$18:$EY$1756)) -> 0 | M38: =SUM(IF('Network Analysis'!$EY$18:$EY$1756=1,IF('Network Analysis'!$EO$18:$EO$1756=$C38,'Network Analysis'!$CV$18:$CV$1756)))/Parameters!$I$9 -> 0 | N38: =SUM(IF('Network Analysis'!$EO$18:$EO$1756='Selections '!C38,'Network Analysis'!$EZ$18:$EZ$1756)) -> 0 | O38: =COUNT(IF(Project_Filter=1,(IF('Network Analysis'!FJ$18:FJ$1756<>2,IF('Network Analysis'!FH$18:FH$1756=$C38,'Network Analysis'!$CV$18:$CV$1756))))) -> 0 | P38: =COUNT(IF(Project_Filter=1,(IF('Network Analysis'!FJ$18:FJ$1756=2,IF('Network Analysis'!FH$18:FH$1756=$C38,'Network Analysis'!$CV$18:$CV$1756))))) -> 1 | Q38: =SUM(IF('Network Analysis'!$FH$18:$FH$1756='Selections '!$C38,'Network Analysis'!$FR$18:$FR$1756)) -> 0 | R38: =SUM(IF('Network Analysis'!$FR$18:$FR$1756=1,IF('Network Analysis'!$FH$18:$FH$1756=$C38,'Network Analysis'!$CV$18:$CV$1756)))/Parameters!$I$9 -> 0 | S38: =SUM(IF('Network Analysis'!FR$18:FR$1756=1,IF('Network Analysis'!FH$18:FH$1756=$C38,'Network Analysis'!FP$18:FP$1756))) -> 0 | T38: =COUNT(IF(Project_Filter=1,(IF('Network Analysis'!GC$18:GC$1756<>2,IF('Network Analysis'!GA$18:GA$1756=$C38,'Network Analysis'!$CV$18:$CV$1756))))) -> 0 | U38: =COUNT(IF(Project_Filter=1,(IF('Network Analysis'!GC$18:GC$1756=2,IF('Network Analysis'!GA$18:GA$1756=$C38,'Network Analysis'!$CV$18:$CV$1756))))) -> 1 | V38: =COUNT(IF('Network Analysis'!GK$18:GK$1756=1,IF('Network Analysis'!GA$18:GA$1756=$C38,'Network Analysis'!$CV$18:$CV$1756))) -> 0 | W38: =SUM(IF('Network Analysis'!$GK$18:$GK$1756=1,IF('Network Analysis'!$GA$18:$GA$1756=$C38,'Network Analysis'!$CV$18:$CV$1756)))/Parameters!$I$9 -> 0 | X38: =SUM(IF('Network Analysis'!GK$18:GK$1756=1,IF('Network Analysis'!GA$18:GA$1756=$C38,'Network Analysis'!GI$18:GI$1756))) -> 0 | Y38: =COUNT(IF(Project_Filter=1,(IF('Network Analysis'!GV$18:GV$1756<>2,IF('Network Analysis'!GT$18:GT$1756=$C38,'Network Analysis'!$CV$18:$CV$1756))))) -> 1 | Z38: =COUNT(IF(Project_Filter=1,(IF('Network Analysis'!GV$18:GV$1756=2,IF('Network Analysis'!GT$18:GT$1756=$C38,'Network Analysis'!$CV$18:$CV$1756))))) -> 0 | AA38: =COUNT(IF('Network Analysis'!HD$18:HD$1756=1,IF('Network Analysis'!GT$18:GT$1756=$C38,'Network Analysis'!$CV$18:$CV$1756))) -> 1 | AB38: =SUM(IF('Network Analysis'!$HD$18:$HD$1756=1,IF('Network Analysis'!$GT$18:$GT$1756=$C38,'Network Analysis'!$CV$18:$CV$1756)))/Parameters!$I$9 -> 0.0701969697 | AC38: =SUM(IF('Network Analysis'!HD$18:HD$1756=1,IF('Network Analysis'!GT$18:GT$1756=$C38,'Network Analysis'!HB$18:HB$1756))) -> 117508 | AD38: =COUNT(IF(Project_Filter=1,(IF('Network Analysis'!HO$18:HO$1756<>2,IF('Network Analysis'!HM$18:HM$1756=$C38,'Network Analysis'!$CV$18:$CV$1756))))) -> 0 | AE38: =COUNT(IF(Project_Filter=1,(IF('Network Analysis'!HO$18:HO$1756=2,IF('Network Analysis'!HM$18:HM$1756=$C38,'Network Analysis'!$CV$18:$CV$1756))))) -> 0 | AF38: =COUNT(IF('Network Analysis'!HW$18:HW$1756=1,IF('Network Analysis'!HM$18:HM$1756=$C38,'Network Analysis'!$CV$18:$CV$1756))) -> 0 | AG38: =SUM(IF('Network Analysis'!$HW$18:$HW$1756=1,IF('Network Analysis'!$HM$18:$HM$1756=$C38,'Network Analysis'!$CV$18:$CV$1756)))/Parameters!$I$9 -> 0 | AH38: =SUM(IF('Network Analysis'!HW$18:HW$1756=1,IF('Network Analysis'!HM$18:HM$1756=$C38,'Network Analysis'!HU$18:HU$1756))) -> 0
B39: Concrete | C39: ='Rehab Activities'!C40 -> 570 | D39: =VLOOKUP(C39,'Rehab Activities'!$C$12:$D$40,2) -> PCC Full Depth Reconstruction | E39: =COUNT(IF(Project_Filter=1,IF('Network Analysis'!$DV$18:$DV$1756='Selections '!$C39,'Network Analysis'!$Q$18:$Q$1756))) -> 0 | F39: =SUM(IF('Network Analysis'!$DV$18:$DV$1756='Selections '!$C39,'Network Analysis'!$CV$18:$CV$1756))/Parameters!$I$9 -> 0 | G39: =SUM(IF('Network Analysis'!$DV$18:$DV$1756='Selections '!C39,'Network Analysis'!$EC$18:$EC$1756)) -> 0 | H39: =IF(VLOOKUP(C39,'Rehab Activities'!$C$12:$V$40,20)=0,VLOOKUP(C39,'Rehab Activities'!$C$12:$V$40,11),VLOOKUP(C39,'Rehab Activities'!$C$12:$V$40,20)) -> 65 | I39: 0 | J39: =COUNT(IF(Project_Filter=1,(IF('Network Analysis'!EQ$18:EQ$1756<>2,IF('Network Analysis'!EO$18:EO$1756=$C39,'Network Analysis'!$Q$18:$Q$1756))))) -> 0 | K39: =COUNT(IF(Project_Filter=1,(IF('Network Analysis'!EQ$18:EQ$1756=2,IF('Network Analysis'!EO$18:EO$1756=$C39,'Network Analysis'!$Q$18:$Q$1756))))) -> 0 | L39: =SUM(IF('Network Analysis'!$EO$18:$EO$1756='Selections '!$C39,'Network Analysis'!$EY$18:$EY$1756)) -> 0 | M39: =SUM(IF('Network Analysis'!$EY$18:$EY$1756=1,IF('Network Analysis'!$EO$18:$EO$1756=$C39,'Network Analysis'!$CV$18:$CV$1756)))/Parameters!$I$9 -> 0 | N39: =SUM(IF('Network Analysis'!$EO$18:$EO$1756='Selections '!C39,'Network Analysis'!$EZ$18:$EZ$1756)) -> 0 | O39: =COUNT(IF(Project_Filter=1,(IF('Network Analysis'!FJ$18:FJ$1756<>2,IF('Network Analysis'!FH$18:FH$1756=$C39,'Network Analysis'!$CV$18:$CV$1756))))) -> 0 | P39: =COUNT(IF(Project_Filter=1,(IF('Network Analysis'!FJ$18:FJ$1756=2,IF('Network Analysis'!FH$18:FH$1756=$C39,'Network Analysis'!$CV$18:$CV$1756))))) -> 0 | Q39: =SUM(IF('Network Analysis'!$FH$18:$FH$1756='Selections '!$C39,'Network Analysis'!$FR$18:$FR$1756)) -> 0 | R39: =SUM(IF('Network Analysis'!$FR$18:$FR$1756=1,IF('Network Analysis'!$FH$18:$FH$1756=$C39,'Network Analysis'!$CV$18:$CV$1756)))/Parameters!$I$9 -> 0 | S39: =SUM(IF('Network Analysis'!FR$18:FR$1756=1,IF('Network Analysis'!FH$18:FH$1756=$C39,'Network Analysis'!FP$18:FP$1756))) -> 0 | T39: =COUNT(IF(Project_Filter=1,(IF('Network Analysis'!GC$18:GC$1756<>2,IF('Network Analysis'!GA$18:GA$1756=$C39,'Network Analysis'!$CV$18:$CV$1756))))) -> 0 | U39: =COUNT(IF(Project_Filter=1,(IF('Network Analysis'!GC$18:GC$1756=2,IF('Network Analysis'!GA$18:GA$1756=$C39,'Network Analysis'!$CV$18:$CV$1756))))) -> 0 | V39: =COUNT(IF('Network Analysis'!GK$18:GK$1756=1,IF('Network Analysis'!GA$18:GA$1756=$C39,'Network Analysis'!$CV$18:$CV$1756))) -> 0 | W39: =SUM(IF('Network Analysis'!$GK$18:$GK$1756=1,IF('Network Analysis'!$GA$18:$GA$1756=$C39,'Network Analysis'!$CV$18:$CV$1756)))/Parameters!$I$9 -> 0 | X39: =SUM(IF('Network Analysis'!GK$18:GK$1756=1,IF('Network Analysis'!GA$18:GA$1756=$C39,'Network Analysis'!GI$18:GI$1756))) -> 0 | Y39: =COUNT(IF(Project_Filter=1,(IF('Network Analysis'!GV$18:GV$1756<>2,IF('Network Analysis'!GT$18:GT$1756=$C39,'Network Analysis'!$CV$18:$CV$1756))))) -> 0 | Z39: =COUNT(IF(Project_Filter=1,(IF('Network Analysis'!GV$18:GV$1756=2,IF('Network Analysis'!GT$18:GT$1756=$C39,'Network Analysis'!$CV$18:$CV$1756))))) -> 0 | AA39: =COUNT(IF('Network Analysis'!HD$18:HD$1756=1,IF('Network Analysis'!GT$18:GT$1756=$C39,'Network Analysis'!$CV$18:$CV$1756))) -> 0 | AB39: =SUM(IF('Network Analysis'!$HD$18:$HD$1756=1,IF('Network Analysis'!$GT$18:$GT$1756=$C39,'Network Analysis'!$CV$18:$CV$1756)))/Parameters!$I$9 -> 0 | AC39: =SUM(IF('Network Analysis'!HD$18:HD$1756=1,IF('Network Analysis'!GT$18:GT$1756=$C39,'Network Analysis'!HB$18:HB$1756))) -> 0 | AD39: =COUNT(IF(Project_Filter=1,(IF('Network Analysis'!HO$18:HO$1756<>2,IF('Network Analysis'!HM$18:HM$1756=$C39,'Network Analysis'!$CV$18:$CV$1756))))) -> 0 | AE39: =COUNT(IF(Project_Filter=1,(IF('Network Analysis'!HO$18:HO$1756=2,IF('Network Analysis'!HM$18:HM$1756=$C39,'Network Analysis'!$CV$18:$CV$1756))))) -> 0 | AF39: =COUNT(IF('Network Analysis'!HW$18:HW$1756=1,IF('Network Analysis'!HM$18:HM$1756=$C39,'Network Analysis'!$CV$18:$CV$1756))) -> 0 | AG39: =SUM(IF('Network Analysis'!$HW$18:$HW$1756=1,IF('Network Analysis'!$HM$18:$HM$1756=$C39,'Network Analysis'!$CV$18:$CV$1756)))/Parameters!$I$9 -> 0 | AH39: =SUM(IF('Network Analysis'!HW$18:HW$1756=1,IF('Network Analysis'!HM$18:HM$1756=$C39,'Network Analysis'!HU$18:HU$1756))) -> 0
D41: Totals: | E41: =SUM(E11:E39) -> 1738 | F41: =SUM(F11:F39) -> 175.0575038 | G41: =SUM(G11:G39) -> 37071480 | I41: =ROUND(SUM(I11:I39),-3) -> 1898000 | J41: =SUM(J11:J39) -> 524 | K41: 1214 | L41: 30 | M41: 4.749195076 | N41: 1797831 | O41: 507 | P41: 1231 | Q41: 29 | R41: 5.305342803 | S41: 1798683 | T41: 513 | U41: 1225 | V41: 48 | W41: 6.782982955 | X41: 1797218 | Y41: 442 | Z41: 1296 | AA41: 33 | AB41: 5.875537879 | AC41: 1799647 | AD41: 411 | AE41: 1327 | AF41: 57 | AG41: 6.121147727 | AH41: 1797172
H42: =IF(Parameters!C12=1,"$/mi","$/km") -> $/mi | I42: =ROUND(I41/F41,-3) -> 11000 | K42: =K41+J41 -> 1738 | M42: ='Network Analysis'!IR8 -> 4.749195076 | N42: ='Network Analysis'!IO8 -> 1797831 | P42: =O41+P41 -> 1738 | R42: ='Network Analysis'!IR9 -> 5.305342803 | S42: ='Network Analysis'!IO9 -> 1798683 | U42: =T41+U41 -> 1738 | W42: ='Network Analysis'!IR10 -> 6.782982955 | X42: ='Network Analysis'!IO10 -> 1797218 | Z42: =Y41+Z41 -> 1738 | AB42: ='Network Analysis'!IR11 -> 5.875537879 | AC42: ='Network Analysis'!IO11 -> 1799647 | AE42: =AD41+AE41 -> 1738 | AG42: ='Network Analysis'!IR12 -> 6.121147727 | AH42: ='Network Analysis'!IO12 -> 1797172

Sheet Network Analysis
A2: =Parameters!M3 -> Copyright © 2019 IMS Infrastructure Management Services. All Rights Reserved. | BU2: Committed and Dedicated Projects Budget Summary - Used for "MUST DO" and "MUST NOT DO" analysis scenarios | IJ2: Network Analysis Summary - Five Year Rehab Plan Development
BV3: Selected Year: | BW3: =IF($DL$15>0,"Not All Segments in Same Year","Good To Go") -> Good To Go | CB3: Projects: | CC3: =IF($DN$15>0,"All Blocks Not In a Committed Project","Good To Go") -> Good To Go | IL3: Current PCI Date: | IM3: 2018-05-15 | IT3: % of Budget Dedicated to Surface Treatments: | IU3: 0 | IV3: %
BV4: Budget: | BW4: =IF($DM$15>0,"A Committed Project Exceeds Budget",IF(MIN($CC$8:$CC$12)<0,"Exceeds Annual Budget","Good To Go")) -> Good To Go | CB4: All 3 values must read "Good To GO" for projects to be valid | IL4: Analysis Start Date: | IM4: 2018-07-01 | IN4: (MM/DD/YYYY) | IT4: Restore PCI to Previous Date: | IU4: 2018-04-27 | IZ4: Selected Budgets
BU5: Calendar Year | BV5: Program Year | BW5: Annual Budget ($) | BX5: Dedicated Surf Trtmnt Budget ($) | BY5: Olay Recon Budget ($) | BZ5: Committed Surf Trtmnt Budget ($) | CA5: Committed Olay Recon Budget ($) | CB5: Remaining Surf Trtmnt Budget ($) | CC5: Remaining Olay Recon Budget ($) | CD5: Budget Comment | CH5: Project Assembly Error Flag | IJ5: Program Year | IK5: Annual Budget ($) | IL5: Avg. Annual Budget ($) | IM5: Calendar Year | IN5: Block Count | IO5: Annual Expenditure ($) | IP5: Pavement Costs ($) | IQ5: Peripheral Concrete Costs($) | IR5: =Parameters!K11 -> Miles | IS5: PCI | IT5: Backlog (%)
IJ7: Avg: | IK7: =AVERAGE(IK8:IK12) -> 1800000 | IL7: =IK7/1000 -> 1800 | IM7: =IF(YEAR(IM3)=IM8,IM8-1,YEAR(IM3)) -> 2017 | IN7: =COUNT(IF(Project_Filter=1,$Q$18:$Q$1756)) -> 1738 | IO7: =EC14 -> 37071480 | IP7: =DX14 -> 35085540 | IQ7: =DX15 -> 1985940 | IR7: =SUM(IF(Project_Filter=1,(Q18:Q1756)/Parameters!$I$9)) -> 175.0575038 | IS7: =AQ15 -> 67.42818352 | IT7: =ROUND(AQ14,1) -> 3.3 | IZ7: Overide Control Runs
BU8: =IM8 -> 2018 | BV8: 1 | BW8: =IK8 -> 1800000 | BX8: =MAX(BZ8,(IK8*$IU$3/100)) -> 0 | BY8: =BW8-BX8 -> 1800000 | BZ8: =SUM(IF($BX$18:$BX$1756=$BV8,IF($BV$18:$BV$1756<='Ranking Calcs'!$E$7,$CG$18:$CG$1756))) -> 0 | CA8: =SUM(IF($BX$18:$BX$1756=$BV8,IF($BV$18:$BV$1756>'Ranking Calcs'!$E$7,$CG$18:$CG$1756))) -> 0 | CB8: =BX8-BZ8 -> 0 | CC8: 1800000 | CD8: =IF(CC8<0,"Exceeds Budget"," ") ->  | CH8: =MAX(IF($BX$18:$BX$1756=BV8,$DL$18:$DN$1756)) -> 0 | IJ8: 1 | IK8: 1800000 | IM8: =YEAR(IM4) -> 2018 | IN8: =COUNT(IF($EY$18:$EY$1756=1,$Q$18:$Q$1756)) -> 30 | IO8: =EZ15 -> 1797831 | IP8: =$ER$14 -> 1710329 | IQ8: =$ER$15 -> 87502 | IR8: =SUM(IF($EY$18:$EY$1756=1,$Q$18:$Q$1756))/Parameters!I9 -> 4.749195076 | IS8: =FB15 -> 67.20170224
BU9: =IM9 -> 2019 | BV9: 2 | BW9: =IK9 -> 1800000 | BX9: =MAX(BZ9,(IK9*$IU$3/100)) -> 0 | BY9: =BW9-BX9 -> 1800000 | BZ9: =SUM(IF($BX$18:$BX$1756=$BV9,IF($BV$18:$BV$1756<='Ranking Calcs'!$E$7,$CG$18:$CG$1756))) -> 0 | CA9: =SUM(IF($BX$18:$BX$1756=$BV9,IF($BV$18:$BV$1756>'Ranking Calcs'!$E$7,$CG$18:$CG$1756))) -> 0 | CB9: 0 | CC9: 1800000 | CD9: =IF(CC9<0,"Exceeds Budget"," ") ->  | CH9: =MAX(IF($BX$18:$BX$1756=BV9,$DL$18:$DN$1756)) -> 0 | IJ9: 2 | IK9: =Budget_Year_1 -> 1800000 | IM9: =IM8+1 -> 2019 | IN9: =COUNT(IF($FR$18:$FR$1756=1,$Q$18:$Q$1756)) -> 29 | IO9: =FS15 -> 1798683 | IP9: =$FK14 -> 1782201 | IQ9: =$FK15 -> 16482 | IR9: =SUM(IF($FR18:$FR$1756=1,$Q$18:$Q$1756))/Parameters!I9 -> 5.305342803 | IS9: =FU15 -> 67.29478508
BU10: =IM10 -> 2020 | BV10: 3 | BW10: =IK10 -> 1800000 | BX10: =MAX(BZ10,(IK10*$IU$3/100)) -> 0 | BY10: =BW10-BX10 -> 1800000 | BZ10: =SUM(IF($BX$18:$BX$1756=$BV10,IF($BV$18:$BV$1756<='Ranking Calcs'!$E$7,$CG$18:$CG$1756))) -> 0 | CA10: =SUM(IF($BX$18:$BX$1756=$BV10,IF($BV$18:$BV$1756>'Ranking Calcs'!$E$7,$CG$18:$CG$1756))) -> 0 | CB10: 0 | CC10: 1800000 | CD10: =IF(CC10<0,"Exceeds Budget"," ") ->  | CH10: =MAX(IF($BX$18:$BX$1756=BV10,$DL$18:$DN$1756)) -> 0 | IJ10: 3 | IK10: =Budget_Year_1 -> 1800000 | IM10: =IM9+1 -> 2020 | IN10: =COUNT(IF($GK$18:$GK$1756=1,$Q$18:$Q$1756)) -> 48 | IO10: =GL15 -> 1797218 | IP10: =$GD14 -> 1720555 | IQ10: =$GD15 -> 76663 | IR10: =SUM(IF($GK$18:$GK$1756=1,$Q$18:$Q$1756))/Parameters!I9 -> 6.782982955 | IS10: =GN15 -> 67.53746023
BU11: =IM11 -> 2021 | BV11: 4 | BW11: =IK11 -> 1800000 | BX11: =MAX(BZ11,(IK11*$IU$3/100)) -> 0 | BY11: =BW11-BX11 -> 1800000 | BZ11: =SUM(IF($BX$18:$BX$1756=$BV11,IF($BV$18:$BV$1756<='Ranking Calcs'!$E$7,$CG$18:$CG$1756))) -> 0 | CA11: =SUM(IF($BX$18:$BX$1756=$BV11,IF($BV$18:$BV$1756>'Ranking Calcs'!$E$7,$CG$18:$CG$1756))) -> 0 | CB11: 0 | CC11: 1800000 | CD11: =IF(CC11<0,"Exceeds Budget"," ") ->  | CH11: =MAX(IF($BX$18:$BX$1756=BV11,$DL$18:$DN$1756)) -> 0 | IJ11: 4 | IK11: =Budget_Year_1 -> 1800000 | IM11: =IM10+1 -> 2021 | IN11: =COUNT(IF($HD$18:$HD$1756=1,$Q$18:$Q$1756)) -> 33 | IO11: =HE15 -> 1799647 | IP11: =$GW14 -> 1741209 | IQ11: =$GW15 -> 58438 | IR11: =SUM(IF($HD$18:$HD$1756=1,$Q$18:$Q$1756))/Parameters!I9 -> 5.875537879 | IS11: =HG15 -> 67.53448262
A12: =Parameters!C10 -> City of Friendswood, TX | BU12: =IM12 -> 2022 | BV12: 5 | BW12: =IK12 -> 1800000 | BX12: =MAX(BZ12,(IK12*$IU$3/100)) -> 0 | BY12: =BW12-BX12 -> 1800000 | BZ12: =SUM(IF($BX$18:$BX$1756=$BV12,IF($BV$18:$BV$1756<='Ranking Calcs'!$E$7,$CG$18:$CG$1756))) -> 0 | CA12: =SUM(IF($BX$18:$BX$1756=$BV12,IF($BV$18:$BV$1756>'Ranking Calcs'!$E$7,$CG$18:$CG$1756))) -> 0 | CB12: 0 | CC12: 1800000 | CD12: =IF(CC12<0,"Exceeds Budget"," ") ->  | CH12: =MAX(IF($BX$18:$BX$1756=BV12,$DL$18:$DN$1756)) -> 0 | IJ12: 5 | IK12: =Budget_Year_1 -> 1800000 | IM12: =IM11+1 -> 2022 | IN12: =COUNT(IF($HW$18:$HW$1756=1,$Q$18:$Q$1756)) -> 57 | IO12: =HX15 -> 1797172 | IP12: =$HP14 -> 1684428 | IQ12: =$HP15 -> 112744 | IR12: =SUM(IF($HW$18:$HW$1756=1,$Q$18:$Q$1756))/Parameters!I9 -> 6.121147727 | IS12: =HZ15 -> 67.39157786 | IT12: =ROUND(HZ14,1) -> 0.3
A13: Inventory and Condition Summary | T13: Distress Ratings (0 to 10 Score) | AE13: Segment Pavement Condition Summary | AT13: Neighborhoods and Zones | BC13: Peripheral Concrete (optional) | BI13: Projects Pavement Condition Summary (Based on PCI Aged to Current PCI Date) | BS13: Project Filter | BU13: 0 | BV13: 6 | BW13: Year 6 = Must Not Do | CH13: =MAX(IF($BX$18:$BX$1756=BV13,$DL$18:$DN$1756)) -> 0 | CI13: Distress Deducts, Performance Curve Assignment and Age Calculation | CV13: Project Assembly, Naming and Override PCI Check | CX13: Project Assembly, Naming and Override PCI Check | DK13: Committed Project Assembly and Checking | DU13: Current Network Deficiency | ED13: Static Priority Factor Calculations | EK13: Year 1 Rehab Selection and Budgeting | FD13: Year 2 Rehab Selection and Budgeting | FW13: Year 3 Rehab Selection and Budgeting | GP13: Year 4 Rehab Selection and Budgeting | HI13: Year 5 Rehab Selection and Budgeting | IB13: 5 Year Post Rehab Deficiency | IM13: Totals: | IN13: =SUM(IN8:IN12) -> 197 | IO13: =SUM(IO8:IO12) -> 8990551 | IP13: =SUM(IP8:IP12) -> 8638722 | IQ13: =SUM(IQ8:IQ12) -> 351829 | IR13: =SUM(IR8:IR12) -> 28.83420644 | IX13: Plot Labels
J14: These attributes may be edited by the user and all calculations will auto-update | P14: ="Total ("&Parameters!K9&"):" -> Total (ft): | Q14: =SUM(CV18:CV1756) -> 924303.62 | R14: 8 | S14: =SUM($S$18:$S$1756) -> 2882479 | Z14: 0 to 10 score quantifying the distress rating | AG14: Backlog: | AH14: =ROUND(SUM(IF(AH$18:AH$1756<Parameters!$H$63,($S$18:$S$1756*Project_Filter)/$S$14*100)),1) -> 3.2 | AI14: % | AP14: Backlog: | AQ14: =ROUND(SUM(IF(AQ$18:AQ$1756<Parameters!$H$63,($S$18:$S$1756*Project_Filter)/$S$14*100)),1) -> 3.3 | AR14: =ROUND(SUM(IF(AR$18:AR$1756<Parameters!$H$63,($S$18:$S$1756*Project_Filter)/$S$14*100)),1) -> 3.9 | BD14: ="Length ("&Parameters!K11&"):" -> Length (Miles): | BE14: =BE15/Parameters!I9 -> 171.8181818 | BG14: Count: | BH14: =SUM(BH18:BH1756) -> 2850.21 | BX14: All Segments in a Project Must be Selected or an Error Will Occur | CI14: =Parameters!E19 -> 9.5 | CJ14: =Parameters!F19 -> 8 | CK14: =Parameters!G19 -> 10 | CL14: =Parameters!H19 -> 5.5 | CM14: =Parameters!I19 -> 4.5 | CN14: =Parameters!J19 -> 7 | CO14: =Parameters!K19 -> 4.5 | CP14: =Parameters!L19 -> 5.5 | CQ14: =Parameters!M19 -> 8 | CR14: 1 | CS14: =ROUND(SUM(IF($N$18:$N$1756<>$CR$15,($CS$18:$CS$1756*$S$18:$S$1756)))/(Summary!D33+Summary!D35),0) -> 3 | CT14: ACP Avg | DB14: Must be = 1: | DC14: =MAX(DC18:DC1756) -> 1 | DU14: =ROUND(SUM(IF(DU$18:DU$1756<Parameters!$H$63,($S$18:$S$1756*Project_Filter)/$S$14*100)),0) -> 3 | DW14: Pvt Costs ($): | DX14: =SUM(DY18:DY1756) -> 35085540 | EB14: Rehab Fix All Amount ($): | EC14: =SUM(EC18:EC1756) -> 37071480 | EQ14: Selected Pavement Costs ($): | ER14: =SUM(IF(EY$18:EY$1756=1,ES$18:ES$1756)) -> 1710329 | EV14: Rehab Fix All Amount ($): | EW14: =SUM(EW18:EW1756*Project_Filter) -> 38672721 | EY14: Count: | EZ14: =SUM(EY18:EY1756) -> 30 | FB14: =SUM(IF(FB$18:FB$1756<Parameters!$H$63,($S$18:$S$1756*Project_Filter)/$S$14*100)) -> 2.842206309 | FJ14: Selected Pavement Costs ($): | FK14: =SUM(IF(FR$18:FR$1756=1,FL$18:FL$1756)) -> 1782201 | FO14: Rehab Fix All Amount ($): | FP14: =SUM(FP18:FP1756*Project_Filter) -> 40925850 | FR14: Count: | FS14: =SUM(FR18:FR1756) -> 29 | FU14: =SUM(IF(FU$18:FU$1756<Parameters!$H$63,($S$18:$S$1756*Project_Filter)/$S$14*100)) -> 1.853578118 | GC14: Selected Pavement Costs ($): | GD14: =SUM(IF(GK$18:GK$1756=1,GE$18:GE$1756)) -> 1720555 | GH14: Rehab Fix All Amount ($): | GI14: =SUM(GI18:GI1756*Project_Filter) -> 43292824 | GK14: Count: | GL14: =SUM(GK18:GK1756) -> 48 | GN14: =SUM(IF(GN$18:GN$1756<Parameters!$H$63,($S$18:$S$1756*Project_Filter)/$S$14*100)) -> 1.306167365 | GV14: Selected Pavement Costs ($): | GW14: =SUM(IF(HD$18:HD$1756=1,GX$18:GX$1756)) -> 1741209 | HA14: Rehab Fix All Amount ($): | HB14: =SUM(HB18:HB1756*Project_Filter) -> 45819266 | HD14: Count: | HE14: =SUM(HD18:HD1756) -> 33 | HG14: =SUM(IF(HG$18:HG$1756<Parameters!$H$63,($S$18:$S$1756*Project_Filter)/$S$14*100)) -> 1.089305421 | HO14: Selected Pavement Costs ($): | HP14: =SUM(IF(HW$18:HW$1756=1,HQ$18:HQ$1756)) -> 1684428 | HT14: Rehab Fix All Amount ($): | HU14: =SUM(HU18:HU1756*Project_Filter) -> 48511854 | HW14: Count: | HX14: =SUM(HW18:HW1756) -> 57 | HZ14: =SUM(IF(HZ$18:HZ$1756<Parameters!$H$63,($S$18:$S$1756*Project_Filter)/$S$14*100)) -> 0.3208002556 | ID14: Pvt Costs ($): | IE14: =SUM(IE18:IE1756) -> 46283305 | IH14: Rehab Fix All Amount ($): | II14: =SUM(II18:II1756*Project_Filter) -> 49496414
J15: If a new street is to be added, copy and insert the second to last row above the last row and overwrite the data as required | P15: =Parameters!K11&":" -> Miles: | Q15: =Q14/Parameters!I9 -> 175.0575038 | R15: (%) | S15: =Parameters!K10 -> yd2 | Z15: 0 = real bad, 10 = no distress | AG15: Survey PCI: | AH15: =SUM($S$18:$S$1756*NA_PCI*Project_Filter)/$S$14 -> 67.50504583 | AI15: =AVERAGE(AI18:AI1756) -> 2018-02-15 | AP15: Aged Network PCI: | AQ15: =SUM(NA_CPCI*$S$18:$S$1756*Project_Filter)/$S$14 -> 67.42818352 | AR15: =SUM($AR$18:$AR$1756*$S$18:$S$1756*Project_Filter)/$S$14 -> 67.24339882 | BD15: ="Totals ("&Parameters!K9&"):" -> Totals (ft): | BE15: =SUM(BE18:BE1756) -> 907200 | BG15: =SUM(BG18:BG1756) -> 1425475 | BX15: Committed Projects Must Have Same Year & Rehab (Yr 6 = Must Not Do) | CI15: =Parameters!E20 -> 10 | CJ15: =Parameters!F20 -> 5.5 | CK15: =Parameters!G20 -> 9.5 | CL15: =Parameters!H20 -> 8.5 | CM15: =Parameters!I20 -> 4 | CN15: =Parameters!J20 -> 7 | CO15: =Parameters!K20 -> 1 | CP15: =Parameters!L20 -> 4.5 | CQ15: =Parameters!M20 -> 6 | CR15: 2 | CS15: =ROUND(SUM(IF($N$18:$N$1756=$CR$15,($CS$18:$CS$1756*$S$18:$S$1756)))/(Summary!D34),0) -> 11 | CT15: PCC Avg | DB15: Or Else Duplicate ID's Exist | DG15: =Parameters!H62 -> 50 | DL15: =MAX(DL18:DL1756) -> 0 | DM15: =MAX(DM18:DM1756) -> 0 | DN15: =MAX(DN18:DN1756) -> 0 | DW15: PPCC Costs ($): | DX15: =EC14-DX14 -> 1985940 | EB15: Project Backlog Amount ($): | EC15: =SUM(IF($DU$18:$DU$1756<Parameters!$H$63,EC$18:EC$1756)) -> 2962910 | EK15: 1 | EQ15: Selected Peripheral Concrete Costs ($): | ER15: =EZ15-ER14 -> 87502 | EV15: Project Backlog Amount ($): | EW15: =SUM(IF(EJ$18:EJ$1756<Parameters!$H$63,EW$18:EW$1756*Project_Filter)) -> 3469216 | EY15: Selected 1: | EZ15: =SUM(EZ18:EZ1756) -> 1797831 | FB15: =SUM(FB$18:FB$1756*$S$18:$S$1756*Project_Filter)/$S$14 -> 67.20170224 | FC15: =SUM(FC$18:FC$1756*$S$18:$S$1756*Project_Filter)/$S$14 -> 67.20170224 | FD15: 2 | FJ15: Selected Peripheral Concrete Costs ($): | FK15: =FS15-FK14 -> 16482 | FO15: Project Backlog Amount ($): | FP15: =SUM(IF(FC$18:FC$1756<Parameters!$H$63,FP$18:FP$1756*Project_Filter)) -> 2382748 | FR15: Selected 2: | FS15: =SUM(FS18:FS1756) -> 1798683 | FU15: =SUM(FU$18:FU$1756*$S$18:$S$1756*Project_Filter)/$S$14 -> 67.29478508 | FV15: =SUM(FV$18:FV$1756*$S$18:$S$1756*Project_Filter)/$S$14 -> 67.29478508 | FW15: 3 | GC15: Selected Peripheral Concrete Costs ($): | GD15: =GL15-GD14 -> 76663 | GH15: Project Backlog Amount ($): | GI15: =SUM(IF(FV$18:FV$1756<Parameters!$H$63,GI$18:GI$1756*Project_Filter)) -> 1101215 | GK15: Selected 3: | GL15: =SUM(GL18:GL1756) -> 1797218 | GN15: =SUM(GN$18:GN$1756*$S$18:$S$1756*Project_Filter)/$S$14 -> 67.53746023 | GO15: =SUM(GO$18:GO$1756*$S$18:$S$1756*Project_Filter)/$S$14 -> 67.53746023 | GP15: 4 | GV15: Selected Peripheral Concrete Costs ($): | GW15: =HE15-GW14 -> 58438 | HA15: Project Backlog Amount ($): | HB15: =SUM(IF(GO$18:GO$1756<Parameters!$H$63,HB$18:HB$1756*Project_Filter)) -> 920230 | HD15: Selected 4: | HE15: =SUM(HE18:HE1756) -> 1799647 | HG15: =SUM(HG$18:HG$1756*$S$18:$S$1756*Project_Filter)/$S$14 -> 67.53448262 | HH15: =SUM(HH$18:HH$1756*$S$18:$S$1756*Project_Filter)/$S$14 -> 67.53448262 | HI15: 5 | HO15: Selected Peripheral Concrete Costs ($): | HP15: =HX15-HP14 -> 112744 | HT15: Project Backlog Amount ($): | HU15: =SUM(IF(HH$18:HH$1756<Parameters!$H$63,HU$18:HU$1756*Project_Filter)) -> 740046 | HW15: Selected 5: | HX15: =SUM(HX18:HX1756) -> 1797172 | HZ15: =SUM(HZ$18:HZ$1756*$S$18:$S$1756*Project_Filter)/$S$14 -> 67.39157786 | IA15: =SUM(IA$18:IA$1756*$S$18:$S$1756*Project_Filter)/$S$14 -> 67.39157786 | ID15: PPCC Costs ($): | IE15: =II14-IE14 -> 3213109 | IH15: Project Backlog Amount ($): | II15: =SUM(IF(IA$18:IA$1756<Parameters!$H$63,II$18:II$1756)) -> 0
A16: GISID | B16: Agency ID | C16: Comment | D16: Previous PCI | E16: Open Field | F16: Street Number | G16: Block Number | H16: Street Prefix | I16: On Street | J16: From Street | K16: To Street | L16: FunCL Code | M16: Functional Class | N16: Pavetype Code | O16: Pavetype | P16: ="Pvmnt Width ("&Parameters!$K$9&")" -> Pvmnt Width (ft) | Q16: ="Pvmnt Length ("&Parameters!$K$9&")" -> Pvmnt Length (ft) | R16: ="Add Area ("&Parameters!$K$10&")" -> Add Area (yd2) | S16: ="Pvmnt Area ("&Parameters!$K$10&")" -> Pvmnt Area (yd2) | T16: IRI (mm/m) | U16: Deflection Results | V16: Rutting (ACP Only) | W16: L&T Crk / Linear Crk | X16: Alligator Crk / Divided Slab | Y16: Map Crk (Block Crk)/ Crnr Brk | Z16: Edge Crk / Jnt Spall | AA16: Distortions / Faulting | AB16: Bleeding / Polished Agg | AC16: Raveling / Scaling | AD16: Patches / Potholes | AE16: Surface Distress Index (SDI) | AF16: Roughness Index (RI) | AG16: Structural Index (SI) | AH16: Pvmnt Condition Index (PCI) | AI16: PCI Survey Date (mm/dd/yyyy) | AJ16: Strength Code | AK16: Strength Rating | AL16: Condition Rating | AM16: LADD | AN16: NLAD | AO16: Override PCI (OPCI) | AP16: OPCI Date | AQ16: Current PCI (CPCI) | AR16: Aged PCI (APCI) | AS16: OPCI Check | AT16: Zone Name | AU16: Zone Code | AV16: ="Zone Length ("&Parameters!$K$9&")" -> Zone Length (ft) | AW16: ="Zone Area ("&Parameters!$K$10&")" -> Zone Area (yd2) | AX16: Zone Avg PCI | AY16: Zone Backlog (%) | AZ16: Network Index | BA16: Rank (Worst First) | BB16: Priority Factor | BC16: Sidewalk Loading (# of sides) | BD16: Curb & Gutter Loading (# of Sides) | BE16: ="Sidewalk Length ("&Parameters!$K$9&")" -> Sidewalk Length (ft) | BF16: ="Sidewalk Area ("&Parameters!$K$10&")" -> Sidewalk Area (yd2) | BG16: ="Curb & Gutter Length ("&Parameters!$K$9&")" -> Curb & Gutter Length (ft) | BH16: Estimated Ramp Count | BI16: Project ID | BJ16: Project Description | BK16: Prjct Block Count | BL16: ="Prjct Length ("&Parameters!$K$9&")" -> Prjct Length (ft) | BM16: ="Prjct Area ("&Parameters!$K$10&")" -> Prjct Area (yd2) | BN16: Prjctect PCI (P-CPCI) | BO16: Prjct Cndtn Rating | BP16: Prjct Strength Code | BQ16: Prjct FunCl Code | BR16: Prjct Pavetype Code | BS16: Project Filter | BT16: Filter Comment | BU16: Selected Rehab Year | BV16: Selected Rehab (Must be Filled) | BW16: Commit Project 0 = do not use 1 = Include | BX16: Program Year | BY16: Project Comment | BZ16: Rehab Activity Based on Project CPCI | CA16: ="Unit Rate ("&Parameters!K8&")" -> Unit Rate ($/yd2) | CB16: ="Override Unit Rate ("&Parameters!K8&")" -> Override Unit Rate ($/yd2) | CC16: Pvmnt Rehab Cost ($) | CD16: S/W Rplcmnt Cost ($) | CE16: C&G Rplcmnt Cost ($) | CF16: Ramp Rplcmnt Cost ($) | CG16: Committed Seg Cost ($) | CH16: Proj Estimate ($) | CI16: Rutting (ACP Only) | CJ16: L&T Cracking / Linear Crk | CK16: Alligator Cracking Divided Slab / Blow Up | CL16: Map Crck / Crnr Brk / D Crk | CM16: Edge Cracking Joint Spall / Sealant | CN16: Distortions / Faulting | CO16: Bleeding / Polished Agg | CP16: Raveling / Scaling / CAL | CQ16: Patches / Patching | CR16: SI Type | CS16: Perf Curve Assignment | CT16: PCI100 Age | CU16: Current PCI Age | CV16: ="Filtered Length ("&Parameters!$K$9&")" -> Filtered Length (ft) | CW16: ="UnfFiltered Area ("&Parameters!$K$10&")" -> UnfFiltered Area (yd2) | CX16: Sum of Length of Each Street # in Project | CY16: Length of Longest Street In Project | CZ16: Flag longest Street # in Project | DA16: Seg Count for Longest Street # in Project | DB16: Count Segments with Common Street # in Project | DC16: Flag Longest Street in Project For Duplicates | DD16: Street # of Longest Street | DE16: Fill In Street # of longest Street | DF16: Index Street Number | DG16: Project RI Code (< or >) | DH16: Rehab Index Row | DI16: Filter Segment Count | DJ16: OPCI Segment Count | DK16: Average Year for Committed Project | DL16: Inconsistent Year Flag | DM16: Exceeds Rehab Budget Flag | DN16: Incomplete Project Flag | DO16: Selected Block Flag | DP16: Selected Block Count | DQ16: Flag Blks Missing From Prjct | DR16: Committed Project Counter | DS16: Min PCI for Selected Rehab | DT16: ="Unit Rate ("&Parameters!K8&")" -> Unit Rate ($/yd2) | DU16: Aged Project PCI | DV16: Rehab Activity Code | DW16: Min PCI for Rehab | DX16: Unit Rate ($/yd2 or $/m2) | DY16: Pavement Rehab Cost ($) | DZ16: S/W Rplcmnt Cost ($) | EA16: C&G Rplcmnt Cost ($) | EB16: Ramp Rplcmnt Cost ($) | EC16: Segment Cost (based on whole projects) | ED16: Strength PF | EE16: Pavetype PF | EF16: FunCL PF | EG16: Area PF | EH16: Year 1 Start Segment PCI Age | EI16: Year 1 Starting Segment PCI | EJ16: Year 1 Starting Project PCI | EK16: Need Year Priority Factor | EL16: Sequence PF | EM16: Priority | EN16: Priority Rank | EO16: Rehab Activity Code | EP16: Min PCI for Rehab | EQ16: Criticality Code | ER16: Unit Rate ($/yd2 or $/m2) | ES16: Pavement Rehab Cost ($) | ET16: S/W Rplcmnt Cost ($) | EU16: C&G Rplcmnt Cost ($) | EV16: Ramp Rplcmnt Cost ($) | EW16: Segment Total ($) | EX16: Reset PCI | EY16: Selected Year 1 | EZ16: Selected Costs | FA16: PCI100 Age | FB16: Year End Segment PCI | FC16: Year End Project PCI | FD16: Need Year Priority Factor | FE16: Sequence PF | FF16: Priority | FG16: Priority Rank | FH16: Rehab Activity Code | FI16: Min PCI for Rehab | FJ16: Criticality Code | FK16: Unit Rate ($/yd2 or $/m2) | FL16: Pavement Rehab Cost | FM16: S/W Rplcmnt Cost ($) | FN16: C&G Rplcmnt Cost ($) | FO16: Ramp Rplcmnt Cost ($) | FP16: Segment Total ($) | FQ16: Reset PCI | FR16: Selected Year 2 | FS16: Selected Costs | FT16: PCI100 Age | FU16: Year End Segment PCI | FV16: Year End Project PCI | FW16: Need Year Priority Factor | FX16: Sequence PF | FY16: Priority | FZ16: Priority Rank | GA16: Rehab Activity Code | GB16: Min PCI for Rehab | GC16: Criticality Code | GD16: Unit Rate ($/yd2 or $/m2) | GE16: Pavement Rehab Cost | GF16: S/W Rplcmnt Cost ($) | GG16: C&G Rplcmnt Cost ($) | GH16: Ramp Rplcmnt Cost ($) | GI16: Segment Total ($) | GJ16: Reset PCI | GK16: Selected Year 3 | GL16: Selected Costs | GM16: PCI100 Age | GN16: Year End Segment PCI | GO16: Year End Project PCI | GP16: Need Year Priority Factor | GQ16: Sequence PF | GR16: Priority | GS16: Priority Rank | GT16: Rehab Activity Code | GU16: Min PCI for Rehab | GV16: Criticality Code | GW16: Unit Rate ($/yd2 or $/m2) | GX16: Pavement Rehab Cost | GY16: S/W Rplcmnt Cost ($) | GZ16: C&G Rplcmnt Cost ($) | HA16: Ramp Rplcmnt Cost ($) | HB16: Segment Total ($) | HC16: Reset PCI | HD16: Selected Year 4 | HE16: Selected Costs | HF16: PCI100 Age | HG16: Year End Segment PCI | HH16: Year End Project PCI | HI16: Need Year Priority Factor | HJ16: Sequence PF | HK16: Priority | HL16: Priority Rank | HM16: Rehab Activity Code | HN16: Min PCI for Rehab | HO16: Criticality Code | HP16: Unit Rate ($/yd2 or $/m2) | HQ16: Pavement Rehab Cost | HR16: S/W Rplcmnt Cost ($) | HS16: C&G Rplcmnt Cost ($) | HT16: Ramp Rplcmnt Cost ($) | HU16: Segment Total ($) | HV16: Reset PCI | HW16: Selected Year 5 | HX16: Selected Costs | HY16: PCI100 Age | HZ16: Year End Segment PCI | IA16: Year End Project PCI | IB16: Rehab Activity Code | IC16: Min PCI for Rehab | ID16: Unit Rate ($/yd2 or $/m2) | IE16: Pavement Rehab Cost ($) | IF16: S/W Rplcmnt Cost ($) | IG16: C&G Rplcmnt Cost ($) | IH16: Ramp Rplcmnt Cost ($) | II16: Segment Cost (based on whole projects) | IJ16: Need Year | IK16: Committed Year | IL16: Year of First Selection | IM16: Segment Rehab Results | IN16: Rehab Activity Code | IP16: Rehab Activity | IR16: ="Avg Unit Rate ("&Parameters!$K$8&")" -> Avg Unit Rate ($/yd2) | IS16: Segment Peripheral Concrete Costs ($) | IT16: Segment Pavement Cost ($) | IU16: Segment Total Cost ($) | IV16: Project Cost ($) | IW16: Five Year Post Rehab PCI | IX16: CSV Rehab TXT | IY16: Label TXT
A17: 2251 | B17: 1251 | F17: 3160 | G17: 10 | H17: E | I17: VIEJO DR | J17: W VIEJO DR | K17: RANCHO CIR | L17: 3 | M17: =VLOOKUP(L17,Parameters!$B$38:$C$43,2) -> Local | N17: 1 | O17: =VLOOKUP(N17,Parameters!$B$19:$C$21,2) -> Asphalt | P17: 22 | Q17: 1940.78 | R17: =((MAX(P17,VLOOKUP(L17,Parameters!$B$38:$J$43,9))*CV17)/Parameters!$I$8*$R$14/100) -> 379.5303111 | S17: =ROUND(((MAX(P17,VLOOKUP(L17,Parameters!$B$38:$J$43,9))*CV17)/Parameters!$I$8+R17),0) -> 5124 | T17: 5.078 | U17: 30 | V17: 9.46604895 | W17: 9.136589792 | X17: 4.337468053 | Y17: 10 | Z17: 5.467096408 | AA17: 10 | AB17: 10 | AC17: 9.54213095 | AD17: 9.545810255 | AE17: =ROUND(IF(SUM(CI17:CQ17)>100,0,(100-SUM(CI17:CQ17))),0) -> 5 | AF17: 53.12788809 | AG17: =ROUND(IF(CR17=2,U17,VLOOKUP(AJ17,Parameters!$B$50:$E$52,4)),0) -> 30 | AH17: =ROUND(IF(CR17=2,((AE17*Parameters!$D$28/100)+(AF17*Parameters!$D$29/100)+(AG17*Parameters!$D$30/100)),((AE17*Parameters!$C$28/100)+(AF17*Parameters!$C$29/100))),0) -> 21 | AI17: 2018-02-15 | AJ17: =IF(N17=2,2,IF(CR17=1,(IF($AH17>=Parameters!$G$51,2,IF($AM17>(AH17*-1+Parameters!$G$50),1,IF($AM17<($AH17*-1+Parameters!$G$52),3,2)))),IF(CR17=2,VLOOKUP(U17,'Plot Calcs'!$B$25:$C$28,2),2))) -> 1 | AK17: =VLOOKUP(AJ17,Parameters!$B$50:$E$52,2) -> Weak | AL17: =VLOOKUP(AH17,Parameters!$B$60:$C$68,2) -> V Poor | AM17: =IF(N17=2,0,IF((CI17+CK17+CM17+CN17+CQ17)>100,100,ROUND(CI17+CK17+CM17+CN17+CQ17,0))) -> 86 | AN17: =IF($N17=2,0,IF((CJ17+CL17+CO17+CP17)>100,100,ROUND(CJ17+CL17+CO17+CP17,0))) -> 9 | AQ17: =IF(ISNA(ROUND(VLOOKUP((CU17/(VLOOKUP(CS17,'Curve Calcs'!$J$7:$M$21,4)/100)),'Curve Calcs'!$U$49:$V$799,2),0)),100,(ROUND(VLOOKUP((CU17/(VLOOKUP(CS17,'Curve Calcs'!$J$7:$M$21,4)/100)),'Curve Calcs'!$U$49:$V$799,2),0))) -> 21 | AR17: =ROUND(EI17,0) -> 20 | AS17: =IF(AO17>0,IF(BK17=DJ17,"Full Project OPCI","Incomplete Project")," ") ->  | AT17: Zone 2 | AU17: =IF(ISNA(INDEX(Zone_Codes,MATCH(AT17,'Zone Summary'!$B$12:$B$36,0),2)),0,(INDEX(Zone_Codes,MATCH(AT17,'Zone Summary'!$B$12:$B$36,0),2))) -> 20 | AV17: =ROUND(IF($AU17>0,VLOOKUP($AU17,'Zone Summary'!$C$12:$K$36,2),0),0) -> 526871 | AW17: =ROUND(IF($AU17>0,VLOOKUP($AU17,'Zone Summary'!$C$12:$K$36,4),0),0) -> 1586001 | AX17: =ROUND(IF($AW17>0,VLOOKUP($AU17,'Zone Summary'!$C$12:$K$36,5),0),0) -> 66 | AY17: =ROUND(IF($AW17>0,VLOOKUP($AU17,'Zone Summary'!$C$12:$K$36,6),0),0) -> 6 | AZ17: =ROUND(IF($AW17>0,VLOOKUP($AU17,'Zone Summary'!$C$12:$K$36,7),0),0) -> 62 | BA17: =IF($AW17>0,VLOOKUP($AU17,'Zone Summary'!$C$12:$K$36,8),0) -> 1 | BB17: =IF($AW17>0,VLOOKUP($AU17,'Zone Summary'!$C$12:$K$36,9),0) -> 0 | BC17: 0 | BD17: 0 | BE17: =ROUND(BC17*CV17,0) -> 0 | BF17: =ROUND((BE17*(VLOOKUP($L17,Parameters!$B$38:$J$43,7))/Parameters!$I$8),0) -> 0 | BG17: =ROUND(BD17*CV17,0) -> 0 | BH17: =IF(BE17=0,0,(BC17*VLOOKUP(L17,Parameters!$B$38:$J$43,8))) -> 0 | BI17: 2120 | BJ17: =IF(BK17=DB17,(BI17&" - "&(INDEX($I$18:$I$1756,DF17,1))),(BI17&" - "&(INDEX($I$18:$I$1756,DF17,1))&" + Others")) -> 2120 - VIEJO DR | BK17: =COUNT(IF(BI17=$BI$18:$BI$1756,$Q$18:$Q$1756)) -> 1 | BL17: =ROUND(SUM(IF($BI17=$BI$18:$BI$1756,Q$18:Q$1756)),0) -> 626 | BM17: =ROUND(SUM(IF($BI17=$BI$18:$BI$1756,CW$18:CW$1756)),0) -> 1651 | BN17: =(ROUND(SUM(IF(BI17=$BI$18:$BI$1756,$CW$18:$CW$1756*$AQ$18:$AQ$1756))/BM17,0)) -> 48 | BO17: =VLOOKUP(BN17,Parameters!$B$60:$C$68,2) -> Marginal | BP17: =IF(BM17=0,2,(ROUND(SUM(IF(BI17=$BI$18:$BI$1756,$AJ$18:$AJ$1756*$CW$18:$CW$1756))/BM17,0))) -> 2 | BQ17: =ROUND(SUM(IF($BI17=$BI$18:$BI$1756,$L$18:$L$1756*$CW$18:$CW$1756))/$BM17,0) -> 3 | BR17: =ROUND(SUM(IF($BI17=$BI$18:$BI$1756,$N$18:$N$1756*$CW$18:$CW$1756))/$BM17,0) -> 1 | BS17: 1 | BT17: =IF(BS17=1,IF(BK17=DI17," ","Select Whole Prjct"),IF(DI17=0,"Filtered Out","Select Whole Prjct")) ->  | BW17: =IF(BS17=0,1,IF(BU17>0,1,0)) -> 0 | BX17: =IF(BW17=1,IF(BV17>=0,IF(BU17<$IM$8,6,VLOOKUP(BU17,'Plot Calcs'!$B$219:$C$224,2)),0),0) -> 0 | BY17: =IF(DN17=9999,"Incmplt Prjct",IF(DM17=9999,"Exceeds $",IF(DL17=9999,"Inconsistent Yr"," "))) ->  | BZ17: =IF(BS17=0,5,(INDEX(Parameters!$C$147:$J$154,$DH17,(VLOOKUP($BN17,Parameters!$J$60:$K$68,2))))) -> 50 | CA17: =IF(BS17=0,0,IF(BV17>0,INDEX('Rehab Activities'!$N$12:$S$40,MATCH(BV17,'Rehab Activities'!$C$12:$C$40,0),$BQ17),0)) -> 0 | CB17: 0 | CC17: =IF(BX17>0,(ROUND(IF(CB17>0,(CB17*S17*BS17),(CA17*S17*BS17)),0)),0) -> 0 | CD17: =IF(CB17>0,0,ROUND(((100-DS17)^Parameters!$C$171/(10^(2*Parameters!$C$171-2)))/100*$BF17*Parameters!$C$169,-1)) -> 0 | CE17: =IF(CB17>0,0,ROUND(((100-DS17)^Parameters!$D$171/(10^(2*Parameters!$D$171-2)))/100*$BG17*Parameters!$D$169,-1)) -> 0 | CF17: =IF(CB17>0,0,IF(BV17<Parameters!$H$72,0,ROUND(((100-DS17)^Parameters!$E$171/(10^(2*Parameters!$E$171-2)))/100*$BH17*Parameters!$E$169,-1))) -> 0 | CG17: =SUM(CC17:CF17) -> 0 | CH17: =SUM(IF(BI17=$BI$18:$BI$1756,$CG$18:$CG$1756)) -> 0 | CI17: =IF($N17=2,((10-V17)*CI$15),((10-V17)*CI$14)) -> 5.072534972 | CJ17: =IF($N17=2,((10-W17)*CJ$15),((10-W17)*CJ$14)) -> 6.907281664 | CK17: =IF($N17=2,((10-X17)*CK$15),((10-X17)*CK$14)) -> 56.62531947 | CL17: =IF($N17=2,((10-Y17)*CL$15),((10-Y17)*CL$14)) -> 0 | CM17: =IF($N17=2,((10-Z17)*CM$15),((10-Z17)*CM$14)) -> 20.39806616 | CN17: =IF($N17=2,((10-AA17)*CN$15),((10-AA17)*CN$14)) -> 0 | CO17: =IF($N17=2,((10-AB17)*CO$15),((10-AB17)*CO$14)) -> 0 | CP17: =IF($N17=2,((10-AC17)*CP$15),((10-AC17)*CP$14)) -> 2.518279773 | CQ17: =IF($N17=2,((10-AD17)*CQ$15),((10-AD17)*CQ$14)) -> 3.633517958 | CR17: =IF(U17=0,1,IF(U17=30,1,IF(U17=60,1, IF(U17=80,1,2)))) -> 1 | CS17: =IF(N17=1,INDEX(Parameters!$C$87:$E$92,L17,AJ17),IF(N17=2,INDEX(Parameters!$H$87:$J$92,L17,AJ17),(INDEX(Parameters!$C$87:$E$92,L17,AJ17)+Parameters!$J$82))) -> 3 | CT17: =VLOOKUP((IF(AP17>AI17,MAX(AH17,AO17),AH17)),'Curve Calcs'!$C$49:$S$799,(CS17+1)) -> 42.875 | CU17: =($IM$3-(IF(AO17>AH17,IF(AP17>AI17,AP17,AI17),AI17)))/365+CT17 -> 43.11883562 | CV17: =Q17*BS17 -> 1940.78 | CW17: =ROUND(P17*Q17*(1+$R$14/100)/Parameters!$I$8,0) -> 5124 | CX17: =SUM(IF($BI17=$BI$18:$BI$1756,IF($F17=$F$18:$F$1756,$Q$18:$Q$1756))) -> 625.52 | CY17: =MAX(IF(BI17=$BI$18:$BI$1756,$CX$18:$CX$1756)) -> 625.52 | CZ17: =IF(CY17=CX17,1,0) -> 1 | DA17: =SUM(IF(BI17=$BI$18:$BI$1756,$CZ$18:$CZ$1756)) -> 1 | DB17: =COUNT(IF($BI17=$BI$18:$BI$1756,IF($F17=$F$18:$F$1756,$F$18:$F$1756))) -> 1 | DC17: =IF(CZ17=1,(DA17/DB17),0) -> 1 | DD17: =IF(DC17=1,F17,0) -> 3160 | DE17: =MAX(IF(BI17=$BI$18:$BI$1756,$DD$18:$DD$1756)) -> 3160 | DF17: =MATCH(DE17,$F$18:$F$1756,0) -> 76 | DG17: =IF(SUM(IF(BI17=$BI$18:$BI$1756,($S$18:$S$1756*$AF$18:$AF$1756)))/BM17<Parameters!$H$62,2,1) -> 1 | DH17: =(VLOOKUP($BR17,Parameters!$B$19:$N$21,13))+BR17+(IF(BR17=2,DG17,BP17)) -> 2 | DI17: =SUM(IF(BI17=NA_Project_ID,Project_Filter)) -> 1 | DJ17: =COUNT(IF(BI17=$BI$18:$BI$1756,IF($AO$18:$AO$1756>0,$Q$18:$Q$1756))) -> 0 | DK17: =SUM(IF(BI17=$BI$18:$BI$1756,$BX$18:$BX$1756))/BK17 -> 0 | DL17: =IF(BX17>0,IF(BX17=DK17,0,9999),0) -> 0 | DM17: =IF(BX17=6,0,IF(CH17>(IF(BW17>0,(IF(BV17<='Ranking Calcs'!$E$7,INDEX($BX$8:$BY$12,(BX17),1),INDEX($BX$8:$BY$12,(BX17),2))),0)),9999,0)) -> 0 | DN17: =IF($BX17>0,IF($DP17=$BK17,0,9999),0) -> 0 | DO17: =IF(BX17>0,1,) -> 0 | DP17: =SUM(IF(BI17=$BI$18:$BI$1756,$DO$18:$DO$1756)) -> 0 | DQ17: =IF($BX17>0,IF($DP17=$BK17,1,0),0) -> 0 | DR17: =IF(DQ17=1,DO17/DP17,0) -> 0 | DS17: =IF(BS17=0,100,IF(BX17>0,VLOOKUP(BV17,'Rehab Activities'!$C$12:$E$40,3),100)) -> 100 | DT17: =IF(BX17>0,IF(CB17>0,CB17,CA17),0) -> 0 | DU17: =SUM(IF(BI17=$BI$18:$BI$1756,($CW$18:$CW$1756*$AQ$18:$AQ$1756)))/BM17 -> 48 | DV17: =IF(BS17=0,5,INDEX(Parameters!$C$147:$J$154,$DH17,(VLOOKUP($DU17,Parameters!$J$60:$K$68,2)))) -> 50 | DW17: =VLOOKUP(DV17,'Rehab Activities'!$C$12:$E$40,3) -> 40 | DX17: =INDEX('Rehab Activities'!$N$12:$S$40,MATCH(DV17,'Rehab Activities'!$C$12:$C$40,0),$BQ17)*BS17 -> 18.5 | DY17: =ROUND(DX17*$S17,-1)*$BS17 -> 94790 | DZ17: =ROUND(((100-DW17)^Parameters!$C$171/(10^(2*Parameters!$C$171-2)))/100*$BF17*Parameters!$C$169*BS17,-1) -> 0 | EA17: =ROUND(((100-DW17)^Parameters!$D$171/(10^(2*Parameters!$D$171-2)))/100*$BG17*Parameters!$D$169*BS17,-1) -> 0 | EB17: =IF(DV17<='Ranking Calcs'!$E$7,0,ROUND(((100-DW17)^Parameters!$E$171/(10^(2*Parameters!$E$171-2)))/100*$BH17*Parameters!$E$169*BS17,-1)) -> 0 | EC17: =SUM(DY17:EB17)*BS17 -> 94790 | ED17: =VLOOKUP(BP17,Parameters!$B$50:$D$52,3)*BS17 -> 60 | EE17: =VLOOKUP(BR17,Parameters!$B$19:$D$20,3)*BS17 -> 100 | EF17: =VLOOKUP(BQ17,Parameters!$B$38:$D$43,3)*BS17 -> 20 | EG17: =$BM17/Parameters!$I$8/100*BS17 -> 1.834444444 | EH17: =($IM$4-(IF(AO17>AH17,IF(AP17>AI17,AP17,AI17),AI17)))/365+CT17 -> 43.24760274 | EI17: =VLOOKUP(($EH17/(VLOOKUP($CS17,'Curve Calcs'!$J$7:$M$21,4)/100)),'Curve Calcs'!$U$49:$V$799,2) -> 20.37970092 | EJ17: =SUM(IF($BI17=$BI$18:$BI$1756,$CW$18:$CW$1756*$EI$18:$EI$1756))/$BM17 -> 47.34030816 | EK17: =IF($BX17=EK$15,1000,IF($BX17>0,0.01,(VLOOKUP(EJ17,Parameters!$B$99:$F$114,5)))) -> 75 | EL17: =IF($BS17=0,0,IF($BR17=2,INDEX(Parameters!$C$165:$J$165,1*(VLOOKUP($EJ17,Parameters!$J$60:$K$68,2))),INDEX(Parameters!$C$162:$J$164,$BP17,(VLOOKUP(EJ17,Parameters!$J$60:$K$68,2))))) -> 140 | EM17: =(((EL17*Parameters!$B$79)+(ED17*Parameters!$C$79)+(EE17*Parameters!$D$79)+(EF17*Parameters!$E$79)+((100-EJ17)*Parameters!$F$79)+(EG17*Parameters!$H$79)+($BB17*Parameters!$G$79))/SUM(Parameters!$B$79:$H$79))*(EK17/100) -> 58.85785265 | EN17: =RANK(EM17,EM$18:EM$1756) -> 66 | EO17: =IF($BS17=0,5,IF($BX17=EK$15,$BV17,(INDEX(Parameters!$C$147:$J$154,$DH17,(VLOOKUP(EJ17,Parameters!$J$60:$K$68,2)))))) -> 50 | EP17: =IF(EO17=5,100,(VLOOKUP(EO17,'Rehab Activities'!$C$12:$E$40,3))) -> 40 | EQ17: =IF(EK17=1000,3,VLOOKUP($EJ17,Parameters!$B$99:$F$114,3)) -> 2 | ER17: =IF($BX17=EK$15,$DT17,(INDEX('Rehab Activities'!$N$12:$S$40,MATCH(EO17,'Rehab Activities'!$C$12:$C$40,0),$BQ17))*$BS17) -> 18.5 | ES17: =ROUND(ER17*$S17,0) -> 94794 | ET17: =IF($BX17=EK$15,$CD17,ROUND(((100-EP17)^Parameters!$C$171/(10^(2*Parameters!$C$171-2)))/100*$BF17*Parameters!$C$169,0)) -> 0 | EU17: =IF($BX17=EK$15,$CE17,ROUND(((100-EP17)^Parameters!$D$171/(10^(2*Parameters!$D$171-2)))/100*$BG17*Parameters!$D$169,0)) -> 0 | EV17: =IF($BX17=EK$15,$CF17,IF(EO17<Parameters!$H$72,0,ROUND(((100-EP17)^Parameters!$E$171/(10^(2*Parameters!$E$171-2)))/100*$BH17*Parameters!$E$169,0))) -> 0 | EW17: =SUM(ES17:EV17) -> 94794 | EX17: =IF(EO17<='Rehab Activities'!$U$7,EJ17,INDEX('Rehab Activities'!$U$12:$U$40,MATCH(EO17,'Rehab Activities'!$C$12:$C$40,0),1)) -> 94 | EY17: =IF(EN17>'Ranking Calcs'!$C$1511,0,INDEX(RC_Selected_Year_1,EN17,1)) -> 0 | EZ17: =EW17*EY17 -> 0 | FA17: =IF(EY17=1,(VLOOKUP(EX17,'Curve Calcs'!$C$49:$S$799,($CS17+1))),(EH17+1)) -> 44.24760274 | FB17: =IF(EY17=1,EX17,(VLOOKUP((FA17/(VLOOKUP($CS17,'Curve Calcs'!$J$7:$M$21,4)/100)),'Curve Calcs'!$U$49:$V$799,2))) -> 18.5422929 | FC17: =SUM(IF($BI17=$BI$18:$BI$1756,FB$18:FB$1756*$CW$18:$CW$1756))/$BM17 -> 45.25141707 | FD17: =IF($BX17=FD$15,1000,IF($BX17>0,0.01,IF(EY17>0,0.01,(VLOOKUP(FC17,Parameters!$B$99:$F$114,5))))) -> 75 | FE17: =IF($BS17=0,0,IF($BR17=2,INDEX(Parameters!$C$165:$J$165,1*(VLOOKUP($EJ17,Parameters!$J$60:$K$68,2))),INDEX(Parameters!$C$162:$J$164,$BP17,(VLOOKUP(FC17,Parameters!$J$60:$K$68,2))))) -> 140 | FF17: =(((FE17*Parameters!$B$79)+($ED17*Parameters!$C$79)+($EE17*Parameters!$D$79)+($EF17*Parameters!$E$79)+((100-FC17)*Parameters!$F$79)+($EG17*Parameters!$H$79)+($BB17*Parameters!$G$79))/SUM(Parameters!$B$79:$H$79))*(FD17/100) -> 59.34439561 | FG17: =RANK(FF17,FF$18:FF$1756) -> 42 | FH17: =IF($BS17=0,5,IF($BX17=FD$15,$BV17,IF(EY17>0,5,(INDEX(Parameters!$C$147:$J$154,$DH17,(VLOOKUP(FC17,Parameters!$J$60:$K$68,2))))))) -> 50 | FI17: =IF(FH17=5,100,VLOOKUP(FH17,'Rehab Activities'!$C$12:$E$40,3)) -> 40 | FJ17: =IF(FD17=1000,3,VLOOKUP(FC17,Parameters!$B$99:$F$114,3)) -> 2 | FK17: =IF($BX17=FD$15,$DT17,(INDEX('Rehab Activities'!$N$12:$S$40,MATCH(FH17,'Rehab Activities'!$C$12:$C$40,0),$BQ17))*$BS17) -> 18.5 | FL17: =ROUND(FK17*$S17,0) -> 94794 | FM17: =IF($BX17=FD$15,$CD17,ROUND(((100-FI17)^Parameters!$C$171/(10^(2*Parameters!$C$171-2)))/100*$BF17*Parameters!$C$169,0)) -> 0 | FN17: =IF($BX17=FD$15,$CE17,ROUND(((100-FI17)^Parameters!$D$171/(10^(2*Parameters!$D$171-2)))/100*$BG17*Parameters!$D$169,0)) -> 0 | FO17: =IF($BX17=FD$15,$CF17,IF(FH17<Parameters!$H$72,0,ROUND(((100-FI17)^Parameters!$E$171/(10^(2*Parameters!$E$171-2)))/100*$BH17*Parameters!$E$169,0))) -> 0 | FP17: =SUM(FL17:FO17) -> 94794 | FQ17: =IF(FH17<='Rehab Activities'!$U$7,FC17,INDEX('Rehab Activities'!$U$12:$U$40,MATCH(FH17,'Rehab Activities'!$C$12:$C$40,0),1)) -> 94 | FR17: =IF(FG17>'Ranking Calcs'!$C$1511,0,INDEX(RC_Selected_Year_2,FG17,1)) -> 1 | FS17: =FP17*FR17 -> 94794 | FT17: =IF(FR17=1,(VLOOKUP(FQ17,'Curve Calcs'!$C$49:$S$799,($CS17+1))),(FA17+1)) -> 3 | FU17: =IF(FR17=1,FQ17,(VLOOKUP((FT17/(VLOOKUP($CS17,'Curve Calcs'!$J$7:$M$21,4)/100)),'Curve Calcs'!$U$49:$V$799,2))) -> 94 | FV17: =SUM(IF($BI17=$BI$18:$BI$1756,FU$18:FU$1756*$CW$18:$CW$1756))/$BM17 -> 94 | FW17: =IF($BX17=FW$15,1000,IF($BX17>0,0.01,IF((FR17+EY17)>0,0.01,(VLOOKUP(FV17,Parameters!$B$99:$F$114,5))))) -> 0.01 | FX17: =IF($BS17=0,0,IF($BR17=2,INDEX(Parameters!$C$165:$J$165,1*(VLOOKUP($EJ17,Parameters!$J$60:$K$68,2))),INDEX(Parameters!$C$162:$J$164,$BP17,(VLOOKUP(FV17,Parameters!$J$60:$K$68,2))))) -> 70 | FY17: =(((FX17*Parameters!$B$79)+($ED17*Parameters!$C$79)+($EE17*Parameters!$D$79)+($EF17*Parameters!$E$79)+((100-FV17)*Parameters!$F$79)+($EG17*Parameters!$H$79)+($BB17*Parameters!$G$79))/SUM(Parameters!$B$79:$H$79))*(FW17/100) -> 0.004224741891 | FZ17: =RANK(FY17,FY$18:FY$1756) -> 1730 | GA17: =IF($BS17=0,5,IF($BX17=FW$15,$BV17,IF((FR17+EY17)>0,5,(INDEX(Parameters!$C$147:$J$154,$DH17,(VLOOKUP(FV17,Parameters!$J$60:$K$68,2))))))) -> 5 | GB17: =IF(GA17=5,100,VLOOKUP(GA17,'Rehab Activities'!$C$12:$E$40,3)) -> 100 | GC17: =IF(FW17=1000,3,VLOOKUP(FV17,Parameters!$B$99:$F$114,3)) -> 2 | GD17: =IF($BX17=FW$15,$DT17,(INDEX('Rehab Activities'!$N$12:$S$40,MATCH(GA17,'Rehab Activities'!$C$12:$C$40,0),$BQ17))*$BS17) -> 0 | GE17: =ROUND(GD17*$S17,0) -> 0 | GF17: =IF($BX17=FW$15,$CD17,ROUND(((100-GB17)^Parameters!$C$171/(10^(2*Parameters!$C$171-2)))/100*$BF17*Parameters!$C$169,0)) -> 0 | GG17: =IF($BX17=FW$15,$CE17,ROUND(((100-GB17)^Parameters!$D$171/(10^(2*Parameters!$D$171-2)))/100*$BG17*Parameters!$D$169,0)) -> 0 | GH17: =IF($BX17=FW$15,$CF17,IF(GA17<Parameters!$H$72,0,ROUND(((100-GB17)^Parameters!$E$171/(10^(2*Parameters!$E$171-2)))/100*$BH17*Parameters!$E$169,0))) -> 0 | GI17: =SUM(GE17:GH17) -> 0 | GJ17: =IF(GA17<='Rehab Activities'!$U$7,FV17,INDEX('Rehab Activities'!$U$12:$U$40,MATCH(GA17,'Rehab Activities'!$C$12:$C$40,0),1)) -> 94 | GK17: =IF(FZ17>'Ranking Calcs'!$C$1511,0,INDEX(RC_Selected_Year_3,FZ17,1)) -> 0 | GL17: =GI17*GK17 -> 0 | GM17: =IF(GK17=1,(VLOOKUP(GJ17,'Curve Calcs'!$C$49:$S$799,($CS17+1))),(FT17+1)) -> 4 | GN17: =IF(GK17=1,GJ17,(VLOOKUP((GM17/(VLOOKUP($CS17,'Curve Calcs'!$J$7:$M$21,4)/100)),'Curve Calcs'!$U$49:$V$799,2))) -> 92.34877281 | GO17: =SUM(IF($BI17=$BI$18:$BI$1756,GN$18:GN$1756*$CW$18:$CW$1756))/$BM17 -> 92.34877281 | GP17: =IF($BX17=GP$15,1000,IF($BX17>0,0.01,IF((GK17+FR17+EY17)>0,0.01,(VLOOKUP(GO17,Parameters!$B$99:$F$114,5))))) -> 0.01 | GQ17: =IF($BS17=0,0,IF($BR17=2,INDEX(Parameters!$C$165:$J$165,1*(VLOOKUP($EJ17,Parameters!$J$60:$K$68,2))),INDEX(Parameters!$C$162:$J$164,$BP17,(VLOOKUP(GO17,Parameters!$J$60:$K$68,2))))) -> 70 | GR17: =(((GQ17*Parameters!$B$79)+($ED17*Parameters!$C$79)+($EE17*Parameters!$D$79)+($EF17*Parameters!$E$79)+((100-GO17)*Parameters!$F$79)+($EG17*Parameters!$H$79)+($BB17*Parameters!$G$79))/SUM(Parameters!$B$79:$H$79))*(GP17/100) -> 0.004276022239 | GS17: =RANK(GR17,GR$18:GR$1756) -> 1684 | GT17: =IF($BS17=0,5,IF($BX17=GP$15,$BV17,IF((GK17+FR17+EY17)>0,5,(INDEX(Parameters!$C$147:$J$154,$DH17,(VLOOKUP(GO17,Parameters!$J$60:$K$68,2))))))) -> 5 | GU17: =IF(GT17=5,100,VLOOKUP(GT17,'Rehab Activities'!$C$12:$E$40,3)) -> 100 | GV17: =IF(GP17=1000,3,VLOOKUP(GO17,Parameters!$B$99:$F$114,3)) -> 2 | GW17: =IF($BX17=GP$15,$DT17,(INDEX('Rehab Activities'!$N$12:$S$40,MATCH(GT17,'Rehab Activities'!$C$12:$C$40,0),$BQ17))*$BS17) -> 0 | GX17: =ROUND(GW17*$S17,0) -> 0 | GY17: =IF($BX17=GP$15,$CD17,ROUND(((100-GU17)^Parameters!$C$171/(10^(2*Parameters!$C$171-2)))/100*$BF17*Parameters!$C$169,0)) -> 0 | GZ17: =IF($BX17=GP$15,$CE17,ROUND(((100-GU17)^Parameters!$D$171/(10^(2*Parameters!$D$171-2)))/100*$BG17*Parameters!$D$169,0)) -> 0 | HA17: =IF($BX17=GP$15,$CF17,IF(GT17<Parameters!$H$72,0,ROUND(((100-GU17)^Parameters!$E$171/(10^(2*Parameters!$E$171-2)))/100*$BH17*Parameters!$E$169,0))) -> 0 | HB17: =SUM(GX17:HA17) -> 0 | HC17: =IF(GT17<='Rehab Activities'!$U$7,GO17,INDEX('Rehab Activities'!$U$12:$U$40,MATCH(GT17,'Rehab Activities'!$C$12:$C$40,0),1)) -> 92.34877281 | HD17: =IF(GS17>'Ranking Calcs'!$C$1511,0,INDEX(RC_Selected_Year_4,GS17,1)) -> 0 | HE17: =HB17*HD17 -> 0 | HF17: =IF(HD17=1,(VLOOKUP(HC17,'Curve Calcs'!$C$49:$S$799,($CS17+1))),(GM17+1)) -> 5 | HG17: =IF(HD17=1,HC17,(VLOOKUP((HF17/(VLOOKUP($CS17,'Curve Calcs'!$J$7:$M$21,4)/100)),'Curve Calcs'!$U$49:$V$799,2))) -> 90.81637273 | HH17: =SUM(IF($BI17=$BI$18:$BI$1756,HG$18:HG$1756*$CW$18:$CW$1756))/$BM17 -> 91.00093389 | HI17: =IF($BX17=HI$15,1000,IF($BX17>0,0.01,IF((HD17+GK17+FR17+EY17)>0,0.01,(VLOOKUP(HH17,Parameters!$B$99:$F$114,5))))) -> 0.01 | HJ17: =IF($BS17=0,0,IF($BR17=2,INDEX(Parameters!$C$165:$J$165,1*(VLOOKUP($EJ17,Parameters!$J$60:$K$68,2))),INDEX(Parameters!$C$162:$J$164,$BP17,(VLOOKUP(HH17,Parameters!$J$60:$K$68,2))))) -> 70 | HK17: =(((HJ17*Parameters!$B$79)+($ED17*Parameters!$C$79)+($EE17*Parameters!$D$79)+($EF17*Parameters!$E$79)+((100-HH17)*Parameters!$F$79)+($EG17*Parameters!$H$79)+($BB17*Parameters!$G$79))/SUM(Parameters!$B$79:$H$79))*(HI17/100) -> 0.00431788059 | HL17: =RANK(HK17,HK$18:HK$1756) -> 1661 | HM17: =IF($BS17=0,5,IF($BX17=HI$15,$BV17,IF((HD17+GK17+FR17+EY17)>0,5,(INDEX(Parameters!$C$147:$J$154,$DH17,(VLOOKUP(HH17,Parameters!$J$60:$K$68,2))))))) -> 5 | HN17: =IF(HM17=5,100,VLOOKUP(HM17,'Rehab Activities'!$C$12:$E$40,3)) -> 100 | HO17: =IF(HI17=1000,3,VLOOKUP(HH17,Parameters!$B$99:$F$114,3)) -> 2 | HP17: =IF($BX17=HI$15,$DT17,(INDEX('Rehab Activities'!$N$12:$S$40,MATCH(HM17,'Rehab Activities'!$C$12:$C$40,0),$BQ17))*$BS17) -> 0 | HQ17: =ROUND(HP17*$S17,0) -> 0 | HR17: =IF($BX17=HI$15,$CD17,ROUND(((100-HN17)^Parameters!$C$171/(10^(2*Parameters!$C$171-2)))/100*$BF17*Parameters!$C$169,0)) -> 0 | HS17: =IF($BX17=HI$15,$CE17,ROUND(((100-HN17)^Parameters!$D$171/(10^(2*Parameters!$D$171-2)))/100*$BG17*Parameters!$D$169,0)) -> 0 | HT17: =IF($BX17=HI$15,$CF17,IF(HM17<Parameters!$H$72,0,ROUND(((100-HN17)^Parameters!$E$171/(10^(2*Parameters!$E$171-2)))/100*$BH17*Parameters!$E$169,0))) -> 0 | HU17: =SUM(HQ17:HT17) -> 0 | HV17: =IF(HM17<='Rehab Activities'!$U$7,HH17,INDEX('Rehab Activities'!$U$12:$U$40,MATCH(HM17,'Rehab Activities'!$C$12:$C$40,0),1)) -> 91.00093389 | HW17: =IF(HL17>'Ranking Calcs'!$C$1511,0,INDEX(RC_Selected_Year_5,HL17,1)) -> 0 | HX17: =HU17*HW17 -> 0 | HY17: =IF(HW17=1,(VLOOKUP(HV17,'Curve Calcs'!$C$49:$S$799,($CS17+1))),(HF17+1)) -> 6 | HZ17: =IF(HW17=1,HV17,(VLOOKUP((HY17/(VLOOKUP($CS17,'Curve Calcs'!$J$7:$M$21,4)/100)),'Curve Calcs'!$U$49:$V$799,2))) -> 89.23139978 | IA17: =SUM(IF($BI17=$BI$18:$BI$1756,HZ$18:HZ$1756*$CW$18:$CW$1756))/$BM17 -> 89.74559674 | IB17: =IF(BS17=0,5,INDEX(Parameters!$C$147:$J$154,$DH17,(VLOOKUP(IA17,Parameters!$J$60:$K$68,2)))) -> 5 | IC17: =VLOOKUP(IB17,'Rehab Activities'!$C$12:$E$40,3) -> 85 | ID17: =IF(BS17=0,0,INDEX('Rehab Activities'!$N$12:$S$40,MATCH(IB17,'Rehab Activities'!$C$12:$C$40,0),$BQ17)) -> 0 | IE17: =ROUND(ID17*$S17,0)*BS17 -> 0 | IF17: =ROUND(((100-IC17)^Parameters!$C$171/(10^(2*Parameters!$C$171-2)))/100*$BF17*Parameters!$C$169*BS17,0) -> 0 | IG17: =ROUND(((100-IC17)^Parameters!$D$171/(10^(2*Parameters!$D$171-2)))/100*$BG17*Parameters!$D$169*BS17,0) -> 0 | IH17: =IF(IB17<Parameters!$H$72,0,ROUND(((100-IC17)^Parameters!$E$171/(10^(2*Parameters!$E$171-2)))/100*$BH17*Parameters!$E$169*BS17,0)) -> 0 | II17: =SUM(IE17:IH17) -> 0 | IJ17: =IF(EQ17=1,1,IF(FJ17=1,2,IF(GC17=1,3,IF(GV17=1,4,IF(HO17=1,5,"6"))))) -> 6 | IK17: =IF(BX17>0,BX17,0) -> 0 | IL17: =IF(EY17=1,1,IF(FR17=1,2,IF(GK17=1,3,IF(HD17=1,4,IF(HW17=1,5,0))))) -> 2 | IM17: =IF(IK17>0,IF(IK17=6,"Must Not Do",("Forced Yr "&IK17)),(IF(IJ17<=5,IF(IL17=0,("Fall Thru Yr "&IJ17),("Selected Yr "&IL17)),IF(IL17>0,("Non-Crtcl Yr "&IL17),"Not Selected")))) -> Non-Crtcl Yr 2 | IN17: =IF($EY17=1,EO17,IF($FR17=1,FH17,IF($GK17=1,GA17,IF($HD17=1,GT17,IF($HW17=1,HM17," "))))) -> 50 | IP17: =IF(IL17>0,VLOOKUP(IN17,'Rehab Activities'!$C$12:$D$40,2)," ") -> FWM + Thick Overlay (> 2.0 - 3.0) | IR17: =IF(IL17>0,ROUND(IU17/S17,2)," ") -> 18.5 | IS17: =IF(IL17>0,IU17-IT17," ") -> 0 | IT17: =IF($EY17=1,ES17,IF($FR17=1,FL17,IF($GK17=1,GE17,IF($HD17=1,GX17,IF($HW17=1,HQ17," "))))) -> 94794 | IU17: =IF($EY17=1,EZ17,IF($FR17=1,FS17,IF($GK17=1,GL17,IF($HD17=1,HE17,IF($HW17=1,HX17,0))))) -> 94794 | IV17: =SUM(IF(BI17=NA_Project_ID,$IU$18:$IU$1756)) -> 30544 | IW17: =ROUND(HZ17,0) -> 89 | IX17: =IF(IL17>0,VLOOKUP(IN17,'Rehab Activities'!$C$12:$X$40,22),IF(IJ17<=5,"Fall Thru",IM17)) -> Thick Overlay | IY17: =IF(IL17>0,("Yr "&IL17&" "&IX17),IM17) -> Yr 2 Thick Overlay | IZ17: EOR
